Workbook

Sheet REVISION_HISTORY (hidden)
A1: VERSION | B1: DATE | C1: PURPOSE OF REVISIONS | D1: WORKSHEETS AFFECTED | E1: CHANGES
A2: 2.01 | B2: 2015-11-23 | C2: Beta Release of Version 2 | D2: MANUAL_INPUT | E2: Added 6 benefit options
E3: Added 2 optional deductibles
E4: Added 3 additional benefit categories
D5: BENEFIT_DESIGN_ERRORS | E5: Revised to accommodate additional benefit options and benefit categories
D6: BENEFIT_DESIGN | E6: Revised to accommodate additional benefit options and benefit categories
D7: _LINE_ITEM | E7: Replaced with revised schedule of services
D8: _TIMELINE | E8: Replaced with revised timelines
D9: PLAN_INPUT_DATA | E9: Revised to accommodate additional deductible options and benefit categories
A10: 2.02 | B10: 2015-11-24 | C10: Add maternity line items | D10: MATERNITY_LINE_ITEM | E10: Add normal vaginal delivery codes (not bundled)
E11: Set office visit components of bundle (item 32, 33) to zero.
A12: 2.03 | B12: 2015-11-24 | C12: Technical corrections | D12: DIABETES_LINE_ITEM | E12: Change benefit category for insulin to brand drug
D13: RESULTS_SUMMARY | E13: Diabetes subscriber payment
D14: RESULTS_SUMMARY | E14: Foot fracture subscriber payment
A15: 2.04 | B15: 2016-01-31 | C15: Rename worksheets | D15: MANUAL_INPUT | E15: Changed to BENEFIT_DESIGN
C16: Increase benefit categories | D16: BENEFIT_DESIGN | E16: Increased the number of benefit categories to 20
D17: BENEFIT_DESIGN_ERRORS | E17: Increased the number of benefit categories to 20
D18: BENEFIT_PARAMETERS | E18: Increased the number of benefit categories to 20
D19: MATERNITY_SUMMARY | E19: Increased the number of benefit categories to 20
D20: DIABETES_SUMMARY | E20: Increased the number of benefit categories to 20
D21: FRACTURE_SUMMARY | E21: Increased the number of benefit categories to 20
C22: Prompt to save changed parameters | D22: BENEFIT_DESIGN | E22: Added prompt to save changed parameters before navigating to next or
E23: previous plan
C24: Update plan count | D24: BENEFIT_DESIGN | E24: Update total plan count when new plan is added
A25: 2.05 | B25: 2016-02-19 | C25: Update ICD-9 diagnosis codes | D25: MATERNITY_LINE_ITEM | E25: Update to ICD-10 diagnosis codes
D26: DIABETES_LINE_ITEM | E26: Update to ICD-10 diagnosis codes
D27: FRACTURE_LINE_ITEM | E27: Update to ICD-10 diagnosis codes
C28: Remove unused line-items | D28: FRACTURE_LINE_ITEM | E28: Remove line-items that are not used in timeline
C29: Change button labels | D29: RESULTS_SUMMARY | E29: Change all buttons for examples to have consistent labels
A30: 2.06 | B30: 2016-02-22 | C30: Correction | D30: FRACTURE_LINE_ITEM | E30: Change column B heading to reference ICD-10
D31: DIABETES_LINE_ITEM | E31: Change column B heading to reference ICD-10
D32: MATERNITY_LINE_ITEM | E32: Change column B heading to reference ICD-10

Sheet WELCOME
B2: Welcome to the Coverage Examples Cost Sharing Calculator
B4: All insurer data entry fields are highlighted in orange.
B6: The Cost Sharing Calculator operates in two modes.
B7: Click the button that corresponds to the mode you want to use.
D9: The user enters data for an individual plan and views the results.
D11: The user loads data for multiple plans and runs the calculator.
D12: The user can then browse the results for the individual plans, save
D13: the results to an external file, or copy and paste the results for
D14: the individual plans to a separate worksheet.

Sheet MULTIPLE_PLAN_MODE (hidden)
B2: Multiple Plan Mode
C3: In multiple plan mode you load data for multiple plans into the calculator.
C4: The calculator will check your plan benefit design data for errors and calculate
C5: subscriber cost sharing for each plan.
C6: After loading plan data you can browse the output and review the benefit design
C7: parameters for each plan. You can also correct any errors that were identfied
C8: and update your input data by switching to Single Plan Mode.
B11: You have three options for loading plan-level data.
B12: Select the option you want to use by clicking the appropriate button.
C14: Import data from external file.
B16: Option 2: | C16: Copy and paste data from an external file into the plan input data worksheet.
B18: Option 3: | C18: Enter data for each plan in Single Plan Mode and save the data to the input data worksheet.
D20: Click the button to the left to switch to Single Plan Mode

Sheet BENEFIT_DESIGN
B2: Single Plan Mode | E2: =$Y$3&" of "&$Y$2 -> 3 of 3 | X2: Total plan count: | Y2: 3
B3: Enter or modify data for each plan. | X3: Current plan: | Y3: 3
B4: Data entry fields are highlighted in orange. | X4: Parameters Changed? | Y4: TRUE
B6: Plan 3 | D6: Cost sharing¹ | G6: Coverage Limits | I6: OOP | L6: Coverage parameters allowed | X6: Coverage Options Table
B7: Benefit category | C7: Type of cost sharing that applies | D7: Benefit Deductible | E7: Co-payment | F7: Co-insurance | G7: per month | H7: per year | I7: limit applies? | L7: Allowed Coverage type? | M7: Uses plan deductible | N7: Uses Rx deductible | O7: Uses deductible C | P7: Uses deductible D | Q7: Uses benefit deductible | R7: Uses copayment | S7: Uses coinsurance | T7: Monthly limits allowed? | U7: Annual Limits allowed? | V7: OOP limit applies? | X7: Cost sharing description | Y7: Uses plan deductible | Z7: Uses Rx deductible | AA7: Uses deductible C | AB7: Uses deductible D | AC7: Uses benefit deductible | AD7: Uses copayment | AE7: Uses coinsurance
B8: Inpatient Hospital Care (Facility) | C8: Plan Deductible Only | G8: None | H8: None | I8: Yes | L8: =IFERROR(IF(MATCH($C8,$X$8:$X$26,0)>0,TRUE,FALSE),FALSE) -> TRUE | M8: =IFERROR(VLOOKUP($C8,$X$8:$AE$26,MATCH(M$7,$X$7:$AE$7,0),FALSE),FALSE) -> TRUE | N8: FALSE | O8: FALSE | P8: FALSE | Q8: FALSE | R8: FALSE | S8: FALSE | T8: =IFERROR(IF(MATCH($C8,$X$8:$X$26,0)>1,TRUE,FALSE),FALSE) -> TRUE | U8: =$T8 -> TRUE | V8: TRUE | X8: Not Covered | Y8: FALSE | Z8: FALSE | AA8: FALSE | AB8: FALSE | AC8: FALSE | AD8: FALSE | AE8: FALSE
B9: Other Facility Services | C9: Plan Deductible Only | G9: None | H9: None | I9: Yes | L9: TRUE | M9: TRUE | N9: FALSE | O9: FALSE | P9: FALSE | Q9: FALSE | R9: FALSE | S9: FALSE | T9: TRUE | U9: TRUE | V9: TRUE | X9: No Cost Sharing | Y9: FALSE | Z9: FALSE | AA9: FALSE | AB9: FALSE | AC9: FALSE | AD9: FALSE | AE9: FALSE
B10: Emergency Department (Facility) | C10: Deductible C Only | G10: None | H10: None | I10: Yes | L10: TRUE | M10: FALSE | N10: FALSE | O10: TRUE | P10: FALSE | Q10: FALSE | R10: FALSE | S10: FALSE | T10: TRUE | U10: TRUE | V10: TRUE | X10: =BENEFIT_DESIGN!$B$28&" Only" -> Plan Deductible Only | Y10: TRUE | Z10: FALSE | AA10: FALSE | AB10: FALSE | AC10: FALSE | AD10: FALSE | AE10: FALSE
B11: Ambulance | C11: Deductible C Only | G11: None | H11: None | I11: Yes | L11: TRUE | M11: FALSE | N11: FALSE | O11: TRUE | P11: FALSE | Q11: FALSE | R11: FALSE | S11: FALSE | T11: TRUE | U11: TRUE | V11: TRUE | X11: =BENEFIT_DESIGN!$B$29&" Only" -> Rx Deductible Only | Y11: FALSE | Z11: TRUE | AA11: FALSE | AB11: FALSE | AC11: FALSE | AD11: FALSE | AE11: FALSE
B12: Professional Services: Primary Care | C12: Copayment Only | E12: 30 | G12: None | H12: None | I12: Yes | L12: TRUE | M12: FALSE | N12: FALSE | O12: FALSE | P12: FALSE | Q12: FALSE | R12: TRUE | S12: FALSE | T12: TRUE | U12: TRUE | V12: TRUE | X12: =BENEFIT_DESIGN!$B$30&" Only" -> Deductible C Only | Y12: FALSE | Z12: FALSE | AA12: TRUE | AB12: FALSE | AC12: FALSE | AD12: FALSE | AE12: FALSE
B13: Professional Services: Emergency Department | C13: Deductible C Only | G13: None | H13: None | I13: Yes | L13: TRUE | M13: FALSE | N13: FALSE | O13: TRUE | P13: FALSE | Q13: FALSE | R13: FALSE | S13: FALSE | T13: TRUE | U13: TRUE | V13: TRUE | X13: =BENEFIT_DESIGN!$B$31&" Only" -> Deductible D Only | Y13: FALSE | Z13: FALSE | AA13: FALSE | AB13: TRUE | AC13: FALSE | AD13: FALSE | AE13: FALSE
B14: Professional Services: Specialist | C14: Plan Deductible Only | G14: None | H14: None | I14: Yes | L14: TRUE | M14: TRUE | N14: FALSE | O14: FALSE | P14: FALSE | Q14: FALSE | R14: FALSE | S14: FALSE | T14: TRUE | U14: TRUE | V14: TRUE | X14: Benefit Deductible Only | Y14: FALSE | Z14: FALSE | AA14: FALSE | AB14: FALSE | AC14: TRUE | AD14: FALSE | AE14: FALSE
B15: Professional Services: Obstetric Care (Bundled) | C15: Plan Deductible Only | G15: None | H15: None | I15: Yes | L15: TRUE | M15: TRUE | N15: FALSE | O15: FALSE | P15: FALSE | Q15: FALSE | R15: FALSE | S15: FALSE | T15: TRUE | U15: TRUE | V15: TRUE | X15: Copayment Only | Y15: FALSE | Z15: FALSE | AA15: FALSE | AB15: FALSE | AC15: FALSE | AD15: TRUE | AE15: FALSE
B16: Professional Services: Procedures & Other | C16: Plan Deductible Only | G16: None | H16: None | I16: Yes | L16: TRUE | M16: TRUE | N16: FALSE | O16: FALSE | P16: FALSE | Q16: FALSE | R16: FALSE | S16: FALSE | T16: TRUE | U16: TRUE | V16: TRUE | X16: Coinsurance Only | Y16: FALSE | Z16: FALSE | AA16: FALSE | AB16: FALSE | AC16: FALSE | AD16: FALSE | AE16: TRUE
B17: Professional Services: Physical Therapy | C17: Plan Deductible Only | G17: None | H17: None | I17: Yes | L17: TRUE | M17: TRUE | N17: FALSE | O17: FALSE | P17: FALSE | Q17: FALSE | R17: FALSE | S17: FALSE | T17: TRUE | U17: TRUE | V17: TRUE | X17: =BENEFIT_DESIGN!$B$28&"+Co-pay" -> Plan Deductible+Co-pay | Y17: TRUE | Z17: FALSE | AA17: FALSE | AB17: FALSE | AC17: FALSE | AD17: TRUE | AE17: FALSE
B18: Diagnostic Services: Radiology | C18: Plan Deductible Only | G18: None | H18: None | I18: Yes | L18: TRUE | M18: =IFERROR(VLOOKUP($C18,$X$8:$AE$26,MATCH(M$7,$X$7:$AE$7,0),FALSE),FALSE) -> TRUE | N18: FALSE | O18: FALSE | P18: FALSE | Q18: FALSE | R18: FALSE | S18: FALSE | T18: TRUE | U18: TRUE | V18: TRUE | X18: =BENEFIT_DESIGN!$B$29&"+Co-pay" -> Rx Deductible+Co-pay | Y18: FALSE | Z18: TRUE | AA18: FALSE | AB18: FALSE | AC18: FALSE | AD18: TRUE | AE18: FALSE
B19: Diagnostic Services: Laboratory | C19: Plan Deductible Only | G19: None | H19: None | I19: Yes | L19: TRUE | M19: TRUE | N19: FALSE | O19: FALSE | P19: FALSE | Q19: FALSE | R19: FALSE | S19: FALSE | T19: TRUE | U19: TRUE | V19: TRUE | X19: =BENEFIT_DESIGN!$B$30&"+Co-pay" -> Deductible C+Co-pay | Y19: FALSE | Z19: FALSE | AA19: TRUE | AB19: FALSE | AC19: FALSE | AD19: TRUE | AE19: FALSE
B20: Prescription Drugs: Generic | C20: Rx Deductible+Co-ins | F20: 0.1 | G20: None | H20: None | I20: Yes | L20: TRUE | M20: FALSE | N20: TRUE | O20: FALSE | P20: FALSE | Q20: FALSE | R20: FALSE | S20: TRUE | T20: TRUE | U20: TRUE | V20: TRUE | X20: =BENEFIT_DESIGN!$B$31&"+Co-pay" -> Deductible D+Co-pay | Y20: FALSE | Z20: FALSE | AA20: FALSE | AB20: TRUE | AC20: FALSE | AD20: TRUE | AE20: FALSE
B21: Prescription Drugs: Branded | C21: Rx Deductible+Co-pay | E21: 30 | G21: None | H21: None | I21: Yes | L21: TRUE | M21: FALSE | N21: TRUE | O21: FALSE | P21: FALSE | Q21: FALSE | R21: TRUE | S21: FALSE | T21: TRUE | U21: TRUE | V21: TRUE | X21: Benefit Deductible+Co-pay | Y21: FALSE | Z21: FALSE | AA21: FALSE | AB21: FALSE | AC21: TRUE | AD21: TRUE | AE21: FALSE
B22: Over-the-counter Drugs | C22: Not Covered | L22: TRUE | M22: FALSE | N22: FALSE | O22: FALSE | P22: FALSE | Q22: FALSE | R22: FALSE | S22: FALSE | T22: FALSE | U22: FALSE | V22: FALSE | X22: =BENEFIT_DESIGN!$B$28&"+Co-ins" -> Plan Deductible+Co-ins | Y22: TRUE | Z22: FALSE | AA22: FALSE | AB22: FALSE | AC22: FALSE | AD22: FALSE | AE22: TRUE
B23: Preventive Services & Vaccines | C23: No Cost Sharing | G23: None | H23: None | I23: Yes | L23: TRUE | M23: FALSE | N23: FALSE | O23: FALSE | P23: FALSE | Q23: FALSE | R23: FALSE | S23: FALSE | T23: TRUE | U23: TRUE | V23: TRUE | X23: =BENEFIT_DESIGN!$B$29&"+Co-ins" -> Rx Deductible+Co-ins | Y23: FALSE | Z23: TRUE | AA23: FALSE | AB23: FALSE | AC23: FALSE | AD23: FALSE | AE23: TRUE
B24: Durable Medical Equipment | C24: Plan Deductible Only | G24: None | H24: None | I24: Yes | L24: TRUE | M24: TRUE | N24: FALSE | O24: FALSE | P24: FALSE | Q24: FALSE | R24: FALSE | S24: FALSE | T24: TRUE | U24: TRUE | V24: TRUE | X24: =BENEFIT_DESIGN!$B$30&"+Co-ins" -> Deductible C+Co-ins | Y24: FALSE | Z24: FALSE | AA24: TRUE | AB24: FALSE | AC24: FALSE | AD24: FALSE | AE24: TRUE
B25: Medical Supplies | C25: Plan Deductible Only | G25: None | H25: None | I25: Yes | L25: TRUE | M25: TRUE | N25: FALSE | O25: FALSE | P25: FALSE | Q25: FALSE | R25: FALSE | S25: FALSE | T25: TRUE | U25: TRUE | V25: TRUE | X25: =BENEFIT_DESIGN!$B$31&"+Co-ins" -> Deductible D+Co-ins | Y25: FALSE | Z25: FALSE | AA25: FALSE | AB25: TRUE | AC25: FALSE | AD25: FALSE | AE25: TRUE
B26: Over-the-counter Medical Supplies | C26: Not Covered | L26: TRUE | M26: FALSE | N26: FALSE | O26: FALSE | P26: FALSE | Q26: FALSE | R26: FALSE | S26: FALSE | T26: FALSE | U26: FALSE | V26: FALSE | X26: Benefit Deductible+Co-ins | Y26: FALSE | Z26: FALSE | AA26: FALSE | AB26: FALSE | AC26: TRUE | AD26: FALSE | AE26: TRUE
B27: Other Items & Services | C27: Not Covered | L27: TRUE | M27: FALSE | N27: FALSE | O27: FALSE | P27: FALSE | Q27: FALSE | R27: FALSE | S27: FALSE | T27: FALSE | U27: FALSE | V27: FALSE
B28: Plan Deductible | C28: 1000 | M28: =COUNTIF(M8:M27,TRUE)>0 -> TRUE
B29: Rx Deductible | C29: 100 | N29: =COUNTIF(N8:N27,TRUE)>0 -> TRUE
B30: Deductible C | C30: 500 | O30: =COUNTIF(O8:O27,TRUE)>0 -> TRUE
B31: Deductible D | P31: =COUNTIF(P8:P27,TRUE)>0 -> FALSE
B32: Individual Out-of-Pocket (OOP) Limit | C32: 1000 | E32: 0 | V32: =COUNTIF(V8:V27,TRUE)>0 -> TRUE
B33: ¹ The benefit-specific deductible, copayment amount, or coinsurance rate that determines consumer liability.
B34: ² Outpatient services include non-professional Emergency Department services. Professional services fall under the Professional Services benefit categories.

Sheet BENEFIT_DESIGN_ERRORS (hidden)
B3: Plan Design Errors
O5: Parameters specified in plan benefit design
B6: Plan 2 | H6: Cost sharing¹ | K6: Coverage Limits | M6: OOP | O6: Cost sharing¹ | R6: Coverage Limits
B7: Benefit category | C7: Coverage type | D7: Plan Deductible | E7: Rx Deductible | F7: Deductible C | G7: Deductible D | H7: Benefit Deductible | I7: Co-payment | J7: Co-insurance | K7: per month | L7: per year | M7: limit applies? | O7: Has benefit deductible | P7: Has co-payment | Q7: Has co-insurance | R7: Has monthly limit | S7: Has annual limit | T7: Has OOP limit
B8: =BENEFIT_DESIGN!B8 -> Inpatient Hospital Care (Facility) | C8: =IF(BENEFIT_DESIGN!L8,FALSE,TRUE) -> FALSE | D8: =IFERROR(IF(BENEFIT_DESIGN!M8,IF(BENEFIT_PARAMETERS!C8=0,TRUE,FALSE),IF(BENEFIT_PARAMETERS!C8=0,FALSE,TRUE)),TRUE) -> FALSE | E8: =IF(BENEFIT_DESIGN!N8,IF(BENEFIT_PARAMETERS!D8=0,TRUE,FALSE),IF(BENEFIT_PARAMETERS!D8=0,FALSE,TRUE)) -> FALSE | F8: =IF(BENEFIT_DESIGN!O8,IF(BENEFIT_PARAMETERS!E8=0,TRUE,FALSE),IF(BENEFIT_PARAMETERS!E8=0,FALSE,TRUE)) -> FALSE | G8: =IF(BENEFIT_DESIGN!P8,IF(BENEFIT_PARAMETERS!F8=0,TRUE,FALSE),IF(BENEFIT_PARAMETERS!F8=0,FALSE,TRUE)) -> FALSE | H8: =IF(BENEFIT_DESIGN!Q8,IF(BENEFIT_PARAMETERS!H8=0,TRUE,FALSE),IF(O8,FALSE,TRUE)) -> FALSE | I8: =IF(BENEFIT_DESIGN!R8,IF(BENEFIT_PARAMETERS!I8<=0,TRUE,FALSE),IF(P8,FALSE,TRUE)) -> FALSE | J8: =IF(BENEFIT_DESIGN!S8,IF(BENEFIT_PARAMETERS!J8<=0,TRUE,FALSE),IF(Q8,FALSE,TRUE)) -> FALSE | K8: =IF(BENEFIT_DESIGN!T8,IF(BENEFIT_PARAMETERS!K8="None",FALSE,IF(BENEFIT_PARAMETERS!K8>0,FALSE,TRUE)),IF(R8,FALSE,TRUE)) -> FALSE | L8: =IF(BENEFIT_DESIGN!U8,IF(BENEFIT_PARAMETERS!L8="None",FALSE,IF(BENEFIT_PARAMETERS!L8>0,FALSE,TRUE)),IF(S8,FALSE,TRUE)) -> FALSE | M8: =IF(BENEFIT_DESIGN!V8,IF(BENEFIT_PARAMETERS!M8="Yes",FALSE,IF(BENEFIT_PARAMETERS!M8="No",FALSE,TRUE)),IF(T8,FALSE,TRUE)) -> FALSE | O8: =ISBLANK(BENEFIT_DESIGN!D8) -> TRUE | P8: =ISBLANK(BENEFIT_DESIGN!E8) -> TRUE | Q8: =ISBLANK(BENEFIT_DESIGN!F8) -> TRUE | R8: =ISBLANK(BENEFIT_DESIGN!G8) -> FALSE | S8: =ISBLANK(BENEFIT_DESIGN!H8) -> FALSE | T8: =ISBLANK(BENEFIT_DESIGN!I8) -> FALSE
B9: =BENEFIT_DESIGN!B9 -> Other Facility Services | C9: =IF(BENEFIT_DESIGN!L9,FALSE,TRUE) -> FALSE | D9: =IFERROR(IF(BENEFIT_DESIGN!M9,IF(BENEFIT_PARAMETERS!C9=0,TRUE,FALSE),IF(BENEFIT_PARAMETERS!C9=0,FALSE,TRUE)),TRUE) -> FALSE | E9: =IF(BENEFIT_DESIGN!N9,IF(BENEFIT_PARAMETERS!D9=0,TRUE,FALSE),IF(BENEFIT_PARAMETERS!D9=0,FALSE,TRUE)) -> FALSE | F9: =IF(BENEFIT_DESIGN!O9,IF(BENEFIT_PARAMETERS!E9=0,TRUE,FALSE),IF(BENEFIT_PARAMETERS!E9=0,FALSE,TRUE)) -> FALSE | G9: =IF(BENEFIT_DESIGN!P9,IF(BENEFIT_PARAMETERS!F9=0,TRUE,FALSE),IF(BENEFIT_PARAMETERS!F9=0,FALSE,TRUE)) -> FALSE | H9: =IF(BENEFIT_DESIGN!Q9,IF(BENEFIT_PARAMETERS!H9=0,TRUE,FALSE),IF(O9,FALSE,TRUE)) -> FALSE | I9: =IF(BENEFIT_DESIGN!R9,IF(BENEFIT_PARAMETERS!I9<=0,TRUE,FALSE),IF(P9,FALSE,TRUE)) -> FALSE | J9: =IF(BENEFIT_DESIGN!S9,IF(BENEFIT_PARAMETERS!J9<=0,TRUE,FALSE),IF(Q9,FALSE,TRUE)) -> FALSE | K9: =IF(BENEFIT_DESIGN!T9,IF(BENEFIT_PARAMETERS!K9="None",FALSE,IF(BENEFIT_PARAMETERS!K9>0,FALSE,TRUE)),IF(R9,FALSE,TRUE)) -> FALSE | L9: =IF(BENEFIT_DESIGN!U9,IF(BENEFIT_PARAMETERS!L9="None",FALSE,IF(BENEFIT_PARAMETERS!L9>0,FALSE,TRUE)),IF(S9,FALSE,TRUE)) -> FALSE | M9: =IF(BENEFIT_DESIGN!V9,IF(BENEFIT_PARAMETERS!M9="Yes",FALSE,IF(BENEFIT_PARAMETERS!M9="No",FALSE,TRUE)),IF(T9,FALSE,TRUE)) -> FALSE | O9: =ISBLANK(BENEFIT_DESIGN!D9) -> TRUE | P9: =ISBLANK(BENEFIT_DESIGN!E9) -> TRUE | Q9: =ISBLANK(BENEFIT_DESIGN!F9) -> TRUE | R9: =ISBLANK(BENEFIT_DESIGN!G9) -> FALSE | S9: =ISBLANK(BENEFIT_DESIGN!H9) -> FALSE | T9: =ISBLANK(BENEFIT_DESIGN!I9) -> FALSE
B10: =BENEFIT_DESIGN!B10 -> Emergency Department (Facility) | C10: =IF(BENEFIT_DESIGN!L10,FALSE,TRUE) -> FALSE | D10: =IFERROR(IF(BENEFIT_DESIGN!M10,IF(BENEFIT_PARAMETERS!C10=0,TRUE,FALSE),IF(BENEFIT_PARAMETERS!C10=0,FALSE,TRUE)),TRUE) -> FALSE | E10: =IF(BENEFIT_DESIGN!N10,IF(BENEFIT_PARAMETERS!D10=0,TRUE,FALSE),IF(BENEFIT_PARAMETERS!D10=0,FALSE,TRUE)) -> FALSE | F10: =IF(BENEFIT_DESIGN!O10,IF(BENEFIT_PARAMETERS!E10=0,TRUE,FALSE),IF(BENEFIT_PARAMETERS!E10=0,FALSE,TRUE)) -> FALSE | G10: =IF(BENEFIT_DESIGN!P10,IF(BENEFIT_PARAMETERS!F10=0,TRUE,FALSE),IF(BENEFIT_PARAMETERS!F10=0,FALSE,TRUE)) -> FALSE | H10: =IF(BENEFIT_DESIGN!Q10,IF(BENEFIT_PARAMETERS!H10=0,TRUE,FALSE),IF(O10,FALSE,TRUE)) -> FALSE | I10: =IF(BENEFIT_DESIGN!R10,IF(BENEFIT_PARAMETERS!I10<=0,TRUE,FALSE),IF(P10,FALSE,TRUE)) -> FALSE | J10: =IF(BENEFIT_DESIGN!S10,IF(BENEFIT_PARAMETERS!J10<=0,TRUE,FALSE),IF(Q10,FALSE,TRUE)) -> FALSE | K10: =IF(BENEFIT_DESIGN!T10,IF(BENEFIT_PARAMETERS!K10="None",FALSE,IF(BENEFIT_PARAMETERS!K10>0,FALSE,TRUE)),IF(R10,FALSE,TRUE)) -> FALSE | L10: =IF(BENEFIT_DESIGN!U10,IF(BENEFIT_PARAMETERS!L10="None",FALSE,IF(BENEFIT_PARAMETERS!L10>0,FALSE,TRUE)),IF(S10,FALSE,TRUE)) -> FALSE | M10: =IF(BENEFIT_DESIGN!V10,IF(BENEFIT_PARAMETERS!M10="Yes",FALSE,IF(BENEFIT_PARAMETERS!M10="No",FALSE,TRUE)),IF(T10,FALSE,TRUE)) -> FALSE | O10: =ISBLANK(BENEFIT_DESIGN!D10) -> TRUE | P10: =ISBLANK(BENEFIT_DESIGN!E10) -> TRUE | Q10: =ISBLANK(BENEFIT_DESIGN!F10) -> TRUE | R10: =ISBLANK(BENEFIT_DESIGN!G10) -> FALSE | S10: =ISBLANK(BENEFIT_DESIGN!H10) -> FALSE | T10: =ISBLANK(BENEFIT_DESIGN!I10) -> FALSE
B11: =BENEFIT_DESIGN!B11 -> Ambulance | C11: =IF(BENEFIT_DESIGN!L11,FALSE,TRUE) -> FALSE | D11: =IFERROR(IF(BENEFIT_DESIGN!M11,IF(BENEFIT_PARAMETERS!C11=0,TRUE,FALSE),IF(BENEFIT_PARAMETERS!C11=0,FALSE,TRUE)),TRUE) -> FALSE | E11: =IF(BENEFIT_DESIGN!N11,IF(BENEFIT_PARAMETERS!D11=0,TRUE,FALSE),IF(BENEFIT_PARAMETERS!D11=0,FALSE,TRUE)) -> FALSE | F11: =IF(BENEFIT_DESIGN!O11,IF(BENEFIT_PARAMETERS!E11=0,TRUE,FALSE),IF(BENEFIT_PARAMETERS!E11=0,FALSE,TRUE)) -> FALSE | G11: =IF(BENEFIT_DESIGN!P11,IF(BENEFIT_PARAMETERS!F11=0,TRUE,FALSE),IF(BENEFIT_PARAMETERS!F11=0,FALSE,TRUE)) -> FALSE | H11: =IF(BENEFIT_DESIGN!Q11,IF(BENEFIT_PARAMETERS!H11=0,TRUE,FALSE),IF(O11,FALSE,TRUE)) -> FALSE | I11: =IF(BENEFIT_DESIGN!R11,IF(BENEFIT_PARAMETERS!I11<=0,TRUE,FALSE),IF(P11,FALSE,TRUE)) -> FALSE | J11: =IF(BENEFIT_DESIGN!S11,IF(BENEFIT_PARAMETERS!J11<=0,TRUE,FALSE),IF(Q11,FALSE,TRUE)) -> FALSE | K11: =IF(BENEFIT_DESIGN!T11,IF(BENEFIT_PARAMETERS!K11="None",FALSE,IF(BENEFIT_PARAMETERS!K11>0,FALSE,TRUE)),IF(R11,FALSE,TRUE)) -> FALSE | L11: =IF(BENEFIT_DESIGN!U11,IF(BENEFIT_PARAMETERS!L11="None",FALSE,IF(BENEFIT_PARAMETERS!L11>0,FALSE,TRUE)),IF(S11,FALSE,TRUE)) -> FALSE | M11: =IF(BENEFIT_DESIGN!V11,IF(BENEFIT_PARAMETERS!M11="Yes",FALSE,IF(BENEFIT_PARAMETERS!M11="No",FALSE,TRUE)),IF(T11,FALSE,TRUE)) -> FALSE | O11: =ISBLANK(BENEFIT_DESIGN!D11) -> TRUE | P11: =ISBLANK(BENEFIT_DESIGN!E11) -> TRUE | Q11: =ISBLANK(BENEFIT_DESIGN!F11) -> TRUE | R11: =ISBLANK(BENEFIT_DESIGN!G11) -> FALSE | S11: =ISBLANK(BENEFIT_DESIGN!H11) -> FALSE | T11: =ISBLANK(BENEFIT_DESIGN!I11) -> FALSE
B12: =BENEFIT_DESIGN!B12 -> Professional Services: Primary Care | C12: =IF(BENEFIT_DESIGN!L12,FALSE,TRUE) -> FALSE | D12: =IFERROR(IF(BENEFIT_DESIGN!M12,IF(BENEFIT_PARAMETERS!C12=0,TRUE,FALSE),IF(BENEFIT_PARAMETERS!C12=0,FALSE,TRUE)),TRUE) -> FALSE | E12: =IF(BENEFIT_DESIGN!N12,IF(BENEFIT_PARAMETERS!D12=0,TRUE,FALSE),IF(BENEFIT_PARAMETERS!D12=0,FALSE,TRUE)) -> FALSE | F12: =IF(BENEFIT_DESIGN!O12,IF(BENEFIT_PARAMETERS!E12=0,TRUE,FALSE),IF(BENEFIT_PARAMETERS!E12=0,FALSE,TRUE)) -> FALSE | G12: =IF(BENEFIT_DESIGN!P12,IF(BENEFIT_PARAMETERS!F12=0,TRUE,FALSE),IF(BENEFIT_PARAMETERS!F12=0,FALSE,TRUE)) -> FALSE | H12: =IF(BENEFIT_DESIGN!Q12,IF(BENEFIT_PARAMETERS!H12=0,TRUE,FALSE),IF(O12,FALSE,TRUE)) -> FALSE | I12: =IF(BENEFIT_DESIGN!R12,IF(BENEFIT_PARAMETERS!I12<=0,TRUE,FALSE),IF(P12,FALSE,TRUE)) -> FALSE | J12: =IF(BENEFIT_DESIGN!S12,IF(BENEFIT_PARAMETERS!J12<=0,TRUE,FALSE),IF(Q12,FALSE,TRUE)) -> FALSE | K12: =IF(BENEFIT_DESIGN!T12,IF(BENEFIT_PARAMETERS!K12="None",FALSE,IF(BENEFIT_PARAMETERS!K12>0,FALSE,TRUE)),IF(R12,FALSE,TRUE)) -> FALSE | L12: =IF(BENEFIT_DESIGN!U12,IF(BENEFIT_PARAMETERS!L12="None",FALSE,IF(BENEFIT_PARAMETERS!L12>0,FALSE,TRUE)),IF(S12,FALSE,TRUE)) -> FALSE | M12: =IF(BENEFIT_DESIGN!V12,IF(BENEFIT_PARAMETERS!M12="Yes",FALSE,IF(BENEFIT_PARAMETERS!M12="No",FALSE,TRUE)),IF(T12,FALSE,TRUE)) -> FALSE | O12: =ISBLANK(BENEFIT_DESIGN!D12) -> TRUE | P12: =ISBLANK(BENEFIT_DESIGN!E12) -> FALSE | Q12: =ISBLANK(BENEFIT_DESIGN!F12) -> TRUE | R12: =ISBLANK(BENEFIT_DESIGN!G12) -> FALSE | S12: =ISBLANK(BENEFIT_DESIGN!H12) -> FALSE | T12: =ISBLANK(BENEFIT_DESIGN!I12) -> FALSE
B13: =BENEFIT_DESIGN!B13 -> Professional Services: Emergency Department | C13: =IF(BENEFIT_DESIGN!L13,FALSE,TRUE) -> FALSE | D13: =IFERROR(IF(BENEFIT_DESIGN!M13,IF(BENEFIT_PARAMETERS!C13=0,TRUE,FALSE),IF(BENEFIT_PARAMETERS!C13=0,FALSE,TRUE)),TRUE) -> FALSE | E13: =IF(BENEFIT_DESIGN!N13,IF(BENEFIT_PARAMETERS!D13=0,TRUE,FALSE),IF(BENEFIT_PARAMETERS!D13=0,FALSE,TRUE)) -> FALSE | F13: =IF(BENEFIT_DESIGN!O13,IF(BENEFIT_PARAMETERS!E13=0,TRUE,FALSE),IF(BENEFIT_PARAMETERS!E13=0,FALSE,TRUE)) -> FALSE | G13: =IF(BENEFIT_DESIGN!P13,IF(BENEFIT_PARAMETERS!F13=0,TRUE,FALSE),IF(BENEFIT_PARAMETERS!F13=0,FALSE,TRUE)) -> FALSE | H13: =IF(BENEFIT_DESIGN!Q13,IF(BENEFIT_PARAMETERS!H13=0,TRUE,FALSE),IF(O13,FALSE,TRUE)) -> FALSE | I13: =IF(BENEFIT_DESIGN!R13,IF(BENEFIT_PARAMETERS!I13<=0,TRUE,FALSE),IF(P13,FALSE,TRUE)) -> FALSE | J13: =IF(BENEFIT_DESIGN!S13,IF(BENEFIT_PARAMETERS!J13<=0,TRUE,FALSE),IF(Q13,FALSE,TRUE)) -> FALSE | K13: =IF(BENEFIT_DESIGN!T13,IF(BENEFIT_PARAMETERS!K13="None",FALSE,IF(BENEFIT_PARAMETERS!K13>0,FALSE,TRUE)),IF(R13,FALSE,TRUE)) -> FALSE | L13: =IF(BENEFIT_DESIGN!U13,IF(BENEFIT_PARAMETERS!L13="None",FALSE,IF(BENEFIT_PARAMETERS!L13>0,FALSE,TRUE)),IF(S13,FALSE,TRUE)) -> FALSE | M13: =IF(BENEFIT_DESIGN!V13,IF(BENEFIT_PARAMETERS!M13="Yes",FALSE,IF(BENEFIT_PARAMETERS!M13="No",FALSE,TRUE)),IF(T13,FALSE,TRUE)) -> FALSE | O13: =ISBLANK(BENEFIT_DESIGN!D13) -> TRUE | P13: =ISBLANK(BENEFIT_DESIGN!E13) -> TRUE | Q13: =ISBLANK(BENEFIT_DESIGN!F13) -> TRUE | R13: =ISBLANK(BENEFIT_DESIGN!G13) -> FALSE | S13: =ISBLANK(BENEFIT_DESIGN!H13) -> FALSE | T13: =ISBLANK(BENEFIT_DESIGN!I13) -> FALSE
B14: =BENEFIT_DESIGN!B14 -> Professional Services: Specialist | C14: =IF(BENEFIT_DESIGN!L14,FALSE,TRUE) -> FALSE | D14: =IFERROR(IF(BENEFIT_DESIGN!M14,IF(BENEFIT_PARAMETERS!C14=0,TRUE,FALSE),IF(BENEFIT_PARAMETERS!C14=0,FALSE,TRUE)),TRUE) -> FALSE | E14: =IF(BENEFIT_DESIGN!N14,IF(BENEFIT_PARAMETERS!D14=0,TRUE,FALSE),IF(BENEFIT_PARAMETERS!D14=0,FALSE,TRUE)) -> FALSE | F14: =IF(BENEFIT_DESIGN!O14,IF(BENEFIT_PARAMETERS!E14=0,TRUE,FALSE),IF(BENEFIT_PARAMETERS!E14=0,FALSE,TRUE)) -> FALSE | G14: =IF(BENEFIT_DESIGN!P14,IF(BENEFIT_PARAMETERS!F14=0,TRUE,FALSE),IF(BENEFIT_PARAMETERS!F14=0,FALSE,TRUE)) -> FALSE | H14: =IF(BENEFIT_DESIGN!Q14,IF(BENEFIT_PARAMETERS!H14=0,TRUE,FALSE),IF(O14,FALSE,TRUE)) -> FALSE | I14: =IF(BENEFIT_DESIGN!R14,IF(BENEFIT_PARAMETERS!I14<=0,TRUE,FALSE),IF(P14,FALSE,TRUE)) -> FALSE | J14: =IF(BENEFIT_DESIGN!S14,IF(BENEFIT_PARAMETERS!J14<=0,TRUE,FALSE),IF(Q14,FALSE,TRUE)) -> FALSE | K14: =IF(BENEFIT_DESIGN!T14,IF(BENEFIT_PARAMETERS!K14="None",FALSE,IF(BENEFIT_PARAMETERS!K14>0,FALSE,TRUE)),IF(R14,FALSE,TRUE)) -> FALSE | L14: =IF(BENEFIT_DESIGN!U14,IF(BENEFIT_PARAMETERS!L14="None",FALSE,IF(BENEFIT_PARAMETERS!L14>0,FALSE,TRUE)),IF(S14,FALSE,TRUE)) -> FALSE | M14: =IF(BENEFIT_DESIGN!V14,IF(BENEFIT_PARAMETERS!M14="Yes",FALSE,IF(BENEFIT_PARAMETERS!M14="No",FALSE,TRUE)),IF(T14,FALSE,TRUE)) -> FALSE | O14: =ISBLANK(BENEFIT_DESIGN!D14) -> TRUE | P14: =ISBLANK(BENEFIT_DESIGN!E14) -> TRUE | Q14: =ISBLANK(BENEFIT_DESIGN!F14) -> TRUE | R14: =ISBLANK(BENEFIT_DESIGN!G14) -> FALSE | S14: =ISBLANK(BENEFIT_DESIGN!H14) -> FALSE | T14: =ISBLANK(BENEFIT_DESIGN!I14) -> FALSE
B15: =BENEFIT_DESIGN!B15 -> Professional Services: Obstetric Care (Bundled) | C15: =IF(BENEFIT_DESIGN!L15,FALSE,TRUE) -> FALSE | D15: =IFERROR(IF(BENEFIT_DESIGN!M15,IF(BENEFIT_PARAMETERS!C15=0,TRUE,FALSE),IF(BENEFIT_PARAMETERS!C15=0,FALSE,TRUE)),TRUE) -> FALSE | E15: =IF(BENEFIT_DESIGN!N15,IF(BENEFIT_PARAMETERS!D15=0,TRUE,FALSE),IF(BENEFIT_PARAMETERS!D15=0,FALSE,TRUE)) -> FALSE | F15: =IF(BENEFIT_DESIGN!O15,IF(BENEFIT_PARAMETERS!E15=0,TRUE,FALSE),IF(BENEFIT_PARAMETERS!E15=0,FALSE,TRUE)) -> FALSE | G15: =IF(BENEFIT_DESIGN!P15,IF(BENEFIT_PARAMETERS!F15=0,TRUE,FALSE),IF(BENEFIT_PARAMETERS!F15=0,FALSE,TRUE)) -> FALSE | H15: =IF(BENEFIT_DESIGN!Q15,IF(BENEFIT_PARAMETERS!H15=0,TRUE,FALSE),IF(O15,FALSE,TRUE)) -> FALSE | I15: =IF(BENEFIT_DESIGN!R15,IF(BENEFIT_PARAMETERS!I15<=0,TRUE,FALSE),IF(P15,FALSE,TRUE)) -> FALSE | J15: =IF(BENEFIT_DESIGN!S15,IF(BENEFIT_PARAMETERS!J15<=0,TRUE,FALSE),IF(Q15,FALSE,TRUE)) -> FALSE | K15: =IF(BENEFIT_DESIGN!T15,IF(BENEFIT_PARAMETERS!K15="None",FALSE,IF(BENEFIT_PARAMETERS!K15>0,FALSE,TRUE)),IF(R15,FALSE,TRUE)) -> FALSE | L15: =IF(BENEFIT_DESIGN!U15,IF(BENEFIT_PARAMETERS!L15="None",FALSE,IF(BENEFIT_PARAMETERS!L15>0,FALSE,TRUE)),IF(S15,FALSE,TRUE)) -> FALSE | M15: =IF(BENEFIT_DESIGN!V15,IF(BENEFIT_PARAMETERS!M15="Yes",FALSE,IF(BENEFIT_PARAMETERS!M15="No",FALSE,TRUE)),IF(T15,FALSE,TRUE)) -> FALSE | O15: =ISBLANK(BENEFIT_DESIGN!D15) -> TRUE | P15: =ISBLANK(BENEFIT_DESIGN!E15) -> TRUE | Q15: =ISBLANK(BENEFIT_DESIGN!F15) -> TRUE | R15: =ISBLANK(BENEFIT_DESIGN!G15) -> FALSE | S15: =ISBLANK(BENEFIT_DESIGN!H15) -> FALSE | T15: =ISBLANK(BENEFIT_DESIGN!I15) -> FALSE
B16: =BENEFIT_DESIGN!B16 -> Professional Services: Procedures & Other | C16: =IF(BENEFIT_DESIGN!L16,FALSE,TRUE) -> FALSE | D16: =IFERROR(IF(BENEFIT_DESIGN!M16,IF(BENEFIT_PARAMETERS!C16=0,TRUE,FALSE),IF(BENEFIT_PARAMETERS!C16=0,FALSE,TRUE)),TRUE) -> FALSE | E16: =IF(BENEFIT_DESIGN!N16,IF(BENEFIT_PARAMETERS!D16=0,TRUE,FALSE),IF(BENEFIT_PARAMETERS!D16=0,FALSE,TRUE)) -> FALSE | F16: =IF(BENEFIT_DESIGN!O16,IF(BENEFIT_PARAMETERS!E16=0,TRUE,FALSE),IF(BENEFIT_PARAMETERS!E16=0,FALSE,TRUE)) -> FALSE | G16: =IF(BENEFIT_DESIGN!P16,IF(BENEFIT_PARAMETERS!F16=0,TRUE,FALSE),IF(BENEFIT_PARAMETERS!F16=0,FALSE,TRUE)) -> FALSE | H16: =IF(BENEFIT_DESIGN!Q16,IF(BENEFIT_PARAMETERS!H16=0,TRUE,FALSE),IF(O16,FALSE,TRUE)) -> FALSE | I16: =IF(BENEFIT_DESIGN!R16,IF(BENEFIT_PARAMETERS!I16<=0,TRUE,FALSE),IF(P16,FALSE,TRUE)) -> FALSE | J16: =IF(BENEFIT_DESIGN!S16,IF(BENEFIT_PARAMETERS!J16<=0,TRUE,FALSE),IF(Q16,FALSE,TRUE)) -> FALSE | K16: =IF(BENEFIT_DESIGN!T16,IF(BENEFIT_PARAMETERS!K16="None",FALSE,IF(BENEFIT_PARAMETERS!K16>0,FALSE,TRUE)),IF(R16,FALSE,TRUE)) -> FALSE | L16: =IF(BENEFIT_DESIGN!U16,IF(BENEFIT_PARAMETERS!L16="None",FALSE,IF(BENEFIT_PARAMETERS!L16>0,FALSE,TRUE)),IF(S16,FALSE,TRUE)) -> FALSE | M16: =IF(BENEFIT_DESIGN!V16,IF(BENEFIT_PARAMETERS!M16="Yes",FALSE,IF(BENEFIT_PARAMETERS!M16="No",FALSE,TRUE)),IF(T16,FALSE,TRUE)) -> FALSE | O16: =ISBLANK(BENEFIT_DESIGN!D16) -> TRUE | P16: =ISBLANK(BENEFIT_DESIGN!E16) -> TRUE | Q16: =ISBLANK(BENEFIT_DESIGN!F16) -> TRUE | R16: =ISBLANK(BENEFIT_DESIGN!G16) -> FALSE | S16: =ISBLANK(BENEFIT_DESIGN!H16) -> FALSE | T16: =ISBLANK(BENEFIT_DESIGN!I16) -> FALSE
B17: =BENEFIT_DESIGN!B17 -> Professional Services: Physical Therapy | C17: =IF(BENEFIT_DESIGN!L17,FALSE,TRUE) -> FALSE | D17: =IFERROR(IF(BENEFIT_DESIGN!M17,IF(BENEFIT_PARAMETERS!C17=0,TRUE,FALSE),IF(BENEFIT_PARAMETERS!C17=0,FALSE,TRUE)),TRUE) -> FALSE | E17: =IF(BENEFIT_DESIGN!N17,IF(BENEFIT_PARAMETERS!D17=0,TRUE,FALSE),IF(BENEFIT_PARAMETERS!D17=0,FALSE,TRUE)) -> FALSE | F17: =IF(BENEFIT_DESIGN!O17,IF(BENEFIT_PARAMETERS!E17=0,TRUE,FALSE),IF(BENEFIT_PARAMETERS!E17=0,FALSE,TRUE)) -> FALSE | G17: =IF(BENEFIT_DESIGN!P17,IF(BENEFIT_PARAMETERS!F17=0,TRUE,FALSE),IF(BENEFIT_PARAMETERS!F17=0,FALSE,TRUE)) -> FALSE | H17: =IF(BENEFIT_DESIGN!Q17,IF(BENEFIT_PARAMETERS!H17=0,TRUE,FALSE),IF(O17,FALSE,TRUE)) -> FALSE | I17: =IF(BENEFIT_DESIGN!R17,IF(BENEFIT_PARAMETERS!I17<=0,TRUE,FALSE),IF(P17,FALSE,TRUE)) -> FALSE | J17: =IF(BENEFIT_DESIGN!S17,IF(BENEFIT_PARAMETERS!J17<=0,TRUE,FALSE),IF(Q17,FALSE,TRUE)) -> FALSE | K17: =IF(BENEFIT_DESIGN!T17,IF(BENEFIT_PARAMETERS!K17="None",FALSE,IF(BENEFIT_PARAMETERS!K17>0,FALSE,TRUE)),IF(R17,FALSE,TRUE)) -> FALSE | L17: =IF(BENEFIT_DESIGN!U17,IF(BENEFIT_PARAMETERS!L17="None",FALSE,IF(BENEFIT_PARAMETERS!L17>0,FALSE,TRUE)),IF(S17,FALSE,TRUE)) -> FALSE | M17: =IF(BENEFIT_DESIGN!V17,IF(BENEFIT_PARAMETERS!M17="Yes",FALSE,IF(BENEFIT_PARAMETERS!M17="No",FALSE,TRUE)),IF(T17,FALSE,TRUE)) -> FALSE | O17: =ISBLANK(BENEFIT_DESIGN!D17) -> TRUE | P17: =ISBLANK(BENEFIT_DESIGN!E17) -> TRUE | Q17: =ISBLANK(BENEFIT_DESIGN!F17) -> TRUE | R17: =ISBLANK(BENEFIT_DESIGN!G17) -> FALSE | S17: =ISBLANK(BENEFIT_DESIGN!H17) -> FALSE | T17: =ISBLANK(BENEFIT_DESIGN!I17) -> FALSE
B18: =BENEFIT_DESIGN!B18 -> Diagnostic Services: Radiology | C18: =IF(BENEFIT_DESIGN!L18,FALSE,TRUE) -> FALSE | D18: =IFERROR(IF(BENEFIT_DESIGN!M18,IF(BENEFIT_PARAMETERS!C18=0,TRUE,FALSE),IF(BENEFIT_PARAMETERS!C18=0,FALSE,TRUE)),TRUE) -> FALSE | E18: =IF(BENEFIT_DESIGN!N18,IF(BENEFIT_PARAMETERS!D18=0,TRUE,FALSE),IF(BENEFIT_PARAMETERS!D18=0,FALSE,TRUE)) -> FALSE | F18: =IF(BENEFIT_DESIGN!O18,IF(BENEFIT_PARAMETERS!E18=0,TRUE,FALSE),IF(BENEFIT_PARAMETERS!E18=0,FALSE,TRUE)) -> FALSE | G18: =IF(BENEFIT_DESIGN!P18,IF(BENEFIT_PARAMETERS!F18=0,TRUE,FALSE),IF(BENEFIT_PARAMETERS!F18=0,FALSE,TRUE)) -> FALSE | H18: =IF(BENEFIT_DESIGN!Q18,IF(BENEFIT_PARAMETERS!H18=0,TRUE,FALSE),IF(O18,FALSE,TRUE)) -> FALSE | I18: =IF(BENEFIT_DESIGN!R18,IF(BENEFIT_PARAMETERS!I18<=0,TRUE,FALSE),IF(P18,FALSE,TRUE)) -> FALSE | J18: =IF(BENEFIT_DESIGN!S18,IF(BENEFIT_PARAMETERS!J18<=0,TRUE,FALSE),IF(Q18,FALSE,TRUE)) -> FALSE | K18: =IF(BENEFIT_DESIGN!T18,IF(BENEFIT_PARAMETERS!K18="None",FALSE,IF(BENEFIT_PARAMETERS!K18>0,FALSE,TRUE)),IF(R18,FALSE,TRUE)) -> FALSE | L18: =IF(BENEFIT_DESIGN!U18,IF(BENEFIT_PARAMETERS!L18="None",FALSE,IF(BENEFIT_PARAMETERS!L18>0,FALSE,TRUE)),IF(S18,FALSE,TRUE)) -> FALSE | M18: =IF(BENEFIT_DESIGN!V18,IF(BENEFIT_PARAMETERS!M18="Yes",FALSE,IF(BENEFIT_PARAMETERS!M18="No",FALSE,TRUE)),IF(T18,FALSE,TRUE)) -> FALSE | O18: =ISBLANK(BENEFIT_DESIGN!D18) -> TRUE | P18: =ISBLANK(BENEFIT_DESIGN!E18) -> TRUE | Q18: =ISBLANK(BENEFIT_DESIGN!F18) -> TRUE | R18: =ISBLANK(BENEFIT_DESIGN!G18) -> FALSE | S18: =ISBLANK(BENEFIT_DESIGN!H18) -> FALSE | T18: =ISBLANK(BENEFIT_DESIGN!I18) -> FALSE
B19: =BENEFIT_DESIGN!B19 -> Diagnostic Services: Laboratory | C19: =IF(BENEFIT_DESIGN!L19,FALSE,TRUE) -> FALSE | D19: =IFERROR(IF(BENEFIT_DESIGN!M19,IF(BENEFIT_PARAMETERS!C19=0,TRUE,FALSE),IF(BENEFIT_PARAMETERS!C19=0,FALSE,TRUE)),TRUE) -> FALSE | E19: =IF(BENEFIT_DESIGN!N19,IF(BENEFIT_PARAMETERS!D19=0,TRUE,FALSE),IF(BENEFIT_PARAMETERS!D19=0,FALSE,TRUE)) -> FALSE | F19: =IF(BENEFIT_DESIGN!O19,IF(BENEFIT_PARAMETERS!E19=0,TRUE,FALSE),IF(BENEFIT_PARAMETERS!E19=0,FALSE,TRUE)) -> FALSE | G19: =IF(BENEFIT_DESIGN!P19,IF(BENEFIT_PARAMETERS!F19=0,TRUE,FALSE),IF(BENEFIT_PARAMETERS!F19=0,FALSE,TRUE)) -> FALSE | H19: =IF(BENEFIT_DESIGN!Q19,IF(BENEFIT_PARAMETERS!H19=0,TRUE,FALSE),IF(O19,FALSE,TRUE)) -> FALSE | I19: =IF(BENEFIT_DESIGN!R19,IF(BENEFIT_PARAMETERS!I19<=0,TRUE,FALSE),IF(P19,FALSE,TRUE)) -> FALSE | J19: =IF(BENEFIT_DESIGN!S19,IF(BENEFIT_PARAMETERS!J19<=0,TRUE,FALSE),IF(Q19,FALSE,TRUE)) -> FALSE | K19: =IF(BENEFIT_DESIGN!T19,IF(BENEFIT_PARAMETERS!K19="None",FALSE,IF(BENEFIT_PARAMETERS!K19>0,FALSE,TRUE)),IF(R19,FALSE,TRUE)) -> FALSE | L19: =IF(BENEFIT_DESIGN!U19,IF(BENEFIT_PARAMETERS!L19="None",FALSE,IF(BENEFIT_PARAMETERS!L19>0,FALSE,TRUE)),IF(S19,FALSE,TRUE)) -> FALSE | M19: =IF(BENEFIT_DESIGN!V19,IF(BENEFIT_PARAMETERS!M19="Yes",FALSE,IF(BENEFIT_PARAMETERS!M19="No",FALSE,TRUE)),IF(T19,FALSE,TRUE)) -> FALSE | O19: =ISBLANK(BENEFIT_DESIGN!D19) -> TRUE | P19: =ISBLANK(BENEFIT_DESIGN!E19) -> TRUE | Q19: =ISBLANK(BENEFIT_DESIGN!F19) -> TRUE | R19: =ISBLANK(BENEFIT_DESIGN!G19) -> FALSE | S19: =ISBLANK(BENEFIT_DESIGN!H19) -> FALSE | T19: =ISBLANK(BENEFIT_DESIGN!I19) -> FALSE
B20: =BENEFIT_DESIGN!B20 -> Prescription Drugs: Generic | C20: =IF(BENEFIT_DESIGN!L20,FALSE,TRUE) -> FALSE | D20: =IFERROR(IF(BENEFIT_DESIGN!M20,IF(BENEFIT_PARAMETERS!C20=0,TRUE,FALSE),IF(BENEFIT_PARAMETERS!C20=0,FALSE,TRUE)),TRUE) -> FALSE | E20: =IF(BENEFIT_DESIGN!N20,IF(BENEFIT_PARAMETERS!D20=0,TRUE,FALSE),IF(BENEFIT_PARAMETERS!D20=0,FALSE,TRUE)) -> FALSE | F20: =IF(BENEFIT_DESIGN!O20,IF(BENEFIT_PARAMETERS!E20=0,TRUE,FALSE),IF(BENEFIT_PARAMETERS!E20=0,FALSE,TRUE)) -> FALSE | G20: =IF(BENEFIT_DESIGN!P20,IF(BENEFIT_PARAMETERS!F20=0,TRUE,FALSE),IF(BENEFIT_PARAMETERS!F20=0,FALSE,TRUE)) -> FALSE | H20: =IF(BENEFIT_DESIGN!Q20,IF(BENEFIT_PARAMETERS!H20=0,TRUE,FALSE),IF(O20,FALSE,TRUE)) -> FALSE | I20: =IF(BENEFIT_DESIGN!R20,IF(BENEFIT_PARAMETERS!I20<=0,TRUE,FALSE),IF(P20,FALSE,TRUE)) -> FALSE | J20: =IF(BENEFIT_DESIGN!S20,IF(BENEFIT_PARAMETERS!J20<=0,TRUE,FALSE),IF(Q20,FALSE,TRUE)) -> FALSE | K20: =IF(BENEFIT_DESIGN!T20,IF(BENEFIT_PARAMETERS!K20="None",FALSE,IF(BENEFIT_PARAMETERS!K20>0,FALSE,TRUE)),IF(R20,FALSE,TRUE)) -> FALSE | L20: =IF(BENEFIT_DESIGN!U20,IF(BENEFIT_PARAMETERS!L20="None",FALSE,IF(BENEFIT_PARAMETERS!L20>0,FALSE,TRUE)),IF(S20,FALSE,TRUE)) -> FALSE | M20: =IF(BENEFIT_DESIGN!V20,IF(BENEFIT_PARAMETERS!M20="Yes",FALSE,IF(BENEFIT_PARAMETERS!M20="No",FALSE,TRUE)),IF(T20,FALSE,TRUE)) -> FALSE | O20: =ISBLANK(BENEFIT_DESIGN!D20) -> TRUE | P20: =ISBLANK(BENEFIT_DESIGN!E20) -> TRUE | Q20: =ISBLANK(BENEFIT_DESIGN!F20) -> FALSE | R20: =ISBLANK(BENEFIT_DESIGN!G20) -> FALSE | S20: =ISBLANK(BENEFIT_DESIGN!H20) -> FALSE | T20: =ISBLANK(BENEFIT_DESIGN!I20) -> FALSE
B21: =BENEFIT_DESIGN!B21 -> Prescription Drugs: Branded | C21: =IF(BENEFIT_DESIGN!L21,FALSE,TRUE) -> FALSE | D21: =IFERROR(IF(BENEFIT_DESIGN!M21,IF(BENEFIT_PARAMETERS!C21=0,TRUE,FALSE),IF(BENEFIT_PARAMETERS!C21=0,FALSE,TRUE)),TRUE) -> FALSE | E21: =IF(BENEFIT_DESIGN!N21,IF(BENEFIT_PARAMETERS!D21=0,TRUE,FALSE),IF(BENEFIT_PARAMETERS!D21=0,FALSE,TRUE)) -> FALSE | F21: =IF(BENEFIT_DESIGN!O21,IF(BENEFIT_PARAMETERS!E21=0,TRUE,FALSE),IF(BENEFIT_PARAMETERS!E21=0,FALSE,TRUE)) -> FALSE | G21: =IF(BENEFIT_DESIGN!P21,IF(BENEFIT_PARAMETERS!F21=0,TRUE,FALSE),IF(BENEFIT_PARAMETERS!F21=0,FALSE,TRUE)) -> FALSE | H21: =IF(BENEFIT_DESIGN!Q21,IF(BENEFIT_PARAMETERS!H21=0,TRUE,FALSE),IF(O21,FALSE,TRUE)) -> FALSE | I21: =IF(BENEFIT_DESIGN!R21,IF(BENEFIT_PARAMETERS!I21<=0,TRUE,FALSE),IF(P21,FALSE,TRUE)) -> FALSE | J21: =IF(BENEFIT_DESIGN!S21,IF(BENEFIT_PARAMETERS!J21<=0,TRUE,FALSE),IF(Q21,FALSE,TRUE)) -> FALSE | K21: =IF(BENEFIT_DESIGN!T21,IF(BENEFIT_PARAMETERS!K21="None",FALSE,IF(BENEFIT_PARAMETERS!K21>0,FALSE,TRUE)),IF(R21,FALSE,TRUE)) -> FALSE | L21: =IF(BENEFIT_DESIGN!U21,IF(BENEFIT_PARAMETERS!L21="None",FALSE,IF(BENEFIT_PARAMETERS!L21>0,FALSE,TRUE)),IF(S21,FALSE,TRUE)) -> FALSE | M21: =IF(BENEFIT_DESIGN!V21,IF(BENEFIT_PARAMETERS!M21="Yes",FALSE,IF(BENEFIT_PARAMETERS!M21="No",FALSE,TRUE)),IF(T21,FALSE,TRUE)) -> FALSE | O21: =ISBLANK(BENEFIT_DESIGN!D21) -> TRUE | P21: =ISBLANK(BENEFIT_DESIGN!E21) -> FALSE | Q21: =ISBLANK(BENEFIT_DESIGN!F21) -> TRUE | R21: =ISBLANK(BENEFIT_DESIGN!G21) -> FALSE | S21: =ISBLANK(BENEFIT_DESIGN!H21) -> FALSE | T21: =ISBLANK(BENEFIT_DESIGN!I21) -> FALSE
B22: =BENEFIT_DESIGN!B22 -> Over-the-counter Drugs | C22: =IF(BENEFIT_DESIGN!L22,FALSE,TRUE) -> FALSE | D22: =IFERROR(IF(BENEFIT_DESIGN!M22,IF(BENEFIT_PARAMETERS!C22=0,TRUE,FALSE),IF(BENEFIT_PARAMETERS!C22=0,FALSE,TRUE)),TRUE) -> FALSE | E22: =IF(BENEFIT_DESIGN!N22,IF(BENEFIT_PARAMETERS!D22=0,TRUE,FALSE),IF(BENEFIT_PARAMETERS!D22=0,FALSE,TRUE)) -> FALSE | F22: =IF(BENEFIT_DESIGN!O22,IF(BENEFIT_PARAMETERS!E22=0,TRUE,FALSE),IF(BENEFIT_PARAMETERS!E22=0,FALSE,TRUE)) -> FALSE | G22: =IF(BENEFIT_DESIGN!P22,IF(BENEFIT_PARAMETERS!F22=0,TRUE,FALSE),IF(BENEFIT_PARAMETERS!F22=0,FALSE,TRUE)) -> FALSE | H22: =IF(BENEFIT_DESIGN!Q22,IF(BENEFIT_PARAMETERS!H22=0,TRUE,FALSE),IF(O22,FALSE,TRUE)) -> FALSE | I22: =IF(BENEFIT_DESIGN!R22,IF(BENEFIT_PARAMETERS!I22<=0,TRUE,FALSE),IF(P22,FALSE,TRUE)) -> FALSE | J22: =IF(BENEFIT_DESIGN!S22,IF(BENEFIT_PARAMETERS!J22<=0,TRUE,FALSE),IF(Q22,FALSE,TRUE)) -> FALSE | K22: =IF(BENEFIT_DESIGN!T22,IF(BENEFIT_PARAMETERS!K22="None",FALSE,IF(BENEFIT_PARAMETERS!K22>0,FALSE,TRUE)),IF(R22,FALSE,TRUE)) -> FALSE | L22: =IF(BENEFIT_DESIGN!U22,IF(BENEFIT_PARAMETERS!L22="None",FALSE,IF(BENEFIT_PARAMETERS!L22>0,FALSE,TRUE)),IF(S22,FALSE,TRUE)) -> FALSE | M22: =IF(BENEFIT_DESIGN!V22,IF(BENEFIT_PARAMETERS!M22="Yes",FALSE,IF(BENEFIT_PARAMETERS!M22="No",FALSE,TRUE)),IF(T22,FALSE,TRUE)) -> FALSE | O22: =ISBLANK(BENEFIT_DESIGN!D22) -> TRUE | P22: =ISBLANK(BENEFIT_DESIGN!E22) -> TRUE | Q22: =ISBLANK(BENEFIT_DESIGN!F22) -> TRUE | R22: =ISBLANK(BENEFIT_DESIGN!G22) -> TRUE | S22: =ISBLANK(BENEFIT_DESIGN!H22) -> TRUE | T22: =ISBLANK(BENEFIT_DESIGN!I22) -> TRUE
B23: =BENEFIT_DESIGN!B23 -> Preventive Services & Vaccines | C23: =IF(BENEFIT_DESIGN!L23,FALSE,TRUE) -> FALSE | D23: =IFERROR(IF(BENEFIT_DESIGN!M23,IF(BENEFIT_PARAMETERS!C23=0,TRUE,FALSE),IF(BENEFIT_PARAMETERS!C23=0,FALSE,TRUE)),TRUE) -> FALSE | E23: =IF(BENEFIT_DESIGN!N23,IF(BENEFIT_PARAMETERS!D23=0,TRUE,FALSE),IF(BENEFIT_PARAMETERS!D23=0,FALSE,TRUE)) -> FALSE | F23: =IF(BENEFIT_DESIGN!O23,IF(BENEFIT_PARAMETERS!E23=0,TRUE,FALSE),IF(BENEFIT_PARAMETERS!E23=0,FALSE,TRUE)) -> FALSE | G23: =IF(BENEFIT_DESIGN!P23,IF(BENEFIT_PARAMETERS!F23=0,TRUE,FALSE),IF(BENEFIT_PARAMETERS!F23=0,FALSE,TRUE)) -> FALSE | H23: =IF(BENEFIT_DESIGN!Q23,IF(BENEFIT_PARAMETERS!H23=0,TRUE,FALSE),IF(O23,FALSE,TRUE)) -> FALSE | I23: =IF(BENEFIT_DESIGN!R23,IF(BENEFIT_PARAMETERS!I23<=0,TRUE,FALSE),IF(P23,FALSE,TRUE)) -> FALSE | J23: =IF(BENEFIT_DESIGN!S23,IF(BENEFIT_PARAMETERS!J23<=0,TRUE,FALSE),IF(Q23,FALSE,TRUE)) -> FALSE | K23: =IF(BENEFIT_DESIGN!T23,IF(BENEFIT_PARAMETERS!K23="None",FALSE,IF(BENEFIT_PARAMETERS!K23>0,FALSE,TRUE)),IF(R23,FALSE,TRUE)) -> FALSE | L23: =IF(BENEFIT_DESIGN!U23,IF(BENEFIT_PARAMETERS!L23="None",FALSE,IF(BENEFIT_PARAMETERS!L23>0,FALSE,TRUE)),IF(S23,FALSE,TRUE)) -> FALSE | M23: =IF(BENEFIT_DESIGN!V23,IF(BENEFIT_PARAMETERS!M23="Yes",FALSE,IF(BENEFIT_PARAMETERS!M23="No",FALSE,TRUE)),IF(T23,FALSE,TRUE)) -> FALSE | O23: =ISBLANK(BENEFIT_DESIGN!D23) -> TRUE | P23: =ISBLANK(BENEFIT_DESIGN!E23) -> TRUE | Q23: =ISBLANK(BENEFIT_DESIGN!F23) -> TRUE | R23: =ISBLANK(BENEFIT_DESIGN!G23) -> FALSE | S23: =ISBLANK(BENEFIT_DESIGN!H23) -> FALSE | T23: =ISBLANK(BENEFIT_DESIGN!I23) -> FALSE
B24: =BENEFIT_DESIGN!B24 -> Durable Medical Equipment | C24: =IF(BENEFIT_DESIGN!L24,FALSE,TRUE) -> FALSE | D24: =IFERROR(IF(BENEFIT_DESIGN!M24,IF(BENEFIT_PARAMETERS!C24=0,TRUE,FALSE),IF(BENEFIT_PARAMETERS!C24=0,FALSE,TRUE)),TRUE) -> FALSE | E24: =IF(BENEFIT_DESIGN!N24,IF(BENEFIT_PARAMETERS!D24=0,TRUE,FALSE),IF(BENEFIT_PARAMETERS!D24=0,FALSE,TRUE)) -> FALSE | F24: =IF(BENEFIT_DESIGN!O24,IF(BENEFIT_PARAMETERS!E24=0,TRUE,FALSE),IF(BENEFIT_PARAMETERS!E24=0,FALSE,TRUE)) -> FALSE | G24: =IF(BENEFIT_DESIGN!P24,IF(BENEFIT_PARAMETERS!F24=0,TRUE,FALSE),IF(BENEFIT_PARAMETERS!F24=0,FALSE,TRUE)) -> FALSE | H24: =IF(BENEFIT_DESIGN!Q24,IF(BENEFIT_PARAMETERS!H24=0,TRUE,FALSE),IF(O24,FALSE,TRUE)) -> FALSE | I24: =IF(BENEFIT_DESIGN!R24,IF(BENEFIT_PARAMETERS!I24<=0,TRUE,FALSE),IF(P24,FALSE,TRUE)) -> FALSE | J24: =IF(BENEFIT_DESIGN!S24,IF(BENEFIT_PARAMETERS!J24<=0,TRUE,FALSE),IF(Q24,FALSE,TRUE)) -> FALSE | K24: =IF(BENEFIT_DESIGN!T24,IF(BENEFIT_PARAMETERS!K24="None",FALSE,IF(BENEFIT_PARAMETERS!K24>0,FALSE,TRUE)),IF(R24,FALSE,TRUE)) -> FALSE | L24: =IF(BENEFIT_DESIGN!U24,IF(BENEFIT_PARAMETERS!L24="None",FALSE,IF(BENEFIT_PARAMETERS!L24>0,FALSE,TRUE)),IF(S24,FALSE,TRUE)) -> FALSE | M24: =IF(BENEFIT_DESIGN!V24,IF(BENEFIT_PARAMETERS!M24="Yes",FALSE,IF(BENEFIT_PARAMETERS!M24="No",FALSE,TRUE)),IF(T24,FALSE,TRUE)) -> FALSE | O24: =ISBLANK(BENEFIT_DESIGN!D24) -> TRUE | P24: =ISBLANK(BENEFIT_DESIGN!E24) -> TRUE | Q24: =ISBLANK(BENEFIT_DESIGN!F24) -> TRUE | R24: =ISBLANK(BENEFIT_DESIGN!G24) -> FALSE | S24: =ISBLANK(BENEFIT_DESIGN!H24) -> FALSE | T24: =ISBLANK(BENEFIT_DESIGN!I24) -> FALSE
B25: =BENEFIT_DESIGN!B25 -> Medical Supplies | C25: =IF(BENEFIT_DESIGN!L25,FALSE,TRUE) -> FALSE | D25: =IFERROR(IF(BENEFIT_DESIGN!M25,IF(BENEFIT_PARAMETERS!C25=0,TRUE,FALSE),IF(BENEFIT_PARAMETERS!C25=0,FALSE,TRUE)),TRUE) -> FALSE | E25: =IF(BENEFIT_DESIGN!N25,IF(BENEFIT_PARAMETERS!D25=0,TRUE,FALSE),IF(BENEFIT_PARAMETERS!D25=0,FALSE,TRUE)) -> FALSE | F25: =IF(BENEFIT_DESIGN!O25,IF(BENEFIT_PARAMETERS!E25=0,TRUE,FALSE),IF(BENEFIT_PARAMETERS!E25=0,FALSE,TRUE)) -> FALSE | G25: =IF(BENEFIT_DESIGN!P25,IF(BENEFIT_PARAMETERS!F25=0,TRUE,FALSE),IF(BENEFIT_PARAMETERS!F25=0,FALSE,TRUE)) -> FALSE | H25: =IF(BENEFIT_DESIGN!Q25,IF(BENEFIT_PARAMETERS!H25=0,TRUE,FALSE),IF(O25,FALSE,TRUE)) -> FALSE | I25: =IF(BENEFIT_DESIGN!R25,IF(BENEFIT_PARAMETERS!I25<=0,TRUE,FALSE),IF(P25,FALSE,TRUE)) -> FALSE | J25: =IF(BENEFIT_DESIGN!S25,IF(BENEFIT_PARAMETERS!J25<=0,TRUE,FALSE),IF(Q25,FALSE,TRUE)) -> FALSE | K25: =IF(BENEFIT_DESIGN!T25,IF(BENEFIT_PARAMETERS!K25="None",FALSE,IF(BENEFIT_PARAMETERS!K25>0,FALSE,TRUE)),IF(R25,FALSE,TRUE)) -> FALSE | L25: =IF(BENEFIT_DESIGN!U25,IF(BENEFIT_PARAMETERS!L25="None",FALSE,IF(BENEFIT_PARAMETERS!L25>0,FALSE,TRUE)),IF(S25,FALSE,TRUE)) -> FALSE | M25: =IF(BENEFIT_DESIGN!V25,IF(BENEFIT_PARAMETERS!M25="Yes",FALSE,IF(BENEFIT_PARAMETERS!M25="No",FALSE,TRUE)),IF(T25,FALSE,TRUE)) -> FALSE | O25: =ISBLANK(BENEFIT_DESIGN!D25) -> TRUE | P25: =ISBLANK(BENEFIT_DESIGN!E25) -> TRUE | Q25: =ISBLANK(BENEFIT_DESIGN!F25) -> TRUE | R25: =ISBLANK(BENEFIT_DESIGN!G25) -> FALSE | S25: =ISBLANK(BENEFIT_DESIGN!H25) -> FALSE | T25: =ISBLANK(BENEFIT_DESIGN!I25) -> FALSE
B26: =BENEFIT_DESIGN!B26 -> Over-the-counter Medical Supplies | C26: =IF(BENEFIT_DESIGN!L26,FALSE,TRUE) -> FALSE | D26: =IFERROR(IF(BENEFIT_DESIGN!M26,IF(BENEFIT_PARAMETERS!C26=0,TRUE,FALSE),IF(BENEFIT_PARAMETERS!C26=0,FALSE,TRUE)),TRUE) -> FALSE | E26: =IF(BENEFIT_DESIGN!N26,IF(BENEFIT_PARAMETERS!D26=0,TRUE,FALSE),IF(BENEFIT_PARAMETERS!D26=0,FALSE,TRUE)) -> FALSE | F26: =IF(BENEFIT_DESIGN!O26,IF(BENEFIT_PARAMETERS!E26=0,TRUE,FALSE),IF(BENEFIT_PARAMETERS!E26=0,FALSE,TRUE)) -> FALSE | G26: =IF(BENEFIT_DESIGN!P26,IF(BENEFIT_PARAMETERS!F26=0,TRUE,FALSE),IF(BENEFIT_PARAMETERS!F26=0,FALSE,TRUE)) -> FALSE | H26: =IF(BENEFIT_DESIGN!Q26,IF(BENEFIT_PARAMETERS!H26=0,TRUE,FALSE),IF(O26,FALSE,TRUE)) -> FALSE | I26: =IF(BENEFIT_DESIGN!R26,IF(BENEFIT_PARAMETERS!I26<=0,TRUE,FALSE),IF(P26,FALSE,TRUE)) -> FALSE | J26: =IF(BENEFIT_DESIGN!S26,IF(BENEFIT_PARAMETERS!J26<=0,TRUE,FALSE),IF(Q26,FALSE,TRUE)) -> FALSE | K26: =IF(BENEFIT_DESIGN!T26,IF(BENEFIT_PARAMETERS!K26="None",FALSE,IF(BENEFIT_PARAMETERS!K26>0,FALSE,TRUE)),IF(R26,FALSE,TRUE)) -> FALSE | L26: =IF(BENEFIT_DESIGN!U26,IF(BENEFIT_PARAMETERS!L26="None",FALSE,IF(BENEFIT_PARAMETERS!L26>0,FALSE,TRUE)),IF(S26,FALSE,TRUE)) -> FALSE | M26: =IF(BENEFIT_DESIGN!V26,IF(BENEFIT_PARAMETERS!M26="Yes",FALSE,IF(BENEFIT_PARAMETERS!M26="No",FALSE,TRUE)),IF(T26,FALSE,TRUE)) -> FALSE | O26: =ISBLANK(BENEFIT_DESIGN!D26) -> TRUE | P26: =ISBLANK(BENEFIT_DESIGN!E26) -> TRUE | Q26: =ISBLANK(BENEFIT_DESIGN!F26) -> TRUE | R26: =ISBLANK(BENEFIT_DESIGN!G26) -> TRUE | S26: =ISBLANK(BENEFIT_DESIGN!H26) -> TRUE | T26: =ISBLANK(BENEFIT_DESIGN!I26) -> TRUE
B27: =BENEFIT_DESIGN!B27 -> Other Items & Services | C27: =IF(BENEFIT_DESIGN!L27,FALSE,TRUE) -> FALSE | D27: =IFERROR(IF(BENEFIT_DESIGN!M27,IF(BENEFIT_PARAMETERS!C27=0,TRUE,FALSE),IF(BENEFIT_PARAMETERS!C27=0,FALSE,TRUE)),TRUE) -> FALSE | E27: =IF(BENEFIT_DESIGN!N27,IF(BENEFIT_PARAMETERS!D27=0,TRUE,FALSE),IF(BENEFIT_PARAMETERS!D27=0,FALSE,TRUE)) -> FALSE | F27: =IF(BENEFIT_DESIGN!O27,IF(BENEFIT_PARAMETERS!E27=0,TRUE,FALSE),IF(BENEFIT_PARAMETERS!E27=0,FALSE,TRUE)) -> FALSE | G27: =IF(BENEFIT_DESIGN!P27,IF(BENEFIT_PARAMETERS!F27=0,TRUE,FALSE),IF(BENEFIT_PARAMETERS!F27=0,FALSE,TRUE)) -> FALSE | H27: =IF(BENEFIT_DESIGN!Q27,IF(BENEFIT_PARAMETERS!H27=0,TRUE,FALSE),IF(O27,FALSE,TRUE)) -> FALSE | I27: =IF(BENEFIT_DESIGN!R27,IF(BENEFIT_PARAMETERS!I27<=0,TRUE,FALSE),IF(P27,FALSE,TRUE)) -> FALSE | J27: =IF(BENEFIT_DESIGN!S27,IF(BENEFIT_PARAMETERS!J27<=0,TRUE,FALSE),IF(Q27,FALSE,TRUE)) -> FALSE | K27: =IF(BENEFIT_DESIGN!T27,IF(BENEFIT_PARAMETERS!K27="None",FALSE,IF(BENEFIT_PARAMETERS!K27>0,FALSE,TRUE)),IF(R27,FALSE,TRUE)) -> FALSE | L27: =IF(BENEFIT_DESIGN!U27,IF(BENEFIT_PARAMETERS!L27="None",FALSE,IF(BENEFIT_PARAMETERS!L27>0,FALSE,TRUE)),IF(S27,FALSE,TRUE)) -> FALSE | M27: =IF(BENEFIT_DESIGN!V27,IF(BENEFIT_PARAMETERS!M27="Yes",FALSE,IF(BENEFIT_PARAMETERS!M27="No",FALSE,TRUE)),IF(T27,FALSE,TRUE)) -> FALSE | O27: =ISBLANK(BENEFIT_DESIGN!D27) -> TRUE | P27: =ISBLANK(BENEFIT_DESIGN!E27) -> TRUE | Q27: =ISBLANK(BENEFIT_DESIGN!F27) -> TRUE | R27: =ISBLANK(BENEFIT_DESIGN!G27) -> TRUE | S27: =ISBLANK(BENEFIT_DESIGN!H27) -> TRUE | T27: =ISBLANK(BENEFIT_DESIGN!I27) -> TRUE
B28: =BENEFIT_DESIGN!B28 -> Plan Deductible | C28: =IF(BENEFIT_DESIGN!M28,IF(BENEFIT_DESIGN!C28>0,FALSE,TRUE),IF(ISBLANK(BENEFIT_DESIGN!C28),FALSE,TRUE)) -> FALSE
B29: =BENEFIT_DESIGN!B29 -> Rx Deductible | C29: =IF(BENEFIT_DESIGN!N29,IF(BENEFIT_DESIGN!C29>0,FALSE,TRUE),IF(ISBLANK(BENEFIT_DESIGN!C29),FALSE,TRUE)) -> FALSE
B30: =BENEFIT_DESIGN!B30 -> Deductible C | C30: =IF(BENEFIT_DESIGN!O30,IF(BENEFIT_DESIGN!C30>0,FALSE,TRUE),IF(ISBLANK(BENEFIT_DESIGN!C30),FALSE,TRUE)) -> FALSE
B31: =BENEFIT_DESIGN!B31 -> Deductible D | C31: =IF(BENEFIT_DESIGN!P31,IF(BENEFIT_DESIGN!C31>0,FALSE,TRUE),IF(ISBLANK(BENEFIT_DESIGN!C31),FALSE,TRUE)) -> FALSE
B32: =BENEFIT_DESIGN!B32 -> Individual Out-of-Pocket (OOP) Limit | C32: =IF(BENEFIT_DESIGN!V32,IF(BENEFIT_DESIGN!C32>0,FALSE,TRUE),IF(ISBLANK(BENEFIT_DESIGN!C32),FALSE,TRUE)) -> FALSE | I32: 0 | P32: 0
B34: Errors exist | C34: =IF(COUNTIF(C8:M32,TRUE)=0,FALSE,TRUE) -> FALSE | D34: =IF(COUNTIF(D8:D27,TRUE)=0,FALSE,TRUE) -> FALSE | E34: =IF(COUNTIF(E8:E27,TRUE)=0,FALSE,TRUE) -> FALSE | F34: FALSE | G34: FALSE | H34: FALSE | I34: FALSE | J34: FALSE | K34: FALSE | L34: FALSE | M34: FALSE | P34: 0

Sheet BENEFIT_PARAMETERS (hidden)
A3: Plan Parameters
A7: Benefit category | B7: Cost Sharing Type | C7: Plan deductible | D7: Rx deductible | E7: Optional Deductible C | F7: Optional Deductible D | G7: Out of Pocket Limit | H7: Benefit deductible | I7: Copayment | J7: Coinsurance | K7: Coverage Limit per Month | L7: Coverage Limit per Year | M7: OOP limit applies
A8: =BENEFIT_DESIGN!B8 -> Inpatient Hospital Care (Facility) | B8: =BENEFIT_DESIGN!C8 -> Plan Deductible Only | C8: =IF(BENEFIT_DESIGN!M8,BENEFIT_DESIGN!$C$28,0) -> 1000 | D8: =IF(BENEFIT_DESIGN!N8,BENEFIT_DESIGN!$C$29,0) -> 0 | E8: =IF(BENEFIT_DESIGN!O8,BENEFIT_DESIGN!$C$29,0) -> 0 | F8: =IF(BENEFIT_DESIGN!P8,BENEFIT_DESIGN!$C$29,0) -> 0 | G8: =IF(BENEFIT_DESIGN!V8,BENEFIT_DESIGN!$C$32,0) -> 1000 | H8: =IF(BENEFIT_DESIGN!Q8,BENEFIT_DESIGN!D8,0) -> 0 | I8: =IF(BENEFIT_DESIGN!R8,BENEFIT_DESIGN!E8,0) -> 0 | J8: =IF(BENEFIT_DESIGN!S8,BENEFIT_DESIGN!F8,0) -> 0 | K8: =IF(BENEFIT_DESIGN!G8=0,"None",BENEFIT_DESIGN!G8) -> None | L8: =IF(BENEFIT_DESIGN!H8=0,"None",BENEFIT_DESIGN!H8) -> None | M8: =IF(BENEFIT_DESIGN!I8=0,"None",BENEFIT_DESIGN!I8) -> Yes
A9: =BENEFIT_DESIGN!B9 -> Other Facility Services | B9: =BENEFIT_DESIGN!C9 -> Plan Deductible Only | C9: =IF(BENEFIT_DESIGN!M9,BENEFIT_DESIGN!$C$28,0) -> 1000 | D9: =IF(BENEFIT_DESIGN!N9,BENEFIT_DESIGN!$C$29,0) -> 0 | E9: =IF(BENEFIT_DESIGN!O9,BENEFIT_DESIGN!$C$29,0) -> 0 | F9: =IF(BENEFIT_DESIGN!P9,BENEFIT_DESIGN!$C$29,0) -> 0 | G9: =IF(BENEFIT_DESIGN!V9,BENEFIT_DESIGN!$C$32,0) -> 1000 | H9: =IF(BENEFIT_DESIGN!Q9,BENEFIT_DESIGN!D9,0) -> 0 | I9: =IF(BENEFIT_DESIGN!R9,BENEFIT_DESIGN!E9,0) -> 0 | J9: =IF(BENEFIT_DESIGN!S9,BENEFIT_DESIGN!F9,0) -> 0 | K9: =IF(BENEFIT_DESIGN!G9=0,"None",BENEFIT_DESIGN!G9) -> None | L9: =IF(BENEFIT_DESIGN!H9=0,"None",BENEFIT_DESIGN!H9) -> None | M9: =IF(BENEFIT_DESIGN!I9=0,"None",BENEFIT_DESIGN!I9) -> Yes
A10: =BENEFIT_DESIGN!B10 -> Emergency Department (Facility) | B10: =BENEFIT_DESIGN!C10 -> Deductible C Only | C10: =IF(BENEFIT_DESIGN!M10,BENEFIT_DESIGN!$C$28,0) -> 0 | D10: =IF(BENEFIT_DESIGN!N10,BENEFIT_DESIGN!$C$29,0) -> 0 | E10: =IF(BENEFIT_DESIGN!O10,BENEFIT_DESIGN!$C$29,0) -> 100 | F10: =IF(BENEFIT_DESIGN!P10,BENEFIT_DESIGN!$C$29,0) -> 0 | G10: =IF(BENEFIT_DESIGN!V10,BENEFIT_DESIGN!$C$32,0) -> 1000 | H10: =IF(BENEFIT_DESIGN!Q10,BENEFIT_DESIGN!D10,0) -> 0 | I10: =IF(BENEFIT_DESIGN!R10,BENEFIT_DESIGN!E10,0) -> 0 | J10: =IF(BENEFIT_DESIGN!S10,BENEFIT_DESIGN!F10,0) -> 0 | K10: =IF(BENEFIT_DESIGN!G10=0,"None",BENEFIT_DESIGN!G10) -> None | L10: =IF(BENEFIT_DESIGN!H10=0,"None",BENEFIT_DESIGN!H10) -> None | M10: =IF(BENEFIT_DESIGN!I10=0,"None",BENEFIT_DESIGN!I10) -> Yes
A11: =BENEFIT_DESIGN!B11 -> Ambulance | B11: =BENEFIT_DESIGN!C11 -> Deductible C Only | C11: =IF(BENEFIT_DESIGN!M11,BENEFIT_DESIGN!$C$28,0) -> 0 | D11: =IF(BENEFIT_DESIGN!N11,BENEFIT_DESIGN!$C$29,0) -> 0 | E11: =IF(BENEFIT_DESIGN!O11,BENEFIT_DESIGN!$C$29,0) -> 100 | F11: =IF(BENEFIT_DESIGN!P11,BENEFIT_DESIGN!$C$29,0) -> 0 | G11: =IF(BENEFIT_DESIGN!V11,BENEFIT_DESIGN!$C$32,0) -> 1000 | H11: =IF(BENEFIT_DESIGN!Q11,BENEFIT_DESIGN!D11,0) -> 0 | I11: =IF(BENEFIT_DESIGN!R11,BENEFIT_DESIGN!E11,0) -> 0 | J11: =IF(BENEFIT_DESIGN!S11,BENEFIT_DESIGN!F11,0) -> 0 | K11: =IF(BENEFIT_DESIGN!G11=0,"None",BENEFIT_DESIGN!G11) -> None | L11: =IF(BENEFIT_DESIGN!H11=0,"None",BENEFIT_DESIGN!H11) -> None | M11: =IF(BENEFIT_DESIGN!I11=0,"None",BENEFIT_DESIGN!I11) -> Yes
A12: =BENEFIT_DESIGN!B12 -> Professional Services: Primary Care | B12: =BENEFIT_DESIGN!C12 -> Copayment Only | C12: =IF(BENEFIT_DESIGN!M12,BENEFIT_DESIGN!$C$28,0) -> 0 | D12: =IF(BENEFIT_DESIGN!N12,BENEFIT_DESIGN!$C$29,0) -> 0 | E12: =IF(BENEFIT_DESIGN!O12,BENEFIT_DESIGN!$C$29,0) -> 0 | F12: =IF(BENEFIT_DESIGN!P12,BENEFIT_DESIGN!$C$29,0) -> 0 | G12: =IF(BENEFIT_DESIGN!V12,BENEFIT_DESIGN!$C$32,0) -> 1000 | H12: =IF(BENEFIT_DESIGN!Q12,BENEFIT_DESIGN!D12,0) -> 0 | I12: =IF(BENEFIT_DESIGN!R12,BENEFIT_DESIGN!E12,0) -> 30 | J12: =IF(BENEFIT_DESIGN!S12,BENEFIT_DESIGN!F12,0) -> 0 | K12: =IF(BENEFIT_DESIGN!G12=0,"None",BENEFIT_DESIGN!G12) -> None | L12: =IF(BENEFIT_DESIGN!H12=0,"None",BENEFIT_DESIGN!H12) -> None | M12: =IF(BENEFIT_DESIGN!I12=0,"None",BENEFIT_DESIGN!I12) -> Yes
A13: =BENEFIT_DESIGN!B13 -> Professional Services: Emergency Department | B13: =BENEFIT_DESIGN!C13 -> Deductible C Only | C13: =IF(BENEFIT_DESIGN!M13,BENEFIT_DESIGN!$C$28,0) -> 0 | D13: =IF(BENEFIT_DESIGN!N13,BENEFIT_DESIGN!$C$29,0) -> 0 | E13: =IF(BENEFIT_DESIGN!O13,BENEFIT_DESIGN!$C$29,0) -> 100 | F13: =IF(BENEFIT_DESIGN!P13,BENEFIT_DESIGN!$C$29,0) -> 0 | G13: =IF(BENEFIT_DESIGN!V13,BENEFIT_DESIGN!$C$32,0) -> 1000 | H13: =IF(BENEFIT_DESIGN!Q13,BENEFIT_DESIGN!D13,0) -> 0 | I13: =IF(BENEFIT_DESIGN!R13,BENEFIT_DESIGN!E13,0) -> 0 | J13: =IF(BENEFIT_DESIGN!S13,BENEFIT_DESIGN!F13,0) -> 0 | K13: =IF(BENEFIT_DESIGN!G13=0,"None",BENEFIT_DESIGN!G13) -> None | L13: =IF(BENEFIT_DESIGN!H13=0,"None",BENEFIT_DESIGN!H13) -> None | M13: =IF(BENEFIT_DESIGN!I13=0,"None",BENEFIT_DESIGN!I13) -> Yes
A14: =BENEFIT_DESIGN!B14 -> Professional Services: Specialist | B14: =BENEFIT_DESIGN!C14 -> Plan Deductible Only | C14: =IF(BENEFIT_DESIGN!M14,BENEFIT_DESIGN!$C$28,0) -> 1000 | D14: =IF(BENEFIT_DESIGN!N14,BENEFIT_DESIGN!$C$29,0) -> 0 | E14: =IF(BENEFIT_DESIGN!O14,BENEFIT_DESIGN!$C$29,0) -> 0 | F14: =IF(BENEFIT_DESIGN!P14,BENEFIT_DESIGN!$C$29,0) -> 0 | G14: =IF(BENEFIT_DESIGN!V14,BENEFIT_DESIGN!$C$32,0) -> 1000 | H14: =IF(BENEFIT_DESIGN!Q14,BENEFIT_DESIGN!D14,0) -> 0 | I14: =IF(BENEFIT_DESIGN!R14,BENEFIT_DESIGN!E14,0) -> 0 | J14: =IF(BENEFIT_DESIGN!S14,BENEFIT_DESIGN!F14,0) -> 0 | K14: =IF(BENEFIT_DESIGN!G14=0,"None",BENEFIT_DESIGN!G14) -> None | L14: =IF(BENEFIT_DESIGN!H14=0,"None",BENEFIT_DESIGN!H14) -> None | M14: =IF(BENEFIT_DESIGN!I14=0,"None",BENEFIT_DESIGN!I14) -> Yes
A15: =BENEFIT_DESIGN!B15 -> Professional Services: Obstetric Care (Bundled) | B15: =BENEFIT_DESIGN!C15 -> Plan Deductible Only | C15: =IF(BENEFIT_DESIGN!M15,BENEFIT_DESIGN!$C$28,0) -> 1000 | D15: =IF(BENEFIT_DESIGN!N15,BENEFIT_DESIGN!$C$29,0) -> 0 | E15: =IF(BENEFIT_DESIGN!O15,BENEFIT_DESIGN!$C$29,0) -> 0 | F15: =IF(BENEFIT_DESIGN!P15,BENEFIT_DESIGN!$C$29,0) -> 0 | G15: =IF(BENEFIT_DESIGN!V15,BENEFIT_DESIGN!$C$32,0) -> 1000 | H15: =IF(BENEFIT_DESIGN!Q15,BENEFIT_DESIGN!D15,0) -> 0 | I15: =IF(BENEFIT_DESIGN!R15,BENEFIT_DESIGN!E15,0) -> 0 | J15: =IF(BENEFIT_DESIGN!S15,BENEFIT_DESIGN!F15,0) -> 0 | K15: =IF(BENEFIT_DESIGN!G15=0,"None",BENEFIT_DESIGN!G15) -> None | L15: =IF(BENEFIT_DESIGN!H15=0,"None",BENEFIT_DESIGN!H15) -> None | M15: =IF(BENEFIT_DESIGN!I15=0,"None",BENEFIT_DESIGN!I15) -> Yes
A16: =BENEFIT_DESIGN!B16 -> Professional Services: Procedures & Other | B16: =BENEFIT_DESIGN!C16 -> Plan Deductible Only | C16: =IF(BENEFIT_DESIGN!M16,BENEFIT_DESIGN!$C$28,0) -> 1000 | D16: =IF(BENEFIT_DESIGN!N16,BENEFIT_DESIGN!$C$29,0) -> 0 | E16: =IF(BENEFIT_DESIGN!O16,BENEFIT_DESIGN!$C$29,0) -> 0 | F16: =IF(BENEFIT_DESIGN!P16,BENEFIT_DESIGN!$C$29,0) -> 0 | G16: =IF(BENEFIT_DESIGN!V16,BENEFIT_DESIGN!$C$32,0) -> 1000 | H16: =IF(BENEFIT_DESIGN!Q16,BENEFIT_DESIGN!D16,0) -> 0 | I16: =IF(BENEFIT_DESIGN!R16,BENEFIT_DESIGN!E16,0) -> 0 | J16: =IF(BENEFIT_DESIGN!S16,BENEFIT_DESIGN!F16,0) -> 0 | K16: =IF(BENEFIT_DESIGN!G16=0,"None",BENEFIT_DESIGN!G16) -> None | L16: =IF(BENEFIT_DESIGN!H16=0,"None",BENEFIT_DESIGN!H16) -> None | M16: =IF(BENEFIT_DESIGN!I16=0,"None",BENEFIT_DESIGN!I16) -> Yes
A17: =BENEFIT_DESIGN!B17 -> Professional Services: Physical Therapy | B17: =BENEFIT_DESIGN!C17 -> Plan Deductible Only | C17: =IF(BENEFIT_DESIGN!M17,BENEFIT_DESIGN!$C$28,0) -> 1000 | D17: =IF(BENEFIT_DESIGN!N17,BENEFIT_DESIGN!$C$29,0) -> 0 | E17: =IF(BENEFIT_DESIGN!O17,BENEFIT_DESIGN!$C$29,0) -> 0 | F17: =IF(BENEFIT_DESIGN!P17,BENEFIT_DESIGN!$C$29,0) -> 0 | G17: =IF(BENEFIT_DESIGN!V17,BENEFIT_DESIGN!$C$32,0) -> 1000 | H17: =IF(BENEFIT_DESIGN!Q17,BENEFIT_DESIGN!D17,0) -> 0 | I17: =IF(BENEFIT_DESIGN!R17,BENEFIT_DESIGN!E17,0) -> 0 | J17: =IF(BENEFIT_DESIGN!S17,BENEFIT_DESIGN!F17,0) -> 0 | K17: =IF(BENEFIT_DESIGN!G17=0,"None",BENEFIT_DESIGN!G17) -> None | L17: =IF(BENEFIT_DESIGN!H17=0,"None",BENEFIT_DESIGN!H17) -> None | M17: =IF(BENEFIT_DESIGN!I17=0,"None",BENEFIT_DESIGN!I17) -> Yes
A18: =BENEFIT_DESIGN!B18 -> Diagnostic Services: Radiology | B18: =BENEFIT_DESIGN!C18 -> Plan Deductible Only | C18: =IF(BENEFIT_DESIGN!M18,BENEFIT_DESIGN!$C$28,0) -> 1000 | D18: =IF(BENEFIT_DESIGN!N18,BENEFIT_DESIGN!$C$29,0) -> 0 | E18: =IF(BENEFIT_DESIGN!O18,BENEFIT_DESIGN!$C$29,0) -> 0 | F18: =IF(BENEFIT_DESIGN!P18,BENEFIT_DESIGN!$C$29,0) -> 0 | G18: =IF(BENEFIT_DESIGN!V18,BENEFIT_DESIGN!$C$32,0) -> 1000 | H18: =IF(BENEFIT_DESIGN!Q18,BENEFIT_DESIGN!D18,0) -> 0 | I18: =IF(BENEFIT_DESIGN!R18,BENEFIT_DESIGN!E18,0) -> 0 | J18: =IF(BENEFIT_DESIGN!S18,BENEFIT_DESIGN!F18,0) -> 0 | K18: =IF(BENEFIT_DESIGN!G18=0,"None",BENEFIT_DESIGN!G18) -> None | L18: =IF(BENEFIT_DESIGN!H18=0,"None",BENEFIT_DESIGN!H18) -> None | M18: =IF(BENEFIT_DESIGN!I18=0,"None",BENEFIT_DESIGN!I18) -> Yes
A19: =BENEFIT_DESIGN!B19 -> Diagnostic Services: Laboratory | B19: =BENEFIT_DESIGN!C19 -> Plan Deductible Only | C19: =IF(BENEFIT_DESIGN!M19,BENEFIT_DESIGN!$C$28,0) -> 1000 | D19: =IF(BENEFIT_DESIGN!N19,BENEFIT_DESIGN!$C$29,0) -> 0 | E19: =IF(BENEFIT_DESIGN!O19,BENEFIT_DESIGN!$C$29,0) -> 0 | F19: =IF(BENEFIT_DESIGN!P19,BENEFIT_DESIGN!$C$29,0) -> 0 | G19: =IF(BENEFIT_DESIGN!V19,BENEFIT_DESIGN!$C$32,0) -> 1000 | H19: =IF(BENEFIT_DESIGN!Q19,BENEFIT_DESIGN!D19,0) -> 0 | I19: =IF(BENEFIT_DESIGN!R19,BENEFIT_DESIGN!E19,0) -> 0 | J19: =IF(BENEFIT_DESIGN!S19,BENEFIT_DESIGN!F19,0) -> 0 | K19: =IF(BENEFIT_DESIGN!G19=0,"None",BENEFIT_DESIGN!G19) -> None | L19: =IF(BENEFIT_DESIGN!H19=0,"None",BENEFIT_DESIGN!H19) -> None | M19: =IF(BENEFIT_DESIGN!I19=0,"None",BENEFIT_DESIGN!I19) -> Yes
A20: =BENEFIT_DESIGN!B20 -> Prescription Drugs: Generic | B20: =BENEFIT_DESIGN!C20 -> Rx Deductible+Co-ins | C20: =IF(BENEFIT_DESIGN!M20,BENEFIT_DESIGN!$C$28,0) -> 0 | D20: =IF(BENEFIT_DESIGN!N20,BENEFIT_DESIGN!$C$29,0) -> 100 | E20: =IF(BENEFIT_DESIGN!O20,BENEFIT_DESIGN!$C$29,0) -> 0 | F20: =IF(BENEFIT_DESIGN!P20,BENEFIT_DESIGN!$C$29,0) -> 0 | G20: =IF(BENEFIT_DESIGN!V20,BENEFIT_DESIGN!$C$32,0) -> 1000 | H20: =IF(BENEFIT_DESIGN!Q20,BENEFIT_DESIGN!D20,0) -> 0 | I20: =IF(BENEFIT_DESIGN!R20,BENEFIT_DESIGN!E20,0) -> 0 | J20: =IF(BENEFIT_DESIGN!S20,BENEFIT_DESIGN!F20,0) -> 0.1 | K20: =IF(BENEFIT_DESIGN!G20=0,"None",BENEFIT_DESIGN!G20) -> None | L20: =IF(BENEFIT_DESIGN!H20=0,"None",BENEFIT_DESIGN!H20) -> None | M20: =IF(BENEFIT_DESIGN!I20=0,"None",BENEFIT_DESIGN!I20) -> Yes
A21: =BENEFIT_DESIGN!B21 -> Prescription Drugs: Branded | B21: =BENEFIT_DESIGN!C21 -> Rx Deductible+Co-pay | C21: =IF(BENEFIT_DESIGN!M21,BENEFIT_DESIGN!$C$28,0) -> 0 | D21: =IF(BENEFIT_DESIGN!N21,BENEFIT_DESIGN!$C$29,0) -> 100 | E21: =IF(BENEFIT_DESIGN!O21,BENEFIT_DESIGN!$C$29,0) -> 0 | F21: =IF(BENEFIT_DESIGN!P21,BENEFIT_DESIGN!$C$29,0) -> 0 | G21: =IF(BENEFIT_DESIGN!V21,BENEFIT_DESIGN!$C$32,0) -> 1000 | H21: =IF(BENEFIT_DESIGN!Q21,BENEFIT_DESIGN!D21,0) -> 0 | I21: =IF(BENEFIT_DESIGN!R21,BENEFIT_DESIGN!E21,0) -> 30 | J21: =IF(BENEFIT_DESIGN!S21,BENEFIT_DESIGN!F21,0) -> 0 | K21: =IF(BENEFIT_DESIGN!G21=0,"None",BENEFIT_DESIGN!G21) -> None | L21: =IF(BENEFIT_DESIGN!H21=0,"None",BENEFIT_DESIGN!H21) -> None | M21: =IF(BENEFIT_DESIGN!I21=0,"None",BENEFIT_DESIGN!I21) -> Yes
A22: =BENEFIT_DESIGN!B22 -> Over-the-counter Drugs | B22: =BENEFIT_DESIGN!C22 -> Not Covered | C22: =IF(BENEFIT_DESIGN!M22,BENEFIT_DESIGN!$C$28,0) -> 0 | D22: =IF(BENEFIT_DESIGN!N22,BENEFIT_DESIGN!$C$29,0) -> 0 | E22: =IF(BENEFIT_DESIGN!O22,BENEFIT_DESIGN!$C$29,0) -> 0 | F22: =IF(BENEFIT_DESIGN!P22,BENEFIT_DESIGN!$C$29,0) -> 0 | G22: =IF(BENEFIT_DESIGN!V22,BENEFIT_DESIGN!$C$32,0) -> 0 | H22: =IF(BENEFIT_DESIGN!Q22,BENEFIT_DESIGN!D22,0) -> 0 | I22: =IF(BENEFIT_DESIGN!R22,BENEFIT_DESIGN!E22,0) -> 0 | J22: =IF(BENEFIT_DESIGN!S22,BENEFIT_DESIGN!F22,0) -> 0 | K22: =IF(BENEFIT_DESIGN!G22=0,"None",BENEFIT_DESIGN!G22) -> None | L22: =IF(BENEFIT_DESIGN!H22=0,"None",BENEFIT_DESIGN!H22) -> None | M22: =IF(BENEFIT_DESIGN!I22=0,"None",BENEFIT_DESIGN!I22) -> None
A23: =BENEFIT_DESIGN!B23 -> Preventive Services & Vaccines | B23: =BENEFIT_DESIGN!C23 -> No Cost Sharing | C23: =IF(BENEFIT_DESIGN!M23,BENEFIT_DESIGN!$C$28,0) -> 0 | D23: =IF(BENEFIT_DESIGN!N23,BENEFIT_DESIGN!$C$29,0) -> 0 | E23: =IF(BENEFIT_DESIGN!O23,BENEFIT_DESIGN!$C$29,0) -> 0 | F23: =IF(BENEFIT_DESIGN!P23,BENEFIT_DESIGN!$C$29,0) -> 0 | G23: =IF(BENEFIT_DESIGN!V23,BENEFIT_DESIGN!$C$32,0) -> 1000 | H23: =IF(BENEFIT_DESIGN!Q23,BENEFIT_DESIGN!D23,0) -> 0 | I23: =IF(BENEFIT_DESIGN!R23,BENEFIT_DESIGN!E23,0) -> 0 | J23: =IF(BENEFIT_DESIGN!S23,BENEFIT_DESIGN!F23,0) -> 0 | K23: =IF(BENEFIT_DESIGN!G23=0,"None",BENEFIT_DESIGN!G23) -> None | L23: =IF(BENEFIT_DESIGN!H23=0,"None",BENEFIT_DESIGN!H23) -> None | M23: =IF(BENEFIT_DESIGN!I23=0,"None",BENEFIT_DESIGN!I23) -> Yes
A24: =BENEFIT_DESIGN!B24 -> Durable Medical Equipment | B24: =BENEFIT_DESIGN!C24 -> Plan Deductible Only | C24: =IF(BENEFIT_DESIGN!M24,BENEFIT_DESIGN!$C$28,0) -> 1000 | D24: =IF(BENEFIT_DESIGN!N24,BENEFIT_DESIGN!$C$29,0) -> 0 | E24: =IF(BENEFIT_DESIGN!O24,BENEFIT_DESIGN!$C$29,0) -> 0 | F24: =IF(BENEFIT_DESIGN!P24,BENEFIT_DESIGN!$C$29,0) -> 0 | G24: =IF(BENEFIT_DESIGN!V24,BENEFIT_DESIGN!$C$32,0) -> 1000 | H24: =IF(BENEFIT_DESIGN!Q24,BENEFIT_DESIGN!D24,0) -> 0 | I24: =IF(BENEFIT_DESIGN!R24,BENEFIT_DESIGN!E24,0) -> 0 | J24: =IF(BENEFIT_DESIGN!S24,BENEFIT_DESIGN!F24,0) -> 0 | K24: =IF(BENEFIT_DESIGN!G24=0,"None",BENEFIT_DESIGN!G24) -> None | L24: =IF(BENEFIT_DESIGN!H24=0,"None",BENEFIT_DESIGN!H24) -> None | M24: =IF(BENEFIT_DESIGN!I24=0,"None",BENEFIT_DESIGN!I24) -> Yes
A25: =BENEFIT_DESIGN!B25 -> Medical Supplies | B25: =BENEFIT_DESIGN!C25 -> Plan Deductible Only | C25: =IF(BENEFIT_DESIGN!M25,BENEFIT_DESIGN!$C$28,0) -> 1000 | D25: =IF(BENEFIT_DESIGN!N25,BENEFIT_DESIGN!$C$29,0) -> 0 | E25: =IF(BENEFIT_DESIGN!O25,BENEFIT_DESIGN!$C$29,0) -> 0 | F25: =IF(BENEFIT_DESIGN!P25,BENEFIT_DESIGN!$C$29,0) -> 0 | G25: =IF(BENEFIT_DESIGN!V25,BENEFIT_DESIGN!$C$32,0) -> 1000 | H25: =IF(BENEFIT_DESIGN!Q25,BENEFIT_DESIGN!D25,0) -> 0 | I25: =IF(BENEFIT_DESIGN!R25,BENEFIT_DESIGN!E25,0) -> 0 | J25: =IF(BENEFIT_DESIGN!S25,BENEFIT_DESIGN!F25,0) -> 0 | K25: =IF(BENEFIT_DESIGN!G25=0,"None",BENEFIT_DESIGN!G25) -> None | L25: =IF(BENEFIT_DESIGN!H25=0,"None",BENEFIT_DESIGN!H25) -> None | M25: =IF(BENEFIT_DESIGN!I25=0,"None",BENEFIT_DESIGN!I25) -> Yes
A26: =BENEFIT_DESIGN!B26 -> Over-the-counter Medical Supplies | B26: =BENEFIT_DESIGN!C26 -> Not Covered | C26: =IF(BENEFIT_DESIGN!M26,BENEFIT_DESIGN!$C$28,0) -> 0 | D26: =IF(BENEFIT_DESIGN!N26,BENEFIT_DESIGN!$C$29,0) -> 0 | E26: =IF(BENEFIT_DESIGN!O26,BENEFIT_DESIGN!$C$29,0) -> 0 | F26: =IF(BENEFIT_DESIGN!P26,BENEFIT_DESIGN!$C$29,0) -> 0 | G26: =IF(BENEFIT_DESIGN!V26,BENEFIT_DESIGN!$C$32,0) -> 0 | H26: =IF(BENEFIT_DESIGN!Q26,BENEFIT_DESIGN!D26,0) -> 0 | I26: =IF(BENEFIT_DESIGN!R26,BENEFIT_DESIGN!E26,0) -> 0 | J26: =IF(BENEFIT_DESIGN!S26,BENEFIT_DESIGN!F26,0) -> 0 | K26: =IF(BENEFIT_DESIGN!G26=0,"None",BENEFIT_DESIGN!G26) -> None | L26: =IF(BENEFIT_DESIGN!H26=0,"None",BENEFIT_DESIGN!H26) -> None | M26: =IF(BENEFIT_DESIGN!I26=0,"None",BENEFIT_DESIGN!I26) -> None
A27: =BENEFIT_DESIGN!B27 -> Other Items & Services | B27: =BENEFIT_DESIGN!C27 -> Not Covered | C27: =IF(BENEFIT_DESIGN!M27,BENEFIT_DESIGN!$C$28,0) -> 0 | D27: =IF(BENEFIT_DESIGN!N27,BENEFIT_DESIGN!$C$29,0) -> 0 | E27: =IF(BENEFIT_DESIGN!O27,BENEFIT_DESIGN!$C$29,0) -> 0 | F27: =IF(BENEFIT_DESIGN!P27,BENEFIT_DESIGN!$C$29,0) -> 0 | G27: =IF(BENEFIT_DESIGN!V27,BENEFIT_DESIGN!$C$32,0) -> 0 | H27: =IF(BENEFIT_DESIGN!Q27,BENEFIT_DESIGN!D27,0) -> 0 | I27: =IF(BENEFIT_DESIGN!R27,BENEFIT_DESIGN!E27,0) -> 0 | J27: =IF(BENEFIT_DESIGN!S27,BENEFIT_DESIGN!F27,0) -> 0 | K27: =IF(BENEFIT_DESIGN!G27=0,"None",BENEFIT_DESIGN!G27) -> None | L27: =IF(BENEFIT_DESIGN!H27=0,"None",BENEFIT_DESIGN!H27) -> None | M27: =IF(BENEFIT_DESIGN!I27=0,"None",BENEFIT_DESIGN!I27) -> None

Sheet RESULTS_SUMMARY
F2: Summary of Subscriber & Plan Payments
F4: =BENEFIT_DESIGN!$E$2 -> 3 of 3
F6: ="Summary for "&BENEFIT_DESIGN!$B$6 -> Summary for Plan 3
B8: Maternity Example | G8: Diabetes Type 2 Example
C10: Plan Pays: | D10: =MATERNITY_SUMMARY!E26 -> 11671.235 | H10: Plan Pays: | I10: =DIABETES_SUMMARY!$E$26 -> 6334.01
C13: Patient Pays: | D13: =MATERNITY_SUMMARY!F26 -> 1060.017135 | H13: Patient Pays: | I13: =DIABETES_SUMMARY!F26 -> 1055.26
C14: Deductibles | D14: =MATERNITY_SUMMARY!G26 -> 1000 | H14: Deductibles | I14: =DIABETES_SUMMARY!$G$26 -> 817.773
C15: Copayments | D15: =MATERNITY_SUMMARY!H26 -> 0 | H15: Copayments | I15: =DIABETES_SUMMARY!$H$26 -> 150
C16: Coinsurance | D16: =MATERNITY_SUMMARY!I26 -> 0 | H16: Coinsurance | I16: =DIABETES_SUMMARY!$I$26 -> 32.227
C17: Exclusions & Limits | D17: =MATERNITY_SUMMARY!J26 -> 60.01713452 | H17: Exclusions & Limits | I17: =DIABETES_SUMMARY!$J$26 -> 55.26
B22: Foot Fracture Example
C24: Plan Pays: | D24: =FRACTURE_SUMMARY!$E$26 -> 1211.96
C27: Patient Pays: | D27: =FRACTURE_SUMMARY!F26 -> 713.08
C28: Deductibles | D28: =FRACTURE_SUMMARY!$G$26 -> 713.08
C29: Copayments | D29: =FRACTURE_SUMMARY!$H$26 -> 0
C30: Coinsurance | D30: =FRACTURE_SUMMARY!$I$26 -> 0
C31: Exclusions & Limits | D31: =FRACTURE_SUMMARY!$J$26 -> 0

Sheet EXAMPLE_SUMMARY (hidden)
B2: Summary of allowed amount for each example
B4: =BENEFIT_DESIGN!$B$6 -> Plan 3 | C4: Allowed Amount (unrounded)
B5: Benefit category | C5: Diabetes | D5: Maternity | E5: Foot Fracture
B6: =BENEFIT_DESIGN!B8 -> Inpatient Hospital Care (Facility) | C6: =SUMIFS(DIABETES_TIMELINE!AllowedAmt,DIABETES_TIMELINE!BenefitCategory,$B6) -> 0 | D6: =SUMIFS(MATERNITY_TIMELINE!AllowedAmt,MATERNITY_TIMELINE!BenefitCategory,$B6) -> 8959.38 | E6: =SUMIFS(FRACTURE_TIMELINE!AllowedAmt,FRACTURE_TIMELINE!BenefitCategory,$B6) -> 0
B7: =BENEFIT_DESIGN!B9 -> Other Facility Services | C7: =SUMIFS(DIABETES_TIMELINE!AllowedAmt,DIABETES_TIMELINE!BenefitCategory,$B7) -> 0 | D7: =SUMIFS(MATERNITY_TIMELINE!AllowedAmt,MATERNITY_TIMELINE!BenefitCategory,$B7) -> 0 | E7: =SUMIFS(FRACTURE_TIMELINE!AllowedAmt,FRACTURE_TIMELINE!BenefitCategory,$B7) -> 37.14
B8: =BENEFIT_DESIGN!B10 -> Emergency Department (Facility) | C8: =SUMIFS(DIABETES_TIMELINE!AllowedAmt,DIABETES_TIMELINE!BenefitCategory,$B8) -> 0 | D8: =SUMIFS(MATERNITY_TIMELINE!AllowedAmt,MATERNITY_TIMELINE!BenefitCategory,$B8) -> 0 | E8: =SUMIFS(FRACTURE_TIMELINE!AllowedAmt,FRACTURE_TIMELINE!BenefitCategory,$B8) -> 0
B9: =BENEFIT_DESIGN!B11 -> Ambulance | C9: =SUMIFS(DIABETES_TIMELINE!AllowedAmt,DIABETES_TIMELINE!BenefitCategory,$B9) -> 0 | D9: =SUMIFS(MATERNITY_TIMELINE!AllowedAmt,MATERNITY_TIMELINE!BenefitCategory,$B9) -> 0 | E9: =SUMIFS(FRACTURE_TIMELINE!AllowedAmt,FRACTURE_TIMELINE!BenefitCategory,$B9) -> 754.55
B10: =BENEFIT_DESIGN!B12 -> Professional Services: Primary Care | C10: =SUMIFS(DIABETES_TIMELINE!AllowedAmt,DIABETES_TIMELINE!BenefitCategory,$B10) -> 791.28 | D10: =SUMIFS(MATERNITY_TIMELINE!AllowedAmt,MATERNITY_TIMELINE!BenefitCategory,$B10) -> 198 | E10: =SUMIFS(FRACTURE_TIMELINE!AllowedAmt,FRACTURE_TIMELINE!BenefitCategory,$B10) -> 0
B11: =BENEFIT_DESIGN!B13 -> Professional Services: Emergency Department | C11: =SUMIFS(DIABETES_TIMELINE!AllowedAmt,DIABETES_TIMELINE!BenefitCategory,$B11) -> 0 | D11: =SUMIFS(MATERNITY_TIMELINE!AllowedAmt,MATERNITY_TIMELINE!BenefitCategory,$B11) -> 0 | E11: =SUMIFS(FRACTURE_TIMELINE!AllowedAmt,FRACTURE_TIMELINE!BenefitCategory,$B11) -> 557.41
B12: =BENEFIT_DESIGN!B14 -> Professional Services: Specialist | C12: =SUMIFS(DIABETES_TIMELINE!AllowedAmt,DIABETES_TIMELINE!BenefitCategory,$B12) -> 273.24 | D12: =SUMIFS(MATERNITY_TIMELINE!AllowedAmt,MATERNITY_TIMELINE!BenefitCategory,$B12) -> 0 | E12: =SUMIFS(FRACTURE_TIMELINE!AllowedAmt,FRACTURE_TIMELINE!BenefitCategory,$B12) -> 293.37
B13: =BENEFIT_DESIGN!B15 -> Professional Services: Obstetric Care (Bundled) | C13: =SUMIFS(DIABETES_TIMELINE!AllowedAmt,DIABETES_TIMELINE!BenefitCategory,$B13) -> 0 | D13: =SUMIFS(MATERNITY_TIMELINE!AllowedAmt,MATERNITY_TIMELINE!BenefitCategory,$B13) -> 2394.18 | E13: =SUMIFS(FRACTURE_TIMELINE!AllowedAmt,FRACTURE_TIMELINE!BenefitCategory,$B13) -> 0
B14: =BENEFIT_DESIGN!B16 -> Professional Services: Procedures & Other | C14: =SUMIFS(DIABETES_TIMELINE!AllowedAmt,DIABETES_TIMELINE!BenefitCategory,$B14) -> 0 | D14: =SUMIFS(MATERNITY_TIMELINE!AllowedAmt,MATERNITY_TIMELINE!BenefitCategory,$B14) -> 0 | E14: =SUMIFS(FRACTURE_TIMELINE!AllowedAmt,FRACTURE_TIMELINE!BenefitCategory,$B14) -> 0
B15: =BENEFIT_DESIGN!B17 -> Professional Services: Physical Therapy | C15: =SUMIFS(DIABETES_TIMELINE!AllowedAmt,DIABETES_TIMELINE!BenefitCategory,$B15) -> 0 | D15: =SUMIFS(MATERNITY_TIMELINE!AllowedAmt,MATERNITY_TIMELINE!BenefitCategory,$B15) -> 0 | E15: =SUMIFS(FRACTURE_TIMELINE!AllowedAmt,FRACTURE_TIMELINE!BenefitCategory,$B15) -> 215.76
B16: =BENEFIT_DESIGN!B18 -> Diagnostic Services: Radiology | C16: =SUMIFS(DIABETES_TIMELINE!AllowedAmt,DIABETES_TIMELINE!BenefitCategory,$B16) -> 0 | D16: =SUMIFS(MATERNITY_TIMELINE!AllowedAmt,MATERNITY_TIMELINE!BenefitCategory,$B16) -> 163.99 | E16: =SUMIFS(FRACTURE_TIMELINE!AllowedAmt,FRACTURE_TIMELINE!BenefitCategory,$B16) -> 30.2
B17: =BENEFIT_DESIGN!B19 -> Diagnostic Services: Laboratory | C17: =SUMIFS(DIABETES_TIMELINE!AllowedAmt,DIABETES_TIMELINE!BenefitCategory,$B17) -> 133.7 | D17: =SUMIFS(MATERNITY_TIMELINE!AllowedAmt,MATERNITY_TIMELINE!BenefitCategory,$B17) -> 882.14 | E17: =SUMIFS(FRACTURE_TIMELINE!AllowedAmt,FRACTURE_TIMELINE!BenefitCategory,$B17) -> 0
B18: =BENEFIT_DESIGN!B20 -> Prescription Drugs: Generic | C18: =SUMIFS(DIABETES_TIMELINE!AllowedAmt,DIABETES_TIMELINE!BenefitCategory,$B18) -> 676.12 | D18: =SUMIFS(MATERNITY_TIMELINE!AllowedAmt,MATERNITY_TIMELINE!BenefitCategory,$B18) -> 36.275 | E18: =SUMIFS(FRACTURE_TIMELINE!AllowedAmt,FRACTURE_TIMELINE!BenefitCategory,$B18) -> 0
B19: =BENEFIT_DESIGN!B21 -> Prescription Drugs: Branded | C19: =SUMIFS(DIABETES_TIMELINE!AllowedAmt,DIABETES_TIMELINE!BenefitCategory,$B19) -> 3581.63 | D19: =SUMIFS(MATERNITY_TIMELINE!AllowedAmt,MATERNITY_TIMELINE!BenefitCategory,$B19) -> 0 | E19: =SUMIFS(FRACTURE_TIMELINE!AllowedAmt,FRACTURE_TIMELINE!BenefitCategory,$B19) -> 0
B20: =BENEFIT_DESIGN!B22 -> Over-the-counter Drugs | C20: =SUMIFS(DIABETES_TIMELINE!AllowedAmt,DIABETES_TIMELINE!BenefitCategory,$B20) -> 55.26 | D20: =SUMIFS(MATERNITY_TIMELINE!AllowedAmt,MATERNITY_TIMELINE!BenefitCategory,$B20) -> 60.01713452 | E20: =SUMIFS(FRACTURE_TIMELINE!AllowedAmt,FRACTURE_TIMELINE!BenefitCategory,$B20) -> 0
B21: =BENEFIT_DESIGN!B23 -> Preventive Services & Vaccines | C21: =SUMIFS(DIABETES_TIMELINE!AllowedAmt,DIABETES_TIMELINE!BenefitCategory,$B21) -> 150.11 | D21: =SUMIFS(MATERNITY_TIMELINE!AllowedAmt,MATERNITY_TIMELINE!BenefitCategory,$B21) -> 37.27 | E21: =SUMIFS(FRACTURE_TIMELINE!AllowedAmt,FRACTURE_TIMELINE!BenefitCategory,$B21) -> 0
B22: =BENEFIT_DESIGN!B24 -> Durable Medical Equipment | C22: =SUMIFS(DIABETES_TIMELINE!AllowedAmt,DIABETES_TIMELINE!BenefitCategory,$B22) -> 0 | D22: =SUMIFS(MATERNITY_TIMELINE!AllowedAmt,MATERNITY_TIMELINE!BenefitCategory,$B22) -> 0 | E22: =SUMIFS(FRACTURE_TIMELINE!AllowedAmt,FRACTURE_TIMELINE!BenefitCategory,$B22) -> 36.61
B23: =BENEFIT_DESIGN!B25 -> Medical Supplies | C23: =SUMIFS(DIABETES_TIMELINE!AllowedAmt,DIABETES_TIMELINE!BenefitCategory,$B23) -> 1727.93 | D23: =SUMIFS(MATERNITY_TIMELINE!AllowedAmt,MATERNITY_TIMELINE!BenefitCategory,$B23) -> 0 | E23: =SUMIFS(FRACTURE_TIMELINE!AllowedAmt,FRACTURE_TIMELINE!BenefitCategory,$B23) -> 0
B24: =BENEFIT_DESIGN!B26 -> Over-the-counter Medical Supplies | C24: =SUMIFS(DIABETES_TIMELINE!AllowedAmt,DIABETES_TIMELINE!BenefitCategory,$B24) -> 0 | D24: =SUMIFS(MATERNITY_TIMELINE!AllowedAmt,MATERNITY_TIMELINE!BenefitCategory,$B24) -> 0 | E24: =SUMIFS(FRACTURE_TIMELINE!AllowedAmt,FRACTURE_TIMELINE!BenefitCategory,$B24) -> 0
B25: =BENEFIT_DESIGN!B27 -> Other Items & Services | C25: =SUMIFS(DIABETES_TIMELINE!AllowedAmt,DIABETES_TIMELINE!BenefitCategory,$B25) -> 0 | D25: =SUMIFS(MATERNITY_TIMELINE!AllowedAmt,MATERNITY_TIMELINE!BenefitCategory,$B25) -> 0 | E25: =SUMIFS(FRACTURE_TIMELINE!AllowedAmt,FRACTURE_TIMELINE!BenefitCategory,$B25) -> 0
B26: Total (unrounded) | C26: =SUM(C6:C25) -> 7389.27 | D26: =SUM(D6:D25) -> 12731.25213 | E26: =SUM(E6:E25) -> 1925.04

Sheet DIABETES_SUMMARY (hidden)
B2: Type 2 Diabetes Example: Summary of Subscriber and Plan Payments
B4: =BENEFIT_DESIGN!$B$6 -> Plan 3 | C4: Allowed Amount | F4: Subscriber pays:
B5: Benefit category | C5: Allowed Amount (unrounded) | D5: Allowed Amount (rounded) | E5: Plan payment (unrounded) | F5: Total subscriber payment | G5: Subscriber-paid deductible | H5: Subscriber-paid copayment | I5: Subscriber-paid coinsurance | J5: Non-covered and exclusions
B6: =BENEFIT_DESIGN!B8 -> Inpatient Hospital Care (Facility) | C6: =SUMIFS(DIABETES_TIMELINE!AllowedAmt,DIABETES_TIMELINE!BenefitCategory,$B6) -> 0 | D6: =MROUND(C6,IF(C6>=100,100,10)) -> 0 | E6: =SUMIFS(DIABETES_TIMELINE!PlanPaymentAmt,DIABETES_TIMELINE!BenefitCategory,$B6) -> 0 | F6: =SUM(G6:J6) -> 0 | G6: =SUMIFS(DIABETES_TIMELINE!SubscriberPayDeduc,DIABETES_TIMELINE!BenefitCategory,$B6) -> 0 | H6: =SUMIFS(DIABETES_TIMELINE!SubscriberPayCopay,DIABETES_TIMELINE!BenefitCategory,$B6) -> 0 | I6: =SUMIFS(DIABETES_TIMELINE!SubscriberPayCoins,DIABETES_TIMELINE!BenefitCategory,$B6) -> 0 | J6: =SUMIFS(DIABETES_TIMELINE!SubscriberPayNonCov,DIABETES_TIMELINE!BenefitCategory,$B6)+SUMIFS(DIABETES_TIMELINE!SubscriberPayExclusion,DIABETES_TIMELINE!BenefitCategory,$B6) -> 0
B7: =BENEFIT_DESIGN!B9 -> Other Facility Services | C7: =SUMIFS(DIABETES_TIMELINE!AllowedAmt,DIABETES_TIMELINE!BenefitCategory,$B7) -> 0 | D7: =MROUND(C7,IF(C7>=100,100,10)) -> 0 | E7: =SUMIFS(DIABETES_TIMELINE!PlanPaymentAmt,DIABETES_TIMELINE!BenefitCategory,$B7) -> 0 | F7: =SUM(G7:J7) -> 0 | G7: =SUMIFS(DIABETES_TIMELINE!SubscriberPayDeduc,DIABETES_TIMELINE!BenefitCategory,$B7) -> 0 | H7: =SUMIFS(DIABETES_TIMELINE!SubscriberPayCopay,DIABETES_TIMELINE!BenefitCategory,$B7) -> 0 | I7: =SUMIFS(DIABETES_TIMELINE!SubscriberPayCoins,DIABETES_TIMELINE!BenefitCategory,$B7) -> 0 | J7: =SUMIFS(DIABETES_TIMELINE!SubscriberPayNonCov,DIABETES_TIMELINE!BenefitCategory,$B7)+SUMIFS(DIABETES_TIMELINE!SubscriberPayExclusion,DIABETES_TIMELINE!BenefitCategory,$B7) -> 0
B8: =BENEFIT_DESIGN!B10 -> Emergency Department (Facility) | C8: =SUMIFS(DIABETES_TIMELINE!AllowedAmt,DIABETES_TIMELINE!BenefitCategory,$B8) -> 0 | D8: 0 | E8: =SUMIFS(DIABETES_TIMELINE!PlanPaymentAmt,DIABETES_TIMELINE!BenefitCategory,$B8) -> 0 | F8: 0 | G8: =SUMIFS(DIABETES_TIMELINE!SubscriberPayDeduc,DIABETES_TIMELINE!BenefitCategory,$B8) -> 0 | H8: =SUMIFS(DIABETES_TIMELINE!SubscriberPayCopay,DIABETES_TIMELINE!BenefitCategory,$B8) -> 0 | I8: =SUMIFS(DIABETES_TIMELINE!SubscriberPayCoins,DIABETES_TIMELINE!BenefitCategory,$B8) -> 0 | J8: =SUMIFS(DIABETES_TIMELINE!SubscriberPayNonCov,DIABETES_TIMELINE!BenefitCategory,$B8)+SUMIFS(DIABETES_TIMELINE!SubscriberPayExclusion,DIABETES_TIMELINE!BenefitCategory,$B8) -> 0
B9: =BENEFIT_DESIGN!B11 -> Ambulance | C9: =SUMIFS(DIABETES_TIMELINE!AllowedAmt,DIABETES_TIMELINE!BenefitCategory,$B9) -> 0 | D9: 0 | E9: =SUMIFS(DIABETES_TIMELINE!PlanPaymentAmt,DIABETES_TIMELINE!BenefitCategory,$B9) -> 0 | F9: 0 | G9: =SUMIFS(DIABETES_TIMELINE!SubscriberPayDeduc,DIABETES_TIMELINE!BenefitCategory,$B9) -> 0 | H9: =SUMIFS(DIABETES_TIMELINE!SubscriberPayCopay,DIABETES_TIMELINE!BenefitCategory,$B9) -> 0 | I9: =SUMIFS(DIABETES_TIMELINE!SubscriberPayCoins,DIABETES_TIMELINE!BenefitCategory,$B9) -> 0 | J9: =SUMIFS(DIABETES_TIMELINE!SubscriberPayNonCov,DIABETES_TIMELINE!BenefitCategory,$B9)+SUMIFS(DIABETES_TIMELINE!SubscriberPayExclusion,DIABETES_TIMELINE!BenefitCategory,$B9) -> 0
B10: =BENEFIT_DESIGN!B12 -> Professional Services: Primary Care | C10: =SUMIFS(DIABETES_TIMELINE!AllowedAmt,DIABETES_TIMELINE!BenefitCategory,$B10) -> 791.28 | D10: 800 | E10: =SUMIFS(DIABETES_TIMELINE!PlanPaymentAmt,DIABETES_TIMELINE!BenefitCategory,$B10) -> 701.28 | F10: 90 | G10: =SUMIFS(DIABETES_TIMELINE!SubscriberPayDeduc,DIABETES_TIMELINE!BenefitCategory,$B10) -> 0 | H10: =SUMIFS(DIABETES_TIMELINE!SubscriberPayCopay,DIABETES_TIMELINE!BenefitCategory,$B10) -> 90 | I10: =SUMIFS(DIABETES_TIMELINE!SubscriberPayCoins,DIABETES_TIMELINE!BenefitCategory,$B10) -> 0 | J10: =SUMIFS(DIABETES_TIMELINE!SubscriberPayNonCov,DIABETES_TIMELINE!BenefitCategory,$B10)+SUMIFS(DIABETES_TIMELINE!SubscriberPayExclusion,DIABETES_TIMELINE!BenefitCategory,$B10) -> 0
B11: =BENEFIT_DESIGN!B13 -> Professional Services: Emergency Department | C11: =SUMIFS(DIABETES_TIMELINE!AllowedAmt,DIABETES_TIMELINE!BenefitCategory,$B11) -> 0 | D11: 0 | E11: =SUMIFS(DIABETES_TIMELINE!PlanPaymentAmt,DIABETES_TIMELINE!BenefitCategory,$B11) -> 0 | F11: 0 | G11: =SUMIFS(DIABETES_TIMELINE!SubscriberPayDeduc,DIABETES_TIMELINE!BenefitCategory,$B11) -> 0 | H11: =SUMIFS(DIABETES_TIMELINE!SubscriberPayCopay,DIABETES_TIMELINE!BenefitCategory,$B11) -> 0 | I11: =SUMIFS(DIABETES_TIMELINE!SubscriberPayCoins,DIABETES_TIMELINE!BenefitCategory,$B11) -> 0 | J11: =SUMIFS(DIABETES_TIMELINE!SubscriberPayNonCov,DIABETES_TIMELINE!BenefitCategory,$B11)+SUMIFS(DIABETES_TIMELINE!SubscriberPayExclusion,DIABETES_TIMELINE!BenefitCategory,$B11) -> 0
B12: =BENEFIT_DESIGN!B14 -> Professional Services: Specialist | C12: =SUMIFS(DIABETES_TIMELINE!AllowedAmt,DIABETES_TIMELINE!BenefitCategory,$B12) -> 273.24 | D12: 300 | E12: =SUMIFS(DIABETES_TIMELINE!PlanPaymentAmt,DIABETES_TIMELINE!BenefitCategory,$B12) -> 0 | F12: 273.24 | G12: =SUMIFS(DIABETES_TIMELINE!SubscriberPayDeduc,DIABETES_TIMELINE!BenefitCategory,$B12) -> 273.24 | H12: =SUMIFS(DIABETES_TIMELINE!SubscriberPayCopay,DIABETES_TIMELINE!BenefitCategory,$B12) -> 0 | I12: =SUMIFS(DIABETES_TIMELINE!SubscriberPayCoins,DIABETES_TIMELINE!BenefitCategory,$B12) -> 0 | J12: =SUMIFS(DIABETES_TIMELINE!SubscriberPayNonCov,DIABETES_TIMELINE!BenefitCategory,$B12)+SUMIFS(DIABETES_TIMELINE!SubscriberPayExclusion,DIABETES_TIMELINE!BenefitCategory,$B12) -> 0
B13: =BENEFIT_DESIGN!B15 -> Professional Services: Obstetric Care (Bundled) | C13: =SUMIFS(DIABETES_TIMELINE!AllowedAmt,DIABETES_TIMELINE!BenefitCategory,$B13) -> 0 | D13: 0 | E13: =SUMIFS(DIABETES_TIMELINE!PlanPaymentAmt,DIABETES_TIMELINE!BenefitCategory,$B13) -> 0 | F13: 0 | G13: =SUMIFS(DIABETES_TIMELINE!SubscriberPayDeduc,DIABETES_TIMELINE!BenefitCategory,$B13) -> 0 | H13: =SUMIFS(DIABETES_TIMELINE!SubscriberPayCopay,DIABETES_TIMELINE!BenefitCategory,$B13) -> 0 | I13: =SUMIFS(DIABETES_TIMELINE!SubscriberPayCoins,DIABETES_TIMELINE!BenefitCategory,$B13) -> 0 | J13: =SUMIFS(DIABETES_TIMELINE!SubscriberPayNonCov,DIABETES_TIMELINE!BenefitCategory,$B13)+SUMIFS(DIABETES_TIMELINE!SubscriberPayExclusion,DIABETES_TIMELINE!BenefitCategory,$B13) -> 0
B14: =BENEFIT_DESIGN!B16 -> Professional Services: Procedures & Other | C14: =SUMIFS(DIABETES_TIMELINE!AllowedAmt,DIABETES_TIMELINE!BenefitCategory,$B14) -> 0 | D14: 0 | E14: =SUMIFS(DIABETES_TIMELINE!PlanPaymentAmt,DIABETES_TIMELINE!BenefitCategory,$B14) -> 0 | F14: 0 | G14: =SUMIFS(DIABETES_TIMELINE!SubscriberPayDeduc,DIABETES_TIMELINE!BenefitCategory,$B14) -> 0 | H14: =SUMIFS(DIABETES_TIMELINE!SubscriberPayCopay,DIABETES_TIMELINE!BenefitCategory,$B14) -> 0 | I14: =SUMIFS(DIABETES_TIMELINE!SubscriberPayCoins,DIABETES_TIMELINE!BenefitCategory,$B14) -> 0 | J14: =SUMIFS(DIABETES_TIMELINE!SubscriberPayNonCov,DIABETES_TIMELINE!BenefitCategory,$B14)+SUMIFS(DIABETES_TIMELINE!SubscriberPayExclusion,DIABETES_TIMELINE!BenefitCategory,$B14) -> 0
B15: =BENEFIT_DESIGN!B17 -> Professional Services: Physical Therapy | C15: =SUMIFS(DIABETES_TIMELINE!AllowedAmt,DIABETES_TIMELINE!BenefitCategory,$B15) -> 0 | D15: 0 | E15: =SUMIFS(DIABETES_TIMELINE!PlanPaymentAmt,DIABETES_TIMELINE!BenefitCategory,$B15) -> 0 | F15: 0 | G15: =SUMIFS(DIABETES_TIMELINE!SubscriberPayDeduc,DIABETES_TIMELINE!BenefitCategory,$B15) -> 0 | H15: =SUMIFS(DIABETES_TIMELINE!SubscriberPayCopay,DIABETES_TIMELINE!BenefitCategory,$B15) -> 0 | I15: =SUMIFS(DIABETES_TIMELINE!SubscriberPayCoins,DIABETES_TIMELINE!BenefitCategory,$B15) -> 0 | J15: =SUMIFS(DIABETES_TIMELINE!SubscriberPayNonCov,DIABETES_TIMELINE!BenefitCategory,$B15)+SUMIFS(DIABETES_TIMELINE!SubscriberPayExclusion,DIABETES_TIMELINE!BenefitCategory,$B15) -> 0
B16: =BENEFIT_DESIGN!B18 -> Diagnostic Services: Radiology | C16: =SUMIFS(DIABETES_TIMELINE!AllowedAmt,DIABETES_TIMELINE!BenefitCategory,$B16) -> 0 | D16: 0 | E16: =SUMIFS(DIABETES_TIMELINE!PlanPaymentAmt,DIABETES_TIMELINE!BenefitCategory,$B16) -> 0 | F16: 0 | G16: =SUMIFS(DIABETES_TIMELINE!SubscriberPayDeduc,DIABETES_TIMELINE!BenefitCategory,$B16) -> 0 | H16: =SUMIFS(DIABETES_TIMELINE!SubscriberPayCopay,DIABETES_TIMELINE!BenefitCategory,$B16) -> 0 | I16: =SUMIFS(DIABETES_TIMELINE!SubscriberPayCoins,DIABETES_TIMELINE!BenefitCategory,$B16) -> 0 | J16: =SUMIFS(DIABETES_TIMELINE!SubscriberPayNonCov,DIABETES_TIMELINE!BenefitCategory,$B16)+SUMIFS(DIABETES_TIMELINE!SubscriberPayExclusion,DIABETES_TIMELINE!BenefitCategory,$B16) -> 0
B17: =BENEFIT_DESIGN!B19 -> Diagnostic Services: Laboratory | C17: =SUMIFS(DIABETES_TIMELINE!AllowedAmt,DIABETES_TIMELINE!BenefitCategory,$B17) -> 133.7 | D17: 100 | E17: =SUMIFS(DIABETES_TIMELINE!PlanPaymentAmt,DIABETES_TIMELINE!BenefitCategory,$B17) -> 57.17 | F17: 76.53 | G17: =SUMIFS(DIABETES_TIMELINE!SubscriberPayDeduc,DIABETES_TIMELINE!BenefitCategory,$B17) -> 76.53 | H17: =SUMIFS(DIABETES_TIMELINE!SubscriberPayCopay,DIABETES_TIMELINE!BenefitCategory,$B17) -> 0 | I17: =SUMIFS(DIABETES_TIMELINE!SubscriberPayCoins,DIABETES_TIMELINE!BenefitCategory,$B17) -> 0 | J17: =SUMIFS(DIABETES_TIMELINE!SubscriberPayNonCov,DIABETES_TIMELINE!BenefitCategory,$B17)+SUMIFS(DIABETES_TIMELINE!SubscriberPayExclusion,DIABETES_TIMELINE!BenefitCategory,$B17) -> 0
B18: =BENEFIT_DESIGN!B20 -> Prescription Drugs: Generic | C18: =SUMIFS(DIABETES_TIMELINE!AllowedAmt,DIABETES_TIMELINE!BenefitCategory,$B18) -> 676.12 | D18: 700 | E18: =SUMIFS(DIABETES_TIMELINE!PlanPaymentAmt,DIABETES_TIMELINE!BenefitCategory,$B18) -> 543.893 | F18: 132.227 | G18: =SUMIFS(DIABETES_TIMELINE!SubscriberPayDeduc,DIABETES_TIMELINE!BenefitCategory,$B18) -> 100 | H18: =SUMIFS(DIABETES_TIMELINE!SubscriberPayCopay,DIABETES_TIMELINE!BenefitCategory,$B18) -> 0 | I18: =SUMIFS(DIABETES_TIMELINE!SubscriberPayCoins,DIABETES_TIMELINE!BenefitCategory,$B18) -> 32.227 | J18: =SUMIFS(DIABETES_TIMELINE!SubscriberPayNonCov,DIABETES_TIMELINE!BenefitCategory,$B18)+SUMIFS(DIABETES_TIMELINE!SubscriberPayExclusion,DIABETES_TIMELINE!BenefitCategory,$B18) -> 0
B19: =BENEFIT_DESIGN!B21 -> Prescription Drugs: Branded | C19: =SUMIFS(DIABETES_TIMELINE!AllowedAmt,DIABETES_TIMELINE!BenefitCategory,$B19) -> 3581.63 | D19: 3600 | E19: =SUMIFS(DIABETES_TIMELINE!PlanPaymentAmt,DIABETES_TIMELINE!BenefitCategory,$B19) -> 3521.63 | F19: 60 | G19: =SUMIFS(DIABETES_TIMELINE!SubscriberPayDeduc,DIABETES_TIMELINE!BenefitCategory,$B19) -> 0 | H19: =SUMIFS(DIABETES_TIMELINE!SubscriberPayCopay,DIABETES_TIMELINE!BenefitCategory,$B19) -> 60 | I19: =SUMIFS(DIABETES_TIMELINE!SubscriberPayCoins,DIABETES_TIMELINE!BenefitCategory,$B19) -> 0 | J19: =SUMIFS(DIABETES_TIMELINE!SubscriberPayNonCov,DIABETES_TIMELINE!BenefitCategory,$B19)+SUMIFS(DIABETES_TIMELINE!SubscriberPayExclusion,DIABETES_TIMELINE!BenefitCategory,$B19) -> 0
B20: =BENEFIT_DESIGN!B22 -> Over-the-counter Drugs | C20: =SUMIFS(DIABETES_TIMELINE!AllowedAmt,DIABETES_TIMELINE!BenefitCategory,$B20) -> 55.26 | D20: 60 | E20: =SUMIFS(DIABETES_TIMELINE!PlanPaymentAmt,DIABETES_TIMELINE!BenefitCategory,$B20) -> 0 | F20: 55.26 | G20: =SUMIFS(DIABETES_TIMELINE!SubscriberPayDeduc,DIABETES_TIMELINE!BenefitCategory,$B20) -> 0 | H20: =SUMIFS(DIABETES_TIMELINE!SubscriberPayCopay,DIABETES_TIMELINE!BenefitCategory,$B20) -> 0 | I20: =SUMIFS(DIABETES_TIMELINE!SubscriberPayCoins,DIABETES_TIMELINE!BenefitCategory,$B20) -> 0 | J20: =SUMIFS(DIABETES_TIMELINE!SubscriberPayNonCov,DIABETES_TIMELINE!BenefitCategory,$B20)+SUMIFS(DIABETES_TIMELINE!SubscriberPayExclusion,DIABETES_TIMELINE!BenefitCategory,$B20) -> 55.26
B21: =BENEFIT_DESIGN!B23 -> Preventive Services & Vaccines | C21: =SUMIFS(DIABETES_TIMELINE!AllowedAmt,DIABETES_TIMELINE!BenefitCategory,$B21) -> 150.11 | D21: 200 | E21: =SUMIFS(DIABETES_TIMELINE!PlanPaymentAmt,DIABETES_TIMELINE!BenefitCategory,$B21) -> 150.11 | F21: 0 | G21: =SUMIFS(DIABETES_TIMELINE!SubscriberPayDeduc,DIABETES_TIMELINE!BenefitCategory,$B21) -> 0 | H21: =SUMIFS(DIABETES_TIMELINE!SubscriberPayCopay,DIABETES_TIMELINE!BenefitCategory,$B21) -> 0 | I21: =SUMIFS(DIABETES_TIMELINE!SubscriberPayCoins,DIABETES_TIMELINE!BenefitCategory,$B21) -> 0 | J21: =SUMIFS(DIABETES_TIMELINE!SubscriberPayNonCov,DIABETES_TIMELINE!BenefitCategory,$B21)+SUMIFS(DIABETES_TIMELINE!SubscriberPayExclusion,DIABETES_TIMELINE!BenefitCategory,$B21) -> 0
B22: =BENEFIT_DESIGN!B24 -> Durable Medical Equipment | C22: =SUMIFS(DIABETES_TIMELINE!AllowedAmt,DIABETES_TIMELINE!BenefitCategory,$B22) -> 0 | D22: 0 | E22: =SUMIFS(DIABETES_TIMELINE!PlanPaymentAmt,DIABETES_TIMELINE!BenefitCategory,$B22) -> 0 | F22: 0 | G22: =SUMIFS(DIABETES_TIMELINE!SubscriberPayDeduc,DIABETES_TIMELINE!BenefitCategory,$B22) -> 0 | H22: =SUMIFS(DIABETES_TIMELINE!SubscriberPayCopay,DIABETES_TIMELINE!BenefitCategory,$B22) -> 0 | I22: =SUMIFS(DIABETES_TIMELINE!SubscriberPayCoins,DIABETES_TIMELINE!BenefitCategory,$B22) -> 0 | J22: =SUMIFS(DIABETES_TIMELINE!SubscriberPayNonCov,DIABETES_TIMELINE!BenefitCategory,$B22)+SUMIFS(DIABETES_TIMELINE!SubscriberPayExclusion,DIABETES_TIMELINE!BenefitCategory,$B22) -> 0
B23: =BENEFIT_DESIGN!B25 -> Medical Supplies | C23: =SUMIFS(DIABETES_TIMELINE!AllowedAmt,DIABETES_TIMELINE!BenefitCategory,$B23) -> 1727.93 | D23: 1700 | E23: =SUMIFS(DIABETES_TIMELINE!PlanPaymentAmt,DIABETES_TIMELINE!BenefitCategory,$B23) -> 1359.927 | F23: 368.003 | G23: =SUMIFS(DIABETES_TIMELINE!SubscriberPayDeduc,DIABETES_TIMELINE!BenefitCategory,$B23) -> 368.003 | H23: =SUMIFS(DIABETES_TIMELINE!SubscriberPayCopay,DIABETES_TIMELINE!BenefitCategory,$B23) -> 0 | I23: =SUMIFS(DIABETES_TIMELINE!SubscriberPayCoins,DIABETES_TIMELINE!BenefitCategory,$B23) -> 0 | J23: =SUMIFS(DIABETES_TIMELINE!SubscriberPayNonCov,DIABETES_TIMELINE!BenefitCategory,$B23)+SUMIFS(DIABETES_TIMELINE!SubscriberPayExclusion,DIABETES_TIMELINE!BenefitCategory,$B23) -> 0
B24: =BENEFIT_DESIGN!B26 -> Over-the-counter Medical Supplies | C24: =SUMIFS(DIABETES_TIMELINE!AllowedAmt,DIABETES_TIMELINE!BenefitCategory,$B24) -> 0 | D24: 0 | E24: =SUMIFS(DIABETES_TIMELINE!PlanPaymentAmt,DIABETES_TIMELINE!BenefitCategory,$B24) -> 0 | F24: 0 | G24: =SUMIFS(DIABETES_TIMELINE!SubscriberPayDeduc,DIABETES_TIMELINE!BenefitCategory,$B24) -> 0 | H24: =SUMIFS(DIABETES_TIMELINE!SubscriberPayCopay,DIABETES_TIMELINE!BenefitCategory,$B24) -> 0 | I24: =SUMIFS(DIABETES_TIMELINE!SubscriberPayCoins,DIABETES_TIMELINE!BenefitCategory,$B24) -> 0 | J24: =SUMIFS(DIABETES_TIMELINE!SubscriberPayNonCov,DIABETES_TIMELINE!BenefitCategory,$B24)+SUMIFS(DIABETES_TIMELINE!SubscriberPayExclusion,DIABETES_TIMELINE!BenefitCategory,$B24) -> 0
B25: =BENEFIT_DESIGN!B27 -> Other Items & Services | C25: =SUMIFS(DIABETES_TIMELINE!AllowedAmt,DIABETES_TIMELINE!BenefitCategory,$B25) -> 0 | D25: 0 | E25: =SUMIFS(DIABETES_TIMELINE!PlanPaymentAmt,DIABETES_TIMELINE!BenefitCategory,$B25) -> 0 | F25: 0 | G25: =SUMIFS(DIABETES_TIMELINE!SubscriberPayDeduc,DIABETES_TIMELINE!BenefitCategory,$B25) -> 0 | H25: =SUMIFS(DIABETES_TIMELINE!SubscriberPayCopay,DIABETES_TIMELINE!BenefitCategory,$B25) -> 0 | I25: =SUMIFS(DIABETES_TIMELINE!SubscriberPayCoins,DIABETES_TIMELINE!BenefitCategory,$B25) -> 0 | J25: =SUMIFS(DIABETES_TIMELINE!SubscriberPayNonCov,DIABETES_TIMELINE!BenefitCategory,$B25)+SUMIFS(DIABETES_TIMELINE!SubscriberPayExclusion,DIABETES_TIMELINE!BenefitCategory,$B25) -> 0
B26: Total (unrounded) | C26: =SUM(C6:C25) -> 7389.27 | E26: =IFERROR(IF(BENEFIT_DESIGN_ERRORS!$C$34,"ERROR",SUM(E6:E25)),"ERROR") -> 6334.01 | F26: =IFERROR(IF(BENEFIT_DESIGN_ERRORS!$C$34,"ERROR",SUM(F6:F25)),"ERROR") -> 1055.26 | G26: =IFERROR(IF(BENEFIT_DESIGN_ERRORS!$C$34,"ERROR",SUM(G6:G25)),"ERROR") -> 817.773 | H26: =IFERROR(IF(BENEFIT_DESIGN_ERRORS!$C$34,"ERROR",SUM(H6:H25)),"ERROR") -> 150 | I26: =IFERROR(IF(BENEFIT_DESIGN_ERRORS!$C$34,"ERROR",SUM(I6:I25)),"ERROR") -> 32.227 | J26: =IFERROR(IF(BENEFIT_DESIGN_ERRORS!$C$34,"ERROR",SUM(J6:J25)),"ERROR") -> 55.26
B27: Total (rounded) | D27: =SUM(D6:D25) -> 7460 | E27: =IFERROR(IF(BENEFIT_DESIGN_ERRORS!$C$34,"ERROR",D27-F27),"ERROR") -> 6400 | F27: =IFERROR(IF(BENEFIT_DESIGN_ERRORS!$C$34,"ERROR",SUM(G27:J27)),"ERROR") -> 1060 | G27: =IFERROR(IF(OR(BENEFIT_DESIGN_ERRORS!$D$34,BENEFIT_DESIGN_ERRORS!$E$34,BENEFIT_DESIGN_ERRORS!$H$34),"ERROR",MROUND(G26,10)),"ERROR") -> 820 | H27: =IFERROR(IF(BENEFIT_DESIGN_ERRORS!$I$34,"ERROR",MROUND(H26,10)),"ERROR") -> 150 | I27: =IFERROR(IF(BENEFIT_DESIGN_ERRORS!$J$34,"ERROR",MROUND(I26,10)),"ERROR") -> 30 | J27: =IFERROR(IF(OR(BENEFIT_DESIGN_ERRORS!$K$34,BENEFIT_DESIGN_ERRORS!$L$34,BENEFIT_DESIGN_ERRORS!$M$34),"ERROR",MROUND(J26,10)),"ERROR") -> 60

Sheet DIABETES_TIMELINE
H1: Phase 1 | I1: Phase 2 | K1: Phase 3 | Q1: Phase 4 | T1: Phase 5 | U1: Phase 5: plan deductible | X1: Phase 5: Rx deductible | AA1: Phase 5: optional deductible C | AD1: Phase 5: optional deductible D | AG1: Phase 5: benefit deductible | AL1: Phase 6 | AP1: Phase 7 | AR1: Phase 8
A2: Claim number | B2: Date | C2: Calendar Month | D2: Item or Service Code | E2: Description | F2: Benefit Category | G2: Cost-sharing type | H2: Allowed amount | I2: Not covered | J2: Covered amount | K2: Monthly limit | L2: Prior use (month) | M2: subscriber pays because monthly limit exceeded | N2: Annual limit | O2: Prior use (annual) | P2: subscriber pays because annual limit exceeded | Q2: Co-payment amount | R2: Co-insurance rate | S2: Co-insurance amount | T2: Allowed amount after co-payment or co-insurance | U2: Plan deductible applies | V2: remaining plan deductible | W2: subscriber pays toward plan deductible | X2: Rx deductible applies | Y2: remaining Rx deductible | Z2: subscriber pays toward Rx deductible | AA2: deductible C applies | AB2: remaining deductible C | AC2: subscriber pays toward deductible C | AD2: deductible D applies | AE2: remaining deductible D | AF2: subscriber pays toward deductible D | AG2: benefit deductible applies | AH2: remaining benefit deductible | AI2: subscriber pays toward benefit deductible | AJ2: subscriber pays toward any deductible | AK2: Covered amount remaining after deductibles | AL2: subscriber payment before OPL | AM2: OPL applies | AN2: amount subject to OPL | AO2: remaining OPL after subscriber payment | AP2: subscriber payment after OOP limit | AQ2: plan payment | AR2: Not covered | AS2: Exclusions | AT2: Subscriber-paid copayment | AU2: Subscriber-paid coinsurance | AV2: Subscriber-paid deductible | AW2: Subscriber ChkSum | AX2: Allowable Charge ChkSum
A3: 1 | B3: 2011-01-03 | C3: 1 | D3: 25 | E3: =VLOOKUP(ServiceCode,DiabetesFeeSchedule,6,FALSE) -> Alcohol swabs (OTC - box of 100) [usage = 3 wipes/day; 90 wipes/month] | F3: =VLOOKUP(ServiceCode,DiabetesFeeSchedule,5,FALSE) -> Over-the-counter Drugs | G3: =VLOOKUP(BenefitCategory,BenefitDesignTable,COLUMN(BenefitCostSharing),FALSE) -> Not Covered | H3: =VLOOKUP(ServiceCode,DiabetesFeeSchedule,7,FALSE) -> 2.6075 | I3: =IF(CostSharingType="Not Covered",AllowedAmt,0) -> 2.6075 | J3: =IF((NotCoveredAmt+AmtExceedMonthLimit+AmtExceedAnnualLimit)>0,0,AllowedAmt) -> 0 | K3: =VLOOKUP(BenefitCategory,BenefitDesignTable,COLUMN(BenefitLimithMonth),FALSE) -> None | L3: =COUNTIFS(ServiceCode,ServiceCode,ClaimMonth,ClaimMonth,ClaimNumber,"<"&ClaimNumber) -> 0 | M3: =IF(MonthLimit=0,0,IF(PriorUseMonth>=MonthLimit,AllowedAmt,0)) -> 0 | N3: =VLOOKUP(BenefitCategory,BenefitDesignTable,COLUMN(BenefitLimitAnnual),FALSE) -> None | O3: =COUNTIFS(ServiceCode,ServiceCode,ClaimNumber,"<"&ClaimNumber) -> 0 | P3: =IF(AnnualLimit=0,0,IF(PriorUseAnnual>=AnnualLimit,AllowedAmt,0)) -> 0 | Q3: =IF(AmtExceedMonthLimit=0,IF(AmtExceedAnnualLimit=0,VLOOKUP(BenefitCategory,BenefitDesignTable,COLUMN(BenefitCopay),FALSE),0)) -> 0 | R3: =VLOOKUP(BenefitCategory,BenefitDesignTable,COLUMN(BenefitCoins),FALSE) -> 0 | S3: =IF(AmtExceedMonthLimit=0,IF(AmtExceedAnnualLimit=0,CoInsRate*CoveredAmt,0)) -> 0 | T3: =IF((CoveredAmt-CoPayAmount-CoInsAmount)<0,0,CoveredAmt-CoPayAmount-CoInsAmount) -> 0 | U3: =VLOOKUP(BenefitCategory,BenefitDesignTable,COLUMN(PlanDeductible),FALSE)>0 -> FALSE | V3: =MAX(0,VLOOKUP(BenefitCategory,BenefitDesignTable,COLUMN(PlanDeductible),FALSE)-SUMIFS(AllowedAmtAfterCopayCoins,PlanDeductibleApplies,TRUE,ClaimNumber,"<"&ClaimNumber)) -> 0 | W3: =IF(AllowedAmtAfterCopayCoins<RemainingPlanDeduc,AllowedAmtAfterCopayCoins,RemainingPlanDeduc) -> 0 | X3: =VLOOKUP(BenefitCategory,BenefitDesignTable,COLUMN(RxDeductible),FALSE)>0 -> FALSE | Y3: =MAX(0,VLOOKUP(BenefitCategory,BenefitDesignTable,COLUMN(RxDeductible),FALSE)-SUMIFS(AllowedAmtAfterCopayCoins,RxDeductibleApplies,TRUE,ClaimNumber,"<"&ClaimNumber)) -> 0 | Z3: =IF(AllowedAmtAfterCopayCoins<RemainingRxDeduc,AllowedAmtAfterCopayCoins,RemainingRxDeduc) -> 0 | AA3: =VLOOKUP(BenefitCategory,BenefitDesignTable,COLUMN(OptDeductibleC),FALSE)>0 -> FALSE | AB3: =MAX(0,VLOOKUP(BenefitCategory,BenefitDesignTable,COLUMN(OptDeductibleC),FALSE)-SUMIFS(AllowedAmtAfterCopayCoins,DeductibleCApplies,TRUE,ClaimNumber,"<"&ClaimNumber)) -> 0 | AC3: =IF(AllowedAmtAfterCopayCoins<RemainingDeductibleC,AllowedAmtAfterCopayCoins,RemainingDeductibleC) -> 0 | AD3: =VLOOKUP(BenefitCategory,BenefitDesignTable,COLUMN(OptDeductibleD),FALSE)>0 -> FALSE | AE3: =MAX(0,VLOOKUP(BenefitCategory,BenefitDesignTable,COLUMN(OptDeductibleD),FALSE)-SUMIFS(AllowedAmtAfterCopayCoins,DeductibleDApplies,TRUE,ClaimNumber,"<"&ClaimNumber)) -> 0 | AF3: =IF(AllowedAmtAfterCopayCoins<RemainingDeductibleD,AllowedAmtAfterCopayCoins,RemainingDeductibleD) -> 0 | AG3: =VLOOKUP(BenefitCategory,BenefitDesignTable,COLUMN(BenefitDeductible),FALSE)>0 -> FALSE | AH3: =MAX(0,VLOOKUP(BenefitCategory,BenefitDesignTable,COLUMN(BenefitDeductible),FALSE)-SUMIFS(AllowedAmtAfterCopayCoins,BenefitCategory,BenefitCategory,ClaimNumber,"<"&ClaimNumber)) -> 0 | AI3: =IF(AllowedAmtAfterCopayCoins<RemainingBenefitDeduc,AllowedAmtAfterCopayCoins,RemainingBenefitDeduc) -> 0 | AJ3: =PlanDeductiblePayment+RxDeductiblePayment+DeductibleCPayment+DeductibleDPayment+BenefitDeductiblePayment -> 0 | AK3: =MAX(0,CoveredAmt-PaymentTowardDeductibles) -> 0 | AL3: =PaymentTowardDeductibles+CoPayAmount+CoInsAmount -> 0 | AM3: =VLOOKUP(BenefitCategory,BenefitDesignTable,COLUMN(BenefitOOPLimitApplies),FALSE)="Yes" -> FALSE | AN3: =IF(OPLApplies,SubscriberPaymentBeforeOPL,0) -> 0 | AO3: =MAX(0,VLOOKUP(BenefitCategory,BenefitDesignTable,COLUMN(OPLimit),FALSE)-SUMIFS(AmountSubjectToOPL,OPLApplies,TRUE,ClaimNumber,"<"&ClaimNumber)) -> 0 | AP3: =IF(OPLApplies,IF(AmountSubjectToOPL<RemainingOPL,AmountSubjectToOPL,RemainingOPL),SubscriberPaymentBeforeOPL) -> 0 | AQ3: =IF((CoveredAmt-SubscriberPaymentAfterOPL)<0,0,CoveredAmt-SubscriberPaymentAfterOPL) -> 0 | AR3: =NotCoveredAmt -> 2.6075 | AS3: =AmtExceedMonthLimit+AmtExceedAnnualLimit -> 0 | AT3: =IF(CoPayAmount<SubscriberPaymentAfterOPL,CoPayAmount,SubscriberPaymentAfterOPL) -> 0 | AU3: =IF(CoInsAmount<SubscriberPaymentAfterOPL,CoInsAmount,SubscriberPaymentAfterOPL) -> 0 | AV3: =SubscriberPaymentAfterOPL-SubscriberPayCopay-SubscriberPayCoins -> 0 | AW3: =SUM(AS3:AV3)=AP3 -> TRUE | AX3: =SUM(AQ3:AV3)=H3 -> TRUE
A4: 2 | B4: 2011-01-03 | C4: 1 | D4: 14 | E4: BD Ultrafine Insulin Syringes / 30G/ 0.5cc [usage = 30 syringes per month] | F4: Medical Supplies | G4: Plan Deductible Only | H4: 42.66 | I4: 0 | J4: 42.66 | K4: None | L4: 0 | M4: 0 | N4: None | O4: 0 | P4: 0 | Q4: 0 | R4: 0 | S4: 0 | T4: 42.66 | U4: TRUE | V4: 1000 | W4: 42.66 | X4: FALSE | Y4: 0 | Z4: 0 | AA4: FALSE | AB4: 0 | AC4: 0 | AD4: FALSE | AE4: 0 | AF4: 0 | AG4: FALSE | AH4: 0 | AI4: 0 | AJ4: 42.66 | AK4: 0 | AL4: 42.66 | AM4: TRUE | AN4: 42.66 | AO4: 1000 | AP4: =IF(OPLApplies,IF(AmountSubjectToOPL<RemainingOPL,AmountSubjectToOPL,RemainingOPL),SubscriberPaymentBeforeOPL) -> 42.66 | AQ4: =IF(CoveredAmt<SubscriberPaymentAfterOPL,0,CoveredAmt-SubscriberPaymentAfterOPL) -> 0 | AR4: 0 | AS4: 0 | AT4: 0 | AU4: 0 | AV4: =SubscriberPaymentAfterOPL-SubscriberPayCopay-SubscriberPayCoins -> 42.66 | AW4: TRUE | AX4: TRUE
A5: 3 | B5: 2011-01-03 | C5: 1 | D5: 5 | E5: OneTouch Delica Lancets (100 per box) [usage = 60 lancets per month] | F5: Medical Supplies | G5: Plan Deductible Only | H5: 10.38 | I5: 0 | J5: 10.38 | K5: None | L5: 0 | M5: 0 | N5: None | O5: 0 | P5: 0 | Q5: 0 | R5: 0 | S5: 0 | T5: 10.38 | U5: TRUE | V5: 957.34 | W5: 10.38 | X5: FALSE | Y5: 0 | Z5: 0 | AA5: FALSE | AB5: 0 | AC5: 0 | AD5: FALSE | AE5: 0 | AF5: 0 | AG5: FALSE | AH5: 0 | AI5: 0 | AJ5: 10.38 | AK5: 0 | AL5: 10.38 | AM5: TRUE | AN5: 10.38 | AO5: 957.34 | AP5: =IF(OPLApplies,IF(AmountSubjectToOPL<RemainingOPL,AmountSubjectToOPL,RemainingOPL),SubscriberPaymentBeforeOPL) -> 10.38 | AQ5: 0 | AR5: 0 | AS5: 0 | AT5: 0 | AU5: 0 | AV5: =SubscriberPaymentAfterOPL-SubscriberPayCopay-SubscriberPayCoins -> 10.38 | AW5: TRUE | AX5: TRUE
A6: 4 | B6: 2011-01-03 | C6: 1 | D6: 3 | E6: OneTouch Delica Lancing Device | F6: Medical Supplies | G6: Plan Deductible Only | H6: 16.12 | I6: 0 | J6: 16.12 | K6: None | L6: 0 | M6: 0 | N6: None | O6: 0 | P6: 0 | Q6: 0 | R6: 0 | S6: 0 | T6: 16.12 | U6: TRUE | V6: 946.96 | W6: 16.12 | X6: FALSE | Y6: 0 | Z6: 0 | AA6: FALSE | AB6: 0 | AC6: 0 | AD6: FALSE | AE6: 0 | AF6: 0 | AG6: FALSE | AH6: 0 | AI6: 0 | AJ6: 16.12 | AK6: 0 | AL6: 16.12 | AM6: TRUE | AN6: 16.12 | AO6: 946.96 | AP6: =IF(OPLApplies,IF(AmountSubjectToOPL<RemainingOPL,AmountSubjectToOPL,RemainingOPL),SubscriberPaymentBeforeOPL) -> 16.12 | AQ6: 0 | AR6: 0 | AS6: 0 | AT6: 0 | AU6: 0 | AV6: =SubscriberPaymentAfterOPL-SubscriberPayCopay-SubscriberPayCoins -> 16.12 | AW6: TRUE | AX6: TRUE
A7: 5 | B7: 2011-01-03 | C7: 1 | D7: 7 | E7: OneTouch Ultra 2 Blood Glucose Meter Kit | F7: Medical Supplies | G7: Plan Deductible Only | H7: 56.9 | I7: 0 | J7: 56.9 | K7: None | L7: 0 | M7: 0 | N7: None | O7: 0 | P7: 0 | Q7: 0 | R7: 0 | S7: 0 | T7: 56.9 | U7: TRUE | V7: 930.84 | W7: 56.9 | X7: FALSE | Y7: 0 | Z7: 0 | AA7: FALSE | AB7: 0 | AC7: 0 | AD7: FALSE | AE7: 0 | AF7: 0 | AG7: FALSE | AH7: 0 | AI7: 0 | AJ7: 56.9 | AK7: 0 | AL7: 56.9 | AM7: TRUE | AN7: 56.9 | AO7: 930.84 | AP7: =IF(OPLApplies,IF(AmountSubjectToOPL<RemainingOPL,AmountSubjectToOPL,RemainingOPL),SubscriberPaymentBeforeOPL) -> 56.9 | AQ7: 0 | AR7: 0 | AS7: 0 | AT7: 0 | AU7: 0 | AV7: =SubscriberPaymentAfterOPL-SubscriberPayCopay-SubscriberPayCoins -> 56.9 | AW7: TRUE | AX7: TRUE
A8: 6 | B8: 2011-01-03 | C8: 1 | D8: 4 | E8: OneTouch Ultra Blue Test Strips (Rx - box of 100) [usage = 2 strips/day; 60 per month] | F8: Medical Supplies | G8: Plan Deductible Only | H8: 125.26 | I8: 0 | J8: 125.26 | K8: None | L8: 0 | M8: 0 | N8: None | O8: 0 | P8: 0 | Q8: 0 | R8: 0 | S8: 0 | T8: 125.26 | U8: TRUE | V8: 873.94 | W8: 125.26 | X8: FALSE | Y8: 0 | Z8: 0 | AA8: FALSE | AB8: 0 | AC8: 0 | AD8: FALSE | AE8: 0 | AF8: 0 | AG8: FALSE | AH8: 0 | AI8: 0 | AJ8: 125.26 | AK8: 0 | AL8: 125.26 | AM8: TRUE | AN8: 125.26 | AO8: 873.94 | AP8: =IF(OPLApplies,IF(AmountSubjectToOPL<RemainingOPL,AmountSubjectToOPL,RemainingOPL),SubscriberPaymentBeforeOPL) -> 125.26 | AQ8: 0 | AR8: 0 | AS8: 0 | AT8: 0 | AU8: 0 | AV8: =SubscriberPaymentAfterOPL-SubscriberPayCopay-SubscriberPayCoins -> 125.26 | AW8: TRUE | AX8: TRUE
A9: 7 | B9: 2011-01-03 | C9: 1 | D9: 6 | E9: OneTouch Ultra Control Solution (2 vials/box) | F9: Medical Supplies | G9: Plan Deductible Only | H9: 5.07 | I9: 0 | J9: 5.07 | K9: None | L9: 0 | M9: 0 | N9: None | O9: 0 | P9: 0 | Q9: 0 | R9: 0 | S9: 0 | T9: 5.07 | U9: TRUE | V9: 748.68 | W9: 5.07 | X9: FALSE | Y9: 0 | Z9: 0 | AA9: FALSE | AB9: 0 | AC9: 0 | AD9: FALSE | AE9: 0 | AF9: 0 | AG9: FALSE | AH9: 0 | AI9: 0 | AJ9: 5.07 | AK9: 0 | AL9: 5.07 | AM9: TRUE | AN9: 5.07 | AO9: 748.68 | AP9: =IF(OPLApplies,IF(AmountSubjectToOPL<RemainingOPL,AmountSubjectToOPL,RemainingOPL),SubscriberPaymentBeforeOPL) -> 5.07 | AQ9: 0 | AR9: 0 | AS9: 0 | AT9: 0 | AU9: 0 | AV9: =SubscriberPaymentAfterOPL-SubscriberPayCopay-SubscriberPayCoins -> 5.07 | AW9: TRUE | AX9: TRUE
A10: 8 | B10: 2011-01-03 | C10: 1 | D10: 26 | E10: Aspirin 81mg (OTC - bottle 100) [usage = 1 QD; #30 pills per month] | F10: Over-the-counter Drugs | G10: Not Covered | H10: 4.2725 | I10: 4.2725 | J10: 0 | K10: None | L10: 0 | M10: 0 | N10: None | O10: 0 | P10: 0 | Q10: 0 | R10: 0 | S10: 0 | T10: 0 | U10: FALSE | V10: 0 | W10: 0 | X10: FALSE | Y10: 0 | Z10: 0 | AA10: FALSE | AB10: 0 | AC10: 0 | AD10: FALSE | AE10: 0 | AF10: 0 | AG10: FALSE | AH10: 0 | AI10: 0 | AJ10: 0 | AK10: 0 | AL10: 0 | AM10: FALSE | AN10: 0 | AO10: 0 | AP10: =IF(OPLApplies,IF(AmountSubjectToOPL<RemainingOPL,AmountSubjectToOPL,RemainingOPL),SubscriberPaymentBeforeOPL) -> 0 | AQ10: 0 | AR10: 4.2725 | AS10: 0 | AT10: 0 | AU10: 0 | AV10: =SubscriberPaymentAfterOPL-SubscriberPayCopay-SubscriberPayCoins -> 0 | AW10: TRUE | AX10: TRUE
A11: 9 | B11: 2011-01-03 | C11: 1 | D11: 1 | E11: Glucagon Emergency Kit | F11: Prescription Drugs: Generic | G11: Rx Deductible+Co-ins | H11: 246.17 | I11: 0 | J11: 246.17 | K11: None | L11: 0 | M11: 0 | N11: None | O11: 0 | P11: 0 | Q11: 0 | R11: 0.1 | S11: 24.617 | T11: 221.553 | U11: FALSE | V11: 0 | W11: 0 | X11: TRUE | Y11: 100 | Z11: 100 | AA11: FALSE | AB11: 0 | AC11: 0 | AD11: FALSE | AE11: 0 | AF11: 0 | AG11: FALSE | AH11: 0 | AI11: 0 | AJ11: 100 | AK11: 146.17 | AL11: 124.617 | AM11: TRUE | AN11: 124.617 | AO11: 743.61 | AP11: =IF(OPLApplies,IF(AmountSubjectToOPL<RemainingOPL,AmountSubjectToOPL,RemainingOPL),SubscriberPaymentBeforeOPL) -> 124.617 | AQ11: 121.553 | AR11: 0 | AS11: 0 | AT11: 0 | AU11: 24.617 | AV11: =SubscriberPaymentAfterOPL-SubscriberPayCopay-SubscriberPayCoins -> 100 | AW11: TRUE | AX11: TRUE
A12: 10 | B12: 2011-01-03 | C12: 1 | D12: 17 | E12: Insulin glargine 100 unit/ml injectable solution (Rx - 10ml vial) [20 units QD; expires 28 days after first use] | F12: Prescription Drugs: Branded | G12: Rx Deductible+Co-pay | H12: 275.51 | I12: 0 | J12: 275.51 | K12: None | L12: 0 | M12: 0 | N12: None | O12: 0 | P12: 0 | Q12: 30 | R12: 0 | S12: 0 | T12: 245.51 | U12: FALSE | V12: 0 | W12: 0 | X12: TRUE | Y12: 0 | Z12: 0 | AA12: FALSE | AB12: 0 | AC12: 0 | AD12: FALSE | AE12: 0 | AF12: 0 | AG12: FALSE | AH12: 0 | AI12: 0 | AJ12: 0 | AK12: 275.51 | AL12: 30 | AM12: TRUE | AN12: 30 | AO12: 618.993 | AP12: =IF(OPLApplies,IF(AmountSubjectToOPL<RemainingOPL,AmountSubjectToOPL,RemainingOPL),SubscriberPaymentBeforeOPL) -> 30 | AQ12: 245.51 | AR12: 0 | AS12: 0 | AT12: 30 | AU12: 0 | AV12: =SubscriberPaymentAfterOPL-SubscriberPayCopay-SubscriberPayCoins -> 0 | AW12: TRUE | AX12: TRUE
A13: 11 | B13: 2011-01-03 | C13: 1 | D13: 32 | E13: METFORMIN HCL 850 MG TABLET | F13: Prescription Drugs: Generic | G13: Rx Deductible+Co-ins | H13: 9.19 | I13: 0 | J13: 9.19 | K13: None | L13: 0 | M13: 0 | N13: None | O13: 0 | P13: 0 | Q13: 0 | R13: 0.1 | S13: 0.919 | T13: 8.271 | U13: FALSE | V13: 0 | W13: 0 | X13: TRUE | Y13: 0 | Z13: 0 | AA13: FALSE | AB13: 0 | AC13: 0 | AD13: FALSE | AE13: 0 | AF13: 0 | AG13: FALSE | AH13: 0 | AI13: 0 | AJ13: 0 | AK13: 9.19 | AL13: 0.919 | AM13: TRUE | AN13: 0.919 | AO13: 588.993 | AP13: =IF(OPLApplies,IF(AmountSubjectToOPL<RemainingOPL,AmountSubjectToOPL,RemainingOPL),SubscriberPaymentBeforeOPL) -> 0.919 | AQ13: 8.271 | AR13: 0 | AS13: 0 | AT13: 0 | AU13: 0.919 | AV13: =SubscriberPaymentAfterOPL-SubscriberPayCopay-SubscriberPayCoins -> 0 | AW13: TRUE | AX13: TRUE
A14: 12 | B14: 2011-01-03 | C14: 1 | D14: 19 | E14: Ramipril 10mg (Rx) [1 QD; #30 pills/month] | F14: Prescription Drugs: Generic | G14: Rx Deductible+Co-ins | H14: 15.92 | I14: 0 | J14: 15.92 | K14: None | L14: 0 | M14: 0 | N14: None | O14: 0 | P14: 0 | Q14: 0 | R14: 0.1 | S14: 1.592 | T14: 14.328 | U14: FALSE | V14: 0 | W14: 0 | X14: TRUE | Y14: 0 | Z14: 0 | AA14: FALSE | AB14: 0 | AC14: 0 | AD14: FALSE | AE14: 0 | AF14: 0 | AG14: FALSE | AH14: 0 | AI14: 0 | AJ14: 0 | AK14: 15.92 | AL14: 1.592 | AM14: TRUE | AN14: 1.592 | AO14: 588.074 | AP14: =IF(OPLApplies,IF(AmountSubjectToOPL<RemainingOPL,AmountSubjectToOPL,RemainingOPL),SubscriberPaymentBeforeOPL) -> 1.592 | AQ14: 14.328 | AR14: 0 | AS14: 0 | AT14: 0 | AU14: 1.592 | AV14: =SubscriberPaymentAfterOPL-SubscriberPayCopay-SubscriberPayCoins -> 0 | AW14: TRUE | AX14: TRUE
A15: 13 | B15: 2011-01-03 | C15: 1 | D15: 33 | E15: Atorvastatin 20 MG tablet 90 CT | F15: Prescription Drugs: Generic | G15: Rx Deductible+Co-ins | H15: 25.88 | I15: 0 | J15: 25.88 | K15: None | L15: 0 | M15: 0 | N15: None | O15: 0 | P15: 0 | Q15: 0 | R15: 0.1 | S15: 2.588 | T15: 23.292 | U15: FALSE | V15: 0 | W15: 0 | X15: TRUE | Y15: 0 | Z15: 0 | AA15: FALSE | AB15: 0 | AC15: 0 | AD15: FALSE | AE15: 0 | AF15: 0 | AG15: FALSE | AH15: 0 | AI15: 0 | AJ15: 0 | AK15: 25.88 | AL15: 2.588 | AM15: TRUE | AN15: 2.588 | AO15: 586.482 | AP15: =IF(OPLApplies,IF(AmountSubjectToOPL<RemainingOPL,AmountSubjectToOPL,RemainingOPL),SubscriberPaymentBeforeOPL) -> 2.588 | AQ15: 23.292 | AR15: 0 | AS15: 0 | AT15: 0 | AU15: 2.588 | AV15: =SubscriberPaymentAfterOPL-SubscriberPayCopay-SubscriberPayCoins -> 0 | AW15: TRUE | AX15: TRUE
A16: 14 | B16: 2011-01-03 | C16: 1 | D16: 15 | E16: Assay Glucose Blood Quant | F16: Diagnostic Services: Laboratory | G16: Plan Deductible Only | H16: 5.73 | I16: 0 | J16: 5.73 | K16: None | L16: 0 | M16: 0 | N16: None | O16: 0 | P16: 0 | Q16: 0 | R16: 0 | S16: 0 | T16: 5.73 | U16: TRUE | V16: 743.61 | W16: 5.73 | X16: FALSE | Y16: 0 | Z16: 0 | AA16: FALSE | AB16: 0 | AC16: 0 | AD16: FALSE | AE16: 0 | AF16: 0 | AG16: FALSE | AH16: 0 | AI16: 0 | AJ16: 5.73 | AK16: 0 | AL16: 5.73 | AM16: TRUE | AN16: 5.73 | AO16: 583.894 | AP16: =IF(OPLApplies,IF(AmountSubjectToOPL<RemainingOPL,AmountSubjectToOPL,RemainingOPL),SubscriberPaymentBeforeOPL) -> 5.73 | AQ16: 0 | AR16: 0 | AS16: 0 | AT16: 0 | AU16: 0 | AV16: =SubscriberPaymentAfterOPL-SubscriberPayCopay-SubscriberPayCoins -> 5.73 | AW16: TRUE | AX16: TRUE
A17: 15 | B17: 2011-01-03 | C17: 1 | D17: 13 | E17: Assay of Urine Creatinine | F17: Diagnostic Services: Laboratory | G17: Plan Deductible Only | H17: 5.79 | I17: 0 | J17: 5.79 | K17: None | L17: 0 | M17: 0 | N17: None | O17: 0 | P17: 0 | Q17: 0 | R17: 0 | S17: 0 | T17: 5.79 | U17: TRUE | V17: 737.88 | W17: 5.79 | X17: FALSE | Y17: 0 | Z17: 0 | AA17: FALSE | AB17: 0 | AC17: 0 | AD17: FALSE | AE17: 0 | AF17: 0 | AG17: FALSE | AH17: 0 | AI17: 0 | AJ17: 5.79 | AK17: 0 | AL17: 5.79 | AM17: TRUE | AN17: 5.79 | AO17: 578.164 | AP17: =IF(OPLApplies,IF(AmountSubjectToOPL<RemainingOPL,AmountSubjectToOPL,RemainingOPL),SubscriberPaymentBeforeOPL) -> 5.79 | AQ17: 0 | AR17: 0 | AS17: 0 | AT17: 0 | AU17: 0 | AV17: =SubscriberPaymentAfterOPL-SubscriberPayCopay-SubscriberPayCoins -> 5.79 | AW17: TRUE | AX17: TRUE
A18: 16 | B18: 2011-01-03 | C18: 1 | D18: 8 | E18: Comprehen Metabolic Panel | F18: Diagnostic Services: Laboratory | G18: Plan Deductible Only | H18: 14.53 | I18: 0 | J18: 14.53 | K18: None | L18: 0 | M18: 0 | N18: None | O18: 0 | P18: 0 | Q18: 0 | R18: 0 | S18: 0 | T18: 14.53 | U18: TRUE | V18: 732.09 | W18: 14.53 | X18: FALSE | Y18: 0 | Z18: 0 | AA18: FALSE | AB18: 0 | AC18: 0 | AD18: FALSE | AE18: 0 | AF18: 0 | AG18: FALSE | AH18: 0 | AI18: 0 | AJ18: 14.53 | AK18: 0 | AL18: 14.53 | AM18: TRUE | AN18: 14.53 | AO18: 572.374 | AP18: =IF(OPLApplies,IF(AmountSubjectToOPL<RemainingOPL,AmountSubjectToOPL,RemainingOPL),SubscriberPaymentBeforeOPL) -> 14.53 | AQ18: 0 | AR18: 0 | AS18: 0 | AT18: 0 | AU18: 0 | AV18: =SubscriberPaymentAfterOPL-SubscriberPayCopay-SubscriberPayCoins -> 14.53 | AW18: TRUE | AX18: TRUE
A19: 17 | B19: 2011-01-03 | C19: 1 | D19: 16 | E19: Glycosylated Hemoglobin Test | F19: Diagnostic Services: Laboratory | G19: Plan Deductible Only | H19: 10.85 | I19: 0 | J19: 10.85 | K19: None | L19: 0 | M19: 0 | N19: None | O19: 0 | P19: 0 | Q19: 0 | R19: 0 | S19: 0 | T19: 10.85 | U19: TRUE | V19: 717.56 | W19: 10.85 | X19: FALSE | Y19: 0 | Z19: 0 | AA19: FALSE | AB19: 0 | AC19: 0 | AD19: FALSE | AE19: 0 | AF19: 0 | AG19: FALSE | AH19: 0 | AI19: 0 | AJ19: 10.85 | AK19: 0 | AL19: 10.85 | AM19: TRUE | AN19: 10.85 | AO19: 557.844 | AP19: =IF(OPLApplies,IF(AmountSubjectToOPL<RemainingOPL,AmountSubjectToOPL,RemainingOPL),SubscriberPaymentBeforeOPL) -> 10.85 | AQ19: 0 | AR19: 0 | AS19: 0 | AT19: 0 | AU19: 0 | AV19: =SubscriberPaymentAfterOPL-SubscriberPayCopay-SubscriberPayCoins -> 10.85 | AW19: TRUE | AX19: TRUE
A20: 18 | B20: 2011-01-03 | C20: 1 | D20: 9 | E20: Lipid panel | F20: Diagnostic Services: Laboratory | G20: Plan Deductible Only | H20: 14.42 | I20: 0 | J20: 14.42 | K20: None | L20: 0 | M20: 0 | N20: None | O20: 0 | P20: 0 | Q20: 0 | R20: 0 | S20: 0 | T20: 14.42 | U20: TRUE | V20: 706.71 | W20: 14.42 | X20: FALSE | Y20: 0 | Z20: 0 | AA20: FALSE | AB20: 0 | AC20: 0 | AD20: FALSE | AE20: 0 | AF20: 0 | AG20: FALSE | AH20: 0 | AI20: 0 | AJ20: 14.42 | AK20: 0 | AL20: 14.42 | AM20: TRUE | AN20: 14.42 | AO20: 546.994 | AP20: =IF(OPLApplies,IF(AmountSubjectToOPL<RemainingOPL,AmountSubjectToOPL,RemainingOPL),SubscriberPaymentBeforeOPL) -> 14.42 | AQ20: 0 | AR20: 0 | AS20: 0 | AT20: 0 | AU20: 0 | AV20: =SubscriberPaymentAfterOPL-SubscriberPayCopay-SubscriberPayCoins -> 14.42 | AW20: TRUE | AX20: TRUE
A21: 19 | B21: 2011-01-03 | C21: 1 | D21: 12 | E21: Microalbumin Quantitative | F21: Diagnostic Services: Laboratory | G21: Plan Deductible Only | H21: 6.32 | I21: 0 | J21: 6.32 | K21: None | L21: 0 | M21: 0 | N21: None | O21: 0 | P21: 0 | Q21: 0 | R21: 0 | S21: 0 | T21: 6.32 | U21: TRUE | V21: 692.29 | W21: 6.32 | X21: FALSE | Y21: 0 | Z21: 0 | AA21: FALSE | AB21: 0 | AC21: 0 | AD21: FALSE | AE21: 0 | AF21: 0 | AG21: FALSE | AH21: 0 | AI21: 0 | AJ21: 6.32 | AK21: 0 | AL21: 6.32 | AM21: TRUE | AN21: 6.32 | AO21: 532.574 | AP21: =IF(OPLApplies,IF(AmountSubjectToOPL<RemainingOPL,AmountSubjectToOPL,RemainingOPL),SubscriberPaymentBeforeOPL) -> 6.32 | AQ21: 0 | AR21: 0 | AS21: 0 | AT21: 0 | AU21: 0 | AV21: =SubscriberPaymentAfterOPL-SubscriberPayCopay-SubscriberPayCoins -> 6.32 | AW21: TRUE | AX21: TRUE
A22: 20 | B22: 2011-01-03 | C22: 1 | D22: 10 | E22: Renal Function Panel | F22: Diagnostic Services: Laboratory | G22: Plan Deductible Only | H22: 11.63 | I22: 0 | J22: 11.63 | K22: None | L22: 0 | M22: 0 | N22: None | O22: 0 | P22: 0 | Q22: 0 | R22: 0 | S22: 0 | T22: 11.63 | U22: TRUE | V22: 685.97 | W22: 11.63 | X22: FALSE | Y22: 0 | Z22: 0 | AA22: FALSE | AB22: 0 | AC22: 0 | AD22: FALSE | AE22: 0 | AF22: 0 | AG22: FALSE | AH22: 0 | AI22: 0 | AJ22: 11.63 | AK22: 0 | AL22: 11.63 | AM22: TRUE | AN22: 11.63 | AO22: 526.254 | AP22: =IF(OPLApplies,IF(AmountSubjectToOPL<RemainingOPL,AmountSubjectToOPL,RemainingOPL),SubscriberPaymentBeforeOPL) -> 11.63 | AQ22: 0 | AR22: 0 | AS22: 0 | AT22: 0 | AU22: 0 | AV22: =SubscriberPaymentAfterOPL-SubscriberPayCopay-SubscriberPayCoins -> 11.63 | AW22: TRUE | AX22: TRUE
A23: 21 | B23: 2011-01-03 | C23: 1 | D23: 2 | E23: Routine Venipuncture | F23: Diagnostic Services: Laboratory | G23: Plan Deductible Only | H23: 4.17 | I23: 0 | J23: 4.17 | K23: None | L23: 0 | M23: 0 | N23: None | O23: 0 | P23: 0 | Q23: 0 | R23: 0 | S23: 0 | T23: 4.17 | U23: TRUE | V23: 674.34 | W23: 4.17 | X23: FALSE | Y23: 0 | Z23: 0 | AA23: FALSE | AB23: 0 | AC23: 0 | AD23: FALSE | AE23: 0 | AF23: 0 | AG23: FALSE | AH23: 0 | AI23: 0 | AJ23: 4.17 | AK23: 0 | AL23: 4.17 | AM23: TRUE | AN23: 4.17 | AO23: 514.624 | AP23: =IF(OPLApplies,IF(AmountSubjectToOPL<RemainingOPL,AmountSubjectToOPL,RemainingOPL),SubscriberPaymentBeforeOPL) -> 4.17 | AQ23: 0 | AR23: 0 | AS23: 0 | AT23: 0 | AU23: 0 | AV23: =SubscriberPaymentAfterOPL-SubscriberPayCopay-SubscriberPayCoins -> 4.17 | AW23: TRUE | AX23: TRUE
A24: 22 | B24: 2011-01-03 | C24: 1 | D24: 11 | E24: Urinalysis Auto W/O Scope | F24: Diagnostic Services: Laboratory | G24: Plan Deductible Only | H24: 3.09 | I24: 0 | J24: 3.09 | K24: None | L24: 0 | M24: 0 | N24: None | O24: 0 | P24: 0 | Q24: 0 | R24: 0 | S24: 0 | T24: 3.09 | U24: TRUE | V24: 670.17 | W24: 3.09 | X24: FALSE | Y24: 0 | Z24: 0 | AA24: FALSE | AB24: 0 | AC24: 0 | AD24: FALSE | AE24: 0 | AF24: 0 | AG24: FALSE | AH24: 0 | AI24: 0 | AJ24: 3.09 | AK24: 0 | AL24: 3.09 | AM24: TRUE | AN24: 3.09 | AO24: 510.454 | AP24: =IF(OPLApplies,IF(AmountSubjectToOPL<RemainingOPL,AmountSubjectToOPL,RemainingOPL),SubscriberPaymentBeforeOPL) -> 3.09 | AQ24: 0 | AR24: 0 | AS24: 0 | AT24: 0 | AU24: 0 | AV24: =SubscriberPaymentAfterOPL-SubscriberPayCopay-SubscriberPayCoins -> 3.09 | AW24: TRUE | AX24: TRUE
A25: 23 | B25: 2011-01-03 | C25: 1 | D25: 24 | E25: Office/Outpatient Visit Est | F25: Professional Services: Primary Care | G25: Copayment Only | H25: 107.87 | I25: 0 | J25: 107.87 | K25: None | L25: 0 | M25: 0 | N25: None | O25: 0 | P25: 0 | Q25: 30 | R25: 0 | S25: 0 | T25: 77.87 | U25: FALSE | V25: 0 | W25: 0 | X25: FALSE | Y25: 0 | Z25: 0 | AA25: FALSE | AB25: 0 | AC25: 0 | AD25: FALSE | AE25: 0 | AF25: 0 | AG25: FALSE | AH25: 0 | AI25: 0 | AJ25: 0 | AK25: 107.87 | AL25: 30 | AM25: TRUE | AN25: 30 | AO25: 507.364 | AP25: =IF(OPLApplies,IF(AmountSubjectToOPL<RemainingOPL,AmountSubjectToOPL,RemainingOPL),SubscriberPaymentBeforeOPL) -> 30 | AQ25: 77.87 | AR25: 0 | AS25: 0 | AT25: 30 | AU25: 0 | AV25: =SubscriberPaymentAfterOPL-SubscriberPayCopay-SubscriberPayCoins -> 0 | AW25: TRUE | AX25: TRUE
A26: 24 | B26: 2011-01-04 | C26: 1 | D26: 21 | E26: Self-mgmt educ & train 1 pt | F26: Professional Services: Primary Care | G26: Copayment Only | H26: 99.9 | I26: 0 | J26: 99.9 | K26: None | L26: 0 | M26: 0 | N26: None | O26: 0 | P26: 0 | Q26: 30 | R26: 0 | S26: 0 | T26: 69.9 | U26: FALSE | V26: 0 | W26: 0 | X26: FALSE | Y26: 0 | Z26: 0 | AA26: FALSE | AB26: 0 | AC26: 0 | AD26: FALSE | AE26: 0 | AF26: 0 | AG26: FALSE | AH26: 0 | AI26: 0 | AJ26: 0 | AK26: 99.9 | AL26: 30 | AM26: TRUE | AN26: 30 | AO26: 477.364 | AP26: =IF(OPLApplies,IF(AmountSubjectToOPL<RemainingOPL,AmountSubjectToOPL,RemainingOPL),SubscriberPaymentBeforeOPL) -> 30 | AQ26: 69.9 | AR26: 0 | AS26: 0 | AT26: 30 | AU26: 0 | AV26: =SubscriberPaymentAfterOPL-SubscriberPayCopay-SubscriberPayCoins -> 0 | AW26: TRUE | AX26: TRUE
A27: 25 | B27: 2011-01-04 | C27: 1 | D27: 20 | E27: Med Nutrition Indiv Subseq | F27: Professional Services: Primary Care | G27: Copayment Only | H27: 80 | I27: 0 | J27: 80 | K27: None | L27: 0 | M27: 0 | N27: None | O27: 0 | P27: 0 | Q27: 30 | R27: 0 | S27: 0 | T27: 50 | U27: FALSE | V27: 0 | W27: 0 | X27: FALSE | Y27: 0 | Z27: 0 | AA27: FALSE | AB27: 0 | AC27: 0 | AD27: FALSE | AE27: 0 | AF27: 0 | AG27: FALSE | AH27: 0 | AI27: 0 | AJ27: 0 | AK27: 80 | AL27: 30 | AM27: TRUE | AN27: 30 | AO27: 447.364 | AP27: =IF(OPLApplies,IF(AmountSubjectToOPL<RemainingOPL,AmountSubjectToOPL,RemainingOPL),SubscriberPaymentBeforeOPL) -> 30 | AQ27: 50 | AR27: 0 | AS27: 0 | AT27: 30 | AU27: 0 | AV27: =SubscriberPaymentAfterOPL-SubscriberPayCopay-SubscriberPayCoins -> 0 | AW27: TRUE | AX27: TRUE
A28: 26 | B28: 2011-01-06 | C28: 1 | D28: 23 | E28: Office/Outpatient Visit New | F28: Professional Services: Specialist | G28: Plan Deductible Only | H28: 165 | I28: 0 | J28: 165 | K28: None | L28: 0 | M28: 0 | N28: None | O28: 0 | P28: 0 | Q28: 0 | R28: 0 | S28: 0 | T28: 165 | U28: TRUE | V28: 667.08 | W28: 165 | X28: FALSE | Y28: 0 | Z28: 0 | AA28: FALSE | AB28: 0 | AC28: 0 | AD28: FALSE | AE28: 0 | AF28: 0 | AG28: FALSE | AH28: 0 | AI28: 0 | AJ28: 165 | AK28: 0 | AL28: 165 | AM28: TRUE | AN28: 165 | AO28: 417.364 | AP28: =IF(OPLApplies,IF(AmountSubjectToOPL<RemainingOPL,AmountSubjectToOPL,RemainingOPL),SubscriberPaymentBeforeOPL) -> 165 | AQ28: 0 | AR28: 0 | AS28: 0 | AT28: 0 | AU28: 0 | AV28: =SubscriberPaymentAfterOPL-SubscriberPayCopay-SubscriberPayCoins -> 165 | AW28: TRUE | AX28: TRUE
A29: 27 | B29: 2011-01-07 | C29: 1 | D29: 22 | E29: Ophthalmological services: medical examination & evaluation, with initiation or continuation of diagnostic and treatment program, comprehensive, established patient, 1 or more visits | F29: Professional Services: Specialist | G29: Plan Deductible Only | H29: 108.24 | I29: 0 | J29: 108.24 | K29: None | L29: 0 | M29: 0 | N29: None | O29: 0 | P29: 0 | Q29: 0 | R29: 0 | S29: 0 | T29: 108.24 | U29: TRUE | V29: 502.08 | W29: 108.24 | X29: FALSE | Y29: 0 | Z29: 0 | AA29: FALSE | AB29: 0 | AC29: 0 | AD29: FALSE | AE29: 0 | AF29: 0 | AG29: FALSE | AH29: 0 | AI29: 0 | AJ29: 108.24 | AK29: 0 | AL29: 108.24 | AM29: TRUE | AN29: 108.24 | AO29: 252.364 | AP29: =IF(OPLApplies,IF(AmountSubjectToOPL<RemainingOPL,AmountSubjectToOPL,RemainingOPL),SubscriberPaymentBeforeOPL) -> 108.24 | AQ29: 0 | AR29: 0 | AS29: 0 | AT29: 0 | AU29: 0 | AV29: =SubscriberPaymentAfterOPL-SubscriberPayCopay-SubscriberPayCoins -> 108.24 | AW29: TRUE | AX29: TRUE
A30: 28 | B30: 2011-01-31 | C30: 1 | D30: 17 | E30: Insulin glargine 100 unit/ml injectable solution (Rx - 10ml vial) [20 units QD; expires 28 days after first use] | F30: Prescription Drugs: Branded | G30: Rx Deductible+Co-pay | H30: 275.51 | I30: 0 | J30: 275.51 | K30: None | L30: 1 | M30: 0 | N30: None | O30: 1 | P30: 0 | Q30: 30 | R30: 0 | S30: 0 | T30: 245.51 | U30: FALSE | V30: 0 | W30: 0 | X30: TRUE | Y30: 0 | Z30: 0 | AA30: FALSE | AB30: 0 | AC30: 0 | AD30: FALSE | AE30: 0 | AF30: 0 | AG30: FALSE | AH30: 0 | AI30: 0 | AJ30: 0 | AK30: 275.51 | AL30: 30 | AM30: TRUE | AN30: 30 | AO30: 144.124 | AP30: =IF(OPLApplies,IF(AmountSubjectToOPL<RemainingOPL,AmountSubjectToOPL,RemainingOPL),SubscriberPaymentBeforeOPL) -> 30 | AQ30: 245.51 | AR30: 0 | AS30: 0 | AT30: 30 | AU30: 0 | AV30: =SubscriberPaymentAfterOPL-SubscriberPayCopay-SubscriberPayCoins -> 0 | AW30: TRUE | AX30: TRUE
A31: 29 | B31: 2011-02-02 | C31: 2 | D31: 25 | E31: Alcohol swabs (OTC - box of 100) [usage = 3 wipes/day; 90 wipes/month] | F31: Over-the-counter Drugs | G31: Not Covered | H31: 2.6075 | I31: 2.6075 | J31: 0 | K31: None | L31: 0 | M31: 0 | N31: None | O31: 1 | P31: 0 | Q31: 0 | R31: 0 | S31: 0 | T31: 0 | U31: FALSE | V31: 0 | W31: 0 | X31: FALSE | Y31: 0 | Z31: 0 | AA31: FALSE | AB31: 0 | AC31: 0 | AD31: FALSE | AE31: 0 | AF31: 0 | AG31: FALSE | AH31: 0 | AI31: 0 | AJ31: 0 | AK31: 0 | AL31: 0 | AM31: FALSE | AN31: 0 | AO31: 0 | AP31: =IF(OPLApplies,IF(AmountSubjectToOPL<RemainingOPL,AmountSubjectToOPL,RemainingOPL),SubscriberPaymentBeforeOPL) -> 0 | AQ31: 0 | AR31: 2.6075 | AS31: 0 | AT31: 0 | AU31: 0 | AV31: =SubscriberPaymentAfterOPL-SubscriberPayCopay-SubscriberPayCoins -> 0 | AW31: TRUE | AX31: TRUE
A32: 30 | B32: 2011-02-02 | C32: 2 | D32: 14 | E32: BD Ultrafine Insulin Syringes / 30G/ 0.5cc [usage = 30 syringes per month] | F32: Medical Supplies | G32: Plan Deductible Only | H32: 42.66 | I32: 0 | J32: 42.66 | K32: None | L32: 0 | M32: 0 | N32: None | O32: 1 | P32: 0 | Q32: 0 | R32: 0 | S32: 0 | T32: 42.66 | U32: TRUE | V32: 393.84 | W32: 42.66 | X32: FALSE | Y32: 0 | Z32: 0 | AA32: FALSE | AB32: 0 | AC32: 0 | AD32: FALSE | AE32: 0 | AF32: 0 | AG32: FALSE | AH32: 0 | AI32: 0 | AJ32: 42.66 | AK32: 0 | AL32: 42.66 | AM32: TRUE | AN32: 42.66 | AO32: 114.124 | AP32: =IF(OPLApplies,IF(AmountSubjectToOPL<RemainingOPL,AmountSubjectToOPL,RemainingOPL),SubscriberPaymentBeforeOPL) -> 42.66 | AQ32: 0 | AR32: 0 | AS32: 0 | AT32: 0 | AU32: 0 | AV32: =SubscriberPaymentAfterOPL-SubscriberPayCopay-SubscriberPayCoins -> 42.66 | AW32: TRUE | AX32: TRUE
A33: 31 | B33: 2011-02-02 | C33: 2 | D33: 32 | E33: METFORMIN HCL 850 MG TABLET | F33: Prescription Drugs: Generic | G33: Rx Deductible+Co-ins | H33: 9.19 | I33: 0 | J33: 9.19 | K33: None | L33: 0 | M33: 0 | N33: None | O33: 1 | P33: 0 | Q33: 0 | R33: 0.1 | S33: 0.919 | T33: 8.271 | U33: FALSE | V33: 0 | W33: 0 | X33: TRUE | Y33: 0 | Z33: 0 | AA33: FALSE | AB33: 0 | AC33: 0 | AD33: FALSE | AE33: 0 | AF33: 0 | AG33: FALSE | AH33: 0 | AI33: 0 | AJ33: 0 | AK33: 9.19 | AL33: 0.919 | AM33: TRUE | AN33: 0.919 | AO33: 71.464 | AP33: =IF(OPLApplies,IF(AmountSubjectToOPL<RemainingOPL,AmountSubjectToOPL,RemainingOPL),SubscriberPaymentBeforeOPL) -> 0.919 | AQ33: 8.271 | AR33: 0 | AS33: 0 | AT33: 0 | AU33: 0.919 | AV33: =SubscriberPaymentAfterOPL-SubscriberPayCopay-SubscriberPayCoins -> 0 | AW33: TRUE | AX33: TRUE
A34: 32 | B34: 2011-02-02 | C34: 2 | D34: 19 | E34: Ramipril 10mg (Rx) [1 QD; #30 pills/month] | F34: Prescription Drugs: Generic | G34: Rx Deductible+Co-ins | H34: 15.92 | I34: 0 | J34: 15.92 | K34: None | L34: 0 | M34: 0 | N34: None | O34: 1 | P34: 0 | Q34: 0 | R34: 0.1 | S34: 1.592 | T34: 14.328 | U34: FALSE | V34: 0 | W34: 0 | X34: TRUE | Y34: 0 | Z34: 0 | AA34: FALSE | AB34: 0 | AC34: 0 | AD34: FALSE | AE34: 0 | AF34: 0 | AG34: FALSE | AH34: 0 | AI34: 0 | AJ34: 0 | AK34: 15.92 | AL34: 1.592 | AM34: TRUE | AN34: 1.592 | AO34: 70.545 | AP34: =IF(OPLApplies,IF(AmountSubjectToOPL<RemainingOPL,AmountSubjectToOPL,RemainingOPL),SubscriberPaymentBeforeOPL) -> 1.592 | AQ34: 14.328 | AR34: 0 | AS34: 0 | AT34: 0 | AU34: 1.592 | AV34: =SubscriberPaymentAfterOPL-SubscriberPayCopay-SubscriberPayCoins -> 0 | AW34: TRUE | AX34: TRUE
A35: 33 | B35: 2011-02-22 | C35: 2 | D35: 5 | E35: =VLOOKUP(ServiceCode,DiabetesFeeSchedule,6,FALSE) -> OneTouch Delica Lancets (100 per box) [usage = 60 lancets per month] | F35: =VLOOKUP(ServiceCode,DiabetesFeeSchedule,5,FALSE) -> Medical Supplies | G35: =VLOOKUP(BenefitCategory,BenefitDesignTable,COLUMN(BenefitCostSharing),FALSE) -> Plan Deductible Only | H35: =VLOOKUP(ServiceCode,DiabetesFeeSchedule,7,FALSE) -> 10.38 | I35: =IF(CostSharingType="Not Covered",AllowedAmt,0) -> 0 | J35: =IF((NotCoveredAmt+AmtExceedMonthLimit+AmtExceedAnnualLimit)>0,0,AllowedAmt) -> 10.38 | K35: =VLOOKUP(BenefitCategory,BenefitDesignTable,COLUMN(BenefitLimithMonth),FALSE) -> None | L35: =COUNTIFS(ServiceCode,ServiceCode,ClaimMonth,ClaimMonth,ClaimNumber,"<"&ClaimNumber) -> 0 | M35: =IF(MonthLimit=0,0,IF(PriorUseMonth>=MonthLimit,AllowedAmt,0)) -> 0 | N35: =VLOOKUP(BenefitCategory,BenefitDesignTable,COLUMN(BenefitLimitAnnual),FALSE) -> None | O35: =COUNTIFS(ServiceCode,ServiceCode,ClaimNumber,"<"&ClaimNumber) -> 1 | P35: =IF(AnnualLimit=0,0,IF(PriorUseAnnual>=AnnualLimit,AllowedAmt,0)) -> 0 | Q35: 0 | R35: 0 | S35: 0 | T35: =IF((CoveredAmt-CoPayAmount-CoInsAmount)<0,0,CoveredAmt-CoPayAmount-CoInsAmount) -> 10.38 | U35: TRUE | V35: =MAX(0,VLOOKUP(BenefitCategory,BenefitDesignTable,COLUMN(PlanDeductible),FALSE)-SUMIFS(AllowedAmtAfterCopayCoins,PlanDeductibleApplies,TRUE,ClaimNumber,"<"&ClaimNumber)) -> 351.18 | W35: =IF(AllowedAmtAfterCopayCoins<RemainingPlanDeduc,AllowedAmtAfterCopayCoins,RemainingPlanDeduc) -> 10.38 | X35: FALSE | Y35: =MAX(0,VLOOKUP(BenefitCategory,BenefitDesignTable,COLUMN(RxDeductible),FALSE)-SUMIFS(AllowedAmtAfterCopayCoins,RxDeductibleApplies,TRUE,ClaimNumber,"<"&ClaimNumber)) -> 0 | Z35: =IF(AllowedAmtAfterCopayCoins<RemainingRxDeduc,AllowedAmtAfterCopayCoins,RemainingRxDeduc) -> 0 | AA35: FALSE | AB35: =MAX(0,VLOOKUP(BenefitCategory,BenefitDesignTable,COLUMN(OptDeductibleC),FALSE)-SUMIFS(AllowedAmtAfterCopayCoins,DeductibleCApplies,TRUE,ClaimNumber,"<"&ClaimNumber)) -> 0 | AC35: =IF(AllowedAmtAfterCopayCoins<RemainingDeductibleC,AllowedAmtAfterCopayCoins,RemainingDeductibleC) -> 0 | AD35: =VLOOKUP(BenefitCategory,BenefitDesignTable,COLUMN(OptDeductibleD),FALSE)>0 -> FALSE | AE35: =MAX(0,VLOOKUP(BenefitCategory,BenefitDesignTable,COLUMN(OptDeductibleD),FALSE)-SUMIFS(AllowedAmtAfterCopayCoins,DeductibleDApplies,TRUE,ClaimNumber,"<"&ClaimNumber)) -> 0 | AF35: =IF(AllowedAmtAfterCopayCoins<RemainingDeductibleD,AllowedAmtAfterCopayCoins,RemainingDeductibleD) -> 0 | AG35: FALSE | AH35: =MAX(0,VLOOKUP(BenefitCategory,BenefitDesignTable,COLUMN(BenefitDeductible),FALSE)-SUMIFS(AllowedAmtAfterCopayCoins,BenefitCategory,BenefitCategory,ClaimNumber,"<"&ClaimNumber)) -> 0 | AI35: =IF(AllowedAmtAfterCopayCoins<RemainingBenefitDeduc,AllowedAmtAfterCopayCoins,RemainingBenefitDeduc) -> 0 | AJ35: =PlanDeductiblePayment+RxDeductiblePayment+DeductibleCPayment+DeductibleDPayment+BenefitDeductiblePayment -> 10.38 | AK35: 0 | AL35: 10.38 | AM35: TRUE | AN35: 10.38 | AO35: 68.953 | AP35: =IF(OPLApplies,IF(AmountSubjectToOPL<RemainingOPL,AmountSubjectToOPL,RemainingOPL),SubscriberPaymentBeforeOPL) -> 10.38 | AQ35: 0 | AR35: =NotCoveredAmt -> 0 | AS35: =AmtExceedMonthLimit+AmtExceedAnnualLimit -> 0 | AT35: =IF(CoPayAmount<SubscriberPaymentAfterOPL,CoPayAmount,SubscriberPaymentAfterOPL) -> 0 | AU35: =IF(CoInsAmount<SubscriberPaymentAfterOPL,CoInsAmount,SubscriberPaymentAfterOPL) -> 0 | AV35: =SubscriberPaymentAfterOPL-SubscriberPayCopay-SubscriberPayCoins -> 10.38 | AW35: =SUM(AS35:AV35)=AP35 -> TRUE | AX35: =SUM(AQ35:AV35)=H35 -> TRUE
A36: 34 | B36: 2011-02-22 | C36: 2 | D36: 4 | E36: OneTouch Ultra Blue Test Strips (Rx - box of 100) [usage = 2 strips/day; 60 per month] | F36: Medical Supplies | G36: Plan Deductible Only | H36: 125.26 | I36: 0 | J36: 125.26 | K36: None | L36: 0 | M36: 0 | N36: None | O36: 1 | P36: 0 | Q36: 0 | R36: 0 | S36: 0 | T36: 125.26 | U36: TRUE | V36: 340.8 | W36: 125.26 | X36: FALSE | Y36: 0 | Z36: 0 | AA36: FALSE | AB36: 0 | AC36: 0 | AD36: FALSE | AE36: 0 | AF36: 0 | AG36: FALSE | AH36: 0 | AI36: 0 | AJ36: 125.26 | AK36: 0 | AL36: 125.26 | AM36: TRUE | AN36: 125.26 | AO36: 58.573 | AP36: =IF(OPLApplies,IF(AmountSubjectToOPL<RemainingOPL,AmountSubjectToOPL,RemainingOPL),SubscriberPaymentBeforeOPL) -> 58.573 | AQ36: =IF(CoveredAmt<SubscriberPaymentAfterOPL,0,CoveredAmt-SubscriberPaymentAfterOPL) -> 66.687 | AR36: 0 | AS36: 0 | AT36: 0 | AU36: 0 | AV36: =SubscriberPaymentAfterOPL-SubscriberPayCopay-SubscriberPayCoins -> 58.573 | AW36: TRUE | AX36: TRUE
A37: 35 | B37: 2011-02-28 | C37: 2 | D37: 17 | E37: Insulin glargine 100 unit/ml injectable solution (Rx - 10ml vial) [20 units QD; expires 28 days after first use] | F37: Prescription Drugs: Branded | G37: Rx Deductible+Co-pay | H37: 275.51 | I37: 0 | J37: 275.51 | K37: None | L37: 0 | M37: 0 | N37: None | O37: 2 | P37: 0 | Q37: 30 | R37: 0 | S37: 0 | T37: 245.51 | U37: FALSE | V37: 0 | W37: 0 | X37: TRUE | Y37: 0 | Z37: 0 | AA37: FALSE | AB37: 0 | AC37: 0 | AD37: FALSE | AE37: 0 | AF37: 0 | AG37: FALSE | AH37: 0 | AI37: 0 | AJ37: 0 | AK37: 275.51 | AL37: 30 | AM37: TRUE | AN37: 30 | AO37: 0 | AP37: =IF(OPLApplies,IF(AmountSubjectToOPL<RemainingOPL,AmountSubjectToOPL,RemainingOPL),SubscriberPaymentBeforeOPL) -> 0 | AQ37: 275.51 | AR37: 0 | AS37: 0 | AT37: 0 | AU37: 0 | AV37: =SubscriberPaymentAfterOPL-SubscriberPayCopay-SubscriberPayCoins -> 0 | AW37: TRUE | AX37: TRUE
A38: 36 | B38: 2011-03-04 | C38: 3 | D38: 25 | E38: Alcohol swabs (OTC - box of 100) [usage = 3 wipes/day; 90 wipes/month] | F38: Over-the-counter Drugs | G38: Not Covered | H38: 2.6075 | I38: 2.6075 | J38: 0 | K38: None | L38: 0 | M38: 0 | N38: None | O38: 2 | P38: 0 | Q38: 0 | R38: 0 | S38: 0 | T38: 0 | U38: FALSE | V38: 0 | W38: 0 | X38: FALSE | Y38: 0 | Z38: 0 | AA38: FALSE | AB38: 0 | AC38: 0 | AD38: FALSE | AE38: 0 | AF38: 0 | AG38: FALSE | AH38: 0 | AI38: 0 | AJ38: 0 | AK38: 0 | AL38: 0 | AM38: FALSE | AN38: 0 | AO38: 0 | AP38: =IF(OPLApplies,IF(AmountSubjectToOPL<RemainingOPL,AmountSubjectToOPL,RemainingOPL),SubscriberPaymentBeforeOPL) -> 0 | AQ38: 0 | AR38: 2.6075 | AS38: 0 | AT38: 0 | AU38: 0 | AV38: =SubscriberPaymentAfterOPL-SubscriberPayCopay-SubscriberPayCoins -> 0 | AW38: TRUE | AX38: TRUE
A39: 37 | B39: 2011-03-04 | C39: 3 | D39: 14 | E39: BD Ultrafine Insulin Syringes / 30G/ 0.5cc [usage = 30 syringes per month] | F39: Medical Supplies | G39: Plan Deductible Only | H39: 42.66 | I39: 0 | J39: 42.66 | K39: None | L39: 0 | M39: 0 | N39: None | O39: 2 | P39: 0 | Q39: 0 | R39: 0 | S39: 0 | T39: 42.66 | U39: TRUE | V39: 215.54 | W39: 42.66 | X39: FALSE | Y39: 0 | Z39: 0 | AA39: FALSE | AB39: 0 | AC39: 0 | AD39: FALSE | AE39: 0 | AF39: 0 | AG39: FALSE | AH39: 0 | AI39: 0 | AJ39: 42.66 | AK39: 0 | AL39: 42.66 | AM39: TRUE | AN39: 42.66 | AO39: 0 | AP39: =IF(OPLApplies,IF(AmountSubjectToOPL<RemainingOPL,AmountSubjectToOPL,RemainingOPL),SubscriberPaymentBeforeOPL) -> 0 | AQ39: 42.66 | AR39: 0 | AS39: 0 | AT39: 0 | AU39: 0 | AV39: =SubscriberPaymentAfterOPL-SubscriberPayCopay-SubscriberPayCoins -> 0 | AW39: TRUE | AX39: TRUE
A40: 38 | B40: 2011-03-04 | C40: 3 | D40: 32 | E40: METFORMIN HCL 850 MG TABLET | F40: Prescription Drugs: Generic | G40: Rx Deductible+Co-ins | H40: 9.19 | I40: 0 | J40: 9.19 | K40: None | L40: 0 | M40: 0 | N40: None | O40: 2 | P40: 0 | Q40: 0 | R40: 0.1 | S40: 0.919 | T40: 8.271 | U40: FALSE | V40: 0 | W40: 0 | X40: TRUE | Y40: 0 | Z40: 0 | AA40: FALSE | AB40: 0 | AC40: 0 | AD40: FALSE | AE40: 0 | AF40: 0 | AG40: FALSE | AH40: 0 | AI40: 0 | AJ40: 0 | AK40: 9.19 | AL40: 0.919 | AM40: TRUE | AN40: 0.919 | AO40: 0 | AP40: =IF(OPLApplies,IF(AmountSubjectToOPL<RemainingOPL,AmountSubjectToOPL,RemainingOPL),SubscriberPaymentBeforeOPL) -> 0 | AQ40: 9.19 | AR40: 0 | AS40: 0 | AT40: 0 | AU40: 0 | AV40: =SubscriberPaymentAfterOPL-SubscriberPayCopay-SubscriberPayCoins -> 0 | AW40: TRUE | AX40: TRUE
A41: 39 | B41: 2011-03-04 | C41: 3 | D41: 19 | E41: Ramipril 10mg (Rx) [1 QD; #30 pills/month] | F41: Prescription Drugs: Generic | G41: Rx Deductible+Co-ins | H41: 15.92 | I41: 0 | J41: 15.92 | K41: None | L41: 0 | M41: 0 | N41: None | O41: 2 | P41: 0 | Q41: 0 | R41: 0.1 | S41: 1.592 | T41: 14.328 | U41: FALSE | V41: 0 | W41: 0 | X41: TRUE | Y41: 0 | Z41: 0 | AA41: FALSE | AB41: 0 | AC41: 0 | AD41: FALSE | AE41: 0 | AF41: 0 | AG41: FALSE | AH41: 0 | AI41: 0 | AJ41: 0 | AK41: 15.92 | AL41: 1.592 | AM41: TRUE | AN41: 1.592 | AO41: 0 | AP41: =IF(OPLApplies,IF(AmountSubjectToOPL<RemainingOPL,AmountSubjectToOPL,RemainingOPL),SubscriberPaymentBeforeOPL) -> 0 | AQ41: 15.92 | AR41: 0 | AS41: 0 | AT41: 0 | AU41: 0 | AV41: =SubscriberPaymentAfterOPL-SubscriberPayCopay-SubscriberPayCoins -> 0 | AW41: TRUE | AX41: TRUE
A42: 40 | B42: 2011-03-28 | C42: 3 | D42: 26 | E42: Aspirin 81mg (OTC - bottle 100) [usage = 1 QD; #30 pills per month] | F42: Over-the-counter Drugs | G42: Not Covered | H42: 4.2725 | I42: 4.2725 | J42: 0 | K42: None | L42: 0 | M42: 0 | N42: None | O42: 1 | P42: 0 | Q42: 0 | R42: 0 | S42: 0 | T42: 0 | U42: FALSE | V42: 0 | W42: 0 | X42: FALSE | Y42: 0 | Z42: 0 | AA42: FALSE | AB42: 0 | AC42: 0 | AD42: FALSE | AE42: 0 | AF42: 0 | AG42: FALSE | AH42: 0 | AI42: 0 | AJ42: 0 | AK42: 0 | AL42: 0 | AM42: FALSE | AN42: 0 | AO42: 0 | AP42: =IF(OPLApplies,IF(AmountSubjectToOPL<RemainingOPL,AmountSubjectToOPL,RemainingOPL),SubscriberPaymentBeforeOPL) -> 0 | AQ42: 0 | AR42: 4.2725 | AS42: 0 | AT42: 0 | AU42: 0 | AV42: =SubscriberPaymentAfterOPL-SubscriberPayCopay-SubscriberPayCoins -> 0 | AW42: TRUE | AX42: TRUE
A43: 41 | B43: 2011-03-28 | C43: 3 | D43: 17 | E43: Insulin glargine 100 unit/ml injectable solution (Rx - 10ml vial) [20 units QD; expires 28 days after first use] | F43: Prescription Drugs: Branded | G43: Rx Deductible+Co-pay | H43: 275.51 | I43: 0 | J43: 275.51 | K43: None | L43: 0 | M43: 0 | N43: None | O43: 3 | P43: 0 | Q43: 30 | R43: 0 | S43: 0 | T43: 245.51 | U43: FALSE | V43: 0 | W43: 0 | X43: TRUE | Y43: 0 | Z43: 0 | AA43: FALSE | AB43: 0 | AC43: 0 | AD43: FALSE | AE43: 0 | AF43: 0 | AG43: FALSE | AH43: 0 | AI43: 0 | AJ43: 0 | AK43: 275.51 | AL43: 30 | AM43: TRUE | AN43: 30 | AO43: 0 | AP43: =IF(OPLApplies,IF(AmountSubjectToOPL<RemainingOPL,AmountSubjectToOPL,RemainingOPL),SubscriberPaymentBeforeOPL) -> 0 | AQ43: 275.51 | AR43: 0 | AS43: 0 | AT43: 0 | AU43: 0 | AV43: =SubscriberPaymentAfterOPL-SubscriberPayCopay-SubscriberPayCoins -> 0 | AW43: TRUE | AX43: TRUE
A44: 42 | B44: 2011-03-28 | C44: 3 | D44: 24 | E44: Office/Outpatient Visit Est | F44: Professional Services: Primary Care | G44: Copayment Only | H44: 107.87 | I44: 0 | J44: 107.87 | K44: None | L44: 0 | M44: 0 | N44: None | O44: 1 | P44: 0 | Q44: 30 | R44: 0 | S44: 0 | T44: 77.87 | U44: FALSE | V44: 0 | W44: 0 | X44: FALSE | Y44: 0 | Z44: 0 | AA44: FALSE | AB44: 0 | AC44: 0 | AD44: FALSE | AE44: 0 | AF44: 0 | AG44: FALSE | AH44: 0 | AI44: 0 | AJ44: 0 | AK44: 107.87 | AL44: 30 | AM44: TRUE | AN44: 30 | AO44: 0 | AP44: =IF(OPLApplies,IF(AmountSubjectToOPL<RemainingOPL,AmountSubjectToOPL,RemainingOPL),SubscriberPaymentBeforeOPL) -> 0 | AQ44: 107.87 | AR44: 0 | AS44: 0 | AT44: 0 | AU44: 0 | AV44: =SubscriberPaymentAfterOPL-SubscriberPayCopay-SubscriberPayCoins -> 0 | AW44: TRUE | AX44: TRUE
A45: 43 | B45: 2011-04-03 | C45: 4 | D45: 25 | E45: Alcohol swabs (OTC - box of 100) [usage = 3 wipes/day; 90 wipes/month] | F45: Over-the-counter Drugs | G45: Not Covered | H45: 2.6075 | I45: 2.6075 | J45: 0 | K45: None | L45: 0 | M45: 0 | N45: None | O45: 3 | P45: 0 | Q45: 0 | R45: 0 | S45: 0 | T45: 0 | U45: FALSE | V45: 0 | W45: 0 | X45: FALSE | Y45: 0 | Z45: 0 | AA45: FALSE | AB45: 0 | AC45: 0 | AD45: FALSE | AE45: 0 | AF45: 0 | AG45: FALSE | AH45: 0 | AI45: 0 | AJ45: 0 | AK45: 0 | AL45: 0 | AM45: FALSE | AN45: 0 | AO45: 0 | AP45: =IF(OPLApplies,IF(AmountSubjectToOPL<RemainingOPL,AmountSubjectToOPL,RemainingOPL),SubscriberPaymentBeforeOPL) -> 0 | AQ45: 0 | AR45: 2.6075 | AS45: 0 | AT45: 0 | AU45: 0 | AV45: =SubscriberPaymentAfterOPL-SubscriberPayCopay-SubscriberPayCoins -> 0 | AW45: TRUE | AX45: TRUE
A46: 44 | B46: 2011-04-03 | C46: 4 | D46: 14 | E46: BD Ultrafine Insulin Syringes / 30G/ 0.5cc [usage = 30 syringes per month] | F46: Medical Supplies | G46: Plan Deductible Only | H46: 42.66 | I46: 0 | J46: 42.66 | K46: None | L46: 0 | M46: 0 | N46: None | O46: 3 | P46: 0 | Q46: 0 | R46: 0 | S46: 0 | T46: 42.66 | U46: TRUE | V46: 172.88 | W46: 42.66 | X46: FALSE | Y46: 0 | Z46: 0 | AA46: FALSE | AB46: 0 | AC46: 0 | AD46: FALSE | AE46: 0 | AF46: 0 | AG46: FALSE | AH46: 0 | AI46: 0 | AJ46: 42.66 | AK46: 0 | AL46: 42.66 | AM46: TRUE | AN46: 42.66 | AO46: 0 | AP46: =IF(OPLApplies,IF(AmountSubjectToOPL<RemainingOPL,AmountSubjectToOPL,RemainingOPL),SubscriberPaymentBeforeOPL) -> 0 | AQ46: 42.66 | AR46: 0 | AS46: 0 | AT46: 0 | AU46: 0 | AV46: =SubscriberPaymentAfterOPL-SubscriberPayCopay-SubscriberPayCoins -> 0 | AW46: TRUE | AX46: TRUE
A47: 45 | B47: 2011-04-03 | C47: 4 | D47: 32 | E47: METFORMIN HCL 850 MG TABLET | F47: Prescription Drugs: Generic | G47: Rx Deductible+Co-ins | H47: 9.19 | I47: 0 | J47: 9.19 | K47: None | L47: 0 | M47: 0 | N47: None | O47: 3 | P47: 0 | Q47: 0 | R47: 0.1 | S47: 0.919 | T47: 8.271 | U47: FALSE | V47: 0 | W47: 0 | X47: TRUE | Y47: 0 | Z47: 0 | AA47: FALSE | AB47: 0 | AC47: 0 | AD47: FALSE | AE47: 0 | AF47: 0 | AG47: FALSE | AH47: 0 | AI47: 0 | AJ47: 0 | AK47: 9.19 | AL47: 0.919 | AM47: TRUE | AN47: 0.919 | AO47: 0 | AP47: =IF(OPLApplies,IF(AmountSubjectToOPL<RemainingOPL,AmountSubjectToOPL,RemainingOPL),SubscriberPaymentBeforeOPL) -> 0 | AQ47: 9.19 | AR47: 0 | AS47: 0 | AT47: 0 | AU47: 0 | AV47: =SubscriberPaymentAfterOPL-SubscriberPayCopay-SubscriberPayCoins -> 0 | AW47: TRUE | AX47: TRUE
A48: 46 | B48: 2011-04-03 | C48: 4 | D48: 19 | E48: Ramipril 10mg (Rx) [1 QD; #30 pills/month] | F48: Prescription Drugs: Generic | G48: Rx Deductible+Co-ins | H48: 15.92 | I48: 0 | J48: 15.92 | K48: None | L48: 0 | M48: 0 | N48: None | O48: 3 | P48: 0 | Q48: 0 | R48: 0.1 | S48: 1.592 | T48: 14.328 | U48: FALSE | V48: 0 | W48: 0 | X48: TRUE | Y48: 0 | Z48: 0 | AA48: FALSE | AB48: 0 | AC48: 0 | AD48: FALSE | AE48: 0 | AF48: 0 | AG48: FALSE | AH48: 0 | AI48: 0 | AJ48: 0 | AK48: 15.92 | AL48: 1.592 | AM48: TRUE | AN48: 1.592 | AO48: 0 | AP48: =IF(OPLApplies,IF(AmountSubjectToOPL<RemainingOPL,AmountSubjectToOPL,RemainingOPL),SubscriberPaymentBeforeOPL) -> 0 | AQ48: 15.92 | AR48: 0 | AS48: 0 | AT48: 0 | AU48: 0 | AV48: =SubscriberPaymentAfterOPL-SubscriberPayCopay-SubscriberPayCoins -> 0 | AW48: TRUE | AX48: TRUE
A49: 47 | B49: 2011-04-03 | C49: 4 | D49: 33 | E49: Atorvastatin 20 MG tablet 90 CT | F49: Prescription Drugs: Generic | G49: Rx Deductible+Co-ins | H49: 25.88 | I49: 0 | J49: 25.88 | K49: None | L49: 0 | M49: 0 | N49: None | O49: 1 | P49: 0 | Q49: 0 | R49: 0.1 | S49: 2.588 | T49: 23.292 | U49: FALSE | V49: 0 | W49: 0 | X49: TRUE | Y49: 0 | Z49: 0 | AA49: FALSE | AB49: 0 | AC49: 0 | AD49: FALSE | AE49: 0 | AF49: 0 | AG49: FALSE | AH49: 0 | AI49: 0 | AJ49: 0 | AK49: 25.88 | AL49: 2.588 | AM49: TRUE | AN49: 2.588 | AO49: 0 | AP49: =IF(OPLApplies,IF(AmountSubjectToOPL<RemainingOPL,AmountSubjectToOPL,RemainingOPL),SubscriberPaymentBeforeOPL) -> 0 | AQ49: 25.88 | AR49: 0 | AS49: 0 | AT49: 0 | AU49: 0 | AV49: =SubscriberPaymentAfterOPL-SubscriberPayCopay-SubscriberPayCoins -> 0 | AW49: TRUE | AX49: TRUE
A50: 48 | B50: 2011-04-03 | C50: 4 | D50: 16 | E50: Glycosylated Hemoglobin Test | F50: Diagnostic Services: Laboratory | G50: Plan Deductible Only | H50: 10.85 | I50: 0 | J50: 10.85 | K50: None | L50: 0 | M50: 0 | N50: None | O50: 1 | P50: 0 | Q50: 0 | R50: 0 | S50: 0 | T50: 10.85 | U50: TRUE | V50: 130.22 | W50: 10.85 | X50: FALSE | Y50: 0 | Z50: 0 | AA50: FALSE | AB50: 0 | AC50: 0 | AD50: FALSE | AE50: 0 | AF50: 0 | AG50: FALSE | AH50: 0 | AI50: 0 | AJ50: 10.85 | AK50: 0 | AL50: 10.85 | AM50: TRUE | AN50: 10.85 | AO50: 0 | AP50: =IF(OPLApplies,IF(AmountSubjectToOPL<RemainingOPL,AmountSubjectToOPL,RemainingOPL),SubscriberPaymentBeforeOPL) -> 0 | AQ50: 10.85 | AR50: 0 | AS50: 0 | AT50: 0 | AU50: 0 | AV50: =SubscriberPaymentAfterOPL-SubscriberPayCopay-SubscriberPayCoins -> 0 | AW50: TRUE | AX50: TRUE
A51: 49 | B51: 2011-04-13 | C51: 4 | D51: 5 | E51: OneTouch Delica Lancets (100 per box) [usage = 60 lancets per month] | F51: Medical Supplies | G51: Plan Deductible Only | H51: 10.38 | I51: 0 | J51: 10.38 | K51: None | L51: 0 | M51: 0 | N51: None | O51: 2 | P51: 0 | Q51: 0 | R51: 0 | S51: 0 | T51: 10.38 | U51: TRUE | V51: 119.37 | W51: 10.38 | X51: FALSE | Y51: 0 | Z51: 0 | AA51: FALSE | AB51: 0 | AC51: 0 | AD51: FALSE | AE51: 0 | AF51: 0 | AG51: FALSE | AH51: 0 | AI51: 0 | AJ51: 10.38 | AK51: 0 | AL51: 10.38 | AM51: TRUE | AN51: 10.38 | AO51: 0 | AP51: =IF(OPLApplies,IF(AmountSubjectToOPL<RemainingOPL,AmountSubjectToOPL,RemainingOPL),SubscriberPaymentBeforeOPL) -> 0 | AQ51: 10.38 | AR51: 0 | AS51: 0 | AT51: 0 | AU51: 0 | AV51: =SubscriberPaymentAfterOPL-SubscriberPayCopay-SubscriberPayCoins -> 0 | AW51: TRUE | AX51: TRUE
A52: 50 | B52: 2011-04-13 | C52: 4 | D52: 4 | E52: OneTouch Ultra Blue Test Strips (Rx - box of 100) [usage = 2 strips/day; 60 per month] | F52: Medical Supplies | G52: Plan Deductible Only | H52: 125.26 | I52: 0 | J52: 125.26 | K52: None | L52: 0 | M52: 0 | N52: None | O52: 2 | P52: 0 | Q52: 0 | R52: 0 | S52: 0 | T52: 125.26 | U52: TRUE | V52: 108.99 | W52: 108.99 | X52: FALSE | Y52: 0 | Z52: 0 | AA52: FALSE | AB52: 0 | AC52: 0 | AD52: FALSE | AE52: 0 | AF52: 0 | AG52: FALSE | AH52: 0 | AI52: 0 | AJ52: 108.99 | AK52: 16.27 | AL52: 108.99 | AM52: TRUE | AN52: 108.99 | AO52: 0 | AP52: =IF(OPLApplies,IF(AmountSubjectToOPL<RemainingOPL,AmountSubjectToOPL,RemainingOPL),SubscriberPaymentBeforeOPL) -> 0 | AQ52: 125.26 | AR52: 0 | AS52: 0 | AT52: 0 | AU52: 0 | AV52: =SubscriberPaymentAfterOPL-SubscriberPayCopay-SubscriberPayCoins -> 0 | AW52: TRUE | AX52: TRUE
A53: 51 | B53: 2011-04-25 | C53: 4 | D53: 17 | E53: Insulin glargine 100 unit/ml injectable solution (Rx - 10ml vial) [20 units QD; expires 28 days after first use] | F53: Prescription Drugs: Branded | G53: Rx Deductible+Co-pay | H53: 275.51 | I53: 0 | J53: 275.51 | K53: None | L53: 0 | M53: 0 | N53: None | O53: 4 | P53: 0 | Q53: 30 | R53: 0 | S53: 0 | T53: 245.51 | U53: FALSE | V53: 0 | W53: 0 | X53: TRUE | Y53: 0 | Z53: 0 | AA53: FALSE | AB53: 0 | AC53: 0 | AD53: FALSE | AE53: 0 | AF53: 0 | AG53: FALSE | AH53: 0 | AI53: 0 | AJ53: 0 | AK53: 275.51 | AL53: 30 | AM53: TRUE | AN53: 30 | AO53: 0 | AP53: =IF(OPLApplies,IF(AmountSubjectToOPL<RemainingOPL,AmountSubjectToOPL,RemainingOPL),SubscriberPaymentBeforeOPL) -> 0 | AQ53: 275.51 | AR53: 0 | AS53: 0 | AT53: 0 | AU53: 0 | AV53: =SubscriberPaymentAfterOPL-SubscriberPayCopay-SubscriberPayCoins -> 0 | AW53: TRUE | AX53: TRUE
A54: 52 | B54: 2011-05-03 | C54: 5 | D54: 25 | E54: Alcohol swabs (OTC - box of 100) [usage = 3 wipes/day; 90 wipes/month] | F54: Over-the-counter Drugs | G54: Not Covered | H54: 2.6075 | I54: 2.6075 | J54: 0 | K54: None | L54: 0 | M54: 0 | N54: None | O54: 4 | P54: 0 | Q54: 0 | R54: 0 | S54: 0 | T54: 0 | U54: FALSE | V54: 0 | W54: 0 | X54: FALSE | Y54: 0 | Z54: 0 | AA54: FALSE | AB54: 0 | AC54: 0 | AD54: FALSE | AE54: 0 | AF54: 0 | AG54: FALSE | AH54: 0 | AI54: 0 | AJ54: 0 | AK54: 0 | AL54: 0 | AM54: FALSE | AN54: 0 | AO54: 0 | AP54: =IF(OPLApplies,IF(AmountSubjectToOPL<RemainingOPL,AmountSubjectToOPL,RemainingOPL),SubscriberPaymentBeforeOPL) -> 0 | AQ54: 0 | AR54: 2.6075 | AS54: 0 | AT54: 0 | AU54: 0 | AV54: =SubscriberPaymentAfterOPL-SubscriberPayCopay-SubscriberPayCoins -> 0 | AW54: TRUE | AX54: TRUE
A55: 53 | B55: 2011-05-03 | C55: 5 | D55: 14 | E55: BD Ultrafine Insulin Syringes / 30G/ 0.5cc [usage = 30 syringes per month] | F55: Medical Supplies | G55: Plan Deductible Only | H55: 42.66 | I55: 0 | J55: 42.66 | K55: None | L55: 0 | M55: 0 | N55: None | O55: 4 | P55: 0 | Q55: 0 | R55: 0 | S55: 0 | T55: 42.66 | U55: TRUE | V55: 0 | W55: 0 | X55: FALSE | Y55: 0 | Z55: 0 | AA55: FALSE | AB55: 0 | AC55: 0 | AD55: FALSE | AE55: 0 | AF55: 0 | AG55: FALSE | AH55: 0 | AI55: 0 | AJ55: 0 | AK55: 42.66 | AL55: 0 | AM55: TRUE | AN55: 0 | AO55: 0 | AP55: =IF(OPLApplies,IF(AmountSubjectToOPL<RemainingOPL,AmountSubjectToOPL,RemainingOPL),SubscriberPaymentBeforeOPL) -> 0 | AQ55: 42.66 | AR55: 0 | AS55: 0 | AT55: 0 | AU55: 0 | AV55: =SubscriberPaymentAfterOPL-SubscriberPayCopay-SubscriberPayCoins -> 0 | AW55: TRUE | AX55: TRUE
A56: 54 | B56: 2011-05-03 | C56: 5 | D56: 32 | E56: METFORMIN HCL 850 MG TABLET | F56: Prescription Drugs: Generic | G56: Rx Deductible+Co-ins | H56: 9.19 | I56: 0 | J56: 9.19 | K56: None | L56: 0 | M56: 0 | N56: None | O56: 4 | P56: 0 | Q56: 0 | R56: 0.1 | S56: 0.919 | T56: 8.271 | U56: FALSE | V56: 0 | W56: 0 | X56: TRUE | Y56: 0 | Z56: 0 | AA56: FALSE | AB56: 0 | AC56: 0 | AD56: FALSE | AE56: 0 | AF56: 0 | AG56: FALSE | AH56: 0 | AI56: 0 | AJ56: 0 | AK56: 9.19 | AL56: 0.919 | AM56: TRUE | AN56: 0.919 | AO56: 0 | AP56: =IF(OPLApplies,IF(AmountSubjectToOPL<RemainingOPL,AmountSubjectToOPL,RemainingOPL),SubscriberPaymentBeforeOPL) -> 0 | AQ56: 9.19 | AR56: 0 | AS56: 0 | AT56: 0 | AU56: 0 | AV56: =SubscriberPaymentAfterOPL-SubscriberPayCopay-SubscriberPayCoins -> 0 | AW56: TRUE | AX56: TRUE
A57: 55 | B57: 2011-05-03 | C57: 5 | D57: 19 | E57: Ramipril 10mg (Rx) [1 QD; #30 pills/month] | F57: Prescription Drugs: Generic | G57: Rx Deductible+Co-ins | H57: 15.92 | I57: 0 | J57: 15.92 | K57: None | L57: 0 | M57: 0 | N57: None | O57: 4 | P57: 0 | Q57: 0 | R57: 0.1 | S57: 1.592 | T57: 14.328 | U57: FALSE | V57: 0 | W57: 0 | X57: TRUE | Y57: 0 | Z57: 0 | AA57: FALSE | AB57: 0 | AC57: 0 | AD57: FALSE | AE57: 0 | AF57: 0 | AG57: FALSE | AH57: 0 | AI57: 0 | AJ57: 0 | AK57: 15.92 | AL57: 1.592 | AM57: TRUE | AN57: 1.592 | AO57: 0 | AP57: =IF(OPLApplies,IF(AmountSubjectToOPL<RemainingOPL,AmountSubjectToOPL,RemainingOPL),SubscriberPaymentBeforeOPL) -> 0 | AQ57: 15.92 | AR57: 0 | AS57: 0 | AT57: 0 | AU57: 0 | AV57: =SubscriberPaymentAfterOPL-SubscriberPayCopay-SubscriberPayCoins -> 0 | AW57: TRUE | AX57: TRUE
A58: 56 | B58: 2012-05-23 | C58: 5 | D58: 5 | E58: OneTouch Delica Lancets (100 per box) [usage = 60 lancets per month] | F58: Medical Supplies | G58: Plan Deductible Only | H58: 10.38 | I58: 0 | J58: 10.38 | K58: None | L58: 0 | M58: 0 | N58: None | O58: 3 | P58: 0 | Q58: 0 | R58: 0 | S58: 0 | T58: 10.38 | U58: TRUE | V58: 0 | W58: 0 | X58: FALSE | Y58: 0 | Z58: 0 | AA58: FALSE | AB58: 0 | AC58: 0 | AD58: FALSE | AE58: 0 | AF58: 0 | AG58: FALSE | AH58: 0 | AI58: 0 | AJ58: 0 | AK58: 10.38 | AL58: 0 | AM58: TRUE | AN58: 0 | AO58: 0 | AP58: =IF(OPLApplies,IF(AmountSubjectToOPL<RemainingOPL,AmountSubjectToOPL,RemainingOPL),SubscriberPaymentBeforeOPL) -> 0 | AQ58: 10.38 | AR58: 0 | AS58: 0 | AT58: 0 | AU58: 0 | AV58: =SubscriberPaymentAfterOPL-SubscriberPayCopay-SubscriberPayCoins -> 0 | AW58: TRUE | AX58: TRUE
A59: 57 | B59: 2011-05-23 | C59: 5 | D59: 17 | E59: Insulin glargine 100 unit/ml injectable solution (Rx - 10ml vial) [20 units QD; expires 28 days after first use] | F59: Prescription Drugs: Branded | G59: Rx Deductible+Co-pay | H59: 275.51 | I59: 0 | J59: 275.51 | K59: None | L59: 0 | M59: 0 | N59: None | O59: 5 | P59: 0 | Q59: 30 | R59: 0 | S59: 0 | T59: 245.51 | U59: FALSE | V59: 0 | W59: 0 | X59: TRUE | Y59: 0 | Z59: 0 | AA59: FALSE | AB59: 0 | AC59: 0 | AD59: FALSE | AE59: 0 | AF59: 0 | AG59: FALSE | AH59: 0 | AI59: 0 | AJ59: 0 | AK59: 275.51 | AL59: 30 | AM59: TRUE | AN59: 30 | AO59: 0 | AP59: =IF(OPLApplies,IF(AmountSubjectToOPL<RemainingOPL,AmountSubjectToOPL,RemainingOPL),SubscriberPaymentBeforeOPL) -> 0 | AQ59: 275.51 | AR59: 0 | AS59: 0 | AT59: 0 | AU59: 0 | AV59: =SubscriberPaymentAfterOPL-SubscriberPayCopay-SubscriberPayCoins -> 0 | AW59: TRUE | AX59: TRUE
A60: 58 | B60: 2011-06-02 | C60: 6 | D60: 25 | E60: Alcohol swabs (OTC - box of 100) [usage = 3 wipes/day; 90 wipes/month] | F60: Over-the-counter Drugs | G60: Not Covered | H60: 2.6075 | I60: 2.6075 | J60: 0 | K60: None | L60: 0 | M60: 0 | N60: None | O60: 5 | P60: 0 | Q60: 0 | R60: 0 | S60: 0 | T60: 0 | U60: FALSE | V60: 0 | W60: 0 | X60: FALSE | Y60: 0 | Z60: 0 | AA60: FALSE | AB60: 0 | AC60: 0 | AD60: FALSE | AE60: 0 | AF60: 0 | AG60: FALSE | AH60: 0 | AI60: 0 | AJ60: 0 | AK60: 0 | AL60: 0 | AM60: FALSE | AN60: 0 | AO60: 0 | AP60: =IF(OPLApplies,IF(AmountSubjectToOPL<RemainingOPL,AmountSubjectToOPL,RemainingOPL),SubscriberPaymentBeforeOPL) -> 0 | AQ60: 0 | AR60: 2.6075 | AS60: 0 | AT60: 0 | AU60: 0 | AV60: =SubscriberPaymentAfterOPL-SubscriberPayCopay-SubscriberPayCoins -> 0 | AW60: TRUE | AX60: TRUE
A61: 59 | B61: 2011-06-02 | C61: 6 | D61: 14 | E61: BD Ultrafine Insulin Syringes / 30G/ 0.5cc [usage = 30 syringes per month] | F61: Medical Supplies | G61: Plan Deductible Only | H61: 42.66 | I61: 0 | J61: 42.66 | K61: None | L61: 0 | M61: 0 | N61: None | O61: 5 | P61: 0 | Q61: 0 | R61: 0 | S61: 0 | T61: 42.66 | U61: TRUE | V61: 0 | W61: 0 | X61: FALSE | Y61: 0 | Z61: 0 | AA61: FALSE | AB61: 0 | AC61: 0 | AD61: FALSE | AE61: 0 | AF61: 0 | AG61: FALSE | AH61: 0 | AI61: 0 | AJ61: 0 | AK61: 42.66 | AL61: 0 | AM61: TRUE | AN61: 0 | AO61: 0 | AP61: =IF(OPLApplies,IF(AmountSubjectToOPL<RemainingOPL,AmountSubjectToOPL,RemainingOPL),SubscriberPaymentBeforeOPL) -> 0 | AQ61: 42.66 | AR61: 0 | AS61: 0 | AT61: 0 | AU61: 0 | AV61: =SubscriberPaymentAfterOPL-SubscriberPayCopay-SubscriberPayCoins -> 0 | AW61: TRUE | AX61: TRUE
A62: 60 | B62: 2011-06-02 | C62: 6 | D62: 5 | E62: OneTouch Delica Lancets (100 per box) [usage = 60 lancets per month] | F62: Medical Supplies | G62: Plan Deductible Only | H62: 10.38 | I62: 0 | J62: 10.38 | K62: None | L62: 0 | M62: 0 | N62: None | O62: 4 | P62: 0 | Q62: 0 | R62: 0 | S62: 0 | T62: 10.38 | U62: TRUE | V62: 0 | W62: 0 | X62: FALSE | Y62: 0 | Z62: 0 | AA62: FALSE | AB62: 0 | AC62: 0 | AD62: FALSE | AE62: 0 | AF62: 0 | AG62: FALSE | AH62: 0 | AI62: 0 | AJ62: 0 | AK62: 10.38 | AL62: 0 | AM62: TRUE | AN62: 0 | AO62: 0 | AP62: =IF(OPLApplies,IF(AmountSubjectToOPL<RemainingOPL,AmountSubjectToOPL,RemainingOPL),SubscriberPaymentBeforeOPL) -> 0 | AQ62: 10.38 | AR62: 0 | AS62: 0 | AT62: 0 | AU62: 0 | AV62: =SubscriberPaymentAfterOPL-SubscriberPayCopay-SubscriberPayCoins -> 0 | AW62: TRUE | AX62: TRUE
A63: 61 | B63: 2011-06-02 | C63: 6 | D63: 4 | E63: OneTouch Ultra Blue Test Strips (Rx - box of 100) [usage = 2 strips/day; 60 per month] | F63: Medical Supplies | G63: Plan Deductible Only | H63: 125.26 | I63: 0 | J63: 125.26 | K63: None | L63: 0 | M63: 0 | N63: None | O63: 3 | P63: 0 | Q63: 0 | R63: 0 | S63: 0 | T63: 125.26 | U63: TRUE | V63: 0 | W63: 0 | X63: FALSE | Y63: 0 | Z63: 0 | AA63: FALSE | AB63: 0 | AC63: 0 | AD63: FALSE | AE63: 0 | AF63: 0 | AG63: FALSE | AH63: 0 | AI63: 0 | AJ63: 0 | AK63: 125.26 | AL63: 0 | AM63: TRUE | AN63: 0 | AO63: 0 | AP63: =IF(OPLApplies,IF(AmountSubjectToOPL<RemainingOPL,AmountSubjectToOPL,RemainingOPL),SubscriberPaymentBeforeOPL) -> 0 | AQ63: 125.26 | AR63: 0 | AS63: 0 | AT63: 0 | AU63: 0 | AV63: =SubscriberPaymentAfterOPL-SubscriberPayCopay-SubscriberPayCoins -> 0 | AW63: TRUE | AX63: TRUE
A64: 62 | B64: 2011-06-02 | C64: 6 | D64: 32 | E64: METFORMIN HCL 850 MG TABLET | F64: Prescription Drugs: Generic | G64: Rx Deductible+Co-ins | H64: 9.19 | I64: 0 | J64: 9.19 | K64: None | L64: 0 | M64: 0 | N64: None | O64: 5 | P64: 0 | Q64: 0 | R64: 0.1 | S64: 0.919 | T64: 8.271 | U64: FALSE | V64: 0 | W64: 0 | X64: TRUE | Y64: 0 | Z64: 0 | AA64: FALSE | AB64: 0 | AC64: 0 | AD64: FALSE | AE64: 0 | AF64: 0 | AG64: FALSE | AH64: 0 | AI64: 0 | AJ64: 0 | AK64: 9.19 | AL64: 0.919 | AM64: TRUE | AN64: 0.919 | AO64: 0 | AP64: =IF(OPLApplies,IF(AmountSubjectToOPL<RemainingOPL,AmountSubjectToOPL,RemainingOPL),SubscriberPaymentBeforeOPL) -> 0 | AQ64: 9.19 | AR64: 0 | AS64: 0 | AT64: 0 | AU64: 0 | AV64: =SubscriberPaymentAfterOPL-SubscriberPayCopay-SubscriberPayCoins -> 0 | AW64: TRUE | AX64: TRUE
A65: 63 | B65: 2011-06-02 | C65: 6 | D65: 19 | E65: Ramipril 10mg (Rx) [1 QD; #30 pills/month] | F65: Prescription Drugs: Generic | G65: Rx Deductible+Co-ins | H65: 15.92 | I65: 0 | J65: 15.92 | K65: None | L65: 0 | M65: 0 | N65: None | O65: 5 | P65: 0 | Q65: 0 | R65: 0.1 | S65: 1.592 | T65: 14.328 | U65: FALSE | V65: 0 | W65: 0 | X65: TRUE | Y65: 0 | Z65: 0 | AA65: FALSE | AB65: 0 | AC65: 0 | AD65: FALSE | AE65: 0 | AF65: 0 | AG65: FALSE | AH65: 0 | AI65: 0 | AJ65: 0 | AK65: 15.92 | AL65: 1.592 | AM65: TRUE | AN65: 1.592 | AO65: 0 | AP65: =IF(OPLApplies,IF(AmountSubjectToOPL<RemainingOPL,AmountSubjectToOPL,RemainingOPL),SubscriberPaymentBeforeOPL) -> 0 | AQ65: 15.92 | AR65: 0 | AS65: 0 | AT65: 0 | AU65: 0 | AV65: =SubscriberPaymentAfterOPL-SubscriberPayCopay-SubscriberPayCoins -> 0 | AW65: TRUE | AX65: TRUE
A66: 64 | B66: 2011-06-20 | C66: 6 | D66: 26 | E66: Aspirin 81mg (OTC - bottle 100) [usage = 1 QD; #30 pills per month] | F66: Over-the-counter Drugs | G66: Not Covered | H66: 4.2725 | I66: 4.2725 | J66: 0 | K66: None | L66: 0 | M66: 0 | N66: None | O66: 2 | P66: 0 | Q66: 0 | R66: 0 | S66: 0 | T66: 0 | U66: FALSE | V66: 0 | W66: 0 | X66: FALSE | Y66: 0 | Z66: 0 | AA66: FALSE | AB66: 0 | AC66: 0 | AD66: FALSE | AE66: 0 | AF66: 0 | AG66: FALSE | AH66: 0 | AI66: 0 | AJ66: 0 | AK66: 0 | AL66: 0 | AM66: FALSE | AN66: 0 | AO66: 0 | AP66: =IF(OPLApplies,IF(AmountSubjectToOPL<RemainingOPL,AmountSubjectToOPL,RemainingOPL),SubscriberPaymentBeforeOPL) -> 0 | AQ66: 0 | AR66: 4.2725 | AS66: 0 | AT66: 0 | AU66: 0 | AV66: =SubscriberPaymentAfterOPL-SubscriberPayCopay-SubscriberPayCoins -> 0 | AW66: TRUE | AX66: TRUE
A67: 65 | B67: 2011-06-20 | C67: 6 | D67: 17 | E67: =VLOOKUP(ServiceCode,DiabetesFeeSchedule,6,FALSE) -> Insulin glargine 100 unit/ml injectable solution (Rx - 10ml vial) [20 units QD; expires 28 days after first use] | F67: =VLOOKUP(ServiceCode,DiabetesFeeSchedule,5,FALSE) -> Prescription Drugs: Branded | G67: =VLOOKUP(BenefitCategory,BenefitDesignTable,COLUMN(BenefitCostSharing),FALSE) -> Rx Deductible+Co-pay | H67: =VLOOKUP(ServiceCode,DiabetesFeeSchedule,7,FALSE) -> 275.51 | I67: =IF(CostSharingType="Not Covered",AllowedAmt,0) -> 0 | J67: =IF((NotCoveredAmt+AmtExceedMonthLimit+AmtExceedAnnualLimit)>0,0,AllowedAmt) -> 275.51 | K67: =VLOOKUP(BenefitCategory,BenefitDesignTable,COLUMN(BenefitLimithMonth),FALSE) -> None | L67: =COUNTIFS(ServiceCode,ServiceCode,ClaimMonth,ClaimMonth,ClaimNumber,"<"&ClaimNumber) -> 0 | M67: =IF(MonthLimit=0,0,IF(PriorUseMonth>=MonthLimit,AllowedAmt,0)) -> 0 | N67: =VLOOKUP(BenefitCategory,BenefitDesignTable,COLUMN(BenefitLimitAnnual),FALSE) -> None | O67: =COUNTIFS(ServiceCode,ServiceCode,ClaimNumber,"<"&ClaimNumber) -> 6 | P67: =IF(AnnualLimit=0,0,IF(PriorUseAnnual>=AnnualLimit,AllowedAmt,0)) -> 0 | Q67: =IF(AmtExceedMonthLimit=0,IF(AmtExceedAnnualLimit=0,VLOOKUP(BenefitCategory,BenefitDesignTable,COLUMN(BenefitCopay),FALSE),0)) -> 30 | R67: =VLOOKUP(BenefitCategory,BenefitDesignTable,COLUMN(BenefitCoins),FALSE) -> 0 | S67: =IF(AmtExceedMonthLimit=0,IF(AmtExceedAnnualLimit=0,CoInsRate*CoveredAmt,0)) -> 0 | T67: =IF((CoveredAmt-CoPayAmount-CoInsAmount)<0,0,CoveredAmt-CoPayAmount-CoInsAmount) -> 245.51 | U67: =VLOOKUP(BenefitCategory,BenefitDesignTable,COLUMN(PlanDeductible),FALSE)>0 -> FALSE | V67: =MAX(0,VLOOKUP(BenefitCategory,BenefitDesignTable,COLUMN(PlanDeductible),FALSE)-SUMIFS(AllowedAmtAfterCopayCoins,PlanDeductibleApplies,TRUE,ClaimNumber,"<"&ClaimNumber)) -> 0 | W67: =IF(AllowedAmtAfterCopayCoins<RemainingPlanDeduc,AllowedAmtAfterCopayCoins,RemainingPlanDeduc) -> 0 | X67: =VLOOKUP(BenefitCategory,BenefitDesignTable,COLUMN(RxDeductible),FALSE)>0 -> TRUE | Y67: =MAX(0,VLOOKUP(BenefitCategory,BenefitDesignTable,COLUMN(RxDeductible),FALSE)-SUMIFS(AllowedAmtAfterCopayCoins,RxDeductibleApplies,TRUE,ClaimNumber,"<"&ClaimNumber)) -> 0 | Z67: =IF(AllowedAmtAfterCopayCoins<RemainingRxDeduc,AllowedAmtAfterCopayCoins,RemainingRxDeduc) -> 0 | AA67: =VLOOKUP(BenefitCategory,BenefitDesignTable,COLUMN(OptDeductibleC),FALSE)>0 -> FALSE | AB67: =MAX(0,VLOOKUP(BenefitCategory,BenefitDesignTable,COLUMN(OptDeductibleC),FALSE)-SUMIFS(AllowedAmtAfterCopayCoins,DeductibleCApplies,TRUE,ClaimNumber,"<"&ClaimNumber)) -> 0 | AC67: =IF(AllowedAmtAfterCopayCoins<RemainingDeductibleC,AllowedAmtAfterCopayCoins,RemainingDeductibleC) -> 0 | AD67: =VLOOKUP(BenefitCategory,BenefitDesignTable,COLUMN(OptDeductibleD),FALSE)>0 -> FALSE | AE67: =MAX(0,VLOOKUP(BenefitCategory,BenefitDesignTable,COLUMN(OptDeductibleD),FALSE)-SUMIFS(AllowedAmtAfterCopayCoins,DeductibleDApplies,TRUE,ClaimNumber,"<"&ClaimNumber)) -> 0 | AF67: =IF(AllowedAmtAfterCopayCoins<RemainingDeductibleD,AllowedAmtAfterCopayCoins,RemainingDeductibleD) -> 0 | AG67: =VLOOKUP(BenefitCategory,BenefitDesignTable,COLUMN(BenefitDeductible),FALSE)>0 -> FALSE | AH67: =MAX(0,VLOOKUP(BenefitCategory,BenefitDesignTable,COLUMN(BenefitDeductible),FALSE)-SUMIFS(AllowedAmtAfterCopayCoins,BenefitCategory,BenefitCategory,ClaimNumber,"<"&ClaimNumber)) -> 0 | AI67: =IF(AllowedAmtAfterCopayCoins<RemainingBenefitDeduc,AllowedAmtAfterCopayCoins,RemainingBenefitDeduc) -> 0 | AJ67: =PlanDeductiblePayment+RxDeductiblePayment+DeductibleCPayment+DeductibleDPayment+BenefitDeductiblePayment -> 0 | AK67: =MAX(0,CoveredAmt-PaymentTowardDeductibles) -> 275.51 | AL67: =PaymentTowardDeductibles+CoPayAmount+CoInsAmount -> 30 | AM67: =VLOOKUP(BenefitCategory,BenefitDesignTable,COLUMN(BenefitOOPLimitApplies),FALSE)="Yes" -> TRUE | AN67: =IF(OPLApplies,SubscriberPaymentBeforeOPL,0) -> 30 | AO67: =MAX(0,VLOOKUP(BenefitCategory,BenefitDesignTable,COLUMN(OPLimit),FALSE)-SUMIFS(AmountSubjectToOPL,OPLApplies,TRUE,ClaimNumber,"<"&ClaimNumber)) -> 0 | AP67: =IF(OPLApplies,IF(AmountSubjectToOPL<RemainingOPL,AmountSubjectToOPL,RemainingOPL),SubscriberPaymentBeforeOPL) -> 0 | AQ67: 275.51 | AR67: =NotCoveredAmt -> 0 | AS67: =AmtExceedMonthLimit+AmtExceedAnnualLimit -> 0 | AT67: =IF(CoPayAmount<SubscriberPaymentAfterOPL,CoPayAmount,SubscriberPaymentAfterOPL) -> 0 | AU67: =IF(CoInsAmount<SubscriberPaymentAfterOPL,CoInsAmount,SubscriberPaymentAfterOPL) -> 0 | AV67: =SubscriberPaymentAfterOPL-SubscriberPayCopay-SubscriberPayCoins -> 0 | AW67: =SUM(AS67:AV67)=AP67 -> TRUE | AX67: =SUM(AQ67:AV67)=H67 -> TRUE
A68: 66 | B68: 2011-06-27 | C68: 6 | D68: 15 | E68: Assay Glucose Blood Quant | F68: Diagnostic Services: Laboratory | G68: Plan Deductible Only | H68: 5.73 | I68: 0 | J68: 5.73 | K68: None | L68: 0 | M68: 0 | N68: None | O68: 1 | P68: 0 | Q68: 0 | R68: 0 | S68: 0 | T68: 5.73 | U68: TRUE | V68: 0 | W68: 0 | X68: FALSE | Y68: 0 | Z68: 0 | AA68: FALSE | AB68: 0 | AC68: 0 | AD68: FALSE | AE68: 0 | AF68: 0 | AG68: FALSE | AH68: 0 | AI68: 0 | AJ68: 0 | AK68: 5.73 | AL68: 0 | AM68: TRUE | AN68: 0 | AO68: 0 | AP68: =IF(OPLApplies,IF(AmountSubjectToOPL<RemainingOPL,AmountSubjectToOPL,RemainingOPL),SubscriberPaymentBeforeOPL) -> 0 | AQ68: =IF(CoveredAmt<SubscriberPaymentAfterOPL,0,CoveredAmt-SubscriberPaymentAfterOPL) -> 5.73 | AR68: 0 | AS68: 0 | AT68: 0 | AU68: 0 | AV68: =SubscriberPaymentAfterOPL-SubscriberPayCopay-SubscriberPayCoins -> 0 | AW68: TRUE | AX68: TRUE
A69: 67 | B69: 2011-06-27 | C69: 6 | D69: 16 | E69: Glycosylated Hemoglobin Test | F69: Diagnostic Services: Laboratory | G69: Plan Deductible Only | H69: 10.85 | I69: 0 | J69: 10.85 | K69: None | L69: 0 | M69: 0 | N69: None | O69: 2 | P69: 0 | Q69: 0 | R69: 0 | S69: 0 | T69: 10.85 | U69: TRUE | V69: 0 | W69: 0 | X69: FALSE | Y69: 0 | Z69: 0 | AA69: FALSE | AB69: 0 | AC69: 0 | AD69: FALSE | AE69: 0 | AF69: 0 | AG69: FALSE | AH69: 0 | AI69: 0 | AJ69: 0 | AK69: 10.85 | AL69: 0 | AM69: TRUE | AN69: 0 | AO69: 0 | AP69: =IF(OPLApplies,IF(AmountSubjectToOPL<RemainingOPL,AmountSubjectToOPL,RemainingOPL),SubscriberPaymentBeforeOPL) -> 0 | AQ69: 10.85 | AR69: 0 | AS69: 0 | AT69: 0 | AU69: 0 | AV69: =SubscriberPaymentAfterOPL-SubscriberPayCopay-SubscriberPayCoins -> 0 | AW69: TRUE | AX69: TRUE
A70: 68 | B70: 2011-06-27 | C70: 6 | D70: 10 | E70: Renal Function Panel | F70: Diagnostic Services: Laboratory | G70: Plan Deductible Only | H70: 11.63 | I70: 0 | J70: 11.63 | K70: None | L70: 0 | M70: 0 | N70: None | O70: 1 | P70: 0 | Q70: 0 | R70: 0 | S70: 0 | T70: 11.63 | U70: TRUE | V70: 0 | W70: 0 | X70: FALSE | Y70: 0 | Z70: 0 | AA70: FALSE | AB70: 0 | AC70: 0 | AD70: FALSE | AE70: 0 | AF70: 0 | AG70: FALSE | AH70: 0 | AI70: 0 | AJ70: 0 | AK70: 11.63 | AL70: 0 | AM70: TRUE | AN70: 0 | AO70: 0 | AP70: =IF(OPLApplies,IF(AmountSubjectToOPL<RemainingOPL,AmountSubjectToOPL,RemainingOPL),SubscriberPaymentBeforeOPL) -> 0 | AQ70: 11.63 | AR70: 0 | AS70: 0 | AT70: 0 | AU70: 0 | AV70: =SubscriberPaymentAfterOPL-SubscriberPayCopay-SubscriberPayCoins -> 0 | AW70: TRUE | AX70: TRUE
A71: 69 | B71: 2011-06-27 | C71: 6 | D71: 2 | E71: Routine Venipuncture | F71: Diagnostic Services: Laboratory | G71: Plan Deductible Only | H71: 4.17 | I71: 0 | J71: 4.17 | K71: None | L71: 0 | M71: 0 | N71: None | O71: 1 | P71: 0 | Q71: 0 | R71: 0 | S71: 0 | T71: 4.17 | U71: TRUE | V71: 0 | W71: 0 | X71: FALSE | Y71: 0 | Z71: 0 | AA71: FALSE | AB71: 0 | AC71: 0 | AD71: FALSE | AE71: 0 | AF71: 0 | AG71: FALSE | AH71: 0 | AI71: 0 | AJ71: 0 | AK71: 4.17 | AL71: 0 | AM71: TRUE | AN71: 0 | AO71: 0 | AP71: =IF(OPLApplies,IF(AmountSubjectToOPL<RemainingOPL,AmountSubjectToOPL,RemainingOPL),SubscriberPaymentBeforeOPL) -> 0 | AQ71: 4.17 | AR71: 0 | AS71: 0 | AT71: 0 | AU71: 0 | AV71: =SubscriberPaymentAfterOPL-SubscriberPayCopay-SubscriberPayCoins -> 0 | AW71: TRUE | AX71: TRUE
A72: 70 | B72: 2011-06-27 | C72: 6 | D72: 11 | E72: Urinalysis Auto W/O Scope | F72: Diagnostic Services: Laboratory | G72: Plan Deductible Only | H72: 3.09 | I72: 0 | J72: 3.09 | K72: None | L72: 0 | M72: 0 | N72: None | O72: 1 | P72: 0 | Q72: 0 | R72: 0 | S72: 0 | T72: 3.09 | U72: TRUE | V72: 0 | W72: 0 | X72: FALSE | Y72: 0 | Z72: 0 | AA72: FALSE | AB72: 0 | AC72: 0 | AD72: FALSE | AE72: 0 | AF72: 0 | AG72: FALSE | AH72: 0 | AI72: 0 | AJ72: 0 | AK72: 3.09 | AL72: 0 | AM72: TRUE | AN72: 0 | AO72: 0 | AP72: =IF(OPLApplies,IF(AmountSubjectToOPL<RemainingOPL,AmountSubjectToOPL,RemainingOPL),SubscriberPaymentBeforeOPL) -> 0 | AQ72: 3.09 | AR72: 0 | AS72: 0 | AT72: 0 | AU72: 0 | AV72: =SubscriberPaymentAfterOPL-SubscriberPayCopay-SubscriberPayCoins -> 0 | AW72: TRUE | AX72: TRUE
A73: 71 | B73: 2011-06-27 | C73: 6 | D73: 24 | E73: Office/Outpatient Visit Est | F73: Professional Services: Primary Care | G73: Copayment Only | H73: 107.87 | I73: 0 | J73: 107.87 | K73: None | L73: 0 | M73: 0 | N73: None | O73: 2 | P73: 0 | Q73: 30 | R73: 0 | S73: 0 | T73: 77.87 | U73: FALSE | V73: 0 | W73: 0 | X73: FALSE | Y73: 0 | Z73: 0 | AA73: FALSE | AB73: 0 | AC73: 0 | AD73: FALSE | AE73: 0 | AF73: 0 | AG73: FALSE | AH73: 0 | AI73: 0 | AJ73: 0 | AK73: 107.87 | AL73: 30 | AM73: TRUE | AN73: 30 | AO73: 0 | AP73: =IF(OPLApplies,IF(AmountSubjectToOPL<RemainingOPL,AmountSubjectToOPL,RemainingOPL),SubscriberPaymentBeforeOPL) -> 0 | AQ73: 107.87 | AR73: 0 | AS73: 0 | AT73: 0 | AU73: 0 | AV73: =SubscriberPaymentAfterOPL-SubscriberPayCopay-SubscriberPayCoins -> 0 | AW73: TRUE | AX73: TRUE
A74: 72 | B74: 2011-06-28 | C74: 6 | D74: 21 | E74: Self-mgmt educ & train 1 pt | F74: Professional Services: Primary Care | G74: Copayment Only | H74: 99.9 | I74: 0 | J74: 99.9 | K74: None | L74: 0 | M74: 0 | N74: None | O74: 1 | P74: 0 | Q74: 30 | R74: 0 | S74: 0 | T74: 69.9 | U74: FALSE | V74: 0 | W74: 0 | X74: FALSE | Y74: 0 | Z74: 0 | AA74: FALSE | AB74: 0 | AC74: 0 | AD74: FALSE | AE74: 0 | AF74: 0 | AG74: FALSE | AH74: 0 | AI74: 0 | AJ74: 0 | AK74: 99.9 | AL74: 30 | AM74: TRUE | AN74: 30 | AO74: 0 | AP74: =IF(OPLApplies,IF(AmountSubjectToOPL<RemainingOPL,AmountSubjectToOPL,RemainingOPL),SubscriberPaymentBeforeOPL) -> 0 | AQ74: 99.9 | AR74: 0 | AS74: 0 | AT74: 0 | AU74: 0 | AV74: =SubscriberPaymentAfterOPL-SubscriberPayCopay-SubscriberPayCoins -> 0 | AW74: TRUE | AX74: TRUE
A75: 73 | B75: 2011-06-28 | C75: 6 | D75: 20 | E75: Med Nutrition Indiv Subseq | F75: Professional Services: Primary Care | G75: Copayment Only | H75: 80 | I75: 0 | J75: 80 | K75: None | L75: 0 | M75: 0 | N75: None | O75: 1 | P75: 0 | Q75: 30 | R75: 0 | S75: 0 | T75: 50 | U75: FALSE | V75: 0 | W75: 0 | X75: FALSE | Y75: 0 | Z75: 0 | AA75: FALSE | AB75: 0 | AC75: 0 | AD75: FALSE | AE75: 0 | AF75: 0 | AG75: FALSE | AH75: 0 | AI75: 0 | AJ75: 0 | AK75: 80 | AL75: 30 | AM75: TRUE | AN75: 30 | AO75: 0 | AP75: =IF(OPLApplies,IF(AmountSubjectToOPL<RemainingOPL,AmountSubjectToOPL,RemainingOPL),SubscriberPaymentBeforeOPL) -> 0 | AQ75: 80 | AR75: 0 | AS75: 0 | AT75: 0 | AU75: 0 | AV75: =SubscriberPaymentAfterOPL-SubscriberPayCopay-SubscriberPayCoins -> 0 | AW75: TRUE | AX75: TRUE
A76: 74 | B76: 2011-07-02 | C76: 7 | D76: 25 | E76: Alcohol swabs (OTC - box of 100) [usage = 3 wipes/day; 90 wipes/month] | F76: Over-the-counter Drugs | G76: Not Covered | H76: 2.6075 | I76: 2.6075 | J76: 0 | K76: None | L76: 0 | M76: 0 | N76: None | O76: 6 | P76: 0 | Q76: 0 | R76: 0 | S76: 0 | T76: 0 | U76: FALSE | V76: 0 | W76: 0 | X76: FALSE | Y76: 0 | Z76: 0 | AA76: FALSE | AB76: 0 | AC76: 0 | AD76: FALSE | AE76: 0 | AF76: 0 | AG76: FALSE | AH76: 0 | AI76: 0 | AJ76: 0 | AK76: 0 | AL76: 0 | AM76: FALSE | AN76: 0 | AO76: 0 | AP76: =IF(OPLApplies,IF(AmountSubjectToOPL<RemainingOPL,AmountSubjectToOPL,RemainingOPL),SubscriberPaymentBeforeOPL) -> 0 | AQ76: 0 | AR76: 2.6075 | AS76: 0 | AT76: 0 | AU76: 0 | AV76: =SubscriberPaymentAfterOPL-SubscriberPayCopay-SubscriberPayCoins -> 0 | AW76: TRUE | AX76: TRUE
A77: 75 | B77: 2011-07-02 | C77: 7 | D77: 14 | E77: BD Ultrafine Insulin Syringes / 30G/ 0.5cc [usage = 30 syringes per month] | F77: Medical Supplies | G77: Plan Deductible Only | H77: 42.66 | I77: 0 | J77: 42.66 | K77: None | L77: 0 | M77: 0 | N77: None | O77: 6 | P77: 0 | Q77: 0 | R77: 0 | S77: 0 | T77: 42.66 | U77: TRUE | V77: 0 | W77: 0 | X77: FALSE | Y77: 0 | Z77: 0 | AA77: FALSE | AB77: 0 | AC77: 0 | AD77: FALSE | AE77: 0 | AF77: 0 | AG77: FALSE | AH77: 0 | AI77: 0 | AJ77: 0 | AK77: 42.66 | AL77: 0 | AM77: TRUE | AN77: 0 | AO77: 0 | AP77: =IF(OPLApplies,IF(AmountSubjectToOPL<RemainingOPL,AmountSubjectToOPL,RemainingOPL),SubscriberPaymentBeforeOPL) -> 0 | AQ77: 42.66 | AR77: 0 | AS77: 0 | AT77: 0 | AU77: 0 | AV77: =SubscriberPaymentAfterOPL-SubscriberPayCopay-SubscriberPayCoins -> 0 | AW77: TRUE | AX77: TRUE
A78: 76 | B78: 2011-07-02 | C78: 7 | D78: 6 | E78: OneTouch Ultra Control Solution (2 vials/box) | F78: Medical Supplies | G78: Plan Deductible Only | H78: 5.07 | I78: 0 | J78: 5.07 | K78: None | L78: 0 | M78: 0 | N78: None | O78: 1 | P78: 0 | Q78: 0 | R78: 0 | S78: 0 | T78: 5.07 | U78: TRUE | V78: 0 | W78: 0 | X78: FALSE | Y78: 0 | Z78: 0 | AA78: FALSE | AB78: 0 | AC78: 0 | AD78: FALSE | AE78: 0 | AF78: 0 | AG78: FALSE | AH78: 0 | AI78: 0 | AJ78: 0 | AK78: 5.07 | AL78: 0 | AM78: TRUE | AN78: 0 | AO78: 0 | AP78: =IF(OPLApplies,IF(AmountSubjectToOPL<RemainingOPL,AmountSubjectToOPL,RemainingOPL),SubscriberPaymentBeforeOPL) -> 0 | AQ78: 5.07 | AR78: 0 | AS78: 0 | AT78: 0 | AU78: 0 | AV78: =SubscriberPaymentAfterOPL-SubscriberPayCopay-SubscriberPayCoins -> 0 | AW78: TRUE | AX78: TRUE
A79: 77 | B79: 2011-07-02 | C79: 7 | D79: 32 | E79: METFORMIN HCL 850 MG TABLET | F79: Prescription Drugs: Generic | G79: Rx Deductible+Co-ins | H79: 9.19 | I79: 0 | J79: 9.19 | K79: None | L79: 0 | M79: 0 | N79: None | O79: 6 | P79: 0 | Q79: 0 | R79: 0.1 | S79: 0.919 | T79: 8.271 | U79: FALSE | V79: 0 | W79: 0 | X79: TRUE | Y79: 0 | Z79: 0 | AA79: FALSE | AB79: 0 | AC79: 0 | AD79: FALSE | AE79: 0 | AF79: 0 | AG79: FALSE | AH79: 0 | AI79: 0 | AJ79: 0 | AK79: 9.19 | AL79: 0.919 | AM79: TRUE | AN79: 0.919 | AO79: 0 | AP79: =IF(OPLApplies,IF(AmountSubjectToOPL<RemainingOPL,AmountSubjectToOPL,RemainingOPL),SubscriberPaymentBeforeOPL) -> 0 | AQ79: 9.19 | AR79: 0 | AS79: 0 | AT79: 0 | AU79: 0 | AV79: =SubscriberPaymentAfterOPL-SubscriberPayCopay-SubscriberPayCoins -> 0 | AW79: TRUE | AX79: TRUE
A80: 78 | B80: 2011-07-02 | C80: 7 | D80: 19 | E80: Ramipril 10mg (Rx) [1 QD; #30 pills/month] | F80: Prescription Drugs: Generic | G80: Rx Deductible+Co-ins | H80: 15.92 | I80: 0 | J80: 15.92 | K80: None | L80: 0 | M80: 0 | N80: None | O80: 6 | P80: 0 | Q80: 0 | R80: 0.1 | S80: 1.592 | T80: 14.328 | U80: FALSE | V80: 0 | W80: 0 | X80: TRUE | Y80: 0 | Z80: 0 | AA80: FALSE | AB80: 0 | AC80: 0 | AD80: FALSE | AE80: 0 | AF80: 0 | AG80: FALSE | AH80: 0 | AI80: 0 | AJ80: 0 | AK80: 15.92 | AL80: 1.592 | AM80: TRUE | AN80: 1.592 | AO80: 0 | AP80: =IF(OPLApplies,IF(AmountSubjectToOPL<RemainingOPL,AmountSubjectToOPL,RemainingOPL),SubscriberPaymentBeforeOPL) -> 0 | AQ80: 15.92 | AR80: 0 | AS80: 0 | AT80: 0 | AU80: 0 | AV80: =SubscriberPaymentAfterOPL-SubscriberPayCopay-SubscriberPayCoins -> 0 | AW80: TRUE | AX80: TRUE
A81: 79 | B81: 2011-07-02 | C81: 7 | D81: 33 | E81: Atorvastatin 20 MG tablet 90 CT | F81: Prescription Drugs: Generic | G81: Rx Deductible+Co-ins | H81: 25.88 | I81: 0 | J81: 25.88 | K81: None | L81: 0 | M81: 0 | N81: None | O81: 2 | P81: 0 | Q81: 0 | R81: 0.1 | S81: 2.588 | T81: 23.292 | U81: FALSE | V81: 0 | W81: 0 | X81: TRUE | Y81: 0 | Z81: 0 | AA81: FALSE | AB81: 0 | AC81: 0 | AD81: FALSE | AE81: 0 | AF81: 0 | AG81: FALSE | AH81: 0 | AI81: 0 | AJ81: 0 | AK81: 25.88 | AL81: 2.588 | AM81: TRUE | AN81: 2.588 | AO81: 0 | AP81: =IF(OPLApplies,IF(AmountSubjectToOPL<RemainingOPL,AmountSubjectToOPL,RemainingOPL),SubscriberPaymentBeforeOPL) -> 0 | AQ81: 25.88 | AR81: 0 | AS81: 0 | AT81: 0 | AU81: 0 | AV81: =SubscriberPaymentAfterOPL-SubscriberPayCopay-SubscriberPayCoins -> 0 | AW81: TRUE | AX81: TRUE
A82: 80 | B82: 2011-07-18 | C82: 7 | D82: 17 | E82: Insulin glargine 100 unit/ml injectable solution (Rx - 10ml vial) [20 units QD; expires 28 days after first use] | F82: Prescription Drugs: Branded | G82: Rx Deductible+Co-pay | H82: 275.51 | I82: 0 | J82: 275.51 | K82: None | L82: 0 | M82: 0 | N82: None | O82: 7 | P82: 0 | Q82: 30 | R82: 0 | S82: 0 | T82: 245.51 | U82: FALSE | V82: 0 | W82: 0 | X82: TRUE | Y82: 0 | Z82: 0 | AA82: FALSE | AB82: 0 | AC82: 0 | AD82: FALSE | AE82: 0 | AF82: 0 | AG82: FALSE | AH82: 0 | AI82: 0 | AJ82: 0 | AK82: 275.51 | AL82: 30 | AM82: TRUE | AN82: 30 | AO82: 0 | AP82: =IF(OPLApplies,IF(AmountSubjectToOPL<RemainingOPL,AmountSubjectToOPL,RemainingOPL),SubscriberPaymentBeforeOPL) -> 0 | AQ82: 275.51 | AR82: 0 | AS82: 0 | AT82: 0 | AU82: 0 | AV82: =SubscriberPaymentAfterOPL-SubscriberPayCopay-SubscriberPayCoins -> 0 | AW82: TRUE | AX82: TRUE
A83: 81 | B83: 2011-07-22 | C83: 7 | D83: 4 | E83: OneTouch Ultra Blue Test Strips (Rx - box of 100) [usage = 2 strips/day; 60 per month] | F83: Medical Supplies | G83: Plan Deductible Only | H83: 125.26 | I83: 0 | J83: 125.26 | K83: None | L83: 0 | M83: 0 | N83: None | O83: 4 | P83: 0 | Q83: 0 | R83: 0 | S83: 0 | T83: 125.26 | U83: TRUE | V83: 0 | W83: 0 | X83: FALSE | Y83: 0 | Z83: 0 | AA83: FALSE | AB83: 0 | AC83: 0 | AD83: FALSE | AE83: 0 | AF83: 0 | AG83: FALSE | AH83: 0 | AI83: 0 | AJ83: 0 | AK83: 125.26 | AL83: 0 | AM83: TRUE | AN83: 0 | AO83: 0 | AP83: =IF(OPLApplies,IF(AmountSubjectToOPL<RemainingOPL,AmountSubjectToOPL,RemainingOPL),SubscriberPaymentBeforeOPL) -> 0 | AQ83: 125.26 | AR83: 0 | AS83: 0 | AT83: 0 | AU83: 0 | AV83: =SubscriberPaymentAfterOPL-SubscriberPayCopay-SubscriberPayCoins -> 0 | AW83: TRUE | AX83: TRUE
A84: 82 | B84: 2011-08-01 | C84: 8 | D84: 25 | E84: Alcohol swabs (OTC - box of 100) [usage = 3 wipes/day; 90 wipes/month] | F84: Over-the-counter Drugs | G84: Not Covered | H84: 2.6075 | I84: 2.6075 | J84: 0 | K84: None | L84: 0 | M84: 0 | N84: None | O84: 7 | P84: 0 | Q84: 0 | R84: 0 | S84: 0 | T84: 0 | U84: FALSE | V84: 0 | W84: 0 | X84: FALSE | Y84: 0 | Z84: 0 | AA84: FALSE | AB84: 0 | AC84: 0 | AD84: FALSE | AE84: 0 | AF84: 0 | AG84: FALSE | AH84: 0 | AI84: 0 | AJ84: 0 | AK84: 0 | AL84: 0 | AM84: FALSE | AN84: 0 | AO84: 0 | AP84: =IF(OPLApplies,IF(AmountSubjectToOPL<RemainingOPL,AmountSubjectToOPL,RemainingOPL),SubscriberPaymentBeforeOPL) -> 0 | AQ84: 0 | AR84: 2.6075 | AS84: 0 | AT84: 0 | AU84: 0 | AV84: =SubscriberPaymentAfterOPL-SubscriberPayCopay-SubscriberPayCoins -> 0 | AW84: TRUE | AX84: TRUE
A85: 83 | B85: 2011-08-01 | C85: 8 | D85: 14 | E85: BD Ultrafine Insulin Syringes / 30G/ 0.5cc [usage = 30 syringes per month] | F85: Medical Supplies | G85: Plan Deductible Only | H85: 42.66 | I85: 0 | J85: 42.66 | K85: None | L85: 0 | M85: 0 | N85: None | O85: 7 | P85: 0 | Q85: 0 | R85: 0 | S85: 0 | T85: 42.66 | U85: TRUE | V85: 0 | W85: 0 | X85: FALSE | Y85: 0 | Z85: 0 | AA85: FALSE | AB85: 0 | AC85: 0 | AD85: FALSE | AE85: 0 | AF85: 0 | AG85: FALSE | AH85: 0 | AI85: 0 | AJ85: 0 | AK85: 42.66 | AL85: 0 | AM85: TRUE | AN85: 0 | AO85: 0 | AP85: =IF(OPLApplies,IF(AmountSubjectToOPL<RemainingOPL,AmountSubjectToOPL,RemainingOPL),SubscriberPaymentBeforeOPL) -> 0 | AQ85: 42.66 | AR85: 0 | AS85: 0 | AT85: 0 | AU85: 0 | AV85: =SubscriberPaymentAfterOPL-SubscriberPayCopay-SubscriberPayCoins -> 0 | AW85: TRUE | AX85: TRUE
A86: 84 | B86: 2011-08-01 | C86: 8 | D86: 32 | E86: METFORMIN HCL 850 MG TABLET | F86: Prescription Drugs: Generic | G86: Rx Deductible+Co-ins | H86: 9.19 | I86: 0 | J86: 9.19 | K86: None | L86: 0 | M86: 0 | N86: None | O86: 7 | P86: 0 | Q86: 0 | R86: 0.1 | S86: 0.919 | T86: 8.271 | U86: FALSE | V86: 0 | W86: 0 | X86: TRUE | Y86: 0 | Z86: 0 | AA86: FALSE | AB86: 0 | AC86: 0 | AD86: FALSE | AE86: 0 | AF86: 0 | AG86: FALSE | AH86: 0 | AI86: 0 | AJ86: 0 | AK86: 9.19 | AL86: 0.919 | AM86: TRUE | AN86: 0.919 | AO86: 0 | AP86: =IF(OPLApplies,IF(AmountSubjectToOPL<RemainingOPL,AmountSubjectToOPL,RemainingOPL),SubscriberPaymentBeforeOPL) -> 0 | AQ86: 9.19 | AR86: 0 | AS86: 0 | AT86: 0 | AU86: 0 | AV86: =SubscriberPaymentAfterOPL-SubscriberPayCopay-SubscriberPayCoins -> 0 | AW86: TRUE | AX86: TRUE
A87: 85 | B87: 2011-08-01 | C87: 8 | D87: 19 | E87: Ramipril 10mg (Rx) [1 QD; #30 pills/month] | F87: Prescription Drugs: Generic | G87: Rx Deductible+Co-ins | H87: 15.92 | I87: 0 | J87: 15.92 | K87: None | L87: 0 | M87: 0 | N87: None | O87: 7 | P87: 0 | Q87: 0 | R87: 0.1 | S87: 1.592 | T87: 14.328 | U87: FALSE | V87: 0 | W87: 0 | X87: TRUE | Y87: 0 | Z87: 0 | AA87: FALSE | AB87: 0 | AC87: 0 | AD87: FALSE | AE87: 0 | AF87: 0 | AG87: FALSE | AH87: 0 | AI87: 0 | AJ87: 0 | AK87: 15.92 | AL87: 1.592 | AM87: TRUE | AN87: 1.592 | AO87: 0 | AP87: =IF(OPLApplies,IF(AmountSubjectToOPL<RemainingOPL,AmountSubjectToOPL,RemainingOPL),SubscriberPaymentBeforeOPL) -> 0 | AQ87: 15.92 | AR87: 0 | AS87: 0 | AT87: 0 | AU87: 0 | AV87: =SubscriberPaymentAfterOPL-SubscriberPayCopay-SubscriberPayCoins -> 0 | AW87: TRUE | AX87: TRUE
A88: 86 | B88: 2011-08-15 | C88: 8 | D88: 17 | E88: Insulin glargine 100 unit/ml injectable solution (Rx - 10ml vial) [20 units QD; expires 28 days after first use] | F88: Prescription Drugs: Branded | G88: Rx Deductible+Co-pay | H88: 275.51 | I88: 0 | J88: 275.51 | K88: None | L88: 0 | M88: 0 | N88: None | O88: 8 | P88: 0 | Q88: 30 | R88: 0 | S88: 0 | T88: 245.51 | U88: FALSE | V88: 0 | W88: 0 | X88: TRUE | Y88: 0 | Z88: 0 | AA88: FALSE | AB88: 0 | AC88: 0 | AD88: FALSE | AE88: 0 | AF88: 0 | AG88: FALSE | AH88: 0 | AI88: 0 | AJ88: 0 | AK88: 275.51 | AL88: 30 | AM88: TRUE | AN88: 30 | AO88: 0 | AP88: =IF(OPLApplies,IF(AmountSubjectToOPL<RemainingOPL,AmountSubjectToOPL,RemainingOPL),SubscriberPaymentBeforeOPL) -> 0 | AQ88: 275.51 | AR88: 0 | AS88: 0 | AT88: 0 | AU88: 0 | AV88: =SubscriberPaymentAfterOPL-SubscriberPayCopay-SubscriberPayCoins -> 0 | AW88: TRUE | AX88: TRUE
A89: 87 | B89: 2011-08-16 | C89: 8 | D89: 4 | E89: OneTouch Ultra Blue Test Strips (Rx - box of 100) [usage = 2 strips/day; 60 per month] | F89: Medical Supplies | G89: Plan Deductible Only | H89: 125.26 | I89: 0 | J89: 125.26 | K89: None | L89: 0 | M89: 0 | N89: None | O89: 5 | P89: 0 | Q89: 0 | R89: 0 | S89: 0 | T89: 125.26 | U89: TRUE | V89: 0 | W89: 0 | X89: FALSE | Y89: 0 | Z89: 0 | AA89: FALSE | AB89: 0 | AC89: 0 | AD89: FALSE | AE89: 0 | AF89: 0 | AG89: FALSE | AH89: 0 | AI89: 0 | AJ89: 0 | AK89: 125.26 | AL89: 0 | AM89: TRUE | AN89: 0 | AO89: 0 | AP89: =IF(OPLApplies,IF(AmountSubjectToOPL<RemainingOPL,AmountSubjectToOPL,RemainingOPL),SubscriberPaymentBeforeOPL) -> 0 | AQ89: 125.26 | AR89: 0 | AS89: 0 | AT89: 0 | AU89: 0 | AV89: =SubscriberPaymentAfterOPL-SubscriberPayCopay-SubscriberPayCoins -> 0 | AW89: TRUE | AX89: TRUE
A90: 88 | B90: 2011-08-31 | C90: 8 | D90: 25 | E90: Alcohol swabs (OTC - box of 100) [usage = 3 wipes/day; 90 wipes/month] | F90: Over-the-counter Drugs | G90: Not Covered | H90: 2.6075 | I90: 2.6075 | J90: 0 | K90: None | L90: 1 | M90: 0 | N90: None | O90: 8 | P90: 0 | Q90: 0 | R90: 0 | S90: 0 | T90: 0 | U90: FALSE | V90: 0 | W90: 0 | X90: FALSE | Y90: 0 | Z90: 0 | AA90: FALSE | AB90: 0 | AC90: 0 | AD90: FALSE | AE90: 0 | AF90: 0 | AG90: FALSE | AH90: 0 | AI90: 0 | AJ90: 0 | AK90: 0 | AL90: 0 | AM90: FALSE | AN90: 0 | AO90: 0 | AP90: =IF(OPLApplies,IF(AmountSubjectToOPL<RemainingOPL,AmountSubjectToOPL,RemainingOPL),SubscriberPaymentBeforeOPL) -> 0 | AQ90: 0 | AR90: 2.6075 | AS90: 0 | AT90: 0 | AU90: 0 | AV90: =SubscriberPaymentAfterOPL-SubscriberPayCopay-SubscriberPayCoins -> 0 | AW90: TRUE | AX90: TRUE
A91: 89 | B91: 2011-08-31 | C91: 8 | D91: 14 | E91: BD Ultrafine Insulin Syringes / 30G/ 0.5cc [usage = 30 syringes per month] | F91: Medical Supplies | G91: Plan Deductible Only | H91: 42.66 | I91: 0 | J91: 42.66 | K91: None | L91: 1 | M91: 0 | N91: None | O91: 8 | P91: 0 | Q91: 0 | R91: 0 | S91: 0 | T91: 42.66 | U91: TRUE | V91: 0 | W91: 0 | X91: FALSE | Y91: 0 | Z91: 0 | AA91: FALSE | AB91: 0 | AC91: 0 | AD91: FALSE | AE91: 0 | AF91: 0 | AG91: FALSE | AH91: 0 | AI91: 0 | AJ91: 0 | AK91: 42.66 | AL91: 0 | AM91: TRUE | AN91: 0 | AO91: 0 | AP91: =IF(OPLApplies,IF(AmountSubjectToOPL<RemainingOPL,AmountSubjectToOPL,RemainingOPL),SubscriberPaymentBeforeOPL) -> 0 | AQ91: 42.66 | AR91: 0 | AS91: 0 | AT91: 0 | AU91: 0 | AV91: =SubscriberPaymentAfterOPL-SubscriberPayCopay-SubscriberPayCoins -> 0 | AW91: TRUE | AX91: TRUE
A92: 90 | B92: 2011-08-31 | C92: 8 | D92: 32 | E92: METFORMIN HCL 850 MG TABLET | F92: Prescription Drugs: Generic | G92: Rx Deductible+Co-ins | H92: 9.19 | I92: 0 | J92: 9.19 | K92: None | L92: 1 | M92: 0 | N92: None | O92: 8 | P92: 0 | Q92: 0 | R92: 0.1 | S92: 0.919 | T92: 8.271 | U92: FALSE | V92: 0 | W92: 0 | X92: TRUE | Y92: 0 | Z92: 0 | AA92: FALSE | AB92: 0 | AC92: 0 | AD92: FALSE | AE92: 0 | AF92: 0 | AG92: FALSE | AH92: 0 | AI92: 0 | AJ92: 0 | AK92: 9.19 | AL92: 0.919 | AM92: TRUE | AN92: 0.919 | AO92: 0 | AP92: =IF(OPLApplies,IF(AmountSubjectToOPL<RemainingOPL,AmountSubjectToOPL,RemainingOPL),SubscriberPaymentBeforeOPL) -> 0 | AQ92: 9.19 | AR92: 0 | AS92: 0 | AT92: 0 | AU92: 0 | AV92: =SubscriberPaymentAfterOPL-SubscriberPayCopay-SubscriberPayCoins -> 0 | AW92: TRUE | AX92: TRUE
A93: 91 | B93: 2011-08-31 | C93: 8 | D93: 19 | E93: Ramipril 10mg (Rx) [1 QD; #30 pills/month] | F93: Prescription Drugs: Generic | G93: Rx Deductible+Co-ins | H93: 15.92 | I93: 0 | J93: 15.92 | K93: None | L93: 1 | M93: 0 | N93: None | O93: 8 | P93: 0 | Q93: 0 | R93: 0.1 | S93: 1.592 | T93: 14.328 | U93: FALSE | V93: 0 | W93: 0 | X93: TRUE | Y93: 0 | Z93: 0 | AA93: FALSE | AB93: 0 | AC93: 0 | AD93: FALSE | AE93: 0 | AF93: 0 | AG93: FALSE | AH93: 0 | AI93: 0 | AJ93: 0 | AK93: 15.92 | AL93: 1.592 | AM93: TRUE | AN93: 1.592 | AO93: 0 | AP93: =IF(OPLApplies,IF(AmountSubjectToOPL<RemainingOPL,AmountSubjectToOPL,RemainingOPL),SubscriberPaymentBeforeOPL) -> 0 | AQ93: 15.92 | AR93: 0 | AS93: 0 | AT93: 0 | AU93: 0 | AV93: =SubscriberPaymentAfterOPL-SubscriberPayCopay-SubscriberPayCoins -> 0 | AW93: TRUE | AX93: TRUE
A94: 92 | B94: 2011-09-10 | C94: 9 | D94: 5 | E94: OneTouch Delica Lancets (100 per box) [usage = 60 lancets per month] | F94: Medical Supplies | G94: Plan Deductible Only | H94: 10.38 | I94: 0 | J94: 10.38 | K94: None | L94: 0 | M94: 0 | N94: None | O94: 5 | P94: 0 | Q94: 0 | R94: 0 | S94: 0 | T94: 10.38 | U94: TRUE | V94: 0 | W94: 0 | X94: FALSE | Y94: 0 | Z94: 0 | AA94: FALSE | AB94: 0 | AC94: 0 | AD94: FALSE | AE94: 0 | AF94: 0 | AG94: FALSE | AH94: 0 | AI94: 0 | AJ94: 0 | AK94: 10.38 | AL94: 0 | AM94: TRUE | AN94: 0 | AO94: 0 | AP94: =IF(OPLApplies,IF(AmountSubjectToOPL<RemainingOPL,AmountSubjectToOPL,RemainingOPL),SubscriberPaymentBeforeOPL) -> 0 | AQ94: 10.38 | AR94: 0 | AS94: 0 | AT94: 0 | AU94: 0 | AV94: =SubscriberPaymentAfterOPL-SubscriberPayCopay-SubscriberPayCoins -> 0 | AW94: TRUE | AX94: TRUE
A95: 93 | B95: 2011-09-10 | C95: 9 | D95: 4 | E95: OneTouch Ultra Blue Test Strips (Rx - box of 100) [usage = 2 strips/day; 60 per month] | F95: Medical Supplies | G95: Plan Deductible Only | H95: 125.26 | I95: 0 | J95: 125.26 | K95: None | L95: 0 | M95: 0 | N95: None | O95: 6 | P95: 0 | Q95: 0 | R95: 0 | S95: 0 | T95: 125.26 | U95: TRUE | V95: 0 | W95: 0 | X95: FALSE | Y95: 0 | Z95: 0 | AA95: FALSE | AB95: 0 | AC95: 0 | AD95: FALSE | AE95: 0 | AF95: 0 | AG95: FALSE | AH95: 0 | AI95: 0 | AJ95: 0 | AK95: 125.26 | AL95: 0 | AM95: TRUE | AN95: 0 | AO95: 0 | AP95: =IF(OPLApplies,IF(AmountSubjectToOPL<RemainingOPL,AmountSubjectToOPL,RemainingOPL),SubscriberPaymentBeforeOPL) -> 0 | AQ95: 125.26 | AR95: 0 | AS95: 0 | AT95: 0 | AU95: 0 | AV95: =SubscriberPaymentAfterOPL-SubscriberPayCopay-SubscriberPayCoins -> 0 | AW95: TRUE | AX95: TRUE
A96: 94 | B96: 2011-09-12 | C96: 9 | D96: 26 | E96: Aspirin 81mg (OTC - bottle 100) [usage = 1 QD; #30 pills per month] | F96: Over-the-counter Drugs | G96: Not Covered | H96: 4.2725 | I96: 4.2725 | J96: 0 | K96: None | L96: 0 | M96: 0 | N96: None | O96: 3 | P96: 0 | Q96: 0 | R96: 0 | S96: 0 | T96: 0 | U96: FALSE | V96: 0 | W96: 0 | X96: FALSE | Y96: 0 | Z96: 0 | AA96: FALSE | AB96: 0 | AC96: 0 | AD96: FALSE | AE96: 0 | AF96: 0 | AG96: FALSE | AH96: 0 | AI96: 0 | AJ96: 0 | AK96: 0 | AL96: 0 | AM96: FALSE | AN96: 0 | AO96: 0 | AP96: =IF(OPLApplies,IF(AmountSubjectToOPL<RemainingOPL,AmountSubjectToOPL,RemainingOPL),SubscriberPaymentBeforeOPL) -> 0 | AQ96: 0 | AR96: 4.2725 | AS96: 0 | AT96: 0 | AU96: 0 | AV96: =SubscriberPaymentAfterOPL-SubscriberPayCopay-SubscriberPayCoins -> 0 | AW96: TRUE | AX96: TRUE
A97: 95 | B97: 2011-09-12 | C97: 9 | D97: 17 | E97: Insulin glargine 100 unit/ml injectable solution (Rx - 10ml vial) [20 units QD; expires 28 days after first use] | F97: Prescription Drugs: Branded | G97: Rx Deductible+Co-pay | H97: 275.51 | I97: 0 | J97: 275.51 | K97: None | L97: 0 | M97: 0 | N97: None | O97: 9 | P97: 0 | Q97: 30 | R97: 0 | S97: 0 | T97: 245.51 | U97: FALSE | V97: 0 | W97: 0 | X97: TRUE | Y97: 0 | Z97: 0 | AA97: FALSE | AB97: 0 | AC97: 0 | AD97: FALSE | AE97: 0 | AF97: 0 | AG97: FALSE | AH97: 0 | AI97: 0 | AJ97: 0 | AK97: 275.51 | AL97: 30 | AM97: TRUE | AN97: 30 | AO97: 0 | AP97: =IF(OPLApplies,IF(AmountSubjectToOPL<RemainingOPL,AmountSubjectToOPL,RemainingOPL),SubscriberPaymentBeforeOPL) -> 0 | AQ97: 275.51 | AR97: 0 | AS97: 0 | AT97: 0 | AU97: 0 | AV97: =SubscriberPaymentAfterOPL-SubscriberPayCopay-SubscriberPayCoins -> 0 | AW97: TRUE | AX97: TRUE
A98: 96 | B98: 2011-09-26 | C98: 9 | D98: 24 | E98: Office/Outpatient Visit Est | F98: Professional Services: Primary Care | G98: Copayment Only | H98: 107.87 | I98: 0 | J98: 107.87 | K98: None | L98: 0 | M98: 0 | N98: None | O98: 3 | P98: 0 | Q98: 30 | R98: 0 | S98: 0 | T98: 77.87 | U98: FALSE | V98: 0 | W98: 0 | X98: FALSE | Y98: 0 | Z98: 0 | AA98: FALSE | AB98: 0 | AC98: 0 | AD98: FALSE | AE98: 0 | AF98: 0 | AG98: FALSE | AH98: 0 | AI98: 0 | AJ98: 0 | AK98: 107.87 | AL98: 30 | AM98: TRUE | AN98: 30 | AO98: 0 | AP98: =IF(OPLApplies,IF(AmountSubjectToOPL<RemainingOPL,AmountSubjectToOPL,RemainingOPL),SubscriberPaymentBeforeOPL) -> 0 | AQ98: 107.87 | AR98: 0 | AS98: 0 | AT98: 0 | AU98: 0 | AV98: =SubscriberPaymentAfterOPL-SubscriberPayCopay-SubscriberPayCoins -> 0 | AW98: TRUE | AX98: TRUE
A99: 97 | B99: 2011-09-30 | C99: 9 | D99: 25 | E99: =VLOOKUP(ServiceCode,DiabetesFeeSchedule,6,FALSE) -> Alcohol swabs (OTC - box of 100) [usage = 3 wipes/day; 90 wipes/month] | F99: =VLOOKUP(ServiceCode,DiabetesFeeSchedule,5,FALSE) -> Over-the-counter Drugs | G99: =VLOOKUP(BenefitCategory,BenefitDesignTable,COLUMN(BenefitCostSharing),FALSE) -> Not Covered | H99: =VLOOKUP(ServiceCode,DiabetesFeeSchedule,7,FALSE) -> 2.6075 | I99: =IF(CostSharingType="Not Covered",AllowedAmt,0) -> 2.6075 | J99: =IF((NotCoveredAmt+AmtExceedMonthLimit+AmtExceedAnnualLimit)>0,0,AllowedAmt) -> 0 | K99: =VLOOKUP(BenefitCategory,BenefitDesignTable,COLUMN(BenefitLimithMonth),FALSE) -> None | L99: =COUNTIFS(ServiceCode,ServiceCode,ClaimMonth,ClaimMonth,ClaimNumber,"<"&ClaimNumber) -> 0 | M99: =IF(MonthLimit=0,0,IF(PriorUseMonth>=MonthLimit,AllowedAmt,0)) -> 0 | N99: =VLOOKUP(BenefitCategory,BenefitDesignTable,COLUMN(BenefitLimitAnnual),FALSE) -> None | O99: =COUNTIFS(ServiceCode,ServiceCode,ClaimNumber,"<"&ClaimNumber) -> 9 | P99: =IF(AnnualLimit=0,0,IF(PriorUseAnnual>=AnnualLimit,AllowedAmt,0)) -> 0 | Q99: 0 | R99: 0 | S99: 0 | T99: =IF((CoveredAmt-CoPayAmount-CoInsAmount)<0,0,CoveredAmt-CoPayAmount-CoInsAmount) -> 0 | U99: FALSE | V99: =MAX(0,VLOOKUP(BenefitCategory,BenefitDesignTable,COLUMN(PlanDeductible),FALSE)-SUMIFS(AllowedAmtAfterCopayCoins,PlanDeductibleApplies,TRUE,ClaimNumber,"<"&ClaimNumber)) -> 0 | W99: =IF(AllowedAmtAfterCopayCoins<RemainingPlanDeduc,AllowedAmtAfterCopayCoins,RemainingPlanDeduc) -> 0 | X99: FALSE | Y99: =MAX(0,VLOOKUP(BenefitCategory,BenefitDesignTable,COLUMN(RxDeductible),FALSE)-SUMIFS(AllowedAmtAfterCopayCoins,RxDeductibleApplies,TRUE,ClaimNumber,"<"&ClaimNumber)) -> 0 | Z99: =IF(AllowedAmtAfterCopayCoins<RemainingRxDeduc,AllowedAmtAfterCopayCoins,RemainingRxDeduc) -> 0 | AA99: FALSE | AB99: =MAX(0,VLOOKUP(BenefitCategory,BenefitDesignTable,COLUMN(OptDeductibleC),FALSE)-SUMIFS(AllowedAmtAfterCopayCoins,DeductibleCApplies,TRUE,ClaimNumber,"<"&ClaimNumber)) -> 0 | AC99: =IF(AllowedAmtAfterCopayCoins<RemainingDeductibleC,AllowedAmtAfterCopayCoins,RemainingDeductibleC) -> 0 | AD99: =VLOOKUP(BenefitCategory,BenefitDesignTable,COLUMN(OptDeductibleD),FALSE)>0 -> FALSE | AE99: =MAX(0,VLOOKUP(BenefitCategory,BenefitDesignTable,COLUMN(OptDeductibleD),FALSE)-SUMIFS(AllowedAmtAfterCopayCoins,DeductibleDApplies,TRUE,ClaimNumber,"<"&ClaimNumber)) -> 0 | AF99: =IF(AllowedAmtAfterCopayCoins<RemainingDeductibleD,AllowedAmtAfterCopayCoins,RemainingDeductibleD) -> 0 | AG99: FALSE | AH99: =MAX(0,VLOOKUP(BenefitCategory,BenefitDesignTable,COLUMN(BenefitDeductible),FALSE)-SUMIFS(AllowedAmtAfterCopayCoins,BenefitCategory,BenefitCategory,ClaimNumber,"<"&ClaimNumber)) -> 0 | AI99: =IF(AllowedAmtAfterCopayCoins<RemainingBenefitDeduc,AllowedAmtAfterCopayCoins,RemainingBenefitDeduc) -> 0 | AJ99: =PlanDeductiblePayment+RxDeductiblePayment+DeductibleCPayment+DeductibleDPayment+BenefitDeductiblePayment -> 0 | AK99: 0 | AL99: 0 | AM99: FALSE | AN99: 0 | AO99: 0 | AP99: =IF(OPLApplies,IF(AmountSubjectToOPL<RemainingOPL,AmountSubjectToOPL,RemainingOPL),SubscriberPaymentBeforeOPL) -> 0 | AQ99: 0 | AR99: =NotCoveredAmt -> 2.6075 | AS99: =AmtExceedMonthLimit+AmtExceedAnnualLimit -> 0 | AT99: =IF(CoPayAmount<SubscriberPaymentAfterOPL,CoPayAmount,SubscriberPaymentAfterOPL) -> 0 | AU99: =IF(CoInsAmount<SubscriberPaymentAfterOPL,CoInsAmount,SubscriberPaymentAfterOPL) -> 0 | AV99: =SubscriberPaymentAfterOPL-SubscriberPayCopay-SubscriberPayCoins -> 0 | AW99: =SUM(AS99:AV99)=AP99 -> TRUE | AX99: =SUM(AQ99:AV99)=H99 -> TRUE
A100: 98 | B100: 2011-09-30 | C100: 9 | D100: 14 | E100: BD Ultrafine Insulin Syringes / 30G/ 0.5cc [usage = 30 syringes per month] | F100: Medical Supplies | G100: Plan Deductible Only | H100: 42.66 | I100: 0 | J100: 42.66 | K100: None | L100: 0 | M100: 0 | N100: None | O100: 9 | P100: 0 | Q100: 0 | R100: 0 | S100: 0 | T100: 42.66 | U100: TRUE | V100: 0 | W100: 0 | X100: FALSE | Y100: 0 | Z100: 0 | AA100: FALSE | AB100: 0 | AC100: 0 | AD100: FALSE | AE100: 0 | AF100: 0 | AG100: FALSE | AH100: 0 | AI100: 0 | AJ100: 0 | AK100: 42.66 | AL100: 0 | AM100: TRUE | AN100: 0 | AO100: 0 | AP100: =IF(OPLApplies,IF(AmountSubjectToOPL<RemainingOPL,AmountSubjectToOPL,RemainingOPL),SubscriberPaymentBeforeOPL) -> 0 | AQ100: =IF(CoveredAmt<SubscriberPaymentAfterOPL,0,CoveredAmt-SubscriberPaymentAfterOPL) -> 42.66 | AR100: 0 | AS100: 0 | AT100: 0 | AU100: 0 | AV100: =SubscriberPaymentAfterOPL-SubscriberPayCopay-SubscriberPayCoins -> 0 | AW100: TRUE | AX100: TRUE
A101: 99 | B101: 2011-09-30 | C101: 9 | D101: 32 | E101: METFORMIN HCL 850 MG TABLET | F101: Prescription Drugs: Generic | G101: Rx Deductible+Co-ins | H101: 9.19 | I101: 0 | J101: 9.19 | K101: None | L101: 0 | M101: 0 | N101: None | O101: 9 | P101: 0 | Q101: 0 | R101: 0.1 | S101: 0.919 | T101: 8.271 | U101: FALSE | V101: 0 | W101: 0 | X101: TRUE | Y101: 0 | Z101: 0 | AA101: FALSE | AB101: 0 | AC101: 0 | AD101: FALSE | AE101: 0 | AF101: 0 | AG101: FALSE | AH101: 0 | AI101: 0 | AJ101: 0 | AK101: 9.19 | AL101: 0.919 | AM101: TRUE | AN101: 0.919 | AO101: 0 | AP101: =IF(OPLApplies,IF(AmountSubjectToOPL<RemainingOPL,AmountSubjectToOPL,RemainingOPL),SubscriberPaymentBeforeOPL) -> 0 | AQ101: 9.19 | AR101: 0 | AS101: 0 | AT101: 0 | AU101: 0 | AV101: =SubscriberPaymentAfterOPL-SubscriberPayCopay-SubscriberPayCoins -> 0 | AW101: TRUE | AX101: TRUE
A102: 100 | B102: 2011-09-30 | C102: 9 | D102: 19 | E102: Ramipril 10mg (Rx) [1 QD; #30 pills/month] | F102: Prescription Drugs: Generic | G102: Rx Deductible+Co-ins | H102: 15.92 | I102: 0 | J102: 15.92 | K102: None | L102: 0 | M102: 0 | N102: None | O102: 9 | P102: 0 | Q102: 0 | R102: 0.1 | S102: 1.592 | T102: 14.328 | U102: FALSE | V102: 0 | W102: 0 | X102: TRUE | Y102: 0 | Z102: 0 | AA102: FALSE | AB102: 0 | AC102: 0 | AD102: FALSE | AE102: 0 | AF102: 0 | AG102: FALSE | AH102: 0 | AI102: 0 | AJ102: 0 | AK102: 15.92 | AL102: 1.592 | AM102: TRUE | AN102: 1.592 | AO102: 0 | AP102: =IF(OPLApplies,IF(AmountSubjectToOPL<RemainingOPL,AmountSubjectToOPL,RemainingOPL),SubscriberPaymentBeforeOPL) -> 0 | AQ102: 15.92 | AR102: 0 | AS102: 0 | AT102: 0 | AU102: 0 | AV102: =SubscriberPaymentAfterOPL-SubscriberPayCopay-SubscriberPayCoins -> 0 | AW102: TRUE | AX102: TRUE
A103: 101 | B103: 2011-10-03 | C103: 10 | D103: 28 | E103: Immunization admin each add | F103: Preventive Services & Vaccines | G103: No Cost Sharing | H103: 14.98 | I103: 0 | J103: 14.98 | K103: None | L103: 0 | M103: 0 | N103: None | O103: 0 | P103: 0 | Q103: 0 | R103: 0 | S103: 0 | T103: 14.98 | U103: FALSE | V103: 0 | W103: 0 | X103: FALSE | Y103: 0 | Z103: 0 | AA103: FALSE | AB103: 0 | AC103: 0 | AD103: FALSE | AE103: 0 | AF103: 0 | AG103: FALSE | AH103: 0 | AI103: 0 | AJ103: 0 | AK103: 14.98 | AL103: 0 | AM103: TRUE | AN103: 0 | AO103: 0 | AP103: =IF(OPLApplies,IF(AmountSubjectToOPL<RemainingOPL,AmountSubjectToOPL,RemainingOPL),SubscriberPaymentBeforeOPL) -> 0 | AQ103: 14.98 | AR103: 0 | AS103: 0 | AT103: 0 | AU103: 0 | AV103: =SubscriberPaymentAfterOPL-SubscriberPayCopay-SubscriberPayCoins -> 0 | AW103: TRUE | AX103: TRUE
A104: 102 | B104: 2011-10-03 | C104: 10 | D104: 27 | E104: Immunization Admin ADMIN | F104: Preventive Services & Vaccines | G104: No Cost Sharing | H104: 23 | I104: 0 | J104: 23 | K104: None | L104: 0 | M104: 0 | N104: None | O104: 0 | P104: 0 | Q104: 0 | R104: 0 | S104: 0 | T104: 23 | U104: FALSE | V104: 0 | W104: 0 | X104: FALSE | Y104: 0 | Z104: 0 | AA104: FALSE | AB104: 0 | AC104: 0 | AD104: FALSE | AE104: 0 | AF104: 0 | AG104: FALSE | AH104: 0 | AI104: 0 | AJ104: 0 | AK104: 23 | AL104: 0 | AM104: TRUE | AN104: 0 | AO104: 0 | AP104: =IF(OPLApplies,IF(AmountSubjectToOPL<RemainingOPL,AmountSubjectToOPL,RemainingOPL),SubscriberPaymentBeforeOPL) -> 0 | AQ104: 23 | AR104: 0 | AS104: 0 | AT104: 0 | AU104: 0 | AV104: =SubscriberPaymentAfterOPL-SubscriberPayCopay-SubscriberPayCoins -> 0 | AW104: TRUE | AX104: TRUE
A105: 103 | B105: 2011-10-03 | C105: 10 | D105: 29 | E105: Pneumococcal vacc 7 val im | F105: Preventive Services & Vaccines | G105: No Cost Sharing | H105: 97.86 | I105: 0 | J105: 97.86 | K105: None | L105: 0 | M105: 0 | N105: None | O105: 0 | P105: 0 | Q105: 0 | R105: 0 | S105: 0 | T105: 97.86 | U105: FALSE | V105: 0 | W105: 0 | X105: FALSE | Y105: 0 | Z105: 0 | AA105: FALSE | AB105: 0 | AC105: 0 | AD105: FALSE | AE105: 0 | AF105: 0 | AG105: FALSE | AH105: 0 | AI105: 0 | AJ105: 0 | AK105: 97.86 | AL105: 0 | AM105: TRUE | AN105: 0 | AO105: 0 | AP105: =IF(OPLApplies,IF(AmountSubjectToOPL<RemainingOPL,AmountSubjectToOPL,RemainingOPL),SubscriberPaymentBeforeOPL) -> 0 | AQ105: 97.86 | AR105: 0 | AS105: 0 | AT105: 0 | AU105: 0 | AV105: =SubscriberPaymentAfterOPL-SubscriberPayCopay-SubscriberPayCoins -> 0 | AW105: TRUE | AX105: TRUE
A106: 104 | B106: 2011-10-03 | C106: 10 | D106: 30 | E106: Flu Vaccine No Preserv 3 & > | F106: Preventive Services & Vaccines | G106: No Cost Sharing | H106: 14.27 | I106: 0 | J106: 14.27 | K106: None | L106: 0 | M106: 0 | N106: None | O106: 0 | P106: 0 | Q106: 0 | R106: 0 | S106: 0 | T106: 14.27 | U106: FALSE | V106: 0 | W106: 0 | X106: FALSE | Y106: 0 | Z106: 0 | AA106: FALSE | AB106: 0 | AC106: 0 | AD106: FALSE | AE106: 0 | AF106: 0 | AG106: FALSE | AH106: 0 | AI106: 0 | AJ106: 0 | AK106: 14.27 | AL106: 0 | AM106: TRUE | AN106: 0 | AO106: 0 | AP106: =IF(OPLApplies,IF(AmountSubjectToOPL<RemainingOPL,AmountSubjectToOPL,RemainingOPL),SubscriberPaymentBeforeOPL) -> 0 | AQ106: 14.27 | AR106: 0 | AS106: 0 | AT106: 0 | AU106: 0 | AV106: =SubscriberPaymentAfterOPL-SubscriberPayCopay-SubscriberPayCoins -> 0 | AW106: TRUE | AX106: TRUE
A107: 105 | B107: 2011-10-03 | C107: 10 | D107: 33 | E107: Atorvastatin 20 MG tablet 90 CT | F107: Prescription Drugs: Generic | G107: Rx Deductible+Co-ins | H107: 25.88 | I107: 0 | J107: 25.88 | K107: None | L107: 0 | M107: 0 | N107: None | O107: 3 | P107: 0 | Q107: 0 | R107: 0.1 | S107: 2.588 | T107: 23.292 | U107: FALSE | V107: 0 | W107: 0 | X107: TRUE | Y107: 0 | Z107: 0 | AA107: FALSE | AB107: 0 | AC107: 0 | AD107: FALSE | AE107: 0 | AF107: 0 | AG107: FALSE | AH107: 0 | AI107: 0 | AJ107: 0 | AK107: 25.88 | AL107: 2.588 | AM107: TRUE | AN107: 2.588 | AO107: 0 | AP107: =IF(OPLApplies,IF(AmountSubjectToOPL<RemainingOPL,AmountSubjectToOPL,RemainingOPL),SubscriberPaymentBeforeOPL) -> 0 | AQ107: 25.88 | AR107: 0 | AS107: 0 | AT107: 0 | AU107: 0 | AV107: =SubscriberPaymentAfterOPL-SubscriberPayCopay-SubscriberPayCoins -> 0 | AW107: TRUE | AX107: TRUE
A108: 106 | B108: 2011-10-03 | C108: 10 | D108: 16 | E108: Glycosylated Hemoglobin Test | F108: Diagnostic Services: Laboratory | G108: Plan Deductible Only | H108: 10.85 | I108: 0 | J108: 10.85 | K108: None | L108: 0 | M108: 0 | N108: None | O108: 3 | P108: 0 | Q108: 0 | R108: 0 | S108: 0 | T108: 10.85 | U108: TRUE | V108: 0 | W108: 0 | X108: FALSE | Y108: 0 | Z108: 0 | AA108: FALSE | AB108: 0 | AC108: 0 | AD108: FALSE | AE108: 0 | AF108: 0 | AG108: FALSE | AH108: 0 | AI108: 0 | AJ108: 0 | AK108: 10.85 | AL108: 0 | AM108: TRUE | AN108: 0 | AO108: 0 | AP108: =IF(OPLApplies,IF(AmountSubjectToOPL<RemainingOPL,AmountSubjectToOPL,RemainingOPL),SubscriberPaymentBeforeOPL) -> 0 | AQ108: 10.85 | AR108: 0 | AS108: 0 | AT108: 0 | AU108: 0 | AV108: =SubscriberPaymentAfterOPL-SubscriberPayCopay-SubscriberPayCoins -> 0 | AW108: TRUE | AX108: TRUE
A109: 107 | B109: 2011-10-10 | C109: 10 | D109: 17 | E109: Insulin glargine 100 unit/ml injectable solution (Rx - 10ml vial) [20 units QD; expires 28 days after first use] | F109: Prescription Drugs: Branded | G109: Rx Deductible+Co-pay | H109: 275.51 | I109: 0 | J109: 275.51 | K109: None | L109: 0 | M109: 0 | N109: None | O109: 10 | P109: 0 | Q109: 30 | R109: 0 | S109: 0 | T109: 245.51 | U109: FALSE | V109: 0 | W109: 0 | X109: TRUE | Y109: 0 | Z109: 0 | AA109: FALSE | AB109: 0 | AC109: 0 | AD109: FALSE | AE109: 0 | AF109: 0 | AG109: FALSE | AH109: 0 | AI109: 0 | AJ109: 0 | AK109: 275.51 | AL109: 30 | AM109: TRUE | AN109: 30 | AO109: 0 | AP109: =IF(OPLApplies,IF(AmountSubjectToOPL<RemainingOPL,AmountSubjectToOPL,RemainingOPL),SubscriberPaymentBeforeOPL) -> 0 | AQ109: 275.51 | AR109: 0 | AS109: 0 | AT109: 0 | AU109: 0 | AV109: =SubscriberPaymentAfterOPL-SubscriberPayCopay-SubscriberPayCoins -> 0 | AW109: TRUE | AX109: TRUE
A110: 108 | B110: 2011-10-30 | C110: 10 | D110: 25 | E110: Alcohol swabs (OTC - box of 100) [usage = 3 wipes/day; 90 wipes/month] | F110: Over-the-counter Drugs | G110: Not Covered | H110: 2.6075 | I110: 2.6075 | J110: 0 | K110: None | L110: 0 | M110: 0 | N110: None | O110: 10 | P110: 0 | Q110: 0 | R110: 0 | S110: 0 | T110: 0 | U110: FALSE | V110: 0 | W110: 0 | X110: FALSE | Y110: 0 | Z110: 0 | AA110: FALSE | AB110: 0 | AC110: 0 | AD110: FALSE | AE110: 0 | AF110: 0 | AG110: FALSE | AH110: 0 | AI110: 0 | AJ110: 0 | AK110: 0 | AL110: 0 | AM110: FALSE | AN110: 0 | AO110: 0 | AP110: =IF(OPLApplies,IF(AmountSubjectToOPL<RemainingOPL,AmountSubjectToOPL,RemainingOPL),SubscriberPaymentBeforeOPL) -> 0 | AQ110: 0 | AR110: 2.6075 | AS110: 0 | AT110: 0 | AU110: 0 | AV110: =SubscriberPaymentAfterOPL-SubscriberPayCopay-SubscriberPayCoins -> 0 | AW110: TRUE | AX110: TRUE
A111: 109 | B111: 2011-10-30 | C111: 10 | D111: 14 | E111: BD Ultrafine Insulin Syringes / 30G/ 0.5cc [usage = 30 syringes per month] | F111: Medical Supplies | G111: Plan Deductible Only | H111: 42.66 | I111: 0 | J111: 42.66 | K111: None | L111: 0 | M111: 0 | N111: None | O111: 10 | P111: 0 | Q111: 0 | R111: 0 | S111: 0 | T111: 42.66 | U111: TRUE | V111: 0 | W111: 0 | X111: FALSE | Y111: 0 | Z111: 0 | AA111: FALSE | AB111: 0 | AC111: 0 | AD111: FALSE | AE111: 0 | AF111: 0 | AG111: FALSE | AH111: 0 | AI111: 0 | AJ111: 0 | AK111: 42.66 | AL111: 0 | AM111: TRUE | AN111: 0 | AO111: 0 | AP111: =IF(OPLApplies,IF(AmountSubjectToOPL<RemainingOPL,AmountSubjectToOPL,RemainingOPL),SubscriberPaymentBeforeOPL) -> 0 | AQ111: 42.66 | AR111: 0 | AS111: 0 | AT111: 0 | AU111: 0 | AV111: =SubscriberPaymentAfterOPL-SubscriberPayCopay-SubscriberPayCoins -> 0 | AW111: TRUE | AX111: TRUE
A112: 110 | B112: 2011-10-30 | C112: 10 | D112: 5 | E112: OneTouch Delica Lancets (100 per box) [usage = 60 lancets per month] | F112: Medical Supplies | G112: Plan Deductible Only | H112: 10.38 | I112: 0 | J112: 10.38 | K112: None | L112: 0 | M112: 0 | N112: None | O112: 6 | P112: 0 | Q112: 0 | R112: 0 | S112: 0 | T112: 10.38 | U112: TRUE | V112: 0 | W112: 0 | X112: FALSE | Y112: 0 | Z112: 0 | AA112: FALSE | AB112: 0 | AC112: 0 | AD112: FALSE | AE112: 0 | AF112: 0 | AG112: FALSE | AH112: 0 | AI112: 0 | AJ112: 0 | AK112: 10.38 | AL112: 0 | AM112: TRUE | AN112: 0 | AO112: 0 | AP112: =IF(OPLApplies,IF(AmountSubjectToOPL<RemainingOPL,AmountSubjectToOPL,RemainingOPL),SubscriberPaymentBeforeOPL) -> 0 | AQ112: 10.38 | AR112: 0 | AS112: 0 | AT112: 0 | AU112: 0 | AV112: =SubscriberPaymentAfterOPL-SubscriberPayCopay-SubscriberPayCoins -> 0 | AW112: TRUE | AX112: TRUE
A113: 111 | B113: 2011-10-30 | C113: 10 | D113: 32 | E113: METFORMIN HCL 850 MG TABLET | F113: Prescription Drugs: Generic | G113: Rx Deductible+Co-ins | H113: 9.19 | I113: 0 | J113: 9.19 | K113: None | L113: 0 | M113: 0 | N113: None | O113: 10 | P113: 0 | Q113: 0 | R113: 0.1 | S113: 0.919 | T113: 8.271 | U113: FALSE | V113: 0 | W113: 0 | X113: TRUE | Y113: 0 | Z113: 0 | AA113: FALSE | AB113: 0 | AC113: 0 | AD113: FALSE | AE113: 0 | AF113: 0 | AG113: FALSE | AH113: 0 | AI113: 0 | AJ113: 0 | AK113: 9.19 | AL113: 0.919 | AM113: TRUE | AN113: 0.919 | AO113: 0 | AP113: =IF(OPLApplies,IF(AmountSubjectToOPL<RemainingOPL,AmountSubjectToOPL,RemainingOPL),SubscriberPaymentBeforeOPL) -> 0 | AQ113: 9.19 | AR113: 0 | AS113: 0 | AT113: 0 | AU113: 0 | AV113: =SubscriberPaymentAfterOPL-SubscriberPayCopay-SubscriberPayCoins -> 0 | AW113: TRUE | AX113: TRUE
A114: 112 | B114: 2011-10-30 | C114: 10 | D114: 19 | E114: Ramipril 10mg (Rx) [1 QD; #30 pills/month] | F114: Prescription Drugs: Generic | G114: Rx Deductible+Co-ins | H114: 15.92 | I114: 0 | J114: 15.92 | K114: None | L114: 0 | M114: 0 | N114: None | O114: 10 | P114: 0 | Q114: 0 | R114: 0.1 | S114: 1.592 | T114: 14.328 | U114: FALSE | V114: 0 | W114: 0 | X114: TRUE | Y114: 0 | Z114: 0 | AA114: FALSE | AB114: 0 | AC114: 0 | AD114: FALSE | AE114: 0 | AF114: 0 | AG114: FALSE | AH114: 0 | AI114: 0 | AJ114: 0 | AK114: 15.92 | AL114: 1.592 | AM114: TRUE | AN114: 1.592 | AO114: 0 | AP114: =IF(OPLApplies,IF(AmountSubjectToOPL<RemainingOPL,AmountSubjectToOPL,RemainingOPL),SubscriberPaymentBeforeOPL) -> 0 | AQ114: 15.92 | AR114: 0 | AS114: 0 | AT114: 0 | AU114: 0 | AV114: =SubscriberPaymentAfterOPL-SubscriberPayCopay-SubscriberPayCoins -> 0 | AW114: TRUE | AX114: TRUE
A115: 113 | B115: 2011-11-07 | C115: 11 | D115: 17 | E115: Insulin glargine 100 unit/ml injectable solution (Rx - 10ml vial) [20 units QD; expires 28 days after first use] | F115: Prescription Drugs: Branded | G115: Rx Deductible+Co-pay | H115: 275.51 | I115: 0 | J115: 275.51 | K115: None | L115: 0 | M115: 0 | N115: None | O115: 11 | P115: 0 | Q115: 30 | R115: 0 | S115: 0 | T115: 245.51 | U115: FALSE | V115: 0 | W115: 0 | X115: TRUE | Y115: 0 | Z115: 0 | AA115: FALSE | AB115: 0 | AC115: 0 | AD115: FALSE | AE115: 0 | AF115: 0 | AG115: FALSE | AH115: 0 | AI115: 0 | AJ115: 0 | AK115: 275.51 | AL115: 30 | AM115: TRUE | AN115: 30 | AO115: 0 | AP115: =IF(OPLApplies,IF(AmountSubjectToOPL<RemainingOPL,AmountSubjectToOPL,RemainingOPL),SubscriberPaymentBeforeOPL) -> 0 | AQ115: 275.51 | AR115: 0 | AS115: 0 | AT115: 0 | AU115: 0 | AV115: =SubscriberPaymentAfterOPL-SubscriberPayCopay-SubscriberPayCoins -> 0 | AW115: TRUE | AX115: TRUE
A116: 114 | B116: 2011-11-29 | C116: 11 | D116: 25 | E116: Alcohol swabs (OTC - box of 100) [usage = 3 wipes/day; 90 wipes/month] | F116: Over-the-counter Drugs | G116: Not Covered | H116: 2.6075 | I116: 2.6075 | J116: 0 | K116: None | L116: 0 | M116: 0 | N116: None | O116: 11 | P116: 0 | Q116: 0 | R116: 0 | S116: 0 | T116: 0 | U116: FALSE | V116: 0 | W116: 0 | X116: FALSE | Y116: 0 | Z116: 0 | AA116: FALSE | AB116: 0 | AC116: 0 | AD116: FALSE | AE116: 0 | AF116: 0 | AG116: FALSE | AH116: 0 | AI116: 0 | AJ116: 0 | AK116: 0 | AL116: 0 | AM116: FALSE | AN116: 0 | AO116: 0 | AP116: =IF(OPLApplies,IF(AmountSubjectToOPL<RemainingOPL,AmountSubjectToOPL,RemainingOPL),SubscriberPaymentBeforeOPL) -> 0 | AQ116: 0 | AR116: 2.6075 | AS116: 0 | AT116: 0 | AU116: 0 | AV116: =SubscriberPaymentAfterOPL-SubscriberPayCopay-SubscriberPayCoins -> 0 | AW116: TRUE | AX116: TRUE
A117: 115 | B117: 2011-11-29 | C117: 11 | D117: 14 | E117: BD Ultrafine Insulin Syringes / 30G/ 0.5cc [usage = 30 syringes per month] | F117: Medical Supplies | G117: Plan Deductible Only | H117: 42.66 | I117: 0 | J117: 42.66 | K117: None | L117: 0 | M117: 0 | N117: None | O117: 11 | P117: 0 | Q117: 0 | R117: 0 | S117: 0 | T117: 42.66 | U117: TRUE | V117: 0 | W117: 0 | X117: FALSE | Y117: 0 | Z117: 0 | AA117: FALSE | AB117: 0 | AC117: 0 | AD117: FALSE | AE117: 0 | AF117: 0 | AG117: FALSE | AH117: 0 | AI117: 0 | AJ117: 0 | AK117: 42.66 | AL117: 0 | AM117: TRUE | AN117: 0 | AO117: 0 | AP117: =IF(OPLApplies,IF(AmountSubjectToOPL<RemainingOPL,AmountSubjectToOPL,RemainingOPL),SubscriberPaymentBeforeOPL) -> 0 | AQ117: 42.66 | AR117: 0 | AS117: 0 | AT117: 0 | AU117: 0 | AV117: =SubscriberPaymentAfterOPL-SubscriberPayCopay-SubscriberPayCoins -> 0 | AW117: TRUE | AX117: TRUE
A118: 116 | B118: 2011-11-29 | C118: 11 | D118: 32 | E118: METFORMIN HCL 850 MG TABLET | F118: Prescription Drugs: Generic | G118: Rx Deductible+Co-ins | H118: 9.19 | I118: 0 | J118: 9.19 | K118: None | L118: 0 | M118: 0 | N118: None | O118: 11 | P118: 0 | Q118: 0 | R118: 0.1 | S118: 0.919 | T118: 8.271 | U118: FALSE | V118: 0 | W118: 0 | X118: TRUE | Y118: 0 | Z118: 0 | AA118: FALSE | AB118: 0 | AC118: 0 | AD118: FALSE | AE118: 0 | AF118: 0 | AG118: FALSE | AH118: 0 | AI118: 0 | AJ118: 0 | AK118: 9.19 | AL118: 0.919 | AM118: TRUE | AN118: 0.919 | AO118: 0 | AP118: =IF(OPLApplies,IF(AmountSubjectToOPL<RemainingOPL,AmountSubjectToOPL,RemainingOPL),SubscriberPaymentBeforeOPL) -> 0 | AQ118: 9.19 | AR118: 0 | AS118: 0 | AT118: 0 | AU118: 0 | AV118: =SubscriberPaymentAfterOPL-SubscriberPayCopay-SubscriberPayCoins -> 0 | AW118: TRUE | AX118: TRUE
A119: 117 | B119: 2011-11-29 | C119: 11 | D119: 19 | E119: Ramipril 10mg (Rx) [1 QD; #30 pills/month] | F119: Prescription Drugs: Generic | G119: Rx Deductible+Co-ins | H119: 15.92 | I119: 0 | J119: 15.92 | K119: None | L119: 0 | M119: 0 | N119: None | O119: 11 | P119: 0 | Q119: 0 | R119: 0.1 | S119: 1.592 | T119: 14.328 | U119: FALSE | V119: 0 | W119: 0 | X119: TRUE | Y119: 0 | Z119: 0 | AA119: FALSE | AB119: 0 | AC119: 0 | AD119: FALSE | AE119: 0 | AF119: 0 | AG119: FALSE | AH119: 0 | AI119: 0 | AJ119: 0 | AK119: 15.92 | AL119: 1.592 | AM119: TRUE | AN119: 1.592 | AO119: 0 | AP119: =IF(OPLApplies,IF(AmountSubjectToOPL<RemainingOPL,AmountSubjectToOPL,RemainingOPL),SubscriberPaymentBeforeOPL) -> 0 | AQ119: 15.92 | AR119: 0 | AS119: 0 | AT119: 0 | AU119: 0 | AV119: =SubscriberPaymentAfterOPL-SubscriberPayCopay-SubscriberPayCoins -> 0 | AW119: TRUE | AX119: TRUE
A120: 118 | B120: 2011-12-05 | C120: 12 | D120: 26 | E120: Aspirin 81mg (OTC - bottle 100) [usage = 1 QD; #30 pills per month] | F120: Over-the-counter Drugs | G120: Not Covered | H120: 4.2725 | I120: 4.2725 | J120: 0 | K120: None | L120: 0 | M120: 0 | N120: None | O120: 4 | P120: 0 | Q120: 0 | R120: 0 | S120: 0 | T120: 0 | U120: FALSE | V120: 0 | W120: 0 | X120: FALSE | Y120: 0 | Z120: 0 | AA120: FALSE | AB120: 0 | AC120: 0 | AD120: FALSE | AE120: 0 | AF120: 0 | AG120: FALSE | AH120: 0 | AI120: 0 | AJ120: 0 | AK120: 0 | AL120: 0 | AM120: FALSE | AN120: 0 | AO120: 0 | AP120: =IF(OPLApplies,IF(AmountSubjectToOPL<RemainingOPL,AmountSubjectToOPL,RemainingOPL),SubscriberPaymentBeforeOPL) -> 0 | AQ120: 0 | AR120: 4.2725 | AS120: 0 | AT120: 0 | AU120: 0 | AV120: =SubscriberPaymentAfterOPL-SubscriberPayCopay-SubscriberPayCoins -> 0 | AW120: TRUE | AX120: TRUE
A121: 119 | B121: 2011-12-05 | C121: 12 | D121: 17 | E121: Insulin glargine 100 unit/ml injectable solution (Rx - 10ml vial) [20 units QD; expires 28 days after first use] | F121: Prescription Drugs: Branded | G121: Rx Deductible+Co-pay | H121: 275.51 | I121: 0 | J121: 275.51 | K121: None | L121: 0 | M121: 0 | N121: None | O121: 12 | P121: 0 | Q121: 30 | R121: 0 | S121: 0 | T121: 245.51 | U121: FALSE | V121: 0 | W121: 0 | X121: TRUE | Y121: 0 | Z121: 0 | AA121: FALSE | AB121: 0 | AC121: 0 | AD121: FALSE | AE121: 0 | AF121: 0 | AG121: FALSE | AH121: 0 | AI121: 0 | AJ121: 0 | AK121: 275.51 | AL121: 30 | AM121: TRUE | AN121: 30 | AO121: 0 | AP121: =IF(OPLApplies,IF(AmountSubjectToOPL<RemainingOPL,AmountSubjectToOPL,RemainingOPL),SubscriberPaymentBeforeOPL) -> 0 | AQ121: 275.51 | AR121: 0 | AS121: 0 | AT121: 0 | AU121: 0 | AV121: =SubscriberPaymentAfterOPL-SubscriberPayCopay-SubscriberPayCoins -> 0 | AW121: TRUE | AX121: TRUE
A122: 120 | B122: 2011-12-19 | C122: 12 | D122: 5 | E122: OneTouch Delica Lancets (100 per box) [usage = 60 lancets per month] | F122: Medical Supplies | G122: Plan Deductible Only | H122: 10.38 | I122: 0 | J122: 10.38 | K122: None | L122: 0 | M122: 0 | N122: None | O122: 7 | P122: 0 | Q122: 0 | R122: 0 | S122: 0 | T122: 10.38 | U122: TRUE | V122: 0 | W122: 0 | X122: FALSE | Y122: 0 | Z122: 0 | AA122: FALSE | AB122: 0 | AC122: 0 | AD122: FALSE | AE122: 0 | AF122: 0 | AG122: FALSE | AH122: 0 | AI122: 0 | AJ122: 0 | AK122: 10.38 | AL122: 0 | AM122: TRUE | AN122: 0 | AO122: 0 | AP122: =IF(OPLApplies,IF(AmountSubjectToOPL<RemainingOPL,AmountSubjectToOPL,RemainingOPL),SubscriberPaymentBeforeOPL) -> 0 | AQ122: 10.38 | AR122: 0 | AS122: 0 | AT122: 0 | AU122: 0 | AV122: =SubscriberPaymentAfterOPL-SubscriberPayCopay-SubscriberPayCoins -> 0 | AW122: TRUE | AX122: TRUE
A123: 121 | B123: 2011-12-19 | C123: 12 | D123: 4 | E123: OneTouch Ultra Blue Test Strips (Rx - box of 100) [usage = 2 strips/day; 60 per month] | F123: Medical Supplies | G123: Plan Deductible Only | H123: 125.26 | I123: 0 | J123: 125.26 | K123: None | L123: 0 | M123: 0 | N123: None | O123: 7 | P123: 0 | Q123: 0 | R123: 0 | S123: 0 | T123: 125.26 | U123: TRUE | V123: 0 | W123: 0 | X123: FALSE | Y123: 0 | Z123: 0 | AA123: FALSE | AB123: 0 | AC123: 0 | AD123: FALSE | AE123: 0 | AF123: 0 | AG123: FALSE | AH123: 0 | AI123: 0 | AJ123: 0 | AK123: 125.26 | AL123: 0 | AM123: TRUE | AN123: 0 | AO123: 0 | AP123: =IF(OPLApplies,IF(AmountSubjectToOPL<RemainingOPL,AmountSubjectToOPL,RemainingOPL),SubscriberPaymentBeforeOPL) -> 0 | AQ123: 125.26 | AR123: 0 | AS123: 0 | AT123: 0 | AU123: 0 | AV123: =SubscriberPaymentAfterOPL-SubscriberPayCopay-SubscriberPayCoins -> 0 | AW123: TRUE | AX123: TRUE
A124: 122 | B124: 2011-12-29 | C124: 12 | D124: 25 | E124: Alcohol swabs (OTC - box of 100) [usage = 3 wipes/day; 90 wipes/month] | F124: Over-the-counter Drugs | G124: Not Covered | H124: 2.6075 | I124: 2.6075 | J124: 0 | K124: None | L124: 0 | M124: 0 | N124: None | O124: 12 | P124: 0 | Q124: 0 | R124: 0 | S124: 0 | T124: 0 | U124: FALSE | V124: 0 | W124: 0 | X124: FALSE | Y124: 0 | Z124: 0 | AA124: FALSE | AB124: 0 | AC124: 0 | AD124: FALSE | AE124: 0 | AF124: 0 | AG124: FALSE | AH124: 0 | AI124: 0 | AJ124: 0 | AK124: 0 | AL124: 0 | AM124: FALSE | AN124: 0 | AO124: 0 | AP124: =IF(OPLApplies,IF(AmountSubjectToOPL<RemainingOPL,AmountSubjectToOPL,RemainingOPL),SubscriberPaymentBeforeOPL) -> 0 | AQ124: 0 | AR124: 2.6075 | AS124: 0 | AT124: 0 | AU124: 0 | AV124: =SubscriberPaymentAfterOPL-SubscriberPayCopay-SubscriberPayCoins -> 0 | AW124: TRUE | AX124: TRUE
A125: 123 | B125: 2011-12-29 | C125: 12 | D125: 14 | E125: BD Ultrafine Insulin Syringes / 30G/ 0.5cc [usage = 30 syringes per month] | F125: Medical Supplies | G125: Plan Deductible Only | H125: 42.66 | I125: 0 | J125: 42.66 | K125: None | L125: 0 | M125: 0 | N125: None | O125: 12 | P125: 0 | Q125: 0 | R125: 0 | S125: 0 | T125: 42.66 | U125: TRUE | V125: 0 | W125: 0 | X125: FALSE | Y125: 0 | Z125: 0 | AA125: FALSE | AB125: 0 | AC125: 0 | AD125: FALSE | AE125: 0 | AF125: 0 | AG125: FALSE | AH125: 0 | AI125: 0 | AJ125: 0 | AK125: 42.66 | AL125: 0 | AM125: TRUE | AN125: 0 | AO125: 0 | AP125: =IF(OPLApplies,IF(AmountSubjectToOPL<RemainingOPL,AmountSubjectToOPL,RemainingOPL),SubscriberPaymentBeforeOPL) -> 0 | AQ125: 42.66 | AR125: 0 | AS125: 0 | AT125: 0 | AU125: 0 | AV125: =SubscriberPaymentAfterOPL-SubscriberPayCopay-SubscriberPayCoins -> 0 | AW125: TRUE | AX125: TRUE
A126: 124 | B126: 2011-12-29 | C126: 12 | D126: 6 | E126: OneTouch Ultra Control Solution (2 vials/box) | F126: Medical Supplies | G126: Plan Deductible Only | H126: 5.07 | I126: 0 | J126: 5.07 | K126: None | L126: 0 | M126: 0 | N126: None | O126: 2 | P126: 0 | Q126: 0 | R126: 0 | S126: 0 | T126: 5.07 | U126: TRUE | V126: 0 | W126: 0 | X126: FALSE | Y126: 0 | Z126: 0 | AA126: FALSE | AB126: 0 | AC126: 0 | AD126: FALSE | AE126: 0 | AF126: 0 | AG126: FALSE | AH126: 0 | AI126: 0 | AJ126: 0 | AK126: 5.07 | AL126: 0 | AM126: TRUE | AN126: 0 | AO126: 0 | AP126: =IF(OPLApplies,IF(AmountSubjectToOPL<RemainingOPL,AmountSubjectToOPL,RemainingOPL),SubscriberPaymentBeforeOPL) -> 0 | AQ126: 5.07 | AR126: 0 | AS126: 0 | AT126: 0 | AU126: 0 | AV126: =SubscriberPaymentAfterOPL-SubscriberPayCopay-SubscriberPayCoins -> 0 | AW126: TRUE | AX126: TRUE
A127: 125 | B127: 2011-12-29 | C127: 12 | D127: 32 | E127: METFORMIN HCL 850 MG TABLET | F127: Prescription Drugs: Generic | G127: Rx Deductible+Co-ins | H127: 9.19 | I127: 0 | J127: 9.19 | K127: None | L127: 0 | M127: 0 | N127: None | O127: 12 | P127: 0 | Q127: 0 | R127: 0.1 | S127: 0.919 | T127: 8.271 | U127: FALSE | V127: 0 | W127: 0 | X127: TRUE | Y127: 0 | Z127: 0 | AA127: FALSE | AB127: 0 | AC127: 0 | AD127: FALSE | AE127: 0 | AF127: 0 | AG127: FALSE | AH127: 0 | AI127: 0 | AJ127: 0 | AK127: 9.19 | AL127: 0.919 | AM127: TRUE | AN127: 0.919 | AO127: 0 | AP127: =IF(OPLApplies,IF(AmountSubjectToOPL<RemainingOPL,AmountSubjectToOPL,RemainingOPL),SubscriberPaymentBeforeOPL) -> 0 | AQ127: 9.19 | AR127: 0 | AS127: 0 | AT127: 0 | AU127: 0 | AV127: =SubscriberPaymentAfterOPL-SubscriberPayCopay-SubscriberPayCoins -> 0 | AW127: TRUE | AX127: TRUE
A128: 126 | B128: 2011-12-29 | C128: 12 | D128: 19 | E128: Ramipril 10mg (Rx) [1 QD; #30 pills/month] | F128: Prescription Drugs: Generic | G128: Rx Deductible+Co-ins | H128: 15.92 | I128: 0 | J128: 15.92 | K128: None | L128: 0 | M128: 0 | N128: None | O128: 12 | P128: 0 | Q128: 0 | R128: 0.1 | S128: 1.592 | T128: 14.328 | U128: FALSE | V128: 0 | W128: 0 | X128: TRUE | Y128: 0 | Z128: 0 | AA128: FALSE | AB128: 0 | AC128: 0 | AD128: FALSE | AE128: 0 | AF128: 0 | AG128: FALSE | AH128: 0 | AI128: 0 | AJ128: 0 | AK128: 15.92 | AL128: 1.592 | AM128: TRUE | AN128: 1.592 | AO128: 0 | AP128: =IF(OPLApplies,IF(AmountSubjectToOPL<RemainingOPL,AmountSubjectToOPL,RemainingOPL),SubscriberPaymentBeforeOPL) -> 0 | AQ128: 15.92 | AR128: 0 | AS128: 0 | AT128: 0 | AU128: 0 | AV128: =SubscriberPaymentAfterOPL-SubscriberPayCopay-SubscriberPayCoins -> 0 | AW128: TRUE | AX128: TRUE

Sheet DIABETES_LINE_ITEM (hidden)
A1: Item or Service Code | B1: Diagnosis Code (ICD-10) | C1: CPT©, HCPCS, or Other Billing Code | D1: Provider Type | E1: Benefit Category | F1: Description | G1: Allowed Amount | H1: Notes | I1: Valid Benefit Category | J1: Timeline Count
A2: 1 | B2: E119.00, Z7982, Z794 | C2: 2803101 | D2: Pharmacy Retail | E2: Prescription Drugs: Generic | F2: Glucagon Emergency Kit | G2: 246.17 | I2: =IF(ISERROR(VLOOKUP(E2,BenefitCategoryList,1,FALSE)),FALSE,TRUE) -> TRUE | J2: =COUNTIF(DIABETES_TIMELINE!ServiceCode,A2) -> 1
A3: 2 | B3: E119.00, Z7982, Z794 | C3: 36415 | D3: Primary | E3: Diagnostic Services: Laboratory | F3: Routine Venipuncture | G3: 4.17 | I3: TRUE | J3: =COUNTIF(DIABETES_TIMELINE!ServiceCode,A3) -> 2
A4: 3 | B4: E119.00, Z7982, Z794 | C4: 53885014201 | D4: Pharmacy Retail | E4: Medical Supplies | F4: OneTouch Delica Lancing Device | G4: 16.12 | I4: TRUE | J4: =COUNTIF(DIABETES_TIMELINE!ServiceCode,A4) -> 1
A5: 4 | B5: E119.00, Z7982, Z794 | C5: 53885024510 | D5: Pharmacy Retail | E5: Medical Supplies | F5: OneTouch Ultra Blue Test Strips (Rx - box of 100) [usage = 2 strips/day; 60 per month] | G5: 125.26 | I5: TRUE | J5: =COUNTIF(DIABETES_TIMELINE!ServiceCode,A5) -> 8
A6: 5 | B6: E119.00, Z7982, Z794 | C6: 53885039310 | D6: Pharmacy Retail | E6: Medical Supplies | F6: OneTouch Delica Lancets (100 per box) [usage = 60 lancets per month] | G6: 10.38 | I6: TRUE | J6: =COUNTIF(DIABETES_TIMELINE!ServiceCode,A6) -> 8
A7: 6 | B7: E119.00, Z7982, Z794 | C7: 53885041601 | D7: Pharmacy Retail | E7: Medical Supplies | F7: OneTouch Ultra Control Solution (2 vials/box) | G7: 5.07 | I7: TRUE | J7: =COUNTIF(DIABETES_TIMELINE!ServiceCode,A7) -> 3
A8: 7 | B8: E119.00, Z7982, Z794 | C8: 53885044801 | D8: Pharmacy Retail | E8: Medical Supplies | F8: OneTouch Ultra 2 Blood Glucose Meter Kit | G8: 56.9 | I8: TRUE | J8: =COUNTIF(DIABETES_TIMELINE!ServiceCode,A8) -> 1
A9: 8 | B9: E119.00, Z7982, Z794 | C9: 80053 | D9: Primary | E9: Diagnostic Services: Laboratory | F9: Comprehen Metabolic Panel | G9: 14.53 | I9: TRUE | J9: =COUNTIF(DIABETES_TIMELINE!ServiceCode,A9) -> 1
A10: 9 | B10: E119.00, Z7982, Z794 | C10: 80061 | D10: Primary | E10: Diagnostic Services: Laboratory | F10: Lipid panel | G10: 14.42 | I10: TRUE | J10: =COUNTIF(DIABETES_TIMELINE!ServiceCode,A10) -> 1
A11: 10 | B11: E119.00, Z7982, Z794 | C11: 80069 | D11: Primary | E11: Diagnostic Services: Laboratory | F11: Renal Function Panel | G11: 11.63 | I11: TRUE | J11: =COUNTIF(DIABETES_TIMELINE!ServiceCode,A11) -> 2
A12: 11 | B12: E119.00, Z7982, Z794 | C12: 81003 | D12: Primary | E12: Diagnostic Services: Laboratory | F12: Urinalysis Auto W/O Scope | G12: 3.09 | I12: TRUE | J12: =COUNTIF(DIABETES_TIMELINE!ServiceCode,A12) -> 2
A13: 12 | B13: E119.00, Z7982, Z794 | C13: 82043 | D13: Primary | E13: Diagnostic Services: Laboratory | F13: Microalbumin Quantitative | G13: 6.32 | I13: TRUE | J13: =COUNTIF(DIABETES_TIMELINE!ServiceCode,A13) -> 1
A14: 13 | B14: E119.00, Z7982, Z794 | C14: 82570 | D14: Primary | E14: Diagnostic Services: Laboratory | F14: Assay of Urine Creatinine | G14: 5.79 | I14: TRUE | J14: =COUNTIF(DIABETES_TIMELINE!ServiceCode,A14) -> 1
A15: 14 | B15: E119.00, Z7982, Z794 | C15: 8290328279 | D15: Pharmacy Retail | E15: Medical Supplies | F15: BD Ultrafine Insulin Syringes / 30G/ 0.5cc [usage = 30 syringes per month] | G15: 42.66 | I15: TRUE | J15: =COUNTIF(DIABETES_TIMELINE!ServiceCode,A15) -> 13
A16: 15 | B16: E119.00, Z7982, Z794 | C16: 82947 | D16: Primary | E16: Diagnostic Services: Laboratory | F16: Assay Glucose Blood Quant | G16: 5.73 | I16: TRUE | J16: =COUNTIF(DIABETES_TIMELINE!ServiceCode,A16) -> 2
A17: 16 | B17: E119.00, Z7982, Z794 | C17: 83036 | D17: Primary | E17: Diagnostic Services: Laboratory | F17: Glycosylated Hemoglobin Test | G17: 10.85 | I17: TRUE | J17: =COUNTIF(DIABETES_TIMELINE!ServiceCode,A17) -> 4
A18: 17 | B18: E119.00, Z7982, Z794 | C18: 88222033 | D18: Pharmacy Retail | E18: Prescription Drugs: Branded | F18: Insulin glargine 100 unit/ml injectable solution (Rx - 10ml vial) [20 units QD; expires 28 days after first use] | G18: 275.51 | I18: TRUE | J18: =COUNTIF(DIABETES_TIMELINE!ServiceCode,A18) -> 13
A19: 18 | B19: E119.00, Z7982, Z794 | C19: 93104801 | D19: Pharmacy Retail | E19: Prescription Drugs: Generic | F19: Metformin hydrochloride 500mg (Rx) [1 BID; #60 pills/month] | G19: 8.71 | H19: not used | I19: TRUE | J19: =COUNTIF(DIABETES_TIMELINE!ServiceCode,A19) -> 0
A20: 19 | B20: E119.00, Z7982, Z794 | C20: 93743801 | D20: Pharmacy Retail | E20: Prescription Drugs: Generic | F20: Ramipril 10mg (Rx) [1 QD; #30 pills/month] | G20: 15.92 | I20: TRUE | J20: =COUNTIF(DIABETES_TIMELINE!ServiceCode,A20) -> 13
A21: 20 | B21: E119.00, Z7982, Z794 | C21: 97803 | D21: Dietician | E21: Professional Services: Primary Care | F21: Med Nutrition Indiv Subseq | G21: 80 | I21: TRUE | J21: =COUNTIF(DIABETES_TIMELINE!ServiceCode,A21) -> 2
A22: 21 | B22: E119.00, Z7982, Z794 | C22: 98960 | D22: Diabetes Educator | E22: Professional Services: Primary Care | F22: Self-mgmt educ & train 1 pt | G22: 99.9 | I22: TRUE | J22: =COUNTIF(DIABETES_TIMELINE!ServiceCode,A22) -> 2
A23: 22 | B23: E119.00, Z7982, Z794 | C23: 92014 | D23: Ophthalmology | E23: Professional Services: Specialist | F23: Ophthalmological services: medical examination & evaluation, with initiation or continuation of diagnostic and treatment program, comprehensive, established patient, 1 or more visits | G23: 108.24 | I23: TRUE | J23: =COUNTIF(DIABETES_TIMELINE!ServiceCode,A23) -> 1
A24: 23 | B24: E119.00, Z7982, Z794 | C24: 99204 | D24: Podiatry | E24: Professional Services: Specialist | F24: Office/Outpatient Visit New | G24: 165 | I24: TRUE | J24: =COUNTIF(DIABETES_TIMELINE!ServiceCode,A24) -> 1
A25: 24 | B25: E119.00, Z7982, Z794 | C25: 99214 | D25: Primary | E25: Professional Services: Primary Care | F25: Office/Outpatient Visit Est | G25: 107.87 | I25: TRUE | J25: =COUNTIF(DIABETES_TIMELINE!ServiceCode,A25) -> 4
A26: 25 | B26: E119.00, Z7982, Z794 | C26: OTC | D26: Pharmacy Retail | E26: Over-the-counter Drugs | F26: Alcohol swabs (OTC - box of 100) [usage = 3 wipes/day; 90 wipes/month] | G26: 2.6075 | I26: TRUE | J26: =COUNTIF(DIABETES_TIMELINE!ServiceCode,A26) -> 13
A27: 26 | B27: E119.00, Z7982, Z794 | C27: OTC | D27: Pharmacy Retail | E27: Over-the-counter Drugs | F27: Aspirin 81mg (OTC - bottle 100) [usage = 1 QD; #30 pills per month] | G27: 4.2725 | I27: TRUE | J27: =COUNTIF(DIABETES_TIMELINE!ServiceCode,A27) -> 5
A28: 27 | B28: Z23 | C28: 90471 | D28: Primary | E28: Preventive Services & Vaccines | F28: Immunization Admin ADMIN | G28: 23 | I28: TRUE | J28: =COUNTIF(DIABETES_TIMELINE!ServiceCode,A28) -> 1
A29: 28 | B29: Z23 | C29: 90472 | D29: Primary | E29: Preventive Services & Vaccines | F29: Immunization admin each add | G29: 14.98 | I29: TRUE | J29: =COUNTIF(DIABETES_TIMELINE!ServiceCode,A29) -> 1
A30: 29 | B30: Z23 | C30: 90669 | D30: Primary | E30: Preventive Services & Vaccines | F30: Pneumococcal vacc 7 val im | G30: 97.86 | I30: TRUE | J30: =COUNTIF(DIABETES_TIMELINE!ServiceCode,A30) -> 1
A31: 30 | B31: Z23 | C31: 90656 | D31: Primary | E31: Preventive Services & Vaccines | F31: Flu Vaccine No Preserv 3 & > | G31: 14.27 | I31: TRUE | J31: =COUNTIF(DIABETES_TIMELINE!ServiceCode,A31) -> 1
A32: 31 | C32: 310075190 | D32: Pharmacy Retail | E32: Prescription Drugs: Branded | F32: CRESTOR 10MG TABLET (90 BOT) (NDC: 00310075190) | G32: 176.75 | H32: not used | I32: TRUE | J32: =COUNTIF(DIABETES_TIMELINE!ServiceCode,A32) -> 0
A33: 32 | C33: 93104901 | D33: Pharmacy Retail | E33: Prescription Drugs: Generic | F33: METFORMIN HCL 850 MG TABLET | G33: 9.19 | I33: TRUE | J33: =COUNTIF(DIABETES_TIMELINE!ServiceCode,A33) -> 13
A34: 33 | C34: 60505257909 | D34: Pharmacy Retail | E34: Prescription Drugs: Generic | F34: Atorvastatin 20 MG tablet 90 CT | G34: 25.88 | I34: TRUE | J34: =COUNTIF(DIABETES_TIMELINE!ServiceCode,A34) -> 4

Sheet MATERNITY_SUMMARY (hidden)
B2: Maternity Example: Summary of Subscriber and Plan Payments
B4: =BENEFIT_DESIGN!$B$6 -> Plan 3 | C4: Allowed Amount | F4: Subscriber pays:
B5: Benefit category | C5: Allowed Amount (unrounded) | D5: Allowed Amount (rounded) | E5: Plan payment (unrounded) | F5: Total subscriber payment | G5: Subscriber-paid deductible | H5: Subscriber-paid copayment | I5: Subscriber-paid coinsurance | J5: Non-covered and exclusions
B6: =BENEFIT_DESIGN!B8 -> Inpatient Hospital Care (Facility) | C6: =SUMIFS(MATERNITY_TIMELINE!AllowedAmt,MATERNITY_TIMELINE!BenefitCategory,$B6) -> 8959.38 | D6: =MROUND(C6,IF(C6>=100,100,10)) -> 9000 | E6: =SUMIFS(MATERNITY_TIMELINE!PlanPaymentAmt,MATERNITY_TIMELINE!BenefitCategory,$B6) -> 8959.38 | F6: =SUM(G6:J6) -> 0 | G6: =SUMIFS(MATERNITY_TIMELINE!SubscriberPayDeduc,MATERNITY_TIMELINE!BenefitCategory,$B6) -> 0 | H6: =SUMIFS(MATERNITY_TIMELINE!SubscriberPayCopay,MATERNITY_TIMELINE!BenefitCategory,$B6) -> 0 | I6: =SUMIFS(MATERNITY_TIMELINE!SubscriberPayCoins,MATERNITY_TIMELINE!BenefitCategory,$B6) -> 0 | J6: =SUMIFS(MATERNITY_TIMELINE!SubscriberPayNonCov,MATERNITY_TIMELINE!BenefitCategory,$B6)+SUMIFS(MATERNITY_TIMELINE!SubscriberPayExclusion,MATERNITY_TIMELINE!BenefitCategory,$B6) -> 0
B7: =BENEFIT_DESIGN!B9 -> Other Facility Services | C7: =SUMIFS(MATERNITY_TIMELINE!AllowedAmt,MATERNITY_TIMELINE!BenefitCategory,$B7) -> 0 | D7: =MROUND(C7,IF(C7>=100,100,10)) -> 0 | E7: =SUMIFS(MATERNITY_TIMELINE!PlanPaymentAmt,MATERNITY_TIMELINE!BenefitCategory,$B7) -> 0 | F7: =SUM(G7:J7) -> 0 | G7: =SUMIFS(MATERNITY_TIMELINE!SubscriberPayDeduc,MATERNITY_TIMELINE!BenefitCategory,$B7) -> 0 | H7: =SUMIFS(MATERNITY_TIMELINE!SubscriberPayCopay,MATERNITY_TIMELINE!BenefitCategory,$B7) -> 0 | I7: =SUMIFS(MATERNITY_TIMELINE!SubscriberPayCoins,MATERNITY_TIMELINE!BenefitCategory,$B7) -> 0 | J7: =SUMIFS(MATERNITY_TIMELINE!SubscriberPayNonCov,MATERNITY_TIMELINE!BenefitCategory,$B7)+SUMIFS(MATERNITY_TIMELINE!SubscriberPayExclusion,MATERNITY_TIMELINE!BenefitCategory,$B7) -> 0
B8: =BENEFIT_DESIGN!B10 -> Emergency Department (Facility) | C8: =SUMIFS(MATERNITY_TIMELINE!AllowedAmt,MATERNITY_TIMELINE!BenefitCategory,$B8) -> 0 | D8: 0 | E8: =SUMIFS(MATERNITY_TIMELINE!PlanPaymentAmt,MATERNITY_TIMELINE!BenefitCategory,$B8) -> 0 | F8: 0 | G8: =SUMIFS(MATERNITY_TIMELINE!SubscriberPayDeduc,MATERNITY_TIMELINE!BenefitCategory,$B8) -> 0 | H8: =SUMIFS(MATERNITY_TIMELINE!SubscriberPayCopay,MATERNITY_TIMELINE!BenefitCategory,$B8) -> 0 | I8: =SUMIFS(MATERNITY_TIMELINE!SubscriberPayCoins,MATERNITY_TIMELINE!BenefitCategory,$B8) -> 0 | J8: =SUMIFS(MATERNITY_TIMELINE!SubscriberPayNonCov,MATERNITY_TIMELINE!BenefitCategory,$B8)+SUMIFS(MATERNITY_TIMELINE!SubscriberPayExclusion,MATERNITY_TIMELINE!BenefitCategory,$B8) -> 0
B9: =BENEFIT_DESIGN!B11 -> Ambulance | C9: =SUMIFS(MATERNITY_TIMELINE!AllowedAmt,MATERNITY_TIMELINE!BenefitCategory,$B9) -> 0 | D9: 0 | E9: =SUMIFS(MATERNITY_TIMELINE!PlanPaymentAmt,MATERNITY_TIMELINE!BenefitCategory,$B9) -> 0 | F9: 0 | G9: =SUMIFS(MATERNITY_TIMELINE!SubscriberPayDeduc,MATERNITY_TIMELINE!BenefitCategory,$B9) -> 0 | H9: =SUMIFS(MATERNITY_TIMELINE!SubscriberPayCopay,MATERNITY_TIMELINE!BenefitCategory,$B9) -> 0 | I9: =SUMIFS(MATERNITY_TIMELINE!SubscriberPayCoins,MATERNITY_TIMELINE!BenefitCategory,$B9) -> 0 | J9: =SUMIFS(MATERNITY_TIMELINE!SubscriberPayNonCov,MATERNITY_TIMELINE!BenefitCategory,$B9)+SUMIFS(MATERNITY_TIMELINE!SubscriberPayExclusion,MATERNITY_TIMELINE!BenefitCategory,$B9) -> 0
B10: =BENEFIT_DESIGN!B12 -> Professional Services: Primary Care | C10: =SUMIFS(MATERNITY_TIMELINE!AllowedAmt,MATERNITY_TIMELINE!BenefitCategory,$B10) -> 198 | D10: 200 | E10: =SUMIFS(MATERNITY_TIMELINE!PlanPaymentAmt,MATERNITY_TIMELINE!BenefitCategory,$B10) -> 198 | F10: 0 | G10: =SUMIFS(MATERNITY_TIMELINE!SubscriberPayDeduc,MATERNITY_TIMELINE!BenefitCategory,$B10) -> 0 | H10: =SUMIFS(MATERNITY_TIMELINE!SubscriberPayCopay,MATERNITY_TIMELINE!BenefitCategory,$B10) -> 0 | I10: =SUMIFS(MATERNITY_TIMELINE!SubscriberPayCoins,MATERNITY_TIMELINE!BenefitCategory,$B10) -> 0 | J10: =SUMIFS(MATERNITY_TIMELINE!SubscriberPayNonCov,MATERNITY_TIMELINE!BenefitCategory,$B10)+SUMIFS(MATERNITY_TIMELINE!SubscriberPayExclusion,MATERNITY_TIMELINE!BenefitCategory,$B10) -> 0
B11: =BENEFIT_DESIGN!B13 -> Professional Services: Emergency Department | C11: =SUMIFS(MATERNITY_TIMELINE!AllowedAmt,MATERNITY_TIMELINE!BenefitCategory,$B11) -> 0 | D11: 0 | E11: =SUMIFS(MATERNITY_TIMELINE!PlanPaymentAmt,MATERNITY_TIMELINE!BenefitCategory,$B11) -> 0 | F11: 0 | G11: =SUMIFS(MATERNITY_TIMELINE!SubscriberPayDeduc,MATERNITY_TIMELINE!BenefitCategory,$B11) -> 0 | H11: =SUMIFS(MATERNITY_TIMELINE!SubscriberPayCopay,MATERNITY_TIMELINE!BenefitCategory,$B11) -> 0 | I11: =SUMIFS(MATERNITY_TIMELINE!SubscriberPayCoins,MATERNITY_TIMELINE!BenefitCategory,$B11) -> 0 | J11: =SUMIFS(MATERNITY_TIMELINE!SubscriberPayNonCov,MATERNITY_TIMELINE!BenefitCategory,$B11)+SUMIFS(MATERNITY_TIMELINE!SubscriberPayExclusion,MATERNITY_TIMELINE!BenefitCategory,$B11) -> 0
B12: =BENEFIT_DESIGN!B14 -> Professional Services: Specialist | C12: =SUMIFS(MATERNITY_TIMELINE!AllowedAmt,MATERNITY_TIMELINE!BenefitCategory,$B12) -> 0 | D12: 0 | E12: =SUMIFS(MATERNITY_TIMELINE!PlanPaymentAmt,MATERNITY_TIMELINE!BenefitCategory,$B12) -> 0 | F12: 0 | G12: =SUMIFS(MATERNITY_TIMELINE!SubscriberPayDeduc,MATERNITY_TIMELINE!BenefitCategory,$B12) -> 0 | H12: =SUMIFS(MATERNITY_TIMELINE!SubscriberPayCopay,MATERNITY_TIMELINE!BenefitCategory,$B12) -> 0 | I12: =SUMIFS(MATERNITY_TIMELINE!SubscriberPayCoins,MATERNITY_TIMELINE!BenefitCategory,$B12) -> 0 | J12: =SUMIFS(MATERNITY_TIMELINE!SubscriberPayNonCov,MATERNITY_TIMELINE!BenefitCategory,$B12)+SUMIFS(MATERNITY_TIMELINE!SubscriberPayExclusion,MATERNITY_TIMELINE!BenefitCategory,$B12) -> 0
B13: =BENEFIT_DESIGN!B15 -> Professional Services: Obstetric Care (Bundled) | C13: =SUMIFS(MATERNITY_TIMELINE!AllowedAmt,MATERNITY_TIMELINE!BenefitCategory,$B13) -> 2394.18 | D13: 2400 | E13: =SUMIFS(MATERNITY_TIMELINE!PlanPaymentAmt,MATERNITY_TIMELINE!BenefitCategory,$B13) -> 1572.28 | F13: 821.9 | G13: =SUMIFS(MATERNITY_TIMELINE!SubscriberPayDeduc,MATERNITY_TIMELINE!BenefitCategory,$B13) -> 821.9 | H13: =SUMIFS(MATERNITY_TIMELINE!SubscriberPayCopay,MATERNITY_TIMELINE!BenefitCategory,$B13) -> 0 | I13: =SUMIFS(MATERNITY_TIMELINE!SubscriberPayCoins,MATERNITY_TIMELINE!BenefitCategory,$B13) -> 0 | J13: =SUMIFS(MATERNITY_TIMELINE!SubscriberPayNonCov,MATERNITY_TIMELINE!BenefitCategory,$B13)+SUMIFS(MATERNITY_TIMELINE!SubscriberPayExclusion,MATERNITY_TIMELINE!BenefitCategory,$B13) -> 0
B14: =BENEFIT_DESIGN!B16 -> Professional Services: Procedures & Other | C14: =SUMIFS(MATERNITY_TIMELINE!AllowedAmt,MATERNITY_TIMELINE!BenefitCategory,$B14) -> 0 | D14: 0 | E14: =SUMIFS(MATERNITY_TIMELINE!PlanPaymentAmt,MATERNITY_TIMELINE!BenefitCategory,$B14) -> 0 | F14: 0 | G14: =SUMIFS(MATERNITY_TIMELINE!SubscriberPayDeduc,MATERNITY_TIMELINE!BenefitCategory,$B14) -> 0 | H14: =SUMIFS(MATERNITY_TIMELINE!SubscriberPayCopay,MATERNITY_TIMELINE!BenefitCategory,$B14) -> 0 | I14: =SUMIFS(MATERNITY_TIMELINE!SubscriberPayCoins,MATERNITY_TIMELINE!BenefitCategory,$B14) -> 0 | J14: =SUMIFS(MATERNITY_TIMELINE!SubscriberPayNonCov,MATERNITY_TIMELINE!BenefitCategory,$B14)+SUMIFS(MATERNITY_TIMELINE!SubscriberPayExclusion,MATERNITY_TIMELINE!BenefitCategory,$B14) -> 0
B15: =BENEFIT_DESIGN!B17 -> Professional Services: Physical Therapy | C15: =SUMIFS(MATERNITY_TIMELINE!AllowedAmt,MATERNITY_TIMELINE!BenefitCategory,$B15) -> 0 | D15: 0 | E15: =SUMIFS(MATERNITY_TIMELINE!PlanPaymentAmt,MATERNITY_TIMELINE!BenefitCategory,$B15) -> 0 | F15: 0 | G15: =SUMIFS(MATERNITY_TIMELINE!SubscriberPayDeduc,MATERNITY_TIMELINE!BenefitCategory,$B15) -> 0 | H15: =SUMIFS(MATERNITY_TIMELINE!SubscriberPayCopay,MATERNITY_TIMELINE!BenefitCategory,$B15) -> 0 | I15: =SUMIFS(MATERNITY_TIMELINE!SubscriberPayCoins,MATERNITY_TIMELINE!BenefitCategory,$B15) -> 0 | J15: =SUMIFS(MATERNITY_TIMELINE!SubscriberPayNonCov,MATERNITY_TIMELINE!BenefitCategory,$B15)+SUMIFS(MATERNITY_TIMELINE!SubscriberPayExclusion,MATERNITY_TIMELINE!BenefitCategory,$B15) -> 0
B16: =BENEFIT_DESIGN!B18 -> Diagnostic Services: Radiology | C16: =SUMIFS(MATERNITY_TIMELINE!AllowedAmt,MATERNITY_TIMELINE!BenefitCategory,$B16) -> 163.99 | D16: 200 | E16: =SUMIFS(MATERNITY_TIMELINE!PlanPaymentAmt,MATERNITY_TIMELINE!BenefitCategory,$B16) -> 163.99 | F16: 0 | G16: =SUMIFS(MATERNITY_TIMELINE!SubscriberPayDeduc,MATERNITY_TIMELINE!BenefitCategory,$B16) -> 0 | H16: =SUMIFS(MATERNITY_TIMELINE!SubscriberPayCopay,MATERNITY_TIMELINE!BenefitCategory,$B16) -> 0 | I16: =SUMIFS(MATERNITY_TIMELINE!SubscriberPayCoins,MATERNITY_TIMELINE!BenefitCategory,$B16) -> 0 | J16: =SUMIFS(MATERNITY_TIMELINE!SubscriberPayNonCov,MATERNITY_TIMELINE!BenefitCategory,$B16)+SUMIFS(MATERNITY_TIMELINE!SubscriberPayExclusion,MATERNITY_TIMELINE!BenefitCategory,$B16) -> 0
B17: =BENEFIT_DESIGN!B19 -> Diagnostic Services: Laboratory | C17: =SUMIFS(MATERNITY_TIMELINE!AllowedAmt,MATERNITY_TIMELINE!BenefitCategory,$B17) -> 882.14 | D17: 900 | E17: =SUMIFS(MATERNITY_TIMELINE!PlanPaymentAmt,MATERNITY_TIMELINE!BenefitCategory,$B17) -> 704.04 | F17: 178.1 | G17: =SUMIFS(MATERNITY_TIMELINE!SubscriberPayDeduc,MATERNITY_TIMELINE!BenefitCategory,$B17) -> 178.1 | H17: =SUMIFS(MATERNITY_TIMELINE!SubscriberPayCopay,MATERNITY_TIMELINE!BenefitCategory,$B17) -> 0 | I17: =SUMIFS(MATERNITY_TIMELINE!SubscriberPayCoins,MATERNITY_TIMELINE!BenefitCategory,$B17) -> 0 | J17: =SUMIFS(MATERNITY_TIMELINE!SubscriberPayNonCov,MATERNITY_TIMELINE!BenefitCategory,$B17)+SUMIFS(MATERNITY_TIMELINE!SubscriberPayExclusion,MATERNITY_TIMELINE!BenefitCategory,$B17) -> 0
B18: =BENEFIT_DESIGN!B20 -> Prescription Drugs: Generic | C18: =SUMIFS(MATERNITY_TIMELINE!AllowedAmt,MATERNITY_TIMELINE!BenefitCategory,$B18) -> 36.275 | D18: 40 | E18: =SUMIFS(MATERNITY_TIMELINE!PlanPaymentAmt,MATERNITY_TIMELINE!BenefitCategory,$B18) -> 36.275 | F18: 0 | G18: =SUMIFS(MATERNITY_TIMELINE!SubscriberPayDeduc,MATERNITY_TIMELINE!BenefitCategory,$B18) -> 0 | H18: =SUMIFS(MATERNITY_TIMELINE!SubscriberPayCopay,MATERNITY_TIMELINE!BenefitCategory,$B18) -> 0 | I18: =SUMIFS(MATERNITY_TIMELINE!SubscriberPayCoins,MATERNITY_TIMELINE!BenefitCategory,$B18) -> 0 | J18: =SUMIFS(MATERNITY_TIMELINE!SubscriberPayNonCov,MATERNITY_TIMELINE!BenefitCategory,$B18)+SUMIFS(MATERNITY_TIMELINE!SubscriberPayExclusion,MATERNITY_TIMELINE!BenefitCategory,$B18) -> 0
B19: =BENEFIT_DESIGN!B21 -> Prescription Drugs: Branded | C19: =SUMIFS(MATERNITY_TIMELINE!AllowedAmt,MATERNITY_TIMELINE!BenefitCategory,$B19) -> 0 | D19: 0 | E19: =SUMIFS(MATERNITY_TIMELINE!PlanPaymentAmt,MATERNITY_TIMELINE!BenefitCategory,$B19) -> 0 | F19: 0 | G19: =SUMIFS(MATERNITY_TIMELINE!SubscriberPayDeduc,MATERNITY_TIMELINE!BenefitCategory,$B19) -> 0 | H19: =SUMIFS(MATERNITY_TIMELINE!SubscriberPayCopay,MATERNITY_TIMELINE!BenefitCategory,$B19) -> 0 | I19: =SUMIFS(MATERNITY_TIMELINE!SubscriberPayCoins,MATERNITY_TIMELINE!BenefitCategory,$B19) -> 0 | J19: =SUMIFS(MATERNITY_TIMELINE!SubscriberPayNonCov,MATERNITY_TIMELINE!BenefitCategory,$B19)+SUMIFS(MATERNITY_TIMELINE!SubscriberPayExclusion,MATERNITY_TIMELINE!BenefitCategory,$B19) -> 0
B20: =BENEFIT_DESIGN!B22 -> Over-the-counter Drugs | C20: =SUMIFS(MATERNITY_TIMELINE!AllowedAmt,MATERNITY_TIMELINE!BenefitCategory,$B20) -> 60.01713452 | D20: 60 | E20: =SUMIFS(MATERNITY_TIMELINE!PlanPaymentAmt,MATERNITY_TIMELINE!BenefitCategory,$B20) -> 0 | F20: 60.01713452 | G20: =SUMIFS(MATERNITY_TIMELINE!SubscriberPayDeduc,MATERNITY_TIMELINE!BenefitCategory,$B20) -> 0 | H20: =SUMIFS(MATERNITY_TIMELINE!SubscriberPayCopay,MATERNITY_TIMELINE!BenefitCategory,$B20) -> 0 | I20: =SUMIFS(MATERNITY_TIMELINE!SubscriberPayCoins,MATERNITY_TIMELINE!BenefitCategory,$B20) -> 0 | J20: =SUMIFS(MATERNITY_TIMELINE!SubscriberPayNonCov,MATERNITY_TIMELINE!BenefitCategory,$B20)+SUMIFS(MATERNITY_TIMELINE!SubscriberPayExclusion,MATERNITY_TIMELINE!BenefitCategory,$B20) -> 60.01713452
B21: =BENEFIT_DESIGN!B23 -> Preventive Services & Vaccines | C21: =SUMIFS(MATERNITY_TIMELINE!AllowedAmt,MATERNITY_TIMELINE!BenefitCategory,$B21) -> 37.27 | D21: 40 | E21: =SUMIFS(MATERNITY_TIMELINE!PlanPaymentAmt,MATERNITY_TIMELINE!BenefitCategory,$B21) -> 37.27 | F21: 0 | G21: =SUMIFS(MATERNITY_TIMELINE!SubscriberPayDeduc,MATERNITY_TIMELINE!BenefitCategory,$B21) -> 0 | H21: =SUMIFS(MATERNITY_TIMELINE!SubscriberPayCopay,MATERNITY_TIMELINE!BenefitCategory,$B21) -> 0 | I21: =SUMIFS(MATERNITY_TIMELINE!SubscriberPayCoins,MATERNITY_TIMELINE!BenefitCategory,$B21) -> 0 | J21: =SUMIFS(MATERNITY_TIMELINE!SubscriberPayNonCov,MATERNITY_TIMELINE!BenefitCategory,$B21)+SUMIFS(MATERNITY_TIMELINE!SubscriberPayExclusion,MATERNITY_TIMELINE!BenefitCategory,$B21) -> 0
B22: =BENEFIT_DESIGN!B24 -> Durable Medical Equipment | C22: =SUMIFS(MATERNITY_TIMELINE!AllowedAmt,MATERNITY_TIMELINE!BenefitCategory,$B22) -> 0 | D22: 0 | E22: =SUMIFS(MATERNITY_TIMELINE!PlanPaymentAmt,MATERNITY_TIMELINE!BenefitCategory,$B22) -> 0 | F22: 0 | G22: =SUMIFS(MATERNITY_TIMELINE!SubscriberPayDeduc,MATERNITY_TIMELINE!BenefitCategory,$B22) -> 0 | H22: =SUMIFS(MATERNITY_TIMELINE!SubscriberPayCopay,MATERNITY_TIMELINE!BenefitCategory,$B22) -> 0 | I22: =SUMIFS(MATERNITY_TIMELINE!SubscriberPayCoins,MATERNITY_TIMELINE!BenefitCategory,$B22) -> 0 | J22: =SUMIFS(MATERNITY_TIMELINE!SubscriberPayNonCov,MATERNITY_TIMELINE!BenefitCategory,$B22)+SUMIFS(MATERNITY_TIMELINE!SubscriberPayExclusion,MATERNITY_TIMELINE!BenefitCategory,$B22) -> 0
B23: =BENEFIT_DESIGN!B25 -> Medical Supplies | C23: =SUMIFS(MATERNITY_TIMELINE!AllowedAmt,MATERNITY_TIMELINE!BenefitCategory,$B23) -> 0 | D23: 0 | E23: =SUMIFS(MATERNITY_TIMELINE!PlanPaymentAmt,MATERNITY_TIMELINE!BenefitCategory,$B23) -> 0 | F23: 0 | G23: =SUMIFS(MATERNITY_TIMELINE!SubscriberPayDeduc,MATERNITY_TIMELINE!BenefitCategory,$B23) -> 0 | H23: =SUMIFS(MATERNITY_TIMELINE!SubscriberPayCopay,MATERNITY_TIMELINE!BenefitCategory,$B23) -> 0 | I23: =SUMIFS(MATERNITY_TIMELINE!SubscriberPayCoins,MATERNITY_TIMELINE!BenefitCategory,$B23) -> 0 | J23: =SUMIFS(MATERNITY_TIMELINE!SubscriberPayNonCov,MATERNITY_TIMELINE!BenefitCategory,$B23)+SUMIFS(MATERNITY_TIMELINE!SubscriberPayExclusion,MATERNITY_TIMELINE!BenefitCategory,$B23) -> 0
B24: =BENEFIT_DESIGN!B26 -> Over-the-counter Medical Supplies | C24: =SUMIFS(MATERNITY_TIMELINE!AllowedAmt,MATERNITY_TIMELINE!BenefitCategory,$B24) -> 0 | D24: 0 | E24: =SUMIFS(MATERNITY_TIMELINE!PlanPaymentAmt,MATERNITY_TIMELINE!BenefitCategory,$B24) -> 0 | F24: 0 | G24: =SUMIFS(MATERNITY_TIMELINE!SubscriberPayDeduc,MATERNITY_TIMELINE!BenefitCategory,$B24) -> 0 | H24: =SUMIFS(MATERNITY_TIMELINE!SubscriberPayCopay,MATERNITY_TIMELINE!BenefitCategory,$B24) -> 0 | I24: =SUMIFS(MATERNITY_TIMELINE!SubscriberPayCoins,MATERNITY_TIMELINE!BenefitCategory,$B24) -> 0 | J24: =SUMIFS(MATERNITY_TIMELINE!SubscriberPayNonCov,MATERNITY_TIMELINE!BenefitCategory,$B24)+SUMIFS(MATERNITY_TIMELINE!SubscriberPayExclusion,MATERNITY_TIMELINE!BenefitCategory,$B24) -> 0
B25: =BENEFIT_DESIGN!B27 -> Other Items & Services | C25: =SUMIFS(MATERNITY_TIMELINE!AllowedAmt,MATERNITY_TIMELINE!BenefitCategory,$B25) -> 0 | D25: 0 | E25: =SUMIFS(MATERNITY_TIMELINE!PlanPaymentAmt,MATERNITY_TIMELINE!BenefitCategory,$B25) -> 0 | F25: 0 | G25: =SUMIFS(MATERNITY_TIMELINE!SubscriberPayDeduc,MATERNITY_TIMELINE!BenefitCategory,$B25) -> 0 | H25: =SUMIFS(MATERNITY_TIMELINE!SubscriberPayCopay,MATERNITY_TIMELINE!BenefitCategory,$B25) -> 0 | I25: =SUMIFS(MATERNITY_TIMELINE!SubscriberPayCoins,MATERNITY_TIMELINE!BenefitCategory,$B25) -> 0 | J25: =SUMIFS(MATERNITY_TIMELINE!SubscriberPayNonCov,MATERNITY_TIMELINE!BenefitCategory,$B25)+SUMIFS(MATERNITY_TIMELINE!SubscriberPayExclusion,MATERNITY_TIMELINE!BenefitCategory,$B25) -> 0
B26: Total (unrounded) | C26: =SUM(C6:C25) -> 12731.25213 | E26: =IFERROR(IF(BENEFIT_DESIGN_ERRORS!$C$34,"ERROR",SUM(E6:E25)),"ERROR") -> 11671.235 | F26: =IFERROR(IF(BENEFIT_DESIGN_ERRORS!$C$34,"ERROR",SUM(F6:F25)),"ERROR") -> 1060.017135 | G26: =IFERROR(IF(BENEFIT_DESIGN_ERRORS!$C$34,"ERROR",SUM(G6:G25)),"ERROR") -> 1000 | H26: =IFERROR(IF(BENEFIT_DESIGN_ERRORS!$C$34,"ERROR",SUM(H6:H25)),"ERROR") -> 0 | I26: =IFERROR(IF(BENEFIT_DESIGN_ERRORS!$C$34,"ERROR",SUM(I6:I25)),"ERROR") -> 0 | J26: =IFERROR(IF(BENEFIT_DESIGN_ERRORS!$C$34,"ERROR",SUM(J6:J25)),"ERROR") -> 60.01713452
B27: Total (rounded) | D27: =SUM(D6:D25) -> 12840 | E27: =IFERROR(IF(BENEFIT_DESIGN_ERRORS!$C$34,"ERROR",D27-F27),"ERROR") -> 11780 | F27: =IFERROR(IF(BENEFIT_DESIGN_ERRORS!$C$34,"ERROR",SUM(G27:J27)),"ERROR") -> 1060 | G27: =IFERROR(IF(OR(BENEFIT_DESIGN_ERRORS!$D$34,BENEFIT_DESIGN_ERRORS!$E$34,BENEFIT_DESIGN_ERRORS!$H$34),"ERROR",MROUND(G26,10)),"ERROR") -> 1000 | H27: =IFERROR(IF(BENEFIT_DESIGN_ERRORS!$I$34,"ERROR",MROUND(H26,10)),"ERROR") -> 0 | I27: =IFERROR(IF(BENEFIT_DESIGN_ERRORS!$J$34,"ERROR",MROUND(I26,10)),"ERROR") -> 0 | J27: =IFERROR(IF(OR(BENEFIT_DESIGN_ERRORS!$K$34,BENEFIT_DESIGN_ERRORS!$L$34,BENEFIT_DESIGN_ERRORS!$M$34),"ERROR",MROUND(J26,10)),"ERROR") -> 60

Sheet MATERNITY_TIMELINE
H1: Phase 1 | I1: Phase 2 | K1: Phase 3 | Q1: Phase 4 | T1: Phase 5 | U1: Phase 5: plan deductible | X1: Phase 5: Rx deductible | AA1: Phase 5: optional deductible C | AD1: Phase 5: optional deductible D | AG1: Phase 5: benefit deductible | AL1: Phase 6 | AP1: Phase 7 | AR1: Phase 8
A2: Claim number | B2: Date | C2: Calendar Month | D2: Item or Service Code | E2: Description | F2: Benefit Category | G2: Cost-sharing type | H2: Allowed amount | I2: Not covered | J2: Covered amount | K2: Monthly limit | L2: Prior use (month) | M2: subscriber pays because monthly limit exceeded | N2: Annual limit | O2: Prior use (annual) | P2: subscriber pays because annual limit exceeded | Q2: Co-payment amount | R2: Co-insurance rate | S2: Co-insurance amount | T2: Allowed amount after co-payment or co-insurance | U2: Plan deductible applies | V2: remaining plan deductible | W2: subscriber pays toward plan deductible | X2: Rx deductible applies | Y2: remaining Rx deductible | Z2: subscriber pays toward Rx deductible | AA2: deductible C applies | AB2: remaining deductible C | AC2: subscriber pays toward deductible C | AD2: deductible D applies | AE2: remaining deductible D | AF2: subscriber pays toward deductible D | AG2: benefit deductible applies | AH2: remaining benefit deductible | AI2: subscriber pays toward benefit deductible | AJ2: subscriber pays toward any deductible | AK2: Covered amount remaining after deductibles | AL2: subscriber payment before OPL | AM2: OPL applies | AN2: amount subject to OPL | AO2: remaining OPL after subscriber payment | AP2: subscriber payment after OOP limit | AQ2: plan payment | AR2: Not covered | AS2: Exclusions | AT2: Subscriber-paid copayment | AU2: Subscriber-paid coinsurance | AV2: Subscriber-paid deductible | AW2: Subscriber ChkSum | AX2: Allowable Charge ChkSum
A3: 1 | B3: 2011-01-07 | C3: 1 | D3: 8 | E3: =VLOOKUP(ServiceCode,MaternityFeeSchedule,6,FALSE) -> Prenatal Vitamins (OTC - Bottle of 100) [1 pill daily; 30 pills/month] | F3: =VLOOKUP(ServiceCode,MaternityFeeSchedule,5,FALSE) -> Over-the-counter Drugs | G3: =VLOOKUP(BenefitCategory,BenefitDesignTable,COLUMN(BenefitCostSharing),FALSE) -> Not Covered | H3: =VLOOKUP(ServiceCode,MaternityFeeSchedule,7,FALSE) -> 12.20546667 | I3: =IF(CostSharingType="Not Covered",AllowedAmt,0) -> 12.20546667 | J3: =IF((NotCoveredAmt+AmtExceedMonthLimit+AmtExceedAnnualLimit)>0,0,AllowedAmt) -> 0 | K3: =VLOOKUP(BenefitCategory,BenefitDesignTable,COLUMN(BenefitLimithMonth),FALSE) -> None | L3: =COUNTIFS(ServiceCode,ServiceCode,ClaimMonth,ClaimMonth,ClaimNumber,"<"&ClaimNumber) -> 0 | M3: =IF(MonthLimit=0,0,IF(PriorUseMonth>=MonthLimit,AllowedAmt,0)) -> 0 | N3: =VLOOKUP(BenefitCategory,BenefitDesignTable,COLUMN(BenefitLimitAnnual),FALSE) -> None | O3: =COUNTIFS(ServiceCode,ServiceCode,ClaimNumber,"<"&ClaimNumber) -> 0 | P3: =IF(AnnualLimit=0,0,IF(PriorUseAnnual>=AnnualLimit,AllowedAmt,0)) -> 0 | Q3: =IF(AmtExceedMonthLimit=0,IF(AmtExceedAnnualLimit=0,VLOOKUP(BenefitCategory,BenefitDesignTable,COLUMN(BenefitCopay),FALSE),0)) -> 0 | R3: =VLOOKUP(BenefitCategory,BenefitDesignTable,COLUMN(BenefitCoins),FALSE) -> 0 | S3: =IF(AmtExceedMonthLimit=0,IF(AmtExceedAnnualLimit=0,CoInsRate*CoveredAmt,0)) -> 0 | T3: =IF((CoveredAmt-CoPayAmount-CoInsAmount)<0,0,CoveredAmt-CoPayAmount-CoInsAmount) -> 0 | U3: =VLOOKUP(BenefitCategory,BenefitDesignTable,COLUMN(PlanDeductible),FALSE)>0 -> FALSE | V3: =MAX(0,VLOOKUP(BenefitCategory,BenefitDesignTable,COLUMN(PlanDeductible),FALSE)-SUMIFS(AllowedAmtAfterCopayCoins,PlanDeductibleApplies,TRUE,ClaimNumber,"<"&ClaimNumber)) -> 0 | W3: =IF(AllowedAmtAfterCopayCoins<RemainingPlanDeduc,AllowedAmtAfterCopayCoins,RemainingPlanDeduc) -> 0 | X3: =VLOOKUP(BenefitCategory,BenefitDesignTable,COLUMN(RxDeductible),FALSE)>0 -> FALSE | Y3: =MAX(0,VLOOKUP(BenefitCategory,BenefitDesignTable,COLUMN(RxDeductible),FALSE)-SUMIFS(AllowedAmtAfterCopayCoins,RxDeductibleApplies,TRUE,ClaimNumber,"<"&ClaimNumber)) -> 0 | Z3: =IF(AllowedAmtAfterCopayCoins<RemainingRxDeduc,AllowedAmtAfterCopayCoins,RemainingRxDeduc) -> 0 | AA3: =VLOOKUP(BenefitCategory,BenefitDesignTable,COLUMN(OptDeductibleC),FALSE)>0 -> FALSE | AB3: =MAX(0,VLOOKUP(BenefitCategory,BenefitDesignTable,COLUMN(OptDeductibleC),FALSE)-SUMIFS(AllowedAmtAfterCopayCoins,DeductibleCApplies,TRUE,ClaimNumber,"<"&ClaimNumber)) -> 0 | AC3: =IF(AllowedAmtAfterCopayCoins<RemainingDeductibleC,AllowedAmtAfterCopayCoins,RemainingDeductibleC) -> 0 | AD3: =VLOOKUP(BenefitCategory,BenefitDesignTable,COLUMN(OptDeductibleD),FALSE)>0 -> FALSE | AE3: =MAX(0,VLOOKUP(BenefitCategory,BenefitDesignTable,COLUMN(OptDeductibleD),FALSE)-SUMIFS(AllowedAmtAfterCopayCoins,DeductibleDApplies,TRUE,ClaimNumber,"<"&ClaimNumber)) -> 0 | AF3: =IF(AllowedAmtAfterCopayCoins<RemainingDeductibleD,AllowedAmtAfterCopayCoins,RemainingDeductibleD) -> 0 | AG3: =VLOOKUP(BenefitCategory,BenefitDesignTable,COLUMN(BenefitDeductible),FALSE)>0 -> FALSE | AH3: =MAX(0,VLOOKUP(BenefitCategory,BenefitDesignTable,COLUMN(BenefitDeductible),FALSE)-SUMIFS(AllowedAmtAfterCopayCoins,BenefitCategory,BenefitCategory,ClaimNumber,"<"&ClaimNumber)) -> 0 | AI3: =IF(AllowedAmtAfterCopayCoins<RemainingBenefitDeduc,AllowedAmtAfterCopayCoins,RemainingBenefitDeduc) -> 0 | AJ3: =PlanDeductiblePayment+RxDeductiblePayment+DeductibleCPayment+DeductibleDPayment+BenefitDeductiblePayment -> 0 | AK3: =MAX(0,CoveredAmt-PaymentTowardDeductibles) -> 0 | AL3: =PaymentTowardDeductibles+CoPayAmount+CoInsAmount -> 0 | AM3: =VLOOKUP(BenefitCategory,BenefitDesignTable,COLUMN(BenefitOOPLimitApplies),FALSE)="Yes" -> FALSE | AN3: =IF(OPLApplies,SubscriberPaymentBeforeOPL,0) -> 0 | AO3: =MAX(0,VLOOKUP(BenefitCategory,BenefitDesignTable,COLUMN(OPLimit),FALSE)-SUMIFS(AmountSubjectToOPL,OPLApplies,TRUE,ClaimNumber,"<"&ClaimNumber)) -> 0 | AP3: =IF(OPLApplies,IF(AmountSubjectToOPL<RemainingOPL,AmountSubjectToOPL,RemainingOPL),SubscriberPaymentBeforeOPL) -> 0 | AQ3: =IF((CoveredAmt-SubscriberPaymentAfterOPL)<0,0,CoveredAmt-SubscriberPaymentAfterOPL) -> 0 | AR3: =NotCoveredAmt -> 12.20546667 | AS3: =AmtExceedMonthLimit+AmtExceedAnnualLimit -> 0 | AT3: =IF(CoPayAmount<SubscriberPaymentAfterOPL,CoPayAmount,SubscriberPaymentAfterOPL) -> 0 | AU3: =IF(CoInsAmount<SubscriberPaymentAfterOPL,CoInsAmount,SubscriberPaymentAfterOPL) -> 0 | AV3: =SubscriberPaymentAfterOPL-SubscriberPayCopay-SubscriberPayCoins -> 0 | AW3: =SUM(AS3:AV3)=AP3 -> TRUE | AX3: =SUM(AQ3:AV3)=H3 -> TRUE
A4: 2 | B4: 2011-04-01 | C4: 4 | D4: 14 | E4: Obstetric Panel | F4: Diagnostic Services: Laboratory | G4: Plan Deductible Only | H4: 42.75 | I4: 0 | J4: 42.75 | K4: None | L4: 0 | M4: 0 | N4: None | O4: 0 | P4: 0 | Q4: 0 | R4: 0 | S4: 0 | T4: 42.75 | U4: TRUE | V4: 1000 | W4: 42.75 | X4: FALSE | Y4: 0 | Z4: 0 | AA4: FALSE | AB4: 0 | AC4: 0 | AD4: FALSE | AE4: 0 | AF4: 0 | AG4: FALSE | AH4: 0 | AI4: 0 | AJ4: 42.75 | AK4: 0 | AL4: 42.75 | AM4: TRUE | AN4: 42.75 | AO4: 1000 | AP4: =IF(OPLApplies,IF(AmountSubjectToOPL<RemainingOPL,AmountSubjectToOPL,RemainingOPL),SubscriberPaymentBeforeOPL) -> 42.75 | AQ4: =IF(CoveredAmt<SubscriberPaymentAfterOPL,0,CoveredAmt-SubscriberPaymentAfterOPL) -> 0 | AR4: 0 | AS4: 0 | AT4: 0 | AU4: 0 | AV4: =SubscriberPaymentAfterOPL-SubscriberPayCopay-SubscriberPayCoins -> 42.75 | AW4: TRUE | AX4: TRUE
A5: 3 | B5: 2011-04-01 | C5: 4 | D5: 30 | E5: Detect agnt mult dna ampli | F5: Diagnostic Services: Laboratory | G5: Plan Deductible Only | H5: 94 | I5: 0 | J5: 94 | K5: None | L5: 0 | M5: 0 | N5: None | O5: 0 | P5: 0 | Q5: 0 | R5: 0 | S5: 0 | T5: 94 | U5: TRUE | V5: 957.25 | W5: 94 | X5: FALSE | Y5: 0 | Z5: 0 | AA5: FALSE | AB5: 0 | AC5: 0 | AD5: FALSE | AE5: 0 | AF5: 0 | AG5: FALSE | AH5: 0 | AI5: 0 | AJ5: 94 | AK5: 0 | AL5: 94 | AM5: TRUE | AN5: 94 | AO5: 957.25 | AP5: =IF(OPLApplies,IF(AmountSubjectToOPL<RemainingOPL,AmountSubjectToOPL,RemainingOPL),SubscriberPaymentBeforeOPL) -> 94 | AQ5: 0 | AR5: 0 | AS5: 0 | AT5: 0 | AU5: 0 | AV5: =SubscriberPaymentAfterOPL-SubscriberPayCopay-SubscriberPayCoins -> 94 | AW5: TRUE | AX5: TRUE
A6: 4 | B6: 2011-04-01 | C6: 4 | D6: 31 | E6: Cytopath TBS C/V Manual | F6: Diagnostic Services: Laboratory | G6: Plan Deductible Only | H6: 12.64 | I6: 0 | J6: 12.64 | K6: None | L6: 0 | M6: 0 | N6: None | O6: 0 | P6: 0 | Q6: 0 | R6: 0 | S6: 0 | T6: 12.64 | U6: TRUE | V6: 863.25 | W6: 12.64 | X6: FALSE | Y6: 0 | Z6: 0 | AA6: FALSE | AB6: 0 | AC6: 0 | AD6: FALSE | AE6: 0 | AF6: 0 | AG6: FALSE | AH6: 0 | AI6: 0 | AJ6: 12.64 | AK6: 0 | AL6: 12.64 | AM6: TRUE | AN6: 12.64 | AO6: 863.25 | AP6: =IF(OPLApplies,IF(AmountSubjectToOPL<RemainingOPL,AmountSubjectToOPL,RemainingOPL),SubscriberPaymentBeforeOPL) -> 12.64 | AQ6: 0 | AR6: 0 | AS6: 0 | AT6: 0 | AU6: 0 | AV6: =SubscriberPaymentAfterOPL-SubscriberPayCopay-SubscriberPayCoins -> 12.64 | AW6: TRUE | AX6: TRUE
A7: 5 | B7: 2011-04-01 | C7: 4 | D7: 28 | E7: HIV-1 | F7: Diagnostic Services: Laboratory | G7: Plan Deductible Only | H7: 15.48 | I7: 0 | J7: 15.48 | K7: None | L7: 0 | M7: 0 | N7: None | O7: 0 | P7: 0 | Q7: 0 | R7: 0 | S7: 0 | T7: 15.48 | U7: TRUE | V7: 850.61 | W7: 15.48 | X7: FALSE | Y7: 0 | Z7: 0 | AA7: FALSE | AB7: 0 | AC7: 0 | AD7: FALSE | AE7: 0 | AF7: 0 | AG7: FALSE | AH7: 0 | AI7: 0 | AJ7: 15.48 | AK7: 0 | AL7: 15.48 | AM7: TRUE | AN7: 15.48 | AO7: 850.61 | AP7: =IF(OPLApplies,IF(AmountSubjectToOPL<RemainingOPL,AmountSubjectToOPL,RemainingOPL),SubscriberPaymentBeforeOPL) -> 15.48 | AQ7: 0 | AR7: 0 | AS7: 0 | AT7: 0 | AU7: 0 | AV7: =SubscriberPaymentAfterOPL-SubscriberPayCopay-SubscriberPayCoins -> 15.48 | AW7: TRUE | AX7: TRUE
A8: 6 | B8: 2011-04-01 | C8: 4 | D8: 12 | E8: Routine Venipuncture | F8: Diagnostic Services: Laboratory | G8: Plan Deductible Only | H8: 4.17 | I8: 0 | J8: 4.17 | K8: None | L8: 0 | M8: 0 | N8: None | O8: 0 | P8: 0 | Q8: 0 | R8: 0 | S8: 0 | T8: 4.17 | U8: TRUE | V8: 835.13 | W8: 4.17 | X8: FALSE | Y8: 0 | Z8: 0 | AA8: FALSE | AB8: 0 | AC8: 0 | AD8: FALSE | AE8: 0 | AF8: 0 | AG8: FALSE | AH8: 0 | AI8: 0 | AJ8: 4.17 | AK8: 0 | AL8: 4.17 | AM8: TRUE | AN8: 4.17 | AO8: 835.13 | AP8: =IF(OPLApplies,IF(AmountSubjectToOPL<RemainingOPL,AmountSubjectToOPL,RemainingOPL),SubscriberPaymentBeforeOPL) -> 4.17 | AQ8: 0 | AR8: 0 | AS8: 0 | AT8: 0 | AU8: 0 | AV8: =SubscriberPaymentAfterOPL-SubscriberPayCopay-SubscriberPayCoins -> 4.17 | AW8: TRUE | AX8: TRUE
A9: 7 | B9: 2011-04-01 | C9: 4 | D9: 35 | E9: Urine Pregnancy Test | F9: Diagnostic Services: Laboratory | G9: Plan Deductible Only | H9: 9.06 | I9: 0 | J9: 9.06 | K9: None | L9: 0 | M9: 0 | N9: None | O9: 0 | P9: 0 | Q9: 0 | R9: 0 | S9: 0 | T9: 9.06 | U9: TRUE | V9: 830.96 | W9: 9.06 | X9: FALSE | Y9: 0 | Z9: 0 | AA9: FALSE | AB9: 0 | AC9: 0 | AD9: FALSE | AE9: 0 | AF9: 0 | AG9: FALSE | AH9: 0 | AI9: 0 | AJ9: 9.06 | AK9: 0 | AL9: 9.06 | AM9: TRUE | AN9: 9.06 | AO9: 830.96 | AP9: =IF(OPLApplies,IF(AmountSubjectToOPL<RemainingOPL,AmountSubjectToOPL,RemainingOPL),SubscriberPaymentBeforeOPL) -> 9.06 | AQ9: 0 | AR9: 0 | AS9: 0 | AT9: 0 | AU9: 0 | AV9: =SubscriberPaymentAfterOPL-SubscriberPayCopay-SubscriberPayCoins -> 9.06 | AW9: TRUE | AX9: TRUE
A10: 8 | B10: 2011-04-01 | C10: 4 | D10: 6 | E10: Obstetrical Care | F10: Professional Services: Obstetric Care (Bundled) | G10: Plan Deductible Only | H10: 2394.18 | I10: 0 | J10: 2394.18 | K10: None | L10: 0 | M10: 0 | N10: None | O10: 0 | P10: 0 | Q10: 0 | R10: 0 | S10: 0 | T10: 2394.18 | U10: TRUE | V10: 821.9 | W10: 821.9 | X10: FALSE | Y10: 0 | Z10: 0 | AA10: FALSE | AB10: 0 | AC10: 0 | AD10: FALSE | AE10: 0 | AF10: 0 | AG10: FALSE | AH10: 0 | AI10: 0 | AJ10: 821.9 | AK10: 1572.28 | AL10: 821.9 | AM10: TRUE | AN10: 821.9 | AO10: 821.9 | AP10: =IF(OPLApplies,IF(AmountSubjectToOPL<RemainingOPL,AmountSubjectToOPL,RemainingOPL),SubscriberPaymentBeforeOPL) -> 821.9 | AQ10: 1572.28 | AR10: 0 | AS10: 0 | AT10: 0 | AU10: 0 | AV10: =SubscriberPaymentAfterOPL-SubscriberPayCopay-SubscriberPayCoins -> 821.9 | AW10: TRUE | AX10: TRUE
A11: 9 | B11: 2011-04-07 | C11: 4 | D11: 32 | E11: Office/Outpatient Visit Est | F11: Professional Services: Obstetric Care (Bundled) | G11: Plan Deductible Only | H11: 0 | I11: 0 | J11: 0 | K11: None | L11: 0 | M11: 0 | N11: None | O11: 0 | P11: 0 | Q11: 0 | R11: 0 | S11: 0 | T11: 0 | U11: TRUE | V11: 0 | W11: 0 | X11: FALSE | Y11: 0 | Z11: 0 | AA11: FALSE | AB11: 0 | AC11: 0 | AD11: FALSE | AE11: 0 | AF11: 0 | AG11: FALSE | AH11: 0 | AI11: 0 | AJ11: 0 | AK11: 0 | AL11: 0 | AM11: TRUE | AN11: 0 | AO11: 0 | AP11: =IF(OPLApplies,IF(AmountSubjectToOPL<RemainingOPL,AmountSubjectToOPL,RemainingOPL),SubscriberPaymentBeforeOPL) -> 0 | AQ11: 0 | AR11: 0 | AS11: 0 | AT11: 0 | AU11: 0 | AV11: =SubscriberPaymentAfterOPL-SubscriberPayCopay-SubscriberPayCoins -> 0 | AW11: TRUE | AX11: TRUE
A12: 10 | B12: 2011-04-07 | C12: 4 | D12: 8 | E12: Prenatal Vitamins (OTC - Bottle of 100) [1 pill daily; 30 pills/month] | F12: Over-the-counter Drugs | G12: Not Covered | H12: 12.20546667 | I12: 12.20546667 | J12: 0 | K12: None | L12: 0 | M12: 0 | N12: None | O12: 1 | P12: 0 | Q12: 0 | R12: 0 | S12: 0 | T12: 0 | U12: FALSE | V12: 0 | W12: 0 | X12: FALSE | Y12: 0 | Z12: 0 | AA12: FALSE | AB12: 0 | AC12: 0 | AD12: FALSE | AE12: 0 | AF12: 0 | AG12: FALSE | AH12: 0 | AI12: 0 | AJ12: 0 | AK12: 0 | AL12: 0 | AM12: FALSE | AN12: 0 | AO12: 0 | AP12: =IF(OPLApplies,IF(AmountSubjectToOPL<RemainingOPL,AmountSubjectToOPL,RemainingOPL),SubscriberPaymentBeforeOPL) -> 0 | AQ12: 0 | AR12: 12.20546667 | AS12: 0 | AT12: 0 | AU12: 0 | AV12: =SubscriberPaymentAfterOPL-SubscriberPayCopay-SubscriberPayCoins -> 0 | AW12: TRUE | AX12: TRUE
A13: 11 | B13: 2011-05-27 | C13: 5 | D13: 32 | E13: Office/Outpatient Visit Est | F13: Professional Services: Obstetric Care (Bundled) | G13: Plan Deductible Only | H13: 0 | I13: 0 | J13: 0 | K13: None | L13: 0 | M13: 0 | N13: None | O13: 1 | P13: 0 | Q13: 0 | R13: 0 | S13: 0 | T13: 0 | U13: TRUE | V13: 0 | W13: 0 | X13: FALSE | Y13: 0 | Z13: 0 | AA13: FALSE | AB13: 0 | AC13: 0 | AD13: FALSE | AE13: 0 | AF13: 0 | AG13: FALSE | AH13: 0 | AI13: 0 | AJ13: 0 | AK13: 0 | AL13: 0 | AM13: TRUE | AN13: 0 | AO13: 0 | AP13: =IF(OPLApplies,IF(AmountSubjectToOPL<RemainingOPL,AmountSubjectToOPL,RemainingOPL),SubscriberPaymentBeforeOPL) -> 0 | AQ13: 0 | AR13: 0 | AS13: 0 | AT13: 0 | AU13: 0 | AV13: =SubscriberPaymentAfterOPL-SubscriberPayCopay-SubscriberPayCoins -> 0 | AW13: TRUE | AX13: TRUE
A14: 12 | B14: 2011-06-24 | C14: 6 | D14: 15 | E14: Alpha-fetoprotein serum | F14: Diagnostic Services: Laboratory | G14: Plan Deductible Only | H14: 17.53 | I14: 0 | J14: 17.53 | K14: None | L14: 0 | M14: 0 | N14: None | O14: 0 | P14: 0 | Q14: 0 | R14: 0 | S14: 0 | T14: 17.53 | U14: TRUE | V14: 0 | W14: 0 | X14: FALSE | Y14: 0 | Z14: 0 | AA14: FALSE | AB14: 0 | AC14: 0 | AD14: FALSE | AE14: 0 | AF14: 0 | AG14: FALSE | AH14: 0 | AI14: 0 | AJ14: 0 | AK14: 17.53 | AL14: 0 | AM14: TRUE | AN14: 0 | AO14: 0 | AP14: =IF(OPLApplies,IF(AmountSubjectToOPL<RemainingOPL,AmountSubjectToOPL,RemainingOPL),SubscriberPaymentBeforeOPL) -> 0 | AQ14: 17.53 | AR14: 0 | AS14: 0 | AT14: 0 | AU14: 0 | AV14: =SubscriberPaymentAfterOPL-SubscriberPayCopay-SubscriberPayCoins -> 0 | AW14: TRUE | AX14: TRUE
A15: 13 | B15: 2011-06-24 | C15: 6 | D15: 16 | E15: Assay of estriol | F15: Diagnostic Services: Laboratory | G15: Plan Deductible Only | H15: 23.82 | I15: 0 | J15: 23.82 | K15: None | L15: 0 | M15: 0 | N15: None | O15: 0 | P15: 0 | Q15: 0 | R15: 0 | S15: 0 | T15: 23.82 | U15: TRUE | V15: 0 | W15: 0 | X15: FALSE | Y15: 0 | Z15: 0 | AA15: FALSE | AB15: 0 | AC15: 0 | AD15: FALSE | AE15: 0 | AF15: 0 | AG15: FALSE | AH15: 0 | AI15: 0 | AJ15: 0 | AK15: 23.82 | AL15: 0 | AM15: TRUE | AN15: 0 | AO15: 0 | AP15: =IF(OPLApplies,IF(AmountSubjectToOPL<RemainingOPL,AmountSubjectToOPL,RemainingOPL),SubscriberPaymentBeforeOPL) -> 0 | AQ15: 23.82 | AR15: 0 | AS15: 0 | AT15: 0 | AU15: 0 | AV15: =SubscriberPaymentAfterOPL-SubscriberPayCopay-SubscriberPayCoins -> 0 | AW15: TRUE | AX15: TRUE
A16: 14 | B16: 2011-06-24 | C16: 6 | D16: 25 | E16: Chorionic gonadotropin test | F16: Diagnostic Services: Laboratory | G16: Plan Deductible Only | H16: 16.4 | I16: 0 | J16: 16.4 | K16: None | L16: 0 | M16: 0 | N16: None | O16: 0 | P16: 0 | Q16: 0 | R16: 0 | S16: 0 | T16: 16.4 | U16: TRUE | V16: 0 | W16: 0 | X16: FALSE | Y16: 0 | Z16: 0 | AA16: FALSE | AB16: 0 | AC16: 0 | AD16: FALSE | AE16: 0 | AF16: 0 | AG16: FALSE | AH16: 0 | AI16: 0 | AJ16: 0 | AK16: 16.4 | AL16: 0 | AM16: TRUE | AN16: 0 | AO16: 0 | AP16: =IF(OPLApplies,IF(AmountSubjectToOPL<RemainingOPL,AmountSubjectToOPL,RemainingOPL),SubscriberPaymentBeforeOPL) -> 0 | AQ16: 16.4 | AR16: 0 | AS16: 0 | AT16: 0 | AU16: 0 | AV16: =SubscriberPaymentAfterOPL-SubscriberPayCopay-SubscriberPayCoins -> 0 | AW16: TRUE | AX16: TRUE
A17: 15 | B17: 2011-06-24 | C17: 6 | D17: 27 | E17: Inhibin A | F17: Diagnostic Services: Laboratory | G17: Plan Deductible Only | H17: 17.43 | I17: 0 | J17: 17.43 | K17: None | L17: 0 | M17: 0 | N17: None | O17: 0 | P17: 0 | Q17: 0 | R17: 0 | S17: 0 | T17: 17.43 | U17: TRUE | V17: 0 | W17: 0 | X17: FALSE | Y17: 0 | Z17: 0 | AA17: FALSE | AB17: 0 | AC17: 0 | AD17: FALSE | AE17: 0 | AF17: 0 | AG17: FALSE | AH17: 0 | AI17: 0 | AJ17: 0 | AK17: 17.43 | AL17: 0 | AM17: TRUE | AN17: 0 | AO17: 0 | AP17: =IF(OPLApplies,IF(AmountSubjectToOPL<RemainingOPL,AmountSubjectToOPL,RemainingOPL),SubscriberPaymentBeforeOPL) -> 0 | AQ17: 17.43 | AR17: 0 | AS17: 0 | AT17: 0 | AU17: 0 | AV17: =SubscriberPaymentAfterOPL-SubscriberPayCopay-SubscriberPayCoins -> 0 | AW17: TRUE | AX17: TRUE
A18: 16 | B18: 2011-06-24 | C18: 6 | D18: 37 | E18: CFTR gene analysis, common variants | F18: Diagnostic Services: Laboratory | G18: Plan Deductible Only | H18: 561.73 | I18: 0 | J18: 561.73 | K18: None | L18: 0 | M18: 0 | N18: None | O18: 0 | P18: 0 | Q18: 0 | R18: 0 | S18: 0 | T18: 561.73 | U18: TRUE | V18: 0 | W18: 0 | X18: FALSE | Y18: 0 | Z18: 0 | AA18: FALSE | AB18: 0 | AC18: 0 | AD18: FALSE | AE18: 0 | AF18: 0 | AG18: FALSE | AH18: 0 | AI18: 0 | AJ18: 0 | AK18: 561.73 | AL18: 0 | AM18: TRUE | AN18: 0 | AO18: 0 | AP18: =IF(OPLApplies,IF(AmountSubjectToOPL<RemainingOPL,AmountSubjectToOPL,RemainingOPL),SubscriberPaymentBeforeOPL) -> 0 | AQ18: 561.73 | AR18: 0 | AS18: 0 | AT18: 0 | AU18: 0 | AV18: =SubscriberPaymentAfterOPL-SubscriberPayCopay-SubscriberPayCoins -> 0 | AW18: TRUE | AX18: TRUE
A19: 17 | B19: 2011-06-24 | C19: 6 | D19: 12 | E19: Routine Venipuncture | F19: Diagnostic Services: Laboratory | G19: Plan Deductible Only | H19: 4.17 | I19: 0 | J19: 4.17 | K19: None | L19: 0 | M19: 0 | N19: None | O19: 1 | P19: 0 | Q19: 0 | R19: 0 | S19: 0 | T19: 4.17 | U19: TRUE | V19: 0 | W19: 0 | X19: FALSE | Y19: 0 | Z19: 0 | AA19: FALSE | AB19: 0 | AC19: 0 | AD19: FALSE | AE19: 0 | AF19: 0 | AG19: FALSE | AH19: 0 | AI19: 0 | AJ19: 0 | AK19: 4.17 | AL19: 0 | AM19: TRUE | AN19: 0 | AO19: 0 | AP19: =IF(OPLApplies,IF(AmountSubjectToOPL<RemainingOPL,AmountSubjectToOPL,RemainingOPL),SubscriberPaymentBeforeOPL) -> 0 | AQ19: 4.17 | AR19: 0 | AS19: 0 | AT19: 0 | AU19: 0 | AV19: =SubscriberPaymentAfterOPL-SubscriberPayCopay-SubscriberPayCoins -> 0 | AW19: TRUE | AX19: TRUE
A20: 18 | B20: 2011-06-24 | C20: 6 | D20: 32 | E20: Office/Outpatient Visit Est | F20: Professional Services: Obstetric Care (Bundled) | G20: Plan Deductible Only | H20: 0 | I20: 0 | J20: 0 | K20: None | L20: 0 | M20: 0 | N20: None | O20: 2 | P20: 0 | Q20: 0 | R20: 0 | S20: 0 | T20: 0 | U20: TRUE | V20: 0 | W20: 0 | X20: FALSE | Y20: 0 | Z20: 0 | AA20: FALSE | AB20: 0 | AC20: 0 | AD20: FALSE | AE20: 0 | AF20: 0 | AG20: FALSE | AH20: 0 | AI20: 0 | AJ20: 0 | AK20: 0 | AL20: 0 | AM20: TRUE | AN20: 0 | AO20: 0 | AP20: =IF(OPLApplies,IF(AmountSubjectToOPL<RemainingOPL,AmountSubjectToOPL,RemainingOPL),SubscriberPaymentBeforeOPL) -> 0 | AQ20: 0 | AR20: 0 | AS20: 0 | AT20: 0 | AU20: 0 | AV20: =SubscriberPaymentAfterOPL-SubscriberPayCopay-SubscriberPayCoins -> 0 | AW20: TRUE | AX20: TRUE
A21: 19 | B21: 2011-07-06 | C21: 7 | D21: 8 | E21: Prenatal Vitamins (OTC - Bottle of 100) [1 pill daily; 30 pills/month] | F21: Over-the-counter Drugs | G21: Not Covered | H21: 12.20546667 | I21: 12.20546667 | J21: 0 | K21: None | L21: 0 | M21: 0 | N21: None | O21: 2 | P21: 0 | Q21: 0 | R21: 0 | S21: 0 | T21: 0 | U21: FALSE | V21: 0 | W21: 0 | X21: FALSE | Y21: 0 | Z21: 0 | AA21: FALSE | AB21: 0 | AC21: 0 | AD21: FALSE | AE21: 0 | AF21: 0 | AG21: FALSE | AH21: 0 | AI21: 0 | AJ21: 0 | AK21: 0 | AL21: 0 | AM21: FALSE | AN21: 0 | AO21: 0 | AP21: =IF(OPLApplies,IF(AmountSubjectToOPL<RemainingOPL,AmountSubjectToOPL,RemainingOPL),SubscriberPaymentBeforeOPL) -> 0 | AQ21: 0 | AR21: 12.20546667 | AS21: 0 | AT21: 0 | AU21: 0 | AV21: =SubscriberPaymentAfterOPL-SubscriberPayCopay-SubscriberPayCoins -> 0 | AW21: TRUE | AX21: TRUE
A22: 20 | B22: 2011-07-22 | C22: 7 | D22: 32 | E22: Office/Outpatient Visit Est | F22: Professional Services: Obstetric Care (Bundled) | G22: Plan Deductible Only | H22: 0 | I22: 0 | J22: 0 | K22: None | L22: 0 | M22: 0 | N22: None | O22: 3 | P22: 0 | Q22: 0 | R22: 0 | S22: 0 | T22: 0 | U22: TRUE | V22: 0 | W22: 0 | X22: FALSE | Y22: 0 | Z22: 0 | AA22: FALSE | AB22: 0 | AC22: 0 | AD22: FALSE | AE22: 0 | AF22: 0 | AG22: FALSE | AH22: 0 | AI22: 0 | AJ22: 0 | AK22: 0 | AL22: 0 | AM22: TRUE | AN22: 0 | AO22: 0 | AP22: =IF(OPLApplies,IF(AmountSubjectToOPL<RemainingOPL,AmountSubjectToOPL,RemainingOPL),SubscriberPaymentBeforeOPL) -> 0 | AQ22: 0 | AR22: 0 | AS22: 0 | AT22: 0 | AU22: 0 | AV22: =SubscriberPaymentAfterOPL-SubscriberPayCopay-SubscriberPayCoins -> 0 | AW22: TRUE | AX22: TRUE
A23: 21 | B23: 2011-07-22 | C23: 7 | D23: 13 | E23: OB US >/= 14 WKS SNGL FETUS | F23: Diagnostic Services: Radiology | G23: Plan Deductible Only | H23: 163.99 | I23: 0 | J23: 163.99 | K23: None | L23: 0 | M23: 0 | N23: None | O23: 0 | P23: 0 | Q23: 0 | R23: 0 | S23: 0 | T23: 163.99 | U23: TRUE | V23: 0 | W23: 0 | X23: FALSE | Y23: 0 | Z23: 0 | AA23: FALSE | AB23: 0 | AC23: 0 | AD23: FALSE | AE23: 0 | AF23: 0 | AG23: FALSE | AH23: 0 | AI23: 0 | AJ23: 0 | AK23: 163.99 | AL23: 0 | AM23: TRUE | AN23: 0 | AO23: 0 | AP23: =IF(OPLApplies,IF(AmountSubjectToOPL<RemainingOPL,AmountSubjectToOPL,RemainingOPL),SubscriberPaymentBeforeOPL) -> 0 | AQ23: 163.99 | AR23: 0 | AS23: 0 | AT23: 0 | AU23: 0 | AV23: =SubscriberPaymentAfterOPL-SubscriberPayCopay-SubscriberPayCoins -> 0 | AW23: TRUE | AX23: TRUE
A24: 22 | B24: 2011-08-19 | C24: 8 | D24: 32 | E24: Office/Outpatient Visit Est | F24: Professional Services: Obstetric Care (Bundled) | G24: Plan Deductible Only | H24: 0 | I24: 0 | J24: 0 | K24: None | L24: 0 | M24: 0 | N24: None | O24: 4 | P24: 0 | Q24: 0 | R24: 0 | S24: 0 | T24: 0 | U24: TRUE | V24: 0 | W24: 0 | X24: FALSE | Y24: 0 | Z24: 0 | AA24: FALSE | AB24: 0 | AC24: 0 | AD24: FALSE | AE24: 0 | AF24: 0 | AG24: FALSE | AH24: 0 | AI24: 0 | AJ24: 0 | AK24: 0 | AL24: 0 | AM24: TRUE | AN24: 0 | AO24: 0 | AP24: =IF(OPLApplies,IF(AmountSubjectToOPL<RemainingOPL,AmountSubjectToOPL,RemainingOPL),SubscriberPaymentBeforeOPL) -> 0 | AQ24: 0 | AR24: 0 | AS24: 0 | AT24: 0 | AU24: 0 | AV24: =SubscriberPaymentAfterOPL-SubscriberPayCopay-SubscriberPayCoins -> 0 | AW24: TRUE | AX24: TRUE
A25: 23 | B25: 2011-09-16 | C25: 9 | D25: 17 | E25: Assay Glucose Blood Quant | F25: Diagnostic Services: Laboratory | G25: Plan Deductible Only | H25: 5.73 | I25: 0 | J25: 5.73 | K25: None | L25: 0 | M25: 0 | N25: None | O25: 0 | P25: 0 | Q25: 0 | R25: 0 | S25: 0 | T25: 5.73 | U25: TRUE | V25: 0 | W25: 0 | X25: FALSE | Y25: 0 | Z25: 0 | AA25: FALSE | AB25: 0 | AC25: 0 | AD25: FALSE | AE25: 0 | AF25: 0 | AG25: FALSE | AH25: 0 | AI25: 0 | AJ25: 0 | AK25: 5.73 | AL25: 0 | AM25: TRUE | AN25: 0 | AO25: 0 | AP25: =IF(OPLApplies,IF(AmountSubjectToOPL<RemainingOPL,AmountSubjectToOPL,RemainingOPL),SubscriberPaymentBeforeOPL) -> 0 | AQ25: 5.73 | AR25: 0 | AS25: 0 | AT25: 0 | AU25: 0 | AV25: =SubscriberPaymentAfterOPL-SubscriberPayCopay-SubscriberPayCoins -> 0 | AW25: TRUE | AX25: TRUE
A26: 24 | B26: 2011-09-16 | C26: 9 | D26: 26 | E26: Complete cbc w/auto diff wbc | F26: Diagnostic Services: Laboratory | G26: Plan Deductible Only | H26: 11.14 | I26: 0 | J26: 11.14 | K26: None | L26: 0 | M26: 0 | N26: None | O26: 0 | P26: 0 | Q26: 0 | R26: 0 | S26: 0 | T26: 11.14 | U26: TRUE | V26: 0 | W26: 0 | X26: FALSE | Y26: 0 | Z26: 0 | AA26: FALSE | AB26: 0 | AC26: 0 | AD26: FALSE | AE26: 0 | AF26: 0 | AG26: FALSE | AH26: 0 | AI26: 0 | AJ26: 0 | AK26: 11.14 | AL26: 0 | AM26: TRUE | AN26: 0 | AO26: 0 | AP26: =IF(OPLApplies,IF(AmountSubjectToOPL<RemainingOPL,AmountSubjectToOPL,RemainingOPL),SubscriberPaymentBeforeOPL) -> 0 | AQ26: 11.14 | AR26: 0 | AS26: 0 | AT26: 0 | AU26: 0 | AV26: =SubscriberPaymentAfterOPL-SubscriberPayCopay-SubscriberPayCoins -> 0 | AW26: TRUE | AX26: TRUE
A27: 25 | B27: 2011-09-16 | C27: 9 | D27: 18 | E27: Glucose Test | F27: Diagnostic Services: Laboratory | G27: Plan Deductible Only | H27: 5.14 | I27: 0 | J27: 5.14 | K27: None | L27: 0 | M27: 0 | N27: None | O27: 0 | P27: 0 | Q27: 0 | R27: 0 | S27: 0 | T27: 5.14 | U27: TRUE | V27: 0 | W27: 0 | X27: FALSE | Y27: 0 | Z27: 0 | AA27: FALSE | AB27: 0 | AC27: 0 | AD27: FALSE | AE27: 0 | AF27: 0 | AG27: FALSE | AH27: 0 | AI27: 0 | AJ27: 0 | AK27: 5.14 | AL27: 0 | AM27: TRUE | AN27: 0 | AO27: 0 | AP27: =IF(OPLApplies,IF(AmountSubjectToOPL<RemainingOPL,AmountSubjectToOPL,RemainingOPL),SubscriberPaymentBeforeOPL) -> 0 | AQ27: 5.14 | AR27: 0 | AS27: 0 | AT27: 0 | AU27: 0 | AV27: =SubscriberPaymentAfterOPL-SubscriberPayCopay-SubscriberPayCoins -> 0 | AW27: TRUE | AX27: TRUE
A28: 26 | B28: 2011-09-16 | C28: 9 | D28: 12 | E28: Routine Venipuncture | F28: Diagnostic Services: Laboratory | G28: Plan Deductible Only | H28: 4.17 | I28: 0 | J28: 4.17 | K28: None | L28: 0 | M28: 0 | N28: None | O28: 2 | P28: 0 | Q28: 0 | R28: 0 | S28: 0 | T28: 4.17 | U28: TRUE | V28: 0 | W28: 0 | X28: FALSE | Y28: 0 | Z28: 0 | AA28: FALSE | AB28: 0 | AC28: 0 | AD28: FALSE | AE28: 0 | AF28: 0 | AG28: FALSE | AH28: 0 | AI28: 0 | AJ28: 0 | AK28: 4.17 | AL28: 0 | AM28: TRUE | AN28: 0 | AO28: 0 | AP28: =IF(OPLApplies,IF(AmountSubjectToOPL<RemainingOPL,AmountSubjectToOPL,RemainingOPL),SubscriberPaymentBeforeOPL) -> 0 | AQ28: 4.17 | AR28: 0 | AS28: 0 | AT28: 0 | AU28: 0 | AV28: =SubscriberPaymentAfterOPL-SubscriberPayCopay-SubscriberPayCoins -> 0 | AW28: TRUE | AX28: TRUE
A29: 27 | B29: 2011-09-16 | C29: 9 | D29: 32 | E29: Office/Outpatient Visit Est | F29: Professional Services: Obstetric Care (Bundled) | G29: Plan Deductible Only | H29: 0 | I29: 0 | J29: 0 | K29: None | L29: 0 | M29: 0 | N29: None | O29: 5 | P29: 0 | Q29: 0 | R29: 0 | S29: 0 | T29: 0 | U29: TRUE | V29: 0 | W29: 0 | X29: FALSE | Y29: 0 | Z29: 0 | AA29: FALSE | AB29: 0 | AC29: 0 | AD29: FALSE | AE29: 0 | AF29: 0 | AG29: FALSE | AH29: 0 | AI29: 0 | AJ29: 0 | AK29: 0 | AL29: 0 | AM29: TRUE | AN29: 0 | AO29: 0 | AP29: =IF(OPLApplies,IF(AmountSubjectToOPL<RemainingOPL,AmountSubjectToOPL,RemainingOPL),SubscriberPaymentBeforeOPL) -> 0 | AQ29: 0 | AR29: 0 | AS29: 0 | AT29: 0 | AU29: 0 | AV29: =SubscriberPaymentAfterOPL-SubscriberPayCopay-SubscriberPayCoins -> 0 | AW29: TRUE | AX29: TRUE
A30: 28 | B30: 2011-09-30 | C30: 9 | D30: 32 | E30: Office/Outpatient Visit Est | F30: Professional Services: Obstetric Care (Bundled) | G30: Plan Deductible Only | H30: 0 | I30: 0 | J30: 0 | K30: None | L30: 1 | M30: 0 | N30: None | O30: 6 | P30: 0 | Q30: 0 | R30: 0 | S30: 0 | T30: 0 | U30: TRUE | V30: 0 | W30: 0 | X30: FALSE | Y30: 0 | Z30: 0 | AA30: FALSE | AB30: 0 | AC30: 0 | AD30: FALSE | AE30: 0 | AF30: 0 | AG30: FALSE | AH30: 0 | AI30: 0 | AJ30: 0 | AK30: 0 | AL30: 0 | AM30: TRUE | AN30: 0 | AO30: 0 | AP30: =IF(OPLApplies,IF(AmountSubjectToOPL<RemainingOPL,AmountSubjectToOPL,RemainingOPL),SubscriberPaymentBeforeOPL) -> 0 | AQ30: 0 | AR30: 0 | AS30: 0 | AT30: 0 | AU30: 0 | AV30: =SubscriberPaymentAfterOPL-SubscriberPayCopay-SubscriberPayCoins -> 0 | AW30: TRUE | AX30: TRUE
A31: 29 | B31: 2011-10-04 | C31: 10 | D31: 8 | E31: Prenatal Vitamins (OTC - Bottle of 100) [1 pill daily; 30 pills/month] | F31: Over-the-counter Drugs | G31: Not Covered | H31: 12.20546667 | I31: 12.20546667 | J31: 0 | K31: None | L31: 0 | M31: 0 | N31: None | O31: 3 | P31: 0 | Q31: 0 | R31: 0 | S31: 0 | T31: 0 | U31: FALSE | V31: 0 | W31: 0 | X31: FALSE | Y31: 0 | Z31: 0 | AA31: FALSE | AB31: 0 | AC31: 0 | AD31: FALSE | AE31: 0 | AF31: 0 | AG31: FALSE | AH31: 0 | AI31: 0 | AJ31: 0 | AK31: 0 | AL31: 0 | AM31: FALSE | AN31: 0 | AO31: 0 | AP31: =IF(OPLApplies,IF(AmountSubjectToOPL<RemainingOPL,AmountSubjectToOPL,RemainingOPL),SubscriberPaymentBeforeOPL) -> 0 | AQ31: 0 | AR31: 12.20546667 | AS31: 0 | AT31: 0 | AU31: 0 | AV31: =SubscriberPaymentAfterOPL-SubscriberPayCopay-SubscriberPayCoins -> 0 | AW31: TRUE | AX31: TRUE
A32: 30 | B32: 2011-10-14 | C32: 10 | D32: 32 | E32: Office/Outpatient Visit Est | F32: Professional Services: Obstetric Care (Bundled) | G32: Plan Deductible Only | H32: 0 | I32: 0 | J32: 0 | K32: None | L32: 0 | M32: 0 | N32: None | O32: 7 | P32: 0 | Q32: 0 | R32: 0 | S32: 0 | T32: 0 | U32: TRUE | V32: 0 | W32: 0 | X32: FALSE | Y32: 0 | Z32: 0 | AA32: FALSE | AB32: 0 | AC32: 0 | AD32: FALSE | AE32: 0 | AF32: 0 | AG32: FALSE | AH32: 0 | AI32: 0 | AJ32: 0 | AK32: 0 | AL32: 0 | AM32: TRUE | AN32: 0 | AO32: 0 | AP32: =IF(OPLApplies,IF(AmountSubjectToOPL<RemainingOPL,AmountSubjectToOPL,RemainingOPL),SubscriberPaymentBeforeOPL) -> 0 | AQ32: 0 | AR32: 0 | AS32: 0 | AT32: 0 | AU32: 0 | AV32: =SubscriberPaymentAfterOPL-SubscriberPayCopay-SubscriberPayCoins -> 0 | AW32: TRUE | AX32: TRUE
A33: 31 | B33: 2011-10-20 | C33: 10 | D33: 9 | E33: Birthing class | F33: Preventive Services & Vaccines | G33: No Cost Sharing | H33: 0 | I33: 0 | J33: 0 | K33: None | L33: 0 | M33: 0 | N33: None | O33: 0 | P33: 0 | Q33: 0 | R33: 0 | S33: 0 | T33: 0 | U33: FALSE | V33: 0 | W33: 0 | X33: FALSE | Y33: 0 | Z33: 0 | AA33: FALSE | AB33: 0 | AC33: 0 | AD33: FALSE | AE33: 0 | AF33: 0 | AG33: FALSE | AH33: 0 | AI33: 0 | AJ33: 0 | AK33: 0 | AL33: 0 | AM33: TRUE | AN33: 0 | AO33: 0 | AP33: =IF(OPLApplies,IF(AmountSubjectToOPL<RemainingOPL,AmountSubjectToOPL,RemainingOPL),SubscriberPaymentBeforeOPL) -> 0 | AQ33: 0 | AR33: 0 | AS33: 0 | AT33: 0 | AU33: 0 | AV33: =SubscriberPaymentAfterOPL-SubscriberPayCopay-SubscriberPayCoins -> 0 | AW33: TRUE | AX33: TRUE
A34: 32 | B34: 2011-10-27 | C34: 10 | D34: 9 | E34: Birthing class | F34: Preventive Services & Vaccines | G34: No Cost Sharing | H34: 0 | I34: 0 | J34: 0 | K34: None | L34: 1 | M34: 0 | N34: None | O34: 1 | P34: 0 | Q34: 0 | R34: 0 | S34: 0 | T34: 0 | U34: FALSE | V34: 0 | W34: 0 | X34: FALSE | Y34: 0 | Z34: 0 | AA34: FALSE | AB34: 0 | AC34: 0 | AD34: FALSE | AE34: 0 | AF34: 0 | AG34: FALSE | AH34: 0 | AI34: 0 | AJ34: 0 | AK34: 0 | AL34: 0 | AM34: TRUE | AN34: 0 | AO34: 0 | AP34: =IF(OPLApplies,IF(AmountSubjectToOPL<RemainingOPL,AmountSubjectToOPL,RemainingOPL),SubscriberPaymentBeforeOPL) -> 0 | AQ34: 0 | AR34: 0 | AS34: 0 | AT34: 0 | AU34: 0 | AV34: =SubscriberPaymentAfterOPL-SubscriberPayCopay-SubscriberPayCoins -> 0 | AW34: TRUE | AX34: TRUE
A35: 33 | B35: 2011-10-28 | C35: 10 | D35: 29 | E35: =VLOOKUP(ServiceCode,MaternityFeeSchedule,6,FALSE) -> Strep B DNA Amp Probe | F35: =VLOOKUP(ServiceCode,MaternityFeeSchedule,5,FALSE) -> Diagnostic Services: Laboratory | G35: =VLOOKUP(BenefitCategory,BenefitDesignTable,COLUMN(BenefitCostSharing),FALSE) -> Plan Deductible Only | H35: =VLOOKUP(ServiceCode,MaternityFeeSchedule,7,FALSE) -> 36.78 | I35: =IF(CostSharingType="Not Covered",AllowedAmt,0) -> 0 | J35: =IF((NotCoveredAmt+AmtExceedMonthLimit+AmtExceedAnnualLimit)>0,0,AllowedAmt) -> 36.78 | K35: =VLOOKUP(BenefitCategory,BenefitDesignTable,COLUMN(BenefitLimithMonth),FALSE) -> None | L35: =COUNTIFS(ServiceCode,ServiceCode,ClaimMonth,ClaimMonth,ClaimNumber,"<"&ClaimNumber) -> 0 | M35: =IF(MonthLimit=0,0,IF(PriorUseMonth>=MonthLimit,AllowedAmt,0)) -> 0 | N35: =VLOOKUP(BenefitCategory,BenefitDesignTable,COLUMN(BenefitLimitAnnual),FALSE) -> None | O35: =COUNTIFS(ServiceCode,ServiceCode,ClaimNumber,"<"&ClaimNumber) -> 0 | P35: =IF(AnnualLimit=0,0,IF(PriorUseAnnual>=AnnualLimit,AllowedAmt,0)) -> 0 | Q35: 0 | R35: 0 | S35: 0 | T35: =IF((CoveredAmt-CoPayAmount-CoInsAmount)<0,0,CoveredAmt-CoPayAmount-CoInsAmount) -> 36.78 | U35: TRUE | V35: =MAX(0,VLOOKUP(BenefitCategory,BenefitDesignTable,COLUMN(PlanDeductible),FALSE)-SUMIFS(AllowedAmtAfterCopayCoins,PlanDeductibleApplies,TRUE,ClaimNumber,"<"&ClaimNumber)) -> 0 | W35: =IF(AllowedAmtAfterCopayCoins<RemainingPlanDeduc,AllowedAmtAfterCopayCoins,RemainingPlanDeduc) -> 0 | X35: FALSE | Y35: =MAX(0,VLOOKUP(BenefitCategory,BenefitDesignTable,COLUMN(RxDeductible),FALSE)-SUMIFS(AllowedAmtAfterCopayCoins,RxDeductibleApplies,TRUE,ClaimNumber,"<"&ClaimNumber)) -> 0 | Z35: =IF(AllowedAmtAfterCopayCoins<RemainingRxDeduc,AllowedAmtAfterCopayCoins,RemainingRxDeduc) -> 0 | AA35: FALSE | AB35: =MAX(0,VLOOKUP(BenefitCategory,BenefitDesignTable,COLUMN(OptDeductibleC),FALSE)-SUMIFS(AllowedAmtAfterCopayCoins,DeductibleCApplies,TRUE,ClaimNumber,"<"&ClaimNumber)) -> 0 | AC35: =IF(AllowedAmtAfterCopayCoins<RemainingDeductibleC,AllowedAmtAfterCopayCoins,RemainingDeductibleC) -> 0 | AD35: =VLOOKUP(BenefitCategory,BenefitDesignTable,COLUMN(OptDeductibleD),FALSE)>0 -> FALSE | AE35: =MAX(0,VLOOKUP(BenefitCategory,BenefitDesignTable,COLUMN(OptDeductibleD),FALSE)-SUMIFS(AllowedAmtAfterCopayCoins,DeductibleDApplies,TRUE,ClaimNumber,"<"&ClaimNumber)) -> 0 | AF35: =IF(AllowedAmtAfterCopayCoins<RemainingDeductibleD,AllowedAmtAfterCopayCoins,RemainingDeductibleD) -> 0 | AG35: FALSE | AH35: =MAX(0,VLOOKUP(BenefitCategory,BenefitDesignTable,COLUMN(BenefitDeductible),FALSE)-SUMIFS(AllowedAmtAfterCopayCoins,BenefitCategory,BenefitCategory,ClaimNumber,"<"&ClaimNumber)) -> 0 | AI35: =IF(AllowedAmtAfterCopayCoins<RemainingBenefitDeduc,AllowedAmtAfterCopayCoins,RemainingBenefitDeduc) -> 0 | AJ35: =PlanDeductiblePayment+RxDeductiblePayment+DeductibleCPayment+DeductibleDPayment+BenefitDeductiblePayment -> 0 | AK35: 36.78 | AL35: 0 | AM35: TRUE | AN35: 0 | AO35: 0 | AP35: =IF(OPLApplies,IF(AmountSubjectToOPL<RemainingOPL,AmountSubjectToOPL,RemainingOPL),SubscriberPaymentBeforeOPL) -> 0 | AQ35: 36.78 | AR35: =NotCoveredAmt -> 0 | AS35: =AmtExceedMonthLimit+AmtExceedAnnualLimit -> 0 | AT35: =IF(CoPayAmount<SubscriberPaymentAfterOPL,CoPayAmount,SubscriberPaymentAfterOPL) -> 0 | AU35: =IF(CoInsAmount<SubscriberPaymentAfterOPL,CoInsAmount,SubscriberPaymentAfterOPL) -> 0 | AV35: =SubscriberPaymentAfterOPL-SubscriberPayCopay-SubscriberPayCoins -> 0 | AW35: =SUM(AS35:AV35)=AP35 -> TRUE | AX35: =SUM(AQ35:AV35)=H35 -> TRUE
A36: 34 | B36: 2011-10-28 | C36: 10 | D36: 32 | E36: Office/Outpatient Visit Est | F36: Professional Services: Obstetric Care (Bundled) | G36: Plan Deductible Only | H36: 0 | I36: 0 | J36: 0 | K36: None | L36: 1 | M36: 0 | N36: None | O36: 8 | P36: 0 | Q36: 0 | R36: 0 | S36: 0 | T36: 0 | U36: TRUE | V36: 0 | W36: 0 | X36: FALSE | Y36: 0 | Z36: 0 | AA36: FALSE | AB36: 0 | AC36: 0 | AD36: FALSE | AE36: 0 | AF36: 0 | AG36: FALSE | AH36: 0 | AI36: 0 | AJ36: 0 | AK36: 0 | AL36: 0 | AM36: TRUE | AN36: 0 | AO36: 0 | AP36: =IF(OPLApplies,IF(AmountSubjectToOPL<RemainingOPL,AmountSubjectToOPL,RemainingOPL),SubscriberPaymentBeforeOPL) -> 0 | AQ36: =IF(CoveredAmt<SubscriberPaymentAfterOPL,0,CoveredAmt-SubscriberPaymentAfterOPL) -> 0 | AR36: 0 | AS36: 0 | AT36: 0 | AU36: 0 | AV36: =SubscriberPaymentAfterOPL-SubscriberPayCopay-SubscriberPayCoins -> 0 | AW36: TRUE | AX36: TRUE
A37: 35 | B37: 2011-10-28 | C37: 10 | D37: 10 | E37: Immunization Admin | F37: Preventive Services & Vaccines | G37: No Cost Sharing | H37: 23 | I37: 0 | J37: 23 | K37: None | L37: 0 | M37: 0 | N37: None | O37: 0 | P37: 0 | Q37: 0 | R37: 0 | S37: 0 | T37: 23 | U37: FALSE | V37: 0 | W37: 0 | X37: FALSE | Y37: 0 | Z37: 0 | AA37: FALSE | AB37: 0 | AC37: 0 | AD37: FALSE | AE37: 0 | AF37: 0 | AG37: FALSE | AH37: 0 | AI37: 0 | AJ37: 0 | AK37: 23 | AL37: 0 | AM37: TRUE | AN37: 0 | AO37: 0 | AP37: =IF(OPLApplies,IF(AmountSubjectToOPL<RemainingOPL,AmountSubjectToOPL,RemainingOPL),SubscriberPaymentBeforeOPL) -> 0 | AQ37: 23 | AR37: 0 | AS37: 0 | AT37: 0 | AU37: 0 | AV37: =SubscriberPaymentAfterOPL-SubscriberPayCopay-SubscriberPayCoins -> 0 | AW37: TRUE | AX37: TRUE
A38: 36 | B38: 2011-10-28 | C38: 10 | D38: 11 | E38: Flu Vaccine N0 Preserv 3 & > | F38: Preventive Services & Vaccines | G38: No Cost Sharing | H38: 14.27 | I38: 0 | J38: 14.27 | K38: None | L38: 0 | M38: 0 | N38: None | O38: 0 | P38: 0 | Q38: 0 | R38: 0 | S38: 0 | T38: 14.27 | U38: FALSE | V38: 0 | W38: 0 | X38: FALSE | Y38: 0 | Z38: 0 | AA38: FALSE | AB38: 0 | AC38: 0 | AD38: FALSE | AE38: 0 | AF38: 0 | AG38: FALSE | AH38: 0 | AI38: 0 | AJ38: 0 | AK38: 14.27 | AL38: 0 | AM38: TRUE | AN38: 0 | AO38: 0 | AP38: =IF(OPLApplies,IF(AmountSubjectToOPL<RemainingOPL,AmountSubjectToOPL,RemainingOPL),SubscriberPaymentBeforeOPL) -> 0 | AQ38: 14.27 | AR38: 0 | AS38: 0 | AT38: 0 | AU38: 0 | AV38: =SubscriberPaymentAfterOPL-SubscriberPayCopay-SubscriberPayCoins -> 0 | AW38: TRUE | AX38: TRUE
A39: 37 | B39: 2011-11-01 | C39: 11 | D39: 9 | E39: Birthing class | F39: Preventive Services & Vaccines | G39: No Cost Sharing | H39: 0 | I39: 0 | J39: 0 | K39: None | L39: 0 | M39: 0 | N39: None | O39: 2 | P39: 0 | Q39: 0 | R39: 0 | S39: 0 | T39: 0 | U39: FALSE | V39: 0 | W39: 0 | X39: FALSE | Y39: 0 | Z39: 0 | AA39: FALSE | AB39: 0 | AC39: 0 | AD39: FALSE | AE39: 0 | AF39: 0 | AG39: FALSE | AH39: 0 | AI39: 0 | AJ39: 0 | AK39: 0 | AL39: 0 | AM39: TRUE | AN39: 0 | AO39: 0 | AP39: =IF(OPLApplies,IF(AmountSubjectToOPL<RemainingOPL,AmountSubjectToOPL,RemainingOPL),SubscriberPaymentBeforeOPL) -> 0 | AQ39: 0 | AR39: 0 | AS39: 0 | AT39: 0 | AU39: 0 | AV39: =SubscriberPaymentAfterOPL-SubscriberPayCopay-SubscriberPayCoins -> 0 | AW39: TRUE | AX39: TRUE
A40: 38 | B40: 2011-11-08 | C40: 11 | D40: 9 | E40: Birthing class | F40: Preventive Services & Vaccines | G40: No Cost Sharing | H40: 0 | I40: 0 | J40: 0 | K40: None | L40: 1 | M40: 0 | N40: None | O40: 3 | P40: 0 | Q40: 0 | R40: 0 | S40: 0 | T40: 0 | U40: FALSE | V40: 0 | W40: 0 | X40: FALSE | Y40: 0 | Z40: 0 | AA40: FALSE | AB40: 0 | AC40: 0 | AD40: FALSE | AE40: 0 | AF40: 0 | AG40: FALSE | AH40: 0 | AI40: 0 | AJ40: 0 | AK40: 0 | AL40: 0 | AM40: TRUE | AN40: 0 | AO40: 0 | AP40: =IF(OPLApplies,IF(AmountSubjectToOPL<RemainingOPL,AmountSubjectToOPL,RemainingOPL),SubscriberPaymentBeforeOPL) -> 0 | AQ40: 0 | AR40: 0 | AS40: 0 | AT40: 0 | AU40: 0 | AV40: =SubscriberPaymentAfterOPL-SubscriberPayCopay-SubscriberPayCoins -> 0 | AW40: TRUE | AX40: TRUE
A41: 39 | B41: 2011-11-11 | C41: 11 | D41: 32 | E41: Office/Outpatient Visit Est | F41: Professional Services: Obstetric Care (Bundled) | G41: Plan Deductible Only | H41: 0 | I41: 0 | J41: 0 | K41: None | L41: 0 | M41: 0 | N41: None | O41: 9 | P41: 0 | Q41: 0 | R41: 0 | S41: 0 | T41: 0 | U41: TRUE | V41: 0 | W41: 0 | X41: FALSE | Y41: 0 | Z41: 0 | AA41: FALSE | AB41: 0 | AC41: 0 | AD41: FALSE | AE41: 0 | AF41: 0 | AG41: FALSE | AH41: 0 | AI41: 0 | AJ41: 0 | AK41: 0 | AL41: 0 | AM41: TRUE | AN41: 0 | AO41: 0 | AP41: =IF(OPLApplies,IF(AmountSubjectToOPL<RemainingOPL,AmountSubjectToOPL,RemainingOPL),SubscriberPaymentBeforeOPL) -> 0 | AQ41: 0 | AR41: 0 | AS41: 0 | AT41: 0 | AU41: 0 | AV41: =SubscriberPaymentAfterOPL-SubscriberPayCopay-SubscriberPayCoins -> 0 | AW41: TRUE | AX41: TRUE
A42: 40 | B42: 2011-11-18 | C42: 11 | D42: 32 | E42: Office/Outpatient Visit Est | F42: Professional Services: Obstetric Care (Bundled) | G42: Plan Deductible Only | H42: 0 | I42: 0 | J42: 0 | K42: None | L42: 1 | M42: 0 | N42: None | O42: 10 | P42: 0 | Q42: 0 | R42: 0 | S42: 0 | T42: 0 | U42: TRUE | V42: 0 | W42: 0 | X42: FALSE | Y42: 0 | Z42: 0 | AA42: FALSE | AB42: 0 | AC42: 0 | AD42: FALSE | AE42: 0 | AF42: 0 | AG42: FALSE | AH42: 0 | AI42: 0 | AJ42: 0 | AK42: 0 | AL42: 0 | AM42: TRUE | AN42: 0 | AO42: 0 | AP42: =IF(OPLApplies,IF(AmountSubjectToOPL<RemainingOPL,AmountSubjectToOPL,RemainingOPL),SubscriberPaymentBeforeOPL) -> 0 | AQ42: 0 | AR42: 0 | AS42: 0 | AT42: 0 | AU42: 0 | AV42: =SubscriberPaymentAfterOPL-SubscriberPayCopay-SubscriberPayCoins -> 0 | AW42: TRUE | AX42: TRUE
A43: 41 | B43: 2011-11-25 | C43: 11 | D43: 32 | E43: Office/Outpatient Visit Est | F43: Professional Services: Obstetric Care (Bundled) | G43: Plan Deductible Only | H43: 0 | I43: 0 | J43: 0 | K43: None | L43: 2 | M43: 0 | N43: None | O43: 11 | P43: 0 | Q43: 0 | R43: 0 | S43: 0 | T43: 0 | U43: TRUE | V43: 0 | W43: 0 | X43: FALSE | Y43: 0 | Z43: 0 | AA43: FALSE | AB43: 0 | AC43: 0 | AD43: FALSE | AE43: 0 | AF43: 0 | AG43: FALSE | AH43: 0 | AI43: 0 | AJ43: 0 | AK43: 0 | AL43: 0 | AM43: TRUE | AN43: 0 | AO43: 0 | AP43: =IF(OPLApplies,IF(AmountSubjectToOPL<RemainingOPL,AmountSubjectToOPL,RemainingOPL),SubscriberPaymentBeforeOPL) -> 0 | AQ43: 0 | AR43: 0 | AS43: 0 | AT43: 0 | AU43: 0 | AV43: =SubscriberPaymentAfterOPL-SubscriberPayCopay-SubscriberPayCoins -> 0 | AW43: TRUE | AX43: TRUE
A44: 42 | B44: 2011-12-02 | C44: 12 | D44: 32 | E44: Office/Outpatient Visit Est | F44: Professional Services: Obstetric Care (Bundled) | G44: Plan Deductible Only | H44: 0 | I44: 0 | J44: 0 | K44: None | L44: 0 | M44: 0 | N44: None | O44: 12 | P44: 0 | Q44: 0 | R44: 0 | S44: 0 | T44: 0 | U44: TRUE | V44: 0 | W44: 0 | X44: FALSE | Y44: 0 | Z44: 0 | AA44: FALSE | AB44: 0 | AC44: 0 | AD44: FALSE | AE44: 0 | AF44: 0 | AG44: FALSE | AH44: 0 | AI44: 0 | AJ44: 0 | AK44: 0 | AL44: 0 | AM44: TRUE | AN44: 0 | AO44: 0 | AP44: =IF(OPLApplies,IF(AmountSubjectToOPL<RemainingOPL,AmountSubjectToOPL,RemainingOPL),SubscriberPaymentBeforeOPL) -> 0 | AQ44: 0 | AR44: 0 | AS44: 0 | AT44: 0 | AU44: 0 | AV44: =SubscriberPaymentAfterOPL-SubscriberPayCopay-SubscriberPayCoins -> 0 | AW44: TRUE | AX44: TRUE
A45: 43 | B45: 2011-12-09 | C45: 12 | D45: 36 | E45: Inpatient Maternity Bundle (Bundled line items 4, 5, 34) | F45: Inpatient Hospital Care (Facility) | G45: Plan Deductible Only | H45: 8959.38 | I45: 0 | J45: 8959.38 | K45: None | L45: 0 | M45: 0 | N45: None | O45: 0 | P45: 0 | Q45: 0 | R45: 0 | S45: 0 | T45: 8959.38 | U45: TRUE | V45: 0 | W45: 0 | X45: FALSE | Y45: 0 | Z45: 0 | AA45: FALSE | AB45: 0 | AC45: 0 | AD45: FALSE | AE45: 0 | AF45: 0 | AG45: FALSE | AH45: 0 | AI45: 0 | AJ45: 0 | AK45: 8959.38 | AL45: 0 | AM45: TRUE | AN45: 0 | AO45: 0 | AP45: =IF(OPLApplies,IF(AmountSubjectToOPL<RemainingOPL,AmountSubjectToOPL,RemainingOPL),SubscriberPaymentBeforeOPL) -> 0 | AQ45: 8959.38 | AR45: 0 | AS45: 0 | AT45: 0 | AU45: 0 | AV45: =SubscriberPaymentAfterOPL-SubscriberPayCopay-SubscriberPayCoins -> 0 | AW45: TRUE | AX45: TRUE
A46: 44 | B46: 2011-12-09 | C46: 12 | D46: 32 | E46: Office/Outpatient Visit Est | F46: Professional Services: Obstetric Care (Bundled) | G46: Plan Deductible Only | H46: 0 | I46: 0 | J46: 0 | K46: None | L46: 1 | M46: 0 | N46: None | O46: 13 | P46: 0 | Q46: 0 | R46: 0 | S46: 0 | T46: 0 | U46: TRUE | V46: 0 | W46: 0 | X46: FALSE | Y46: 0 | Z46: 0 | AA46: FALSE | AB46: 0 | AC46: 0 | AD46: FALSE | AE46: 0 | AF46: 0 | AG46: FALSE | AH46: 0 | AI46: 0 | AJ46: 0 | AK46: 0 | AL46: 0 | AM46: TRUE | AN46: 0 | AO46: 0 | AP46: =IF(OPLApplies,IF(AmountSubjectToOPL<RemainingOPL,AmountSubjectToOPL,RemainingOPL),SubscriberPaymentBeforeOPL) -> 0 | AQ46: 0 | AR46: 0 | AS46: 0 | AT46: 0 | AU46: 0 | AV46: =SubscriberPaymentAfterOPL-SubscriberPayCopay-SubscriberPayCoins -> 0 | AW46: TRUE | AX46: TRUE
A47: 45 | B47: 2011-12-09 | C47: 12 | D47: 3 | E47: Lactation class | F47: Preventive Services & Vaccines | G47: No Cost Sharing | H47: 0 | I47: 0 | J47: 0 | K47: None | L47: 0 | M47: 0 | N47: None | O47: 0 | P47: 0 | Q47: 0 | R47: 0 | S47: 0 | T47: 0 | U47: FALSE | V47: 0 | W47: 0 | X47: FALSE | Y47: 0 | Z47: 0 | AA47: FALSE | AB47: 0 | AC47: 0 | AD47: FALSE | AE47: 0 | AF47: 0 | AG47: FALSE | AH47: 0 | AI47: 0 | AJ47: 0 | AK47: 0 | AL47: 0 | AM47: TRUE | AN47: 0 | AO47: 0 | AP47: =IF(OPLApplies,IF(AmountSubjectToOPL<RemainingOPL,AmountSubjectToOPL,RemainingOPL),SubscriberPaymentBeforeOPL) -> 0 | AQ47: 0 | AR47: 0 | AS47: 0 | AT47: 0 | AU47: 0 | AV47: =SubscriberPaymentAfterOPL-SubscriberPayCopay-SubscriberPayCoins -> 0 | AW47: TRUE | AX47: TRUE
A48: 46 | B48: 2011-12-10 | C48: 12 | D48: 38 | E48: Initial hospital or birthing center care, per day, for E/M of normal newborn infant | F48: Professional Services: Primary Care | G48: Copayment Only | H48: 99 | I48: 0 | J48: 99 | K48: None | L48: 0 | M48: 0 | N48: None | O48: 0 | P48: 0 | Q48: 30 | R48: 0 | S48: 0 | T48: 69 | U48: FALSE | V48: 0 | W48: 0 | X48: FALSE | Y48: 0 | Z48: 0 | AA48: FALSE | AB48: 0 | AC48: 0 | AD48: FALSE | AE48: 0 | AF48: 0 | AG48: FALSE | AH48: 0 | AI48: 0 | AJ48: 0 | AK48: 99 | AL48: 30 | AM48: TRUE | AN48: 30 | AO48: 0 | AP48: =IF(OPLApplies,IF(AmountSubjectToOPL<RemainingOPL,AmountSubjectToOPL,RemainingOPL),SubscriberPaymentBeforeOPL) -> 0 | AQ48: 99 | AR48: 0 | AS48: 0 | AT48: 0 | AU48: 0 | AV48: =SubscriberPaymentAfterOPL-SubscriberPayCopay-SubscriberPayCoins -> 0 | AW48: TRUE | AX48: TRUE
A49: 47 | B49: 2011-12-11 | C49: 12 | D49: 38 | E49: Initial hospital or birthing center care, per day, for E/M of normal newborn infant | F49: Professional Services: Primary Care | G49: Copayment Only | H49: 99 | I49: 0 | J49: 99 | K49: None | L49: 1 | M49: 0 | N49: None | O49: 1 | P49: 0 | Q49: 30 | R49: 0 | S49: 0 | T49: 69 | U49: FALSE | V49: 0 | W49: 0 | X49: FALSE | Y49: 0 | Z49: 0 | AA49: FALSE | AB49: 0 | AC49: 0 | AD49: FALSE | AE49: 0 | AF49: 0 | AG49: FALSE | AH49: 0 | AI49: 0 | AJ49: 0 | AK49: 99 | AL49: 30 | AM49: TRUE | AN49: 30 | AO49: 0 | AP49: =IF(OPLApplies,IF(AmountSubjectToOPL<RemainingOPL,AmountSubjectToOPL,RemainingOPL),SubscriberPaymentBeforeOPL) -> 0 | AQ49: 99 | AR49: 0 | AS49: 0 | AT49: 0 | AU49: 0 | AV49: =SubscriberPaymentAfterOPL-SubscriberPayCopay-SubscriberPayCoins -> 0 | AW49: TRUE | AX49: TRUE
A50: 48 | B50: 2011-12-11 | C50: 12 | D50: 7 | E50: Docusate sodium (OTC) [1 pill QD] | F50: Over-the-counter Drugs | G50: Not Covered | H50: 11.19526786 | I50: 11.19526786 | J50: 0 | K50: None | L50: 0 | M50: 0 | N50: None | O50: 0 | P50: 0 | Q50: 0 | R50: 0 | S50: 0 | T50: 0 | U50: FALSE | V50: 0 | W50: 0 | X50: FALSE | Y50: 0 | Z50: 0 | AA50: FALSE | AB50: 0 | AC50: 0 | AD50: FALSE | AE50: 0 | AF50: 0 | AG50: FALSE | AH50: 0 | AI50: 0 | AJ50: 0 | AK50: 0 | AL50: 0 | AM50: FALSE | AN50: 0 | AO50: 0 | AP50: =IF(OPLApplies,IF(AmountSubjectToOPL<RemainingOPL,AmountSubjectToOPL,RemainingOPL),SubscriberPaymentBeforeOPL) -> 0 | AQ50: 0 | AR50: 11.19526786 | AS50: 0 | AT50: 0 | AU50: 0 | AV50: =SubscriberPaymentAfterOPL-SubscriberPayCopay-SubscriberPayCoins -> 0 | AW50: TRUE | AX50: TRUE
A51: 49 | B51: 2011-12-11 | C51: 12 | D51: 2 | E51: Ibuprofen 800mg (Rx) [1 pill Q8H PRN; 60 pills] | F51: Prescription Drugs: Generic | G51: Rx Deductible+Co-ins | H51: 11.6875 | I51: 0 | J51: 11.6875 | K51: None | L51: 0 | M51: 0 | N51: None | O51: 0 | P51: 0 | Q51: 0 | R51: 0.1 | S51: 1.16875 | T51: 10.51875 | U51: FALSE | V51: 0 | W51: 0 | X51: TRUE | Y51: 100 | Z51: 10.51875 | AA51: FALSE | AB51: 0 | AC51: 0 | AD51: FALSE | AE51: 0 | AF51: 0 | AG51: FALSE | AH51: 0 | AI51: 0 | AJ51: 10.51875 | AK51: 1.16875 | AL51: 11.6875 | AM51: TRUE | AN51: 11.6875 | AO51: 0 | AP51: =IF(OPLApplies,IF(AmountSubjectToOPL<RemainingOPL,AmountSubjectToOPL,RemainingOPL),SubscriberPaymentBeforeOPL) -> 0 | AQ51: 11.6875 | AR51: 0 | AS51: 0 | AT51: 0 | AU51: 0 | AV51: =SubscriberPaymentAfterOPL-SubscriberPayCopay-SubscriberPayCoins -> 0 | AW51: TRUE | AX51: TRUE
A52: 50 | B52: 2011-12-11 | C52: 12 | D52: 1 | E52: Oxycodone/APAP 5mg/325mg (Rx) [1 pill Q6H PRN; 15 pills] | F52: Prescription Drugs: Generic | G52: Rx Deductible+Co-ins | H52: 6.45 | I52: 0 | J52: 6.45 | K52: None | L52: 0 | M52: 0 | N52: None | O52: 0 | P52: 0 | Q52: 0 | R52: 0.1 | S52: 0.645 | T52: 5.805 | U52: FALSE | V52: 0 | W52: 0 | X52: TRUE | Y52: 89.48125 | Z52: 5.805 | AA52: FALSE | AB52: 0 | AC52: 0 | AD52: FALSE | AE52: 0 | AF52: 0 | AG52: FALSE | AH52: 0 | AI52: 0 | AJ52: 5.805 | AK52: 0.645 | AL52: 6.45 | AM52: TRUE | AN52: 6.45 | AO52: 0 | AP52: =IF(OPLApplies,IF(AmountSubjectToOPL<RemainingOPL,AmountSubjectToOPL,RemainingOPL),SubscriberPaymentBeforeOPL) -> 0 | AQ52: 6.45 | AR52: 0 | AS52: 0 | AT52: 0 | AU52: 0 | AV52: =SubscriberPaymentAfterOPL-SubscriberPayCopay-SubscriberPayCoins -> 0 | AW52: TRUE | AX52: TRUE
A53: 51 | B53: 2011-12-23 | C53: 12 | D53: 33 | E53: Office/Outpatient Visit Est | F53: Professional Services: Obstetric Care (Bundled) | G53: Plan Deductible Only | H53: 0 | I53: 0 | J53: 0 | K53: None | L53: 0 | M53: 0 | N53: None | O53: 0 | P53: 0 | Q53: 0 | R53: 0 | S53: 0 | T53: 0 | U53: TRUE | V53: 0 | W53: 0 | X53: FALSE | Y53: 0 | Z53: 0 | AA53: FALSE | AB53: 0 | AC53: 0 | AD53: FALSE | AE53: 0 | AF53: 0 | AG53: FALSE | AH53: 0 | AI53: 0 | AJ53: 0 | AK53: 0 | AL53: 0 | AM53: TRUE | AN53: 0 | AO53: 0 | AP53: =IF(OPLApplies,IF(AmountSubjectToOPL<RemainingOPL,AmountSubjectToOPL,RemainingOPL),SubscriberPaymentBeforeOPL) -> 0 | AQ53: 0 | AR53: 0 | AS53: 0 | AT53: 0 | AU53: 0 | AV53: =SubscriberPaymentAfterOPL-SubscriberPayCopay-SubscriberPayCoins -> 0 | AW53: TRUE | AX53: TRUE
A54: 52 | B54: 2011-12-11 | C54: =MONTH(B54) -> 12 | D54: 2 | E54: Ibuprofen 800mg (Rx) [1 pill Q8H PRN; 60 pills] | F54: Prescription Drugs: Generic | G54: Rx Deductible+Co-ins | H54: 11.6875 | I54: 0 | J54: 11.6875 | K54: None | L54: 1 | M54: 0 | N54: None | O54: 1 | P54: 0 | Q54: 0 | R54: 0.1 | S54: 1.16875 | T54: 10.51875 | U54: FALSE | V54: 0 | W54: 0 | X54: TRUE | Y54: 83.67625 | Z54: 10.51875 | AA54: FALSE | AB54: 0 | AC54: 0 | AD54: FALSE | AE54: 0 | AF54: 0 | AG54: FALSE | AH54: 0 | AI54: 0 | AJ54: 10.51875 | AK54: 1.16875 | AL54: 11.6875 | AM54: TRUE | AN54: 11.6875 | AO54: 0 | AP54: =IF(OPLApplies,IF(AmountSubjectToOPL<RemainingOPL,AmountSubjectToOPL,RemainingOPL),SubscriberPaymentBeforeOPL) -> 0 | AQ54: 11.6875 | AR54: 0 | AS54: 0 | AT54: 0 | AU54: 0 | AV54: =SubscriberPaymentAfterOPL-SubscriberPayCopay-SubscriberPayCoins -> 0 | AW54: TRUE | AX54: TRUE
A55: 53 | B55: 2011-12-11 | C55: 12 | D55: 1 | E55: Oxycodone/APAP 5mg/325mg (Rx) [1 pill Q6H PRN; 15 pills] | F55: Prescription Drugs: Generic | G55: Rx Deductible+Co-ins | H55: 6.45 | I55: 0 | J55: 6.45 | K55: None | L55: 1 | M55: 0 | N55: None | O55: 1 | P55: 0 | Q55: 0 | R55: 0.1 | S55: 0.645 | T55: 5.805 | U55: FALSE | V55: 0 | W55: 0 | X55: TRUE | Y55: 73.1575 | Z55: 5.805 | AA55: FALSE | AB55: 0 | AC55: 0 | AD55: FALSE | AE55: 0 | AF55: 0 | AG55: FALSE | AH55: 0 | AI55: 0 | AJ55: 5.805 | AK55: 0.645 | AL55: 6.45 | AM55: TRUE | AN55: 6.45 | AO55: 0 | AP55: =IF(OPLApplies,IF(AmountSubjectToOPL<RemainingOPL,AmountSubjectToOPL,RemainingOPL),SubscriberPaymentBeforeOPL) -> 0 | AQ55: 6.45 | AR55: 0 | AS55: 0 | AT55: 0 | AU55: 0 | AV55: =SubscriberPaymentAfterOPL-SubscriberPayCopay-SubscriberPayCoins -> 0 | AW55: TRUE | AX55: TRUE
A56: 54 | B56: 2011-12-23 | C56: 12 | D56: 33 | E56: Office/Outpatient Visit Est | F56: Professional Services: Obstetric Care (Bundled) | G56: Plan Deductible Only | H56: 0 | I56: 0 | J56: 0 | K56: None | L56: 1 | M56: 0 | N56: None | O56: 1 | P56: 0 | Q56: 0 | R56: 0 | S56: 0 | T56: 0 | U56: TRUE | V56: 0 | W56: 0 | X56: FALSE | Y56: 0 | Z56: 0 | AA56: FALSE | AB56: 0 | AC56: 0 | AD56: FALSE | AE56: 0 | AF56: 0 | AG56: FALSE | AH56: 0 | AI56: 0 | AJ56: 0 | AK56: 0 | AL56: 0 | AM56: TRUE | AN56: 0 | AO56: 0 | AP56: =IF(OPLApplies,IF(AmountSubjectToOPL<RemainingOPL,AmountSubjectToOPL,RemainingOPL),SubscriberPaymentBeforeOPL) -> 0 | AQ56: 0 | AR56: 0 | AS56: 0 | AT56: 0 | AU56: 0 | AV56: =SubscriberPaymentAfterOPL-SubscriberPayCopay-SubscriberPayCoins -> 0 | AW56: TRUE | AX56: TRUE

Sheet MATERNITY_LINE_ITEM (hidden)
A1: Item or Service Code | B1: Diagnosis Code (ICD-10) | C1: CPT©, HCPCS, or Other Billing Code | D1: Provider Type | E1: Benefit Category | F1: Description | G1: Allowed Amount | H1: Notes | I1: Valid Benefit Category | J1: Timeline Count
A2: 1 | C2: 378710401 | D2: Pharmacy Retail | E2: Prescription Drugs: Generic | F2: Oxycodone/APAP 5mg/325mg (Rx) [1 pill Q6H PRN; 15 pills] | G2: 6.45 | I2: =IF(ISERROR(VLOOKUP(E2,BenefitCategoryList,1,FALSE)),FALSE,TRUE) -> TRUE | J2: =COUNTIF(MATERNITY_TIMELINE!ServiceCode,A2) -> 2
A3: 2 | C3: 591346601 | D3: Pharmacy Retail | E3: Prescription Drugs: Generic | F3: Ibuprofen 800mg (Rx) [1 pill Q8H PRN; 60 pills] | G3: 11.6875 | I3: TRUE | J3: =COUNTIF(MATERNITY_TIMELINE!ServiceCode,A3) -> 2
A4: 3 | B4: O80, Z370 | C4: S9443 | D4: Inpatient Facility | E4: Preventive Services & Vaccines | F4: Lactation class | G4: 0 | H4: Included in hospital rate** | I4: TRUE | J4: =COUNTIF(MATERNITY_TIMELINE!ServiceCode,A4) -> 1
A5: 4 | B5: O80, Z370 | C5: 795 | D5: Inpatient Facility | E5: Inpatient Hospital Care (Facility) | F5: Normal newborn | G5: 1756 | I5: TRUE | J5: =COUNTIF(MATERNITY_TIMELINE!ServiceCode,A5) -> 0
A6: 5 | B6: O80, Z370 | C6: 1967 | D6: Anesthesiology | E6: Professional Services: Procedures & Other | F6: Anesth/analg vag delivery | G6: 1008 | I6: TRUE | J6: =COUNTIF(MATERNITY_TIMELINE!ServiceCode,A6) -> 0
A7: 6 | B7: O80, Z370 | C7: 59400 | D7: OBGYN | E7: Professional Services: Obstetric Care (Bundled) | F7: Obstetrical Care | G7: 2394.18 | H7: 59400 - Global OB package description/code | I7: TRUE | J7: =COUNTIF(MATERNITY_TIMELINE!ServiceCode,A7) -> 1
A8: 7 | C8: OTC | D8: Pharmacy Retail | E8: Over-the-counter Drugs | F8: Docusate sodium (OTC) [1 pill QD] | G8: 11.19526786 | I8: TRUE | J8: =COUNTIF(MATERNITY_TIMELINE!ServiceCode,A8) -> 1
A9: 8 | C9: OTC | D9: Pharmacy Retail | E9: Over-the-counter Drugs | F9: Prenatal Vitamins (OTC - Bottle of 100) [1 pill daily; 30 pills/month] | G9: 12.20546667 | I9: TRUE | J9: =COUNTIF(MATERNITY_TIMELINE!ServiceCode,A9) -> 4
A10: 9 | C10: S9442 | D10: Alternative Provider | E10: Preventive Services & Vaccines | F10: Birthing class | G10: 0 | I10: TRUE | J10: =COUNTIF(MATERNITY_TIMELINE!ServiceCode,A10) -> 4
A11: 10 | B11: Z23 | C11: 90471 | D11: OBGYN | E11: Preventive Services & Vaccines | F11: Immunization Admin | G11: 23 | I11: TRUE | J11: =COUNTIF(MATERNITY_TIMELINE!ServiceCode,A11) -> 1
A12: 11 | B12: Z23 | C12: 90656 | D12: OBGYN | E12: Preventive Services & Vaccines | F12: Flu Vaccine N0 Preserv 3 & > | G12: 14.27 | I12: TRUE | J12: =COUNTIF(MATERNITY_TIMELINE!ServiceCode,A12) -> 1
A13: 12 | B13: Z3400 | C13: 36415 | D13: OBGYN | E13: Diagnostic Services: Laboratory | F13: Routine Venipuncture | G13: 4.17 | H13: Cystic fibrosis screen | I13: TRUE | J13: =COUNTIF(MATERNITY_TIMELINE!ServiceCode,A13) -> 3
A14: 13 | B14: Z3400 | C14: 76805 | D14: Radiology | E14: Diagnostic Services: Radiology | F14: OB US >/= 14 WKS SNGL FETUS | G14: 163.99 | I14: TRUE | J14: =COUNTIF(MATERNITY_TIMELINE!ServiceCode,A14) -> 1
A15: 14 | B15: Z3400 | C15: 80055 | D15: OBGYN | E15: Diagnostic Services: Laboratory | F15: Obstetric Panel | G15: 42.75 | H15: 80055 - Global OB panel code | I15: TRUE | J15: =COUNTIF(MATERNITY_TIMELINE!ServiceCode,A15) -> 1
A16: 15 | B16: Z3400 | C16: 82105 | D16: OBGYN | E16: Diagnostic Services: Laboratory | F16: Alpha-fetoprotein serum | G16: 17.53 | H16: Maternal serum quad screen | I16: TRUE | J16: =COUNTIF(MATERNITY_TIMELINE!ServiceCode,A16) -> 1
A17: 16 | B17: Z3400 | C17: 82677 | D17: OBGYN | E17: Diagnostic Services: Laboratory | F17: Assay of estriol | G17: 23.82 | H17: Maternal serum quad screen | I17: TRUE | J17: =COUNTIF(MATERNITY_TIMELINE!ServiceCode,A17) -> 1
A18: 17 | B18: Z3400 | C18: 82947 | D18: OBGYN | E18: Diagnostic Services: Laboratory | F18: Assay Glucose Blood Quant | G18: 5.73 | I18: TRUE | J18: =COUNTIF(MATERNITY_TIMELINE!ServiceCode,A18) -> 1
A19: 18 | B19: Z3400 | C19: 82950 | D19: OBGYN | E19: Diagnostic Services: Laboratory | F19: Glucose Test | G19: 5.14 | I19: TRUE | J19: =COUNTIF(MATERNITY_TIMELINE!ServiceCode,A19) -> 1
A20: 19 | B20: Z3400 | C20: 83891 | D20: OBGYN | E20: Diagnostic Services: Laboratory | F20: Molecule isolate nucleic | H20: Not used | I20: TRUE | J20: =COUNTIF(MATERNITY_TIMELINE!ServiceCode,A20) -> 0
A21: 20 | B21: Z3400 | C21: 83900 | D21: OBGYN | E21: Diagnostic Services: Laboratory | F21: Molecule nucleic ampli 2 seq | H21: Not used | I21: TRUE | J21: =COUNTIF(MATERNITY_TIMELINE!ServiceCode,A21) -> 0
A22: 21 | B22: Z3400 | C22: 83901 | D22: OBGYN | E22: Diagnostic Services: Laboratory | F22: Molecule nucleic ampli addon | H22: Not used | I22: TRUE | J22: =COUNTIF(MATERNITY_TIMELINE!ServiceCode,A22) -> 0
A23: 22 | B23: Z3400 | C23: 83909 | D23: OBGYN | E23: Diagnostic Services: Laboratory | F23: Nucleic acid high resolute | H23: Not used | I23: TRUE | J23: =COUNTIF(MATERNITY_TIMELINE!ServiceCode,A23) -> 0
A24: 23 | B24: Z3400 | C24: 83912 | D24: OBGYN | E24: Diagnostic Services: Laboratory | F24: Genetic examination | H24: Not used | I24: TRUE | J24: =COUNTIF(MATERNITY_TIMELINE!ServiceCode,A24) -> 0
A25: 24 | B25: Z3400 | C25: 83914 | D25: OBGYN | E25: Diagnostic Services: Laboratory | F25: Mutation ident ola/sbce/aspe | G25: 265.06 | H25: Not used | I25: TRUE | J25: =COUNTIF(MATERNITY_TIMELINE!ServiceCode,A25) -> 0
A26: 25 | B26: Z3400 | C26: 84702 | D26: OBGYN | E26: Diagnostic Services: Laboratory | F26: Chorionic gonadotropin test | G26: 16.4 | H26: Maternal serum quad screen | I26: TRUE | J26: =COUNTIF(MATERNITY_TIMELINE!ServiceCode,A26) -> 1
A27: 26 | B27: Z3400 | C27: 85025 | D27: OBGYN | E27: Diagnostic Services: Laboratory | F27: Complete cbc w/auto diff wbc | G27: 11.14 | I27: TRUE | J27: =COUNTIF(MATERNITY_TIMELINE!ServiceCode,A27) -> 1
A28: 27 | B28: Z3400 | C28: 86336 | D28: OBGYN | E28: Diagnostic Services: Laboratory | F28: Inhibin A | G28: 17.43 | H28: Maternal serum quad screen | I28: TRUE | J28: =COUNTIF(MATERNITY_TIMELINE!ServiceCode,A28) -> 1
A29: 28 | B29: Z3400 | C29: 86701 | D29: OBGYN | E29: Diagnostic Services: Laboratory | F29: HIV-1 | G29: 15.48 | I29: TRUE | J29: =COUNTIF(MATERNITY_TIMELINE!ServiceCode,A29) -> 1
A30: 29 | B30: Z3400 | C30: 87653 | D30: OBGYN | E30: Diagnostic Services: Laboratory | F30: Strep B DNA Amp Probe | G30: 36.78 | I30: TRUE | J30: =COUNTIF(MATERNITY_TIMELINE!ServiceCode,A30) -> 1
A31: 30 | B31: Z3400 | C31: 87801 | D31: OBGYN | E31: Diagnostic Services: Laboratory | F31: Detect agnt mult dna ampli | G31: 94 | H31: Gonorrhea / Chlamydia screen | I31: TRUE | J31: =COUNTIF(MATERNITY_TIMELINE!ServiceCode,A31) -> 1
A32: 31 | B32: Z3400 | C32: 88164 | D32: OBGYN | E32: Diagnostic Services: Laboratory | F32: Cytopath TBS C/V Manual | G32: 12.64 | H32: Pap smear | I32: TRUE | J32: =COUNTIF(MATERNITY_TIMELINE!ServiceCode,A32) -> 1
A33: 32 | B33: Z3400 | C33: 59400 | D33: OBGYN | E33: Professional Services: Obstetric Care (Bundled) | F33: Office/Outpatient Visit Est | I33: TRUE | J33: =COUNTIF(MATERNITY_TIMELINE!ServiceCode,A33) -> 14
A34: 33 | B34: Z392 | C34: 59400 | D34: OBGYN | E34: Professional Services: Obstetric Care (Bundled) | F34: Office/Outpatient Visit Est | H34: Post partum visit | I34: TRUE | J34: =COUNTIF(MATERNITY_TIMELINE!ServiceCode,A34) -> 2
A35: 34 | B35: Z3800 | C35: 775 | D35: Inpatient Facility | E35: Inpatient Hospital Care (Facility) | F35: Vaginal delivery w/o complicating diagnoses | G35: 6195.38 | I35: TRUE | J35: =COUNTIF(MATERNITY_TIMELINE!ServiceCode,A35) -> 0
A36: 35 | B36: Z3201 | C36: 81025 | D36: OBGYN | E36: Diagnostic Services: Laboratory | F36: Urine Pregnancy Test | G36: 9.06 | I36: TRUE | J36: =COUNTIF(MATERNITY_TIMELINE!ServiceCode,A36) -> 1
A37: 36 | D37: Inpatient Facility | E37: Inpatient Hospital Care (Facility) | F37: Inpatient Maternity Bundle (Bundled line items 4, 5, 34) | G37: 8959.38 | H37: see individual line items on Line Item Maternity tab | I37: TRUE | J37: =COUNTIF(MATERNITY_TIMELINE!ServiceCode,A37) -> 1
A38: 37 | B38: Z3400 | C38: 81220 | D38: OBGYN | E38: Diagnostic Services: Laboratory | F38: CFTR gene analysis, common variants | G38: 561.73 | I38: TRUE | J38: =COUNTIF(MATERNITY_TIMELINE!ServiceCode,A38) -> 1
A39: 38 | C39: 99460 | D39: Inpatient Professional | E39: Professional Services: Primary Care | F39: Initial hospital or birthing center care, per day, for E/M of normal newborn infant | G39: 99 | I39: TRUE | J39: =COUNTIF(MATERNITY_TIMELINE!ServiceCode,A39) -> 2
A40: 39 | C40: 59409 | D40: Inpatient Professional | E40: Professional Services: | F40: Vaginal delivery only (with or without episiotomy and/or forceps) | G40: 1186.78 | I40: FALSE | J40: =COUNTIF(MATERNITY_TIMELINE!ServiceCode,A40) -> 0
A41: 40 | C41: 59410 | D41: Inpatient Professional | F41: Vaginal delivery with postpartum care | G41: 1450.41 | I41: FALSE | J41: =COUNTIF(MATERNITY_TIMELINE!ServiceCode,A41) -> 0

Sheet FRACTURE_SUMMARY (hidden)
B2: Foot Fracture Example: Summary of Subscriber and Plan Payments
B4: =BENEFIT_DESIGN!$B$6 -> Plan 3 | C4: Allowed Amount | F4: Subscriber pays:
B5: Benefit category | C5: Allowed Amount (unrounded) | D5: Allowed Amount (rounded) | E5: Plan payment (unrounded) | F5: Total subscriber payment | G5: Subscriber-paid deductible | H5: Subscriber-paid copayment | I5: Subscriber-paid coinsurance | J5: Non-covered and exclusions
B6: =BENEFIT_DESIGN!B8 -> Inpatient Hospital Care (Facility) | C6: =SUMIFS(FRACTURE_TIMELINE!AllowedAmt,FRACTURE_TIMELINE!BenefitCategory,$B6) -> 0 | D6: =MROUND(C6,IF(C6>=100,100,10)) -> 0 | E6: =SUMIFS(FRACTURE_TIMELINE!PlanPaymentAmt,FRACTURE_TIMELINE!BenefitCategory,$B6) -> 0 | F6: =SUM(G6:J6) -> 0 | G6: =SUMIFS(FRACTURE_TIMELINE!SubscriberPayDeduc,FRACTURE_TIMELINE!BenefitCategory,$B6) -> 0 | H6: =SUMIFS(FRACTURE_TIMELINE!SubscriberPayCopay,FRACTURE_TIMELINE!BenefitCategory,$B6) -> 0 | I6: =SUMIFS(FRACTURE_TIMELINE!SubscriberPayCoins,FRACTURE_TIMELINE!BenefitCategory,$B6) -> 0 | J6: =SUMIFS(FRACTURE_TIMELINE!SubscriberPayNonCov,FRACTURE_TIMELINE!BenefitCategory,$B6)+SUMIFS(FRACTURE_TIMELINE!SubscriberPayExclusion,FRACTURE_TIMELINE!BenefitCategory,$B6) -> 0
B7: =BENEFIT_DESIGN!B9 -> Other Facility Services | C7: =SUMIFS(FRACTURE_TIMELINE!AllowedAmt,FRACTURE_TIMELINE!BenefitCategory,$B7) -> 37.14 | D7: =MROUND(C7,IF(C7>=100,100,10)) -> 40 | E7: =SUMIFS(FRACTURE_TIMELINE!PlanPaymentAmt,FRACTURE_TIMELINE!BenefitCategory,$B7) -> 0 | F7: =SUM(G7:J7) -> 37.14 | G7: =SUMIFS(FRACTURE_TIMELINE!SubscriberPayDeduc,FRACTURE_TIMELINE!BenefitCategory,$B7) -> 37.14 | H7: =SUMIFS(FRACTURE_TIMELINE!SubscriberPayCopay,FRACTURE_TIMELINE!BenefitCategory,$B7) -> 0 | I7: =SUMIFS(FRACTURE_TIMELINE!SubscriberPayCoins,FRACTURE_TIMELINE!BenefitCategory,$B7) -> 0 | J7: =SUMIFS(FRACTURE_TIMELINE!SubscriberPayNonCov,FRACTURE_TIMELINE!BenefitCategory,$B7)+SUMIFS(FRACTURE_TIMELINE!SubscriberPayExclusion,FRACTURE_TIMELINE!BenefitCategory,$B7) -> 0
B8: =BENEFIT_DESIGN!B10 -> Emergency Department (Facility) | C8: =SUMIFS(FRACTURE_TIMELINE!AllowedAmt,FRACTURE_TIMELINE!BenefitCategory,$B8) -> 0 | D8: 0 | E8: =SUMIFS(FRACTURE_TIMELINE!PlanPaymentAmt,FRACTURE_TIMELINE!BenefitCategory,$B8) -> 0 | F8: 0 | G8: =SUMIFS(FRACTURE_TIMELINE!SubscriberPayDeduc,FRACTURE_TIMELINE!BenefitCategory,$B8) -> 0 | H8: =SUMIFS(FRACTURE_TIMELINE!SubscriberPayCopay,FRACTURE_TIMELINE!BenefitCategory,$B8) -> 0 | I8: =SUMIFS(FRACTURE_TIMELINE!SubscriberPayCoins,FRACTURE_TIMELINE!BenefitCategory,$B8) -> 0 | J8: =SUMIFS(FRACTURE_TIMELINE!SubscriberPayNonCov,FRACTURE_TIMELINE!BenefitCategory,$B8)+SUMIFS(FRACTURE_TIMELINE!SubscriberPayExclusion,FRACTURE_TIMELINE!BenefitCategory,$B8) -> 0
B9: =BENEFIT_DESIGN!B11 -> Ambulance | C9: =SUMIFS(FRACTURE_TIMELINE!AllowedAmt,FRACTURE_TIMELINE!BenefitCategory,$B9) -> 754.55 | D9: 800 | E9: =SUMIFS(FRACTURE_TIMELINE!PlanPaymentAmt,FRACTURE_TIMELINE!BenefitCategory,$B9) -> 654.55 | F9: 100 | G9: =SUMIFS(FRACTURE_TIMELINE!SubscriberPayDeduc,FRACTURE_TIMELINE!BenefitCategory,$B9) -> 100 | H9: =SUMIFS(FRACTURE_TIMELINE!SubscriberPayCopay,FRACTURE_TIMELINE!BenefitCategory,$B9) -> 0 | I9: =SUMIFS(FRACTURE_TIMELINE!SubscriberPayCoins,FRACTURE_TIMELINE!BenefitCategory,$B9) -> 0 | J9: =SUMIFS(FRACTURE_TIMELINE!SubscriberPayNonCov,FRACTURE_TIMELINE!BenefitCategory,$B9)+SUMIFS(FRACTURE_TIMELINE!SubscriberPayExclusion,FRACTURE_TIMELINE!BenefitCategory,$B9) -> 0
B10: =BENEFIT_DESIGN!B12 -> Professional Services: Primary Care | C10: =SUMIFS(FRACTURE_TIMELINE!AllowedAmt,FRACTURE_TIMELINE!BenefitCategory,$B10) -> 0 | D10: 0 | E10: =SUMIFS(FRACTURE_TIMELINE!PlanPaymentAmt,FRACTURE_TIMELINE!BenefitCategory,$B10) -> 0 | F10: 0 | G10: =SUMIFS(FRACTURE_TIMELINE!SubscriberPayDeduc,FRACTURE_TIMELINE!BenefitCategory,$B10) -> 0 | H10: =SUMIFS(FRACTURE_TIMELINE!SubscriberPayCopay,FRACTURE_TIMELINE!BenefitCategory,$B10) -> 0 | I10: =SUMIFS(FRACTURE_TIMELINE!SubscriberPayCoins,FRACTURE_TIMELINE!BenefitCategory,$B10) -> 0 | J10: =SUMIFS(FRACTURE_TIMELINE!SubscriberPayNonCov,FRACTURE_TIMELINE!BenefitCategory,$B10)+SUMIFS(FRACTURE_TIMELINE!SubscriberPayExclusion,FRACTURE_TIMELINE!BenefitCategory,$B10) -> 0
B11: =BENEFIT_DESIGN!B13 -> Professional Services: Emergency Department | C11: =SUMIFS(FRACTURE_TIMELINE!AllowedAmt,FRACTURE_TIMELINE!BenefitCategory,$B11) -> 557.41 | D11: 600 | E11: =SUMIFS(FRACTURE_TIMELINE!PlanPaymentAmt,FRACTURE_TIMELINE!BenefitCategory,$B11) -> 557.41 | F11: 0 | G11: =SUMIFS(FRACTURE_TIMELINE!SubscriberPayDeduc,FRACTURE_TIMELINE!BenefitCategory,$B11) -> 0 | H11: =SUMIFS(FRACTURE_TIMELINE!SubscriberPayCopay,FRACTURE_TIMELINE!BenefitCategory,$B11) -> 0 | I11: =SUMIFS(FRACTURE_TIMELINE!SubscriberPayCoins,FRACTURE_TIMELINE!BenefitCategory,$B11) -> 0 | J11: =SUMIFS(FRACTURE_TIMELINE!SubscriberPayNonCov,FRACTURE_TIMELINE!BenefitCategory,$B11)+SUMIFS(FRACTURE_TIMELINE!SubscriberPayExclusion,FRACTURE_TIMELINE!BenefitCategory,$B11) -> 0
B12: =BENEFIT_DESIGN!B14 -> Professional Services: Specialist | C12: =SUMIFS(FRACTURE_TIMELINE!AllowedAmt,FRACTURE_TIMELINE!BenefitCategory,$B12) -> 293.37 | D12: 300 | E12: =SUMIFS(FRACTURE_TIMELINE!PlanPaymentAmt,FRACTURE_TIMELINE!BenefitCategory,$B12) -> 0 | F12: 293.37 | G12: =SUMIFS(FRACTURE_TIMELINE!SubscriberPayDeduc,FRACTURE_TIMELINE!BenefitCategory,$B12) -> 293.37 | H12: =SUMIFS(FRACTURE_TIMELINE!SubscriberPayCopay,FRACTURE_TIMELINE!BenefitCategory,$B12) -> 0 | I12: =SUMIFS(FRACTURE_TIMELINE!SubscriberPayCoins,FRACTURE_TIMELINE!BenefitCategory,$B12) -> 0 | J12: =SUMIFS(FRACTURE_TIMELINE!SubscriberPayNonCov,FRACTURE_TIMELINE!BenefitCategory,$B12)+SUMIFS(FRACTURE_TIMELINE!SubscriberPayExclusion,FRACTURE_TIMELINE!BenefitCategory,$B12) -> 0
B13: =BENEFIT_DESIGN!B15 -> Professional Services: Obstetric Care (Bundled) | C13: =SUMIFS(FRACTURE_TIMELINE!AllowedAmt,FRACTURE_TIMELINE!BenefitCategory,$B13) -> 0 | D13: 0 | E13: =SUMIFS(FRACTURE_TIMELINE!PlanPaymentAmt,FRACTURE_TIMELINE!BenefitCategory,$B13) -> 0 | F13: 0 | G13: =SUMIFS(FRACTURE_TIMELINE!SubscriberPayDeduc,FRACTURE_TIMELINE!BenefitCategory,$B13) -> 0 | H13: =SUMIFS(FRACTURE_TIMELINE!SubscriberPayCopay,FRACTURE_TIMELINE!BenefitCategory,$B13) -> 0 | I13: =SUMIFS(FRACTURE_TIMELINE!SubscriberPayCoins,FRACTURE_TIMELINE!BenefitCategory,$B13) -> 0 | J13: =SUMIFS(FRACTURE_TIMELINE!SubscriberPayNonCov,FRACTURE_TIMELINE!BenefitCategory,$B13)+SUMIFS(FRACTURE_TIMELINE!SubscriberPayExclusion,FRACTURE_TIMELINE!BenefitCategory,$B13) -> 0
